Workbook

Sheet Титульный
A1: Производственная программа и расчет финансовых потребностей, необходимых на ее реализацию
A4: Регион РФ | B4: Томская область
A6: Муниципальный район
A7: Муниципальное образование
A9: ИНН
A10: Полное наименование организации | B10: =IF(Титульный!B9=""," ",INDEX(списки!M2:O185,MATCH(Титульный!B9,списки!M2:M185,0),3)) -> 
A11: наименование филиала
A12: КПП | B12: =IF(Титульный!B9=""," ",INDEX(списки!M2:O185,MATCH(Титульный!B9,списки!M2:M185,0),2)) -> 
A14: Вид деятельности | B14: водоснабжение
A16: предбазовый период | B16: 2016
A18: базовый период | B18: 2017
A20: Первый год периода регулирования | B20: 2018
A22: Период регулирования
A24: Вид тарифа в системе холодного водоснабжения
A28: Система налогообложения | B28: Общая
A148: dtr17TO

Sheet тарифная заявка
A1: Тарифная заявка
A2: =Титульный!B10 -> 
A3: =Титульный!B23 -> 0
A4: Район | B4: =Титульный!B6 -> 0 | C4: МО | D4: =Титульный!B7 -> 0
A6: Период действия тарифов | B6: Год | C6: Предложение организации
C7: НВВ, тыс. руб | D7: тариф 1-го полугодия, руб/м3 | E7: тариф 2-го полугодия, руб/м3 | F7: роста тарифа 2-го полугодия к 1-му полугодию
A8: =IF(Анкета!D8="метод индексации","три года","один год") -> один год | B8: 2018 год | C8: =IF($A$8="один год",'смета 2018'!M185/1000,'НВВ методом ДИ'!C73/1000) -> 0 | D8: =IF($A$8="один год",'смета 2018'!M191,'НВВ методом ДИ'!C75) -> 0 | E8: =IF($A$8="один год",'смета 2018'!M192,'НВВ методом ДИ'!C76) -> 0 | F8: =IF(D8=0,,IF(D8="-","-",E8/D8-1)) -> 0
B9: 2019 год | C9: =IF($A$8="один год","-",'НВВ методом ДИ'!E73/1000) -> - | D9: =IF($A$8="один год","-",'НВВ методом ДИ'!E75) -> - | E9: =IF($A$8="один год","-",'НВВ методом ДИ'!E76) -> - | F9: =IF(D9=0,,IF(D9="-","-",E9/D9-1)) -> -
B10: 2020 год | C10: =IF($A$8="один год","-",'НВВ методом ДИ'!G73/1000) -> - | D10: =IF($A$8="один год","-",'НВВ методом ДИ'!G75) -> - | E10: =IF($A$8="один год","-",'НВВ методом ДИ'!G76) -> - | F10: =IF(D10=0,,IF(D10="-","-",E10/D10-1)) -> -

Sheet списки (hidden)
A1: Районы | C1: Муниципальные образования | E1: Год | G1: Выбор | H1: Вид тарифа | I1: Система налогообложения | M1: ИНН | N1: КПП | O1: Наименование организации | P1: Имущество | Q1: Метод | R1: Период регулирования | S1: Вид водозабора
K2: 1 | L2: 2 | M2: 5116000922 | N2: 540645001 | O2: акционерное общество "Главное управление жилищно-коммунального хозяйства" | P2: договор аренды | Q2: метода экономически обоснованных расходов (затрат) | R2: 2018 | S2: поверхностные источники
A3: Александровский | C3: Александровское | E3: 2011 | G3: да | H3: питьевая вода | I3: Общая | J3: 1 | K3: прибыль | L3: доходы | M3: 7002006723 | N3: 701701001 | O3: муниципальное бюджетное учреждение здравоохранения "Асиновская центральная районная больница" | P3: постановление | Q3: метод индексации | R3: 2018-2020 | S3: подземные источники
A4: Асиновский | C4: Анастасьевское | E4: 2012 | G4: нет | H4: питьевая вода (с дополнительной очисткой) | I4: Упрощенная | J4: 2 | L4: доходы минус расходы | M4: 7002010695 | N4: 700201001 | O4: муниципальное унитарное предприятие "Спецавтохозяйство" | P4: акт приема-передачи
A5: Бакчарский | C5: Асиновское городское | E5: 2013 | H5: техническая вода | M5: 7002011508 | N5: 700201001 | O5: муниципальное унитарное предприятие "Большедороховское жилищно-коммунальное хозяйство" | P5: иное
A6: Верхнекетский | C6: Базойское | E6: 2014 | H6: транспортировка воды | M6: 7002011515 | N6: 700201001 | O6: муниципальное унитарное предприятие "Новокусковское жилищно-коммунальное хозяйство"
A7: г. Кедровый | C7: Бакчарское | E7: 2015 | H7: очистка воды | M7: 7002011522 | N7: 700201001 | O7: муниципальное унитарное предприятие "Новиковское жилищно-коммунальное хозяйство"
A8: г. Северск | C8: Баткатское | E8: 2016 | H8: подвоз воды | M8: 7002011530 | N8: 700201001 | O8: муниципальное унитарное предприятие "Батуринское жилищно-коммунальное хозяйство"
A9: г. Стрежевой | C9: Батуринское | E9: 2017 | M9: 7002011547 | N9: 700201001 | O9: муниципальноте унитарное предприятие "Ягодное жилищно-коммунальное хозяйство"
A10: г. Томск | C10: Белоярское | E10: 2018 | M10: 7002011787 | N10: 700201001 | O10: муниципальное унитарное предприятие "Новониколаевское жилищно-коммунальное хозяйство"
A11: Зырянский | C11: Белоярское городское | E11: 2019 | H11: услуга | M11: 7002016312 | N11: 700201001 | O11: общество с ограниченной ответственностью "Асиновская водяная компания"
A12: Каргасокский | C12: Берегаевское | E12: 2020 | H12: на питьевую воду | M12: 7002016626 | N12: 700201001 | O12: общество с ограниченной ответственностью "Асиновская тепло-генерирующая компания-№1"
A13: Кожевниковский | C13: Богатыревское | H13: на питьевую воду (с дополнительной очисткой) | M13: 7002016954 | N13: 700201001 | O13: муниципальное унитарное предприятие "Новокусковские коммунальные системы"
A14: Колпашевский | C14: Богашевское | H14: на техническую воду | M14: 7002017027 | N14: 700201001 | O14: общество с ограниченной ответсвенностью "Асиновский водоканал"
A15: Кривошеинский | C15: Большедороховское | H15: на транспортировку воды | M15: 7002017059 | N15: 700201001 | O15: общество с ограниченной ответственностью "АКОС"
A16: Молчановский | C16: Вавиловское | H16: на очистку воды | M16: 7002017186 | N16: 700201001 | O16: общество с ограниченной ответственностью "Теплоэнергоресурс №1"
A17: Парабельский | C17: Вертикосское | H17: на подвоз воды | M17: 7002017193 | N17: 700201001 | O17: общество с ограниченной ответственностью "Теплоэнергоресурс №2"
A18: Первомайский | C18: Володинское | M18: 7002017203 | N18: 700201001 | O18: общество с ограниченной ответственностью "Теплоэнергоресурс №3"
A19: Тегульдетский | C19: Воронинское | M19: 7002017210 | N19: 700201001 | O19: общество с ограниченной ответственностью "Теплоэнергоресурс №4"
A20: Томский | C20: Вороновское | H20: вид воды | M20: 7003000227 | N20: 700301001 | O20: муниципальное унитарное предприятие Бакчарского района "Бакчарский коммунальный комплекс"
A21: Чаинский | C21: Высоковское | H21: питьевая вода | M21: 7003000273 | N21: 700301001 | O21: областное государственное бюджетное образовательное учреждение начального профессионального образования "Профессиональное училище № 35"
A22: Шегарский | C22: Высокоярское | H22: техническая вода | M22: 7003003130 | N22: 700301001 | O22: открытое акционерное общество "Агропромышленная компания "Галкинская"
C23: Галкинское | M23: 7004004746 | N23: 700401001 | O23: общество с ограниченной ответственностью "Гранит"
C24: г. Кедровый | M24: 7004005323 | N24: 700401001 | O24: общество с ограниченной ответственностью "БИО ТЭК Верхняя Кеть"
C25: городской округ "ЗАТО Северск" | M25: 7004006052 | N25: 700401001 | O25: общество с ограниченной ответственностью "БИО ТЭК-С"
C26: городской округ "Город Стрежевой" | M26: 700400687080 | N26: отсутствует | O26: индивидуальный предприниматель Ковыряхин Юрий Анатольевич
C27: городской округ "Город Томск" | M27: 7004007151 | N27: 700401001 | O27: общество с ограниченной ответственностью "Деметра"
C28: Колпашевское городское поселение | M28: 7004007200 | N28: 700401001 | O28: общество с ограниченной ответственностью "Сайга-Энерго"
C29: Дальненское | M29: 7004007240 | N29: 700401001 | O29: общество с ограниченной ответственностью "Коммунально-жилищный сервис Ягодное"
C30: Дубровское | M30: 7004007610 | N30: 700401001 | O30: муниципальное унитарное предприятие Степановского сельского поселения "Степановское"
C31: Заводское | M31: 7004007708 | N31: 700401001 | O31: общество с ограниченной ответственностью "Орловка"
C32: Заречное | M32: 700500339834 | N32: отсутствует | O32: индивидуальный предприниматель Маслов Сергей Афанасьевич
C33: Зональненское | M33: 7005006305 | N33: 700501001 | O33: муниципальное учреждение - Администрация Чердатского сельского поселения
C34: Зоркальцевское | M34: 7005006312 | N34: 700501001 | O34: муниципальное учреждение - Администрация Высоковского сельского поселения
C35: Зырянское | M35: 7005006344 | N35: 700501001 | O35: муниципальное учреждение - Администрация Дубровского сельского поселения
C36: Инкинское | M36: 7005006560 | N36: 700501001 | O36: Михайловское муниципальное унитарное предприятие "Родник"
C37: Итатское | M37: 7005007193 | N37: 700501001 | O37: общество с ограниченной ответственностью "Аква-Сервис"
C38: Иштанское | M38: 7005007203 | N38: 700501001 | O38: общество с ограниченной ответственностью "Эко-Транс"
C39: Калтайское | M39: 7005015638 | N39: 700501001 | O39: общество с ограниченной ответственностью "КомСервис Тегульдет"
C40: Каргасокское | M40: 7005016590 | N40: 700501001 | O40: муниципальное унитарное предприятие "Прогресс"
C41: Катайгинское | M41: 700501702507 | N41: отсутствует | O41: индивидуальный предприниматель Антипин Андрей Федорович
C42: Кидальское | M42: 7006005110 | N42: 700601001 | O42: муниципальное унитарное предприятие "Каргасокский жилищно=эксплуатационный участок" Каргасокского сельского поселения
C43: Клюквинское | M43: 7006005632 | N43: 700601001 | O43: муниципальное унитарное предприятие Каргасокский "Тепловодоканал"
C44: Кожевниковское | M44: 7006006153 | N44: 700601001 | O44: муниципальное унитарное предприятие "ЖКХ Сосновское" муниципального образования "Сосновское сельское поселение"
C45: Коломинское | M45: 7006006160 | N45: 700601001 | O45: муниципальное унитарное предприятие "ЖКХ Молодежный" муниципального образования "Среднетымское сельское поселение"
C46: Комсомольское | M46: 7006006298 | N46: 700601001 | O46: муниципальное унитарное предприятие "ЖКХ Тымское" муниципального образования "Тымское сельское поселение"
C47: Копыловское | M47: 7006007407 | N47: 700601001 | O47: муниципальное унитарное предприятие " Нововасюганское" муниципального образования "Нововасюганское сельское поселение"
C48: Корниловское | M48: 7006008432 | N48: 700601001 | O48: муниципальное унитарное предприятие "ЖКХ Васюган" муниципального образования "Средневасюганское сельское поселение"
C49: Красногорское | M49: 700700053744 | N49: отсутствует | O49: индивидуальный предприниматель Волшуков Виктор Николаевич
C50: Красноярское | M50: 7007007583 | N50: 700701001 | O50: общество с ограниченной ответственностью "Риск"
C51: Кривошеинское | M51: 7007007657 | N51: 700701001 | O51: общество с ограниченной ответственностью "Заря - Сервис"
C52: Курлекское | M52: 7007009950 | N52: 700701001 | O52: общество с ограниченной ответственностью "Колпашевская тепловая компания"
C53: Куяновское | M53: 7007010120 | N53: 700701001 | O53: общество с ограниченной ответственностью "Водоканал - 2"
C54: Лукашкин-Ярское | M54: 7007010138 | N54: 700701001 | O54: общество с ограниченной ответственностью "Водоканал - 1"
C55: Макзырское | M55: 7007011117 | N55: 700701001 | O55: общество с ограниченной ответственностью "Энергия"
C56: Малиновское | M56: 7007011269 | N56: 700701001 | O56: муниципальное унитарное предприятие "Пламя"
C57: Межениновское | M57: 7007011639 | N57: 700701001 | O57: общество с ограниченной ответственностью "Колпашевские очистные системы"
C58: Мирнинское | M58: 700704480874 | N58: отсутствует | O58: индивидуальный предприниматель Воронин Сергей Петрович
C59: Михайловское | M59: 7008006430 | N59: 700801001 | O59: Кожевниковское районное муниципальное унитарное предприятие "Коммунальное ремонтно-строительное хозяйство"
C60: Могочинское | M60: 7008006448 | N60: 700801001 | O60: общество с ограниченной ответственностью "Кожевниковский КОМХОЗ"
C61: Молчановское | M61: 7008007554 | N61: 700801001 | O61: общество с ограниченной ответственностью "Селькомхоз"
C62: Моряковское | M62: 7009003954 | N62: 700901001 | O62: муниципальное унитарное предприятие "Жилищно-коммунальное хозяйство Кривошеинского сельского поселения"
C63: Назинское | M63: 7009004027 | N63: 700901001 | O63: общество с ограниченной ответственностью "H 2 O"
C64: Наргинское | M64: 7009004073 | N64: 700901001 | O64: общество с ограниченной ответственностью "Энергоресурс"
C65: Нарымское | M65: 701000127664 | N65: отсутствует | O65: индивидуальный предприниматель Сысоев Владимир Геннадьевич
C66: Наумовское | M66: 7010002296 | N66: 701001001 | O66: общество с ограниченной ответственностью "Энергия-М"
C67: Национальное Иванкинское | M67: 7010002673 | N67: 701001001 | O67: общество с ограниченной ответственностью "Компания экологической безопасности"
C68: Новиковское | M68: 7010002916 | N68: 701001001 | O68: общество с ограниченной ответственностью "Водовод"
C69: Нововасюганское | M69: 7010005579 | N69: 701001001 | O69: исполнительно-распорядительный орган муниципального образованияТунгусовского сельского поселения Администрация Тунгусовского сельского поселения
C70: Новогоренское | M70: 7011003207 | N70: 701101001 | O70: муниципальное унитарное предприятие "Нарымское жилищно-коммунальное хозяйство"
C71: Новокривошеинское | M71: 7011005155 | N71: 701101001 | O71: муниципальное казенное учреждение Администрация Новосельцевского сельского поселения - исполнительно распорядительный орган муниципального образования Новосельцевского сельского поселения
C72: Новокусковское | M72: 7011005162 | N72: 701101001 | O72: муниципальное казенное учреждение Администрация Заводского сельского поселения - исполнительно распорядительный орган муниципального образования Заводского сельского поселения
C73: Новомариинское | M73: 7011006014 | N73: 700401001 | O73: общество с ограниченной ответственностью "Универсал-Сервис"
C74: Новониколаевское | M74: 7011006092 | N74: 701101001 | O74: муниципальное унитарное предприятие "Парабель - Энергокомплекс"
C75: Новоникольское | M75: 7011006215 | N75: 701101001 | O75: общество с ограниченной ответственностью "Строитель"
C76: Новопокровское | M76: 701100720660 | N76: отсутствует | O76: индивидуальный предприниматель Стрельников Сергей Владимирович
C77: Новорождественское | M77: 701101197192 | N77: отсутствует | O77: индивидуальный предприниматель Михайлов Андрей Васильевич
C78: Новоселовское | M78: 7012004926 | N78: 701201001 | O78: муниципальное унитарное предприятие "Сергеевское"
C79: Новосельцевское | M79: 7012004958 | N79: 701201001 | O79: муниципальное унитарное предприятие "Жилкомхоз"
C80: Новоюгинское | M80: 7012006779 | N80: 701201001 | O80: общество с ограниченной ответственностью "Луговское"
C81: Октябрьское | M81: 7012007162 | N81: 701201001 | O81: общество с ограниченной ответственностью "Жилкомфорт"
C82: Орловское | M82: 7012007170 | N82: 701201001 | O82: общество с ограниченной ответственностью "Альянс"
C83: Палочкинское | M83: 7014000490 | N83: 701701001 | O83: открытое акционерное общество "Томскснаб"
C84: Парабельское | M84: 701401371204 | N84: отсутствует | O84: индивидуальный предприниматель Тимофеев Юрий Никитович
C85: Парбигское | M85: 701401633450 | N85: отсутствует | O85: ииндивидуальный предприниматель Градовец Александр Владимирович
C86: Первомайское | M86: 7014027742 | N86: 701401001 | O86: общество с ограниченной ответственностью "Межениновская птицефабрика"
C87: Песочно-Дубровское | M87: 7014040790 | N87: 701401001 | O87: общество с ограниченной ответственностью "Тепло-энергетическое предприятие Лоскутовское"
C88: Петровское | M88: 7014041063 | N88: 701401001 | O88: общество с ограниченной ответственностью "ЖКХ Рыбаловское"
C89: Плотниковское | M89: 7014041634 | N89: 701401001 | O89: общество с ограниченной ответственностью "Санаторий Синий Утес"
C90: Побединское | M90: 7014043021 | N90: 701401001 | O90: общество с ограниченной ответственностью "РЕКА+"
C91: Подгорнское | M91: 7014044794 | N91: 701701001 | O91: общество с ограниченной ответственностью "КП "Ключи"
C92: Поротниковское | M92: 7014045068 | N92: 701401001 | O92: муниципальное унитарное предприятие Богашевского сельского поселения "Орион"
C93: Пудовское | M93: 7014048076 | N93: 701401001 | O93: общество с ограниченной ответственностью "Восточная Инвестиционная Газовая Компания"
C94: Рыбаловское | M94: 7014049866 | N94: 701401001 | O94: муниципальное казенное предприятие Томского района "Технополигон"
C95: Сайгинское | M95: 7014049915 | N95: 701401001 | O95: общество с ограниченной ответственностью "ЭКМО"
C96: Саровское | M96: 7014053541 | N96: 701401001 | O96: общество с ограниченной ответственностью "Ресурс-Т"
C97: Северное | M97: 7014054440 | N97: 701401001 | O97: общество с ограниченной ответственностью "Водоресурс"
C98: Сергеевское | M98: 7014054979 | N98: 701401001 | O98: муниципальное предприятие Зональненского сельского поселения "Служба коммунального сервиса"
C99: Сосновское | M99: 7014055027 | N99: 701401001 | O99: муниципальное унитарное предприятие Мирненского сельского поселения "ТВК"
C100: Спасское | M100: 7014055404 | N100: 701401001 | O100: муниципальное унитарное предприятие жилищно-коммунального хозяйства "Исток" Новорождественского сельского поселения
C101: Средневасюганское | M101: 7014055644 | N101: 701401001 | O101: общество с ограниченной ответственностью "Управляющая компания "Томскосельское"
C102: Среднетымское | M102: 7014055796 | N102: 701401001 | O102: общество с ограниченной ответственностью "Восточная Водяная Компания"
C103: Старицынское | M103: 7014055806 | N103: 701401001 | O103: общество с ограниченной ответственностью "Восточная Тепловая Компания"
C104: Староювалинское | M104: 7014055813 | N104: 701401001 | O104: общество с ограниченной ответственностью "Восточная Компания"
C105: Степановское | M105: 7014055845 | N105: 701401001 | O105: общество с ограниченной ответственность "Западная Тепловая Компания"
C106: Суйгинское | M106: 7014055884 | N106: 701401001 | O106: общество с ограниченной ответственностью "Южная Тепловая Компания"
C107: Тевризское | M107: 7014056084 | N107: 701401001 | O107: общество с ограниченной ответственностью "Теплогазсервис"
C108: Тегульдетское | M108: 7014056711 | N108: 701401001 | O108: общество с ограниченной ответственностью "Гарант"
C109: Тогуровское | M109: 7014057257 | N109: 701401001 | O109: муниципальное унитарное предприятие Межениновского сельского поселения "Жилищно-коммунальное хозяйство ВодСервис"
C110: Толпаровское | M110: 7014057320 | N110: 701401001 | O110: муниципальное унитарное предприятие "Жилищное коммунальное хозяйство Октябрьское"
C111: Трубоческое | M111: 7014057377 | N111: 701401001 | O111: общество с ограниченной ответственностью "Комсервис+М"
C112: Тунгуссовское | M112: 7014057715 | N112: 701401001 | O112: муниципальное унитарное предприятие Заречного сельского поселения "Заречное"
C113: Турунтаевское | M113: 7014057754 | N113: 701701001 | O113: общество с ограниченной ответственностью "Водоканал"
C114: Тымское | M114: 7014057779 | N114: 701401001 | O114: муниципальное унитарное предприятие «ТУРУНТАЕВО-ПАРТНЕР»
C115: Улу-Юльское | M115: 7014057916 | N115: 701401001 | O115: муниципальное унитарное предприятие "Норма"
C116: Уртамское | M116: 7014059825 | N116: 701401001 | O116: Муниципальное унитарное предприятие Мирненского сельского поселения "ВК"
C117: Усть-Бакчарское | M117: 7014059920 | N117: 701401001 | O117: муниципальное унитарное предприятие Спасского сельского поселения "Техник"
C118: Усть-Тымское | M118: 7014061454 | N118: 701401001 | O118: общество с ограниченной ответственностью "Ресурс"
C119: Усть-Чижапское | M119: 7015000373 | N119: 701501001 | O119: муниципальное унитарное предприятие Чаинского района "Чаинское производственное объединение жилищно-коммунального хозяйства"
C120: Чажемтовское | M120: 7015000535 | N120: 701501001 | O120: областное государственное бюджетное учреждение здравоохранения "Чаинская районная больница"
C121: Чаинское | M121: 7016000016 | N121: 701601001 | O121: общество с ограниченной ответственностью "Водоканал"
C122: Черноярское | M122: 7016000030 | N122: 701601001 | O122: общество с ограниченной ответственностью "Автотранс"
C123: Чернышевское | M123: 7016000584 | N123: 701601001 | O123: муниципальное унитарное предприятие "Комфорт"
C124: Четское | M124: 7016001098 | N124: 701601001 | O124: областное государственное социальное учреждение "Дом-интернат для престарелых и инвалидов "Лесная дача"
C125: Чилинское | M125: 7016001620 | N125: 701601001 | O125: областное государственное автономное учреждение "Шегарский психоневрологический интернат "ЗАБОТА"
C126: Шегарское | M126: 7016005617 | N126: 701601001 | O126: общество с ограниченной ответственностью "Шегарский водоканал"
C127: Ягоднинское | M127: 7016007156 | N127: 701601001 | O127: общество с ограниченной отвественностью Управляющая компания "Успех"
C128: Ягодное | M128: 7017001968 | N128: 701701001 | O128: онитарное муниципальное предприятие "Спецавтохозяйство г. Томска"
M129: 7017002136 | N129: 701701001 | O129: онитарное муниципальное предприятие г. Томска "Комбинат Спецобслуживания" по организации похорон и предоставлению связанных с ними услуг
M130: 7017004366 | N130: 701701001 | O130: акционерное общество "Транснефть-Центральная Сибирь"
M131: 7017005289 | N131: 701702010 | O131: общество с ограниченной ответственностью "Газпром трансгаз Томск"
M132: 7017005289 | N132: 702243001 | O132: общество с ограниченной ответственностью "Газпром трансгаз Томск"
M133: 7017012254 | N133: 701401001 | O133: закрытое акционерное общество "Сибирская Аграрная Группа"
M134: 7017063682 | N134: 701401001 | O134: закрытое акционерное общество "Восточная Инвестиционная Газовая Компания"
M135: 7017071531 | N135: 701401001 | O135: общество с ограниченной ответственностью "Квинта"
M136: 7017075536 | N136: 701701001 | O136: общество с ограниченной ответственностью "Томскнефтехим"
M137: 7017095349 | N137: 701701001 | O137: открытое акционерное общество "Организация "Технотрон"
M138: 7017098220 | N138: 701701001 | O138: общество с ограниченной ответственностью "Завод приборных подшипников"
M139: 7017110131 | N139: 701701001 | O139: закрытое акционерное общество Кондитерская фабрика "Красная звезда"
M140: 7017123606 | N140: 701701001 | O140: общество с ограниченной ответственностью "Управляющая компания "Томского приборного завода"
M141: 7017129118 | N141: 701701001 | O141: общество с ограниченной ответственностью "СетьСервис"
M142: 7017134397 | N142: 701701001 | O142: общество с ограниченной ответственностью "ГазТехСервис"
M143: 7017213271 | N143: 701701001 | O143: общество с ограниченной ответственностью "Томлесдрев"
M144: 7017245330 | N144: 701701001 | O144: общество с ограниченной ответственностью "Сетевая компания ТДСК"
M145: 7017249750 | N145: 701701001 | O145: общество с ограниченной ответственностью «Термо»
M146: 7017253147 | N146: 700743001 | O146: государственное унитарное предприятие Томской области "Областное дорожное ремонтно - строительное управление"
M147: 7017253147 | N147: 701443001 | O147: государственное унитарное предприятие Томской области "Областное дорожное ремонтно - строительное управление"
M148: 7017270664 | N148: 701701001 | O148: общество с ограниченной ответственностью "Томскводоканал"
M149: 7017291311 | N149: 701701001 | O149: общество с ограниченной ответственностью "Колос-С"
M150: 7017318531 | N150: 701701001 | O150: общество с ограниченной ответственностью "ЭнергоТЭК"
M151: 7017323595 | N151: 701701001 | O151: общество с ограниченной ответственностью "Тепловая компания "Стандарт"
M152: 7017326170 | N152: 701401001 | O152: общество с ограниченной ответственностью "Аргентум"
M153: 7017351521 | N153: 701701001 | O153: акционерное общество "ТомскРТС"
M154: 7017373035 | N154: 701701001 | O154: общество с ограниченной ответственностью "Энергогарант"
M155: 7017373959 | N155: 701701001 | O155: акционерное общество "Томская генерация"
M156: 7017374014 | N156: 701701001 | O156: общество с ограниченной ответсвенностью "Городские очистные сооружения"
M157: 7020008610 | N157: 702001001 | O157: открытое акционерное общество Финансово-строительная компания "Газ Химстрой Инвест"
M158: 7020035798 | N158: 701701001 | O158: федеральное казенное учреждение "Исправительная колония № 3 Управления Федеральной службы исполнения наказаний по Томской области"
M159: 7021001569 | N159: 701701001 | O159: федеральное государственное унитарное предприятие "Комбинат коммунальных предприятий Томского научного центра Сибирского отделения Российской академии наук"
M160: 7022000310 | N160: 997150001 | O160: открытое акционерное общество "Томскнефть" Восточной Нефтяной Компании
M161: 7022010478 | N161: 702201001 | O161: муниципальное унитарное предприятие "Жилкомсервис" Александровского сельского поселения
M162: 7022010799 | N162: 702201001 | O162: общество с ограниченной ответственностью "Энергонефть Томск"
M163: 7022011087 | N163: 702201001 | O163: общество с ограниченной ответственностью "Стрежевой теплоэнергоснабжение"
M164: 7022014835 | N164: 702201001 | O164: муниципальное унитарное предприятие "Комсервис" Лукашкин-Ярского сельского поселения Александровского района Томской области
M165: 7022014842 | N165: 702201001 | O165: муниципальное унитарное предприятие "Жилищно-коммунальное хозяйство" села Назино
M166: 7022014874 | N166: 702201001 | O166: муниципальное унитарное предприятие "Комсервис" Александровского района Томской области
M167: 7022017561 | N167: 702201001 | O167: общество с ограниченной ответственностью "Транспортные коммунальные системы"
M168: 7022018300 | N168: 702201001 | O168: общество с ограниченной ответственностью "Жилстрой"
M169: 7022019336 | N169: 702201001 | O169: общество с ограниченной ответственностью "ТРАНССИБ"
M170: 702280350128 | N170: отсутствует | O170: индивидуальный предприниматель Голованов Андрей Николаевич
M171: 7023005209 | N171: 702301001 | O171: общество с ограниченной ответственностью "Северная Тепловая Компания"
M172: 7024021972 | N172: 701401001 | O172: общество с ограниченной ответственностью "Экополис"
M173: 7024024853 | N173: 702401001 | O173: открытое акционерное общество "Северский водоканал"
M174: 7024024860 | N174: 702401001 | O174: открытое акционерное общество "Тепловые сети"
M175: 7024028054 | N175: 702401001 | O175: общество с ограниченной ответственностью "Полигон твердых бытовых отходов комбината благоустройства"
M176: 7024029499 | N176: 702401001 | O176: акционерное общество "Сибирский химический комбинат"
M177: 7024032100 | N177: 702401001 | O177: общество с ограниченной ответственностью "ВКХ"
M178: 7024033488 | N178: 702401001 | O178: общество с ограниченной ответственностью "Управление энергоснабжения"
M179: 7024037595 | N179: 702401001 | O179: общество с ограниченной ответственностью "Северские энергетические сети"
M180: 7024038704 | N180: 702401001 | O180: общество с ограниченной ответственностью "Тепло плюс"
M181: 7024038863 | N181: 702401001 | O181: общество с ограниченной ответственностью "ВКХ "Самусь"
M182: 7224031400 | N182: 701401001 | O182: закрытое акционерное общество "Сибирская Аграрная Группа Мясопереработка"
M183: 7224067981 | N183: 722401001 | O183: общество с ограниченной ответственностью "Промпереработка"
M184: 7708503727 | N184: 540775040 | O184: Кузбасский территорильный участокЗападно-Сибирской дирекции по тепловодоснабжению - структурного подразделения Центральной дирекции по тепловодоснабжению-филиал ОАО "РЖД"
M185: 7722292838 | N185: 701702001 | O185: федеральное государственное унитарное предприятие "Научно-производственное объединение по медицинским иммунобиологическим препаратам "Микроген" Министерства здравоохранения Российской Федерации

Sheet Анкета
A1: Анкета организации и системы водоснабжения
A3: =Титульный!B10 -> 
A4: =Титульный!B24 -> 0
A5: Район | B5: =Титульный!B6 -> 0 | C5: МО | D5: =Титульный!B7 -> 0
A7: № п/п | B7: Показатель | C7: Ед. изм. | D7: Значение
A8: 1 | B8: Желаемый метод регулирования | C8: -
A9: 2 | B9: Изменялся ли объем предоставления услуг водоснабжения вследствие выбытия/приема на баланс объектов коммунального комплекса | C9: -
A10: 3 | B10: Общая мощность объектов водоснабжения | C10: куб.м./час
A11: 4 | B11: Общая протяженность сетей водоснабжения | C11: км
A12: 6 | B12: Процент износа ОС (по БУ на начало года) | C12: %
A13: 6.1 | B13: -водозаборов | C13: %
A14: 6.2 | B14: -системы очистки воды | C14: %
A15: 6.3 | B15: -сетей | C15: %
A16: 4 | B16: Количество выбывших/принятых на баланс объектов за 3 прошедших года («-» выбыли, «+» приняты) | C16: ед.
A17: 5 | B17: Мощность выбывших/принятых на баланс объектов за прошедшие 3 года («-» выбыли, «+» приняты) | C17: куб.м./ч
A18: 6 | B18: Количество переданных сетей за 3 прошедших года («-» выбыли, «+» приняты) | C18: м
A19: 7 | B19: Наличие бесхозных или не оформленных объектов и сетей | C19: -
A20: 7.1 | B20: Сети - бесхозные | C20: м
A21: 7.2 | B21: Объекты - бесхозные | C21: ед.
A22: 7.3 | B22: Объекты без оформленных документов (кадастр, договор аренды и т.д.) | C22: ед.
A23: 8 | B23: Нормативный срок службы оборудования, в том числе:
A24: 8.1 | B24: -оборудование водозаборов | C24: лет
A25: 8.2 | B25: -оборудование системы очистки воды | C25: лет
A26: 8.3 | B26: -оборудование системы транспортирования воды | C26: лет
A27: 9 | B27: Фактический срок службы оборудования, в том числе:
A28: 9.1 | B28: -оборудование водозаборов | C28: лет
A29: 9.2 | B29: -оборудование системы очистки воды | C29: лет
A30: 9.3 | B30: -оборудование системы транспортирования воды | C30: лет
A31: 10 | B31: Износ систем коммунальной инфраструктуры, в том числе: | C31: % | D31: =IF(SUM(N32:N34)=0,0,AVERAGE((N32:N34))) -> 0
A32: 10.1 | B32: -оборудование водозаборов | C32: % | D32: =IF(D24=0,0,D28/D24*100) -> 0
A33: 10.2 | B33: -оборудование системы очистки воды | C33: % | D33: =IF(D25=0,0,D29/D25*100) -> 0
A34: 10.3 | B34: -оборудование системы транспортирования воды | C34: % | D34: =IF(D26=0,0,D30/D26*100) -> 0
A35: 11 | B35: Наличие утвержденной схемы водоснабжения | C35: -
A36: 11.1 | B36: Реквизиты документа об утверждении (наименование утвердившего органа, № и дата) | C36: -
A37: 12 | B37: Статус гарантирующей организации | C37: -
A38: 12.1 | B38: Реквизиты документа об утверждении (наименование утвердившего органа, № и дата) | C38: -
A39: 13 | B39: Наличие утвержденной инвестиционной программы | C39: -
A40: 13.1 | B40: Реквизиты документа об утверждении (наименование утвердившего органа, № и дата) | C40: -
A41: 14 | B41: Наличие у организации концессионных соглашений | C41: -
A42: 14.1 | B42: Описание (кратко) | C42: -

Sheet дефляторы
B2: № п/п | C2: Наименование показателя | D2: Индексы-дефляторы, применяемые при расчете НВВ | I2: Индексы-дефляторы, применяемые при расчете НВВ
D3: по данным организации, г/г | I3: экспертом ДТР ТО, г/г
D4: 2016 г | E4: 2017 г | F4: 2018 г | G4: 2019, г | H4: 2020, г | I4: 2016 г | J4: 2017 г | K4: 2018 г | L4: 2019, г | M4: 2020, г
B5: 1. | C5: Основные материалы
B6: 2. | C6: Вспомогательные материалы, включая химреагенты
B7: 3. | C7: Вода на технологические нужды
B8: 4. | C8: Работы и услуги производственного характера (ремонтные и регламентные работы, транспортные расходы и другие работы и услуги)
B9: 5. | C9: Топливо на технологические цели, в т.ч.:
B10: 5.1.1. | C10: уголь
B11: 5.1.2. | C11: газ природный (включая попутный)
B12: 5.1.3. | C12: мазут
B13: 5.1.4. | C13: нефть
B14: 5.1.5. | C14: дизельное топливо
B15: 5.1.6. | C15: дрова
B16: 5.2.1. | C16: стоимость ж/д перевозок (индексация с января)
B17: 5.2.2. | C17: грузовой транспорт
B18: 6. | C18: Энергия на технологические цели, в т.ч.:
B19: 6.1. | C19: электроэнергия
B20: 6.2. | C20: теплоэнергия
B21: 7. | C21: Затраты на оплату труда
B22: 7.1. | C22: Отчисления от ФОТ
B23: 8. | C23: Амортизация основных фондов
B24: 9. | C24: Налоги и сборы
B25: 10. | C25: Арендная плата
B26: 11. | C26: Прочие затраты
B27: 12. | C27: Прибыль
C28: в том числе
B29: 12.1. | C29: Прибыль на социальное развитие
B30: 12.2. | C30: Прибыль на прочие цели
B31: 12.2. | C31: Индекс потребительских цен

Sheet данные об организации
A1: Краткие сведения об организации
A3: Наименование организации: | C3: =Титульный!B10 -> 
A4: Почтовый адрес:
A5: Тел/факс:
A6: E-mail:
A7: Должность руководителя
A8: Ф.И.О. (полностью)
A10: Перечень населенных пунктов, в которых организация осуществляет деятельность по водоснабжению
A12: Наименование МО | E12: Наименование населенного пункта
E13: 1
E14: 2
E15: 3
E16: 4
E17: 5
E18: 6
E19: 7
E20: 8
E21: 9
E22: 10
A24: Налогообложение | F24: Сведения об установленных тарифах на 2017 год
A26: система налогообложения | B26: объект налогообложения | D26: налоговая ставка | F26: № приказа ДТР ТО | G26: дата приказа | H26: срок действия тарифа | I26: величина тарифа, руб/куб.м. | J26: НДС
A28: =Титульный!B28 -> Общая | B28: прибыль | D28: =IF(B28="доходы",6,IF(B28="доходы минус расходы",10,20)) -> 20 | H28: 2017-01-01 | J28: =IF(A28="Общая","без учета НДС","НДС не предусмотрен") -> без учета НДС
H29: 2017-06-30
H30: 2017-07-01 | J30: =IF(A28="Общая","без учета НДС","НДС не предусмотрен") -> без учета НДС
H31: 2017-12-31
A33: Размер страховых взносов | F33: Сведения о компенсации до установленного тарифа на 2017 год
A35: год | B35: размер страховых взносов в % от ФОТ | F35: Наименование документа | G35: № и дата документа | H35: срок действия компенсации | I35: разница в тарифах, руб/куб.м. | J35: НДС
B36: всего | C36: в том числе:
C37: ПФ, ФСС,ОМС | D37: страхование от несчастных случаев на производстве и профессиональных заболеваний
A39: 2017 | B39: =C39+D39 -> 30.2 | C39: 30 | D39: 0.2 | F39: 50 | G39: № 50 от 01.01.2000 | H39: 2016-01-01 | J39: =J28 -> без учета НДС
A40: 2018 | B40: =C40+D40 -> 30.2 | C40: =C39 -> 30 | D40: =D39 -> 0.2 | H40: 2016-06-30
A41: 2019 | B41: 30.2 | C41: =C40 -> 30 | D41: =D40 -> 0.2 | H41: 2016-07-01 | J41: =J30 -> без учета НДС
A42: 2020 | B42: 30.2 | C42: 30 | D42: 0.2 | H42: 2016-12-31

Sheet баланс по МО
A2: Баланс водоснабжения
A3: =Титульный!B10 -> 
A4: =Титульный!B24 -> 0
B6: С РАЗБИВКОЙ ПО МУНИЦИПАЛЬНЫМ ОБРАЗОВАНИЯМ И (ИЛИ) НАСЕЛЕННЫМ ПУНКТАМ
A8: № п/п | B8: Наименование муниципального образования | C8: Наименование населенного пункта | D8: Ед. изм. | E8: Поднято воды | F8: Получено воды со стороны | G8: Пропущено воды через очистные сооружения (справочно) | H8: Подано воды в сеть | I8: Потери воды в сети | K8: Расход воды на технологические нужды | Q8: Объем реализации воды | R8: Расход воды на собственные нужды предприятия | U8: Отпущено воды другим водопроводам | X8: Отпущено воды по категориям потребителей | AN8: Объем реализации воды питьевого качества по приборам учета
K9: Всего, в т.ч. | L9: На очистные сооружения | M9: На промывку | N9: На хозяйственно-бытовые нужды | O9: Прочие | P9: % к поднятой воды | X9: Всего | Y9: Бюджетные потребители | AD9: Население | AI9: Прочие потребители
I10: всего | J10: %, к отпуску в сеть | R10: всего | S10: по приборам учета | T10: по нормативам (расчетным способом) | U10: всего | V10: по приборам учета | W10: по нормативам (расчетным способом) | Y10: всего | Z10: холодное водоснабжение | AB10: горячее водоснабжение (приготовление горячей воды) | AD10: всего | AE10: холодное водоснабжение | AG10: горячее водоснабжение (приготовление горячей воды) | AI10: всего | AJ10: холодное водоснабжение | AL10: горячее водоснабжение (приготовление горячей воды)
F11: всего | Z11: всего | AA11: в том числе по приборам учета | AB11: всего | AC11: в том числе по приборам учета | AE11: всего | AF11: в том числе по приборам учета | AG11: всего | AH11: в том числе по приборам учета | AJ11: всего | AK11: в том числе по приборам учета | AL11: всего | AM11: в том числе по приборам учета | AN11: куб.м. | AO11: доля в общем объеме реализации, %
A12: Предбзовый период (факт)
A13: 1 | B13: 2013 | C13: ='баланс ВСН'!D8 -> факт по данным организации | D13: м3 | E13: =H13-F13 -> 0 | F13: =SUM(F14:F23) -> 0 | G13: =SUM(G14:G23) -> 0 | H13: =I13+Q13+K13 -> 0 | I13: =SUM(I14:I23) -> 0 | J13: =IF((H13-K13)=0,0,(I13/(H13-K13)*100)) -> 0 | K13: =L13+M13+O13+N13 -> 0 | L13: =SUM(L14:L23) -> 0 | M13: =SUM(M14:M23) -> 0 | N13: =SUM(N14:N23) -> 0 | O13: =SUM(O14:O23) -> 0 | P13: =IF(E13=0,0,K13/E13*100) -> 0 | Q13: =R13+U13+X13 -> 0 | R13: =SUM(R14:R23) -> 0 | S13: 0 | T13: 0 | U13: 0 | V13: 0 | W13: 0 | X13: =Y13+AD13+AI13 -> 0 | Y13: =SUM(Y14:Y23) -> 0 | Z13: 0 | AA13: 0 | AB13: 0 | AC13: 0 | AD13: 0 | AE13: 0 | AF13: 0 | AG13: 0 | AH13: 0 | AI13: 0 | AJ13: 0 | AK13: 0 | AL13: 0 | AM13: 0 | AN13: =SUM(AN14:AN23) -> 0 | AO13: =IF(Q13=0,,AN13/Q13*100) -> 0
A14: 1.1 | B14: ='данные об организации'!A13 -> 0 | C14: ='данные об организации'!F13 -> 0 | D14: м3 | E14: 0 | H14: 0 | J14: 0 | K14: =L14+M14+O14+N14 -> 0 | Q14: =R14+U14+X14 -> 0 | R14: =S14+T14 -> 0 | U14: =V14+W14 -> 0 | X14: =Y14+AD14+AI14 -> 0 | Y14: =Z14+AB14 -> 0 | AD14: =AE14+AG14 -> 0 | AI14: =AJ14+AL14 -> 0 | AN14: =S14+V14+AA14+AC14+AF14+AH14+AK14+AM14 -> 0 | AO14: =IF(Q14=0,,AN14/Q14*100) -> 0
A15: 1.2 | B15: ='данные об организации'!A14 -> 0 | C15: ='данные об организации'!F14 -> 0 | D15: м3 | E15: 0 | H15: 0 | J15: 0 | K15: =L15+M15+O15+N15 -> 0 | Q15: =R15+U15+X15 -> 0 | R15: =S15+T15 -> 0 | U15: =V15+W15 -> 0 | X15: =Y15+AD15+AI15 -> 0 | Y15: =Z15+AB15 -> 0 | AD15: =AE15+AG15 -> 0 | AI15: =AJ15+AL15 -> 0 | AN15: =S15+V15+AA15+AC15+AF15+AH15+AK15+AM15 -> 0 | AO15: =IF(Q15=0,,AN15/Q15*100) -> 0
A16: 1.3 | B16: ='данные об организации'!A15 -> 0 | C16: ='данные об организации'!F15 -> 0 | D16: м3 | E16: 0 | H16: 0 | J16: 0 | K16: =L16+M16+O16+N16 -> 0 | Q16: =R16+U16+X16 -> 0 | R16: =S16+T16 -> 0 | U16: =V16+W16 -> 0 | X16: =Y16+AD16+AI16 -> 0 | Y16: =Z16+AB16 -> 0 | AD16: =AE16+AG16 -> 0 | AI16: =AJ16+AL16 -> 0 | AN16: 0 | AO16: 0
A17: 1.4 | B17: ='данные об организации'!A16 -> 0 | C17: ='данные об организации'!F16 -> 0 | D17: м3 | E17: 0 | H17: 0 | J17: 0 | K17: 0 | Q17: 0 | R17: 0 | U17: 0 | X17: 0 | Y17: 0 | AD17: 0 | AI17: 0 | AN17: 0 | AO17: 0
A18: 1.5 | B18: ='данные об организации'!A17 -> 0 | C18: ='данные об организации'!F17 -> 0 | D18: м3 | E18: 0 | H18: 0 | J18: 0 | K18: 0 | Q18: 0 | R18: 0 | U18: 0 | X18: 0 | Y18: 0 | AD18: 0 | AI18: 0 | AN18: 0 | AO18: 0
A19: 1.6 | B19: ='данные об организации'!A18 -> 0 | C19: ='данные об организации'!F18 -> 0 | D19: м3 | E19: 0 | H19: 0 | J19: 0 | K19: 0 | Q19: 0 | R19: 0 | U19: 0 | X19: 0 | Y19: 0 | AD19: 0 | AI19: 0 | AN19: 0 | AO19: 0
A20: 1.7 | B20: ='данные об организации'!A19 -> 0 | C20: ='данные об организации'!F19 -> 0 | D20: м3 | E20: 0 | H20: 0 | J20: 0 | K20: 0 | Q20: 0 | R20: 0 | U20: 0 | X20: 0 | Y20: 0 | AD20: 0 | AI20: 0 | AN20: 0 | AO20: 0
A21: 1.8 | B21: ='данные об организации'!A20 -> 0 | C21: ='данные об организации'!F20 -> 0 | D21: м3 | E21: 0 | H21: 0 | J21: 0 | K21: 0 | Q21: 0 | R21: 0 | U21: 0 | X21: 0 | Y21: 0 | AD21: 0 | AI21: 0 | AN21: 0 | AO21: 0
A22: 1.9 | B22: ='данные об организации'!A21 -> 0 | C22: ='данные об организации'!F21 -> 0 | D22: м3 | E22: 0 | H22: 0 | J22: 0 | K22: 0 | Q22: 0 | R22: 0 | U22: 0 | X22: 0 | Y22: 0 | AD22: 0 | AI22: 0 | AN22: 0 | AO22: 0
A23: 1.10 | B23: ='данные об организации'!A22 -> 0 | C23: ='данные об организации'!F22 -> 0 | D23: м3 | E23: 0 | H23: 0 | J23: 0 | K23: =L23+M23+O23+N23 -> 0 | Q23: =R23+U23+X23 -> 0 | R23: =S23+T23 -> 0 | U23: =V23+W23 -> 0 | X23: =Y23+AD23+AI23 -> 0 | Y23: =Z23+AB23 -> 0 | AD23: =AE23+AG23 -> 0 | AI23: =AJ23+AL23 -> 0 | AN23: 0 | AO23: 0
A24: Предбзовый период (факт)
A25: 1 | B25: =B13+1 -> 2014 | C25: =C13 -> факт по данным организации | D25: м3 | E25: =H25-F25 -> 5000 | F25: =SUM(F26:F35) -> 0 | G25: =SUM(G26:G35) -> 0 | H25: =I25+Q25+K25 -> 5000 | I25: =SUM(I26:I35) -> 0 | J25: =IF((H25-K25)=0,0,(I25/(H25-K25)*100)) -> 0 | K25: =L25+M25+O25+N25 -> 5000 | L25: =SUM(L26:L35) -> 5000 | M25: =SUM(M26:M35) -> 0 | N25: =SUM(N26:N35) -> 0 | O25: =SUM(O26:O35) -> 0 | P25: =IF(E25=0,0,K25/E25*100) -> 100 | Q25: =R25+U25+X25 -> 0 | R25: =SUM(R26:R35) -> 0 | S25: 0 | T25: 0 | U25: 0 | V25: 0 | W25: 0 | X25: =Y25+AD25+AI25 -> 0 | Y25: =SUM(Y26:Y35) -> 0 | Z25: 0 | AA25: 0 | AB25: 0 | AC25: 0 | AD25: 0 | AE25: 0 | AF25: 0 | AG25: 0 | AH25: 0 | AI25: 0 | AJ25: 0 | AK25: 0 | AL25: 0 | AM25: 0 | AN25: 0 | AO25: =IF(Q25=0,,AN25/Q25*100) -> 0
A26: 1.1 | B26: =B14 -> 0 | C26: =C14 -> 0 | D26: м3 | E26: 0 | H26: 0 | J26: 0 | K26: =L26+M26+O26+N26 -> 0 | Q26: =R26+U26+X26 -> 0 | R26: =S26+T26 -> 0 | U26: =V26+W26 -> 0 | X26: =Y26+AD26+AI26 -> 0 | Y26: =Z26+AB26 -> 0 | AD26: =AE26+AG26 -> 0 | AI26: =AJ26+AL26 -> 0 | AN26: =S26+V26+AA26+AC26+AF26+AH26+AK26+AM26 -> 0 | AO26: 0
A27: 1.2 | B27: =B15 -> 0 | C27: 0 | D27: м3 | E27: 0 | H27: 0 | J27: 0 | K27: =L27+M27+O27+N27 -> 0 | Q27: =R27+U27+X27 -> 0 | R27: =S27+T27 -> 0 | U27: =V27+W27 -> 0 | X27: =Y27+AD27+AI27 -> 0 | Y27: =Z27+AB27 -> 0 | AD27: =AE27+AG27 -> 0 | AI27: =AJ27+AL27 -> 0 | AN27: =S27+V27+AA27+AC27+AF27+AH27+AK27+AM27 -> 0 | AO27: 0
A28: 1.3 | B28: =B16 -> 0 | C28: 0 | D28: м3 | E28: 5000 | H28: 5000 | J28: 0 | K28: =L28+M28+O28+N28 -> 5000 | L28: 5000 | Q28: =R28+U28+X28 -> 0 | R28: =S28+T28 -> 0 | U28: =V28+W28 -> 0 | X28: =Y28+AD28+AI28 -> 0 | Y28: =Z28+AB28 -> 0 | AD28: =AE28+AG28 -> 0 | AI28: =AJ28+AL28 -> 0 | AN28: 0 | AO28: 0
A29: 1.4 | B29: =B17 -> 0 | C29: 0 | D29: м3 | E29: 0 | H29: 0 | J29: 0 | K29: 0 | Q29: 0 | R29: 0 | U29: 0 | X29: 0 | Y29: 0 | AD29: 0 | AI29: 0 | AN29: 0 | AO29: 0
A30: 1.5 | B30: =B18 -> 0 | C30: 0 | D30: м3 | E30: 0 | H30: 0 | J30: 0 | K30: 0 | Q30: 0 | R30: 0 | U30: 0 | X30: 0 | Y30: 0 | AD30: 0 | AI30: 0 | AN30: 0 | AO30: 0
A31: 1.6 | B31: =B19 -> 0 | C31: 0 | D31: м3 | E31: 0 | H31: 0 | J31: 0 | K31: 0 | Q31: 0 | R31: 0 | U31: 0 | X31: 0 | Y31: 0 | AD31: 0 | AI31: 0 | AN31: 0 | AO31: 0
A32: 1.7 | B32: =B20 -> 0 | C32: 0 | D32: м3 | E32: 0 | H32: 0 | J32: 0 | K32: 0 | Q32: 0 | R32: 0 | U32: 0 | X32: 0 | Y32: 0 | AD32: 0 | AI32: 0 | AN32: 0 | AO32: 0
A33: 1.8 | B33: =B21 -> 0 | C33: 0 | D33: м3 | E33: 0 | H33: 0 | J33: 0 | K33: 0 | Q33: 0 | R33: 0 | U33: 0 | X33: 0 | Y33: 0 | AD33: 0 | AI33: 0 | AN33: 0 | AO33: 0
A34: 1.9 | B34: =B22 -> 0 | C34: 0 | D34: м3 | E34: 0 | H34: 0 | J34: 0 | K34: 0 | Q34: 0 | R34: 0 | U34: 0 | X34: 0 | Y34: 0 | AD34: 0 | AI34: 0 | AN34: 0 | AO34: 0
A35: 1.10 | B35: =B23 -> 0 | C35: 0 | D35: м3 | E35: 0 | H35: 0 | J35: 0 | K35: =L35+M35+O35+N35 -> 0 | Q35: =R35+U35+X35 -> 0 | R35: =S35+T35 -> 0 | U35: =V35+W35 -> 0 | X35: =Y35+AD35+AI35 -> 0 | Y35: =Z35+AB35 -> 0 | AD35: =AE35+AG35 -> 0 | AI35: =AJ35+AL35 -> 0 | AN35: 0 | AO35: 0
A36: Предбзовый период (факт)
A37: 1 | B37: =B25+1 -> 2015 | C37: =C25 -> факт по данным организации | D37: м3 | E37: =H37-F37 -> 0 | F37: =SUM(F38:F47) -> 0 | G37: =SUM(G38:G47) -> 0 | H37: =I37+Q37+K37 -> 0 | I37: =SUM(I38:I47) -> 0 | J37: =IF((H37-K37)=0,0,(I37/(H37-K37)*100)) -> 0 | K37: =L37+M37+O37+N37 -> 0 | L37: =SUM(L38:L47) -> 0 | M37: =SUM(M38:M47) -> 0 | N37: =SUM(N38:N47) -> 0 | O37: =SUM(O38:O47) -> 0 | P37: =IF(E37=0,0,K37/E37*100) -> 0 | Q37: =R37+U37+X37 -> 0 | R37: =SUM(R38:R47) -> 0 | S37: 0 | T37: 0 | U37: 0 | V37: 0 | W37: 0 | X37: =Y37+AD37+AI37 -> 0 | Y37: =SUM(Y38:Y47) -> 0 | Z37: 0 | AA37: 0 | AB37: 0 | AC37: 0 | AD37: 0 | AE37: 0 | AF37: 0 | AG37: 0 | AH37: 0 | AI37: 0 | AJ37: 0 | AK37: 0 | AL37: 0 | AM37: 0 | AN37: 0 | AO37: =IF(Q37=0,,AN37/Q37*100) -> 0
A38: 1.1 | B38: =B26 -> 0 | C38: =C26 -> 0 | D38: м3 | E38: 0 | H38: 0 | J38: 0 | K38: =L38+M38+O38+N38 -> 0 | Q38: =R38+U38+X38 -> 0 | R38: =S38+T38 -> 0 | U38: =V38+W38 -> 0 | X38: =Y38+AD38+AI38 -> 0 | Y38: =Z38+AB38 -> 0 | AD38: =AE38+AG38 -> 0 | AI38: =AJ38+AL38 -> 0 | AN38: =S38+V38+AA38+AC38+AF38+AH38+AK38+AM38 -> 0 | AO38: 0
A39: 1.2 | B39: =B27 -> 0 | C39: 0 | D39: м3 | E39: 0 | H39: 0 | J39: 0 | K39: =L39+M39+O39+N39 -> 0 | Q39: =R39+U39+X39 -> 0 | R39: =S39+T39 -> 0 | U39: =V39+W39 -> 0 | X39: =Y39+AD39+AI39 -> 0 | Y39: =Z39+AB39 -> 0 | AD39: =AE39+AG39 -> 0 | AI39: =AJ39+AL39 -> 0 | AN39: =S39+V39+AA39+AC39+AF39+AH39+AK39+AM39 -> 0 | AO39: 0
A40: 1.3 | B40: =B28 -> 0 | C40: 0 | D40: м3 | E40: 0 | H40: 0 | J40: 0 | K40: =L40+M40+O40+N40 -> 0 | Q40: =R40+U40+X40 -> 0 | R40: =S40+T40 -> 0 | U40: =V40+W40 -> 0 | X40: =Y40+AD40+AI40 -> 0 | Y40: =Z40+AB40 -> 0 | AD40: =AE40+AG40 -> 0 | AI40: =AJ40+AL40 -> 0 | AN40: 0 | AO40: 0
A41: 1.4 | B41: =B29 -> 0 | C41: 0 | D41: м3 | E41: 0 | H41: 0 | J41: 0 | K41: 0 | Q41: 0 | R41: 0 | U41: 0 | X41: 0 | Y41: 0 | AD41: 0 | AI41: 0 | AN41: 0 | AO41: 0
A42: 1.5 | B42: =B30 -> 0 | C42: 0 | D42: м3 | E42: 0 | H42: 0 | J42: 0 | K42: 0 | Q42: 0 | R42: 0 | U42: 0 | X42: 0 | Y42: 0 | AD42: 0 | AI42: 0 | AN42: 0 | AO42: 0
A43: 1.6 | B43: =B31 -> 0 | C43: 0 | D43: м3 | E43: 0 | H43: 0 | J43: 0 | K43: 0 | Q43: 0 | R43: 0 | U43: 0 | X43: 0 | Y43: 0 | AD43: 0 | AI43: 0 | AN43: 0 | AO43: 0
A44: 1.7 | B44: =B32 -> 0 | C44: 0 | D44: м3 | E44: 0 | H44: 0 | J44: 0 | K44: 0 | Q44: 0 | R44: 0 | U44: 0 | X44: 0 | Y44: 0 | AD44: 0 | AI44: 0 | AN44: 0 | AO44: 0
A45: 1.8 | B45: =B33 -> 0 | C45: 0 | D45: м3 | E45: 0 | H45: 0 | J45: 0 | K45: 0 | Q45: 0 | R45: 0 | U45: 0 | X45: 0 | Y45: 0 | AD45: 0 | AI45: 0 | AN45: 0 | AO45: 0
A46: 1.9 | B46: =B34 -> 0 | C46: 0 | D46: м3 | E46: 0 | H46: 0 | J46: 0 | K46: 0 | Q46: 0 | R46: 0 | U46: 0 | X46: 0 | Y46: 0 | AD46: 0 | AI46: 0 | AN46: 0 | AO46: 0
A47: 1.10 | B47: =B35 -> 0 | C47: 0 | D47: м3 | E47: 0 | H47: 0 | J47: 0 | K47: 0 | Q47: 0 | R47: 0 | U47: 0 | X47: 0 | Y47: 0 | AD47: 0 | AI47: 0 | AN47: 0 | AO47: 0
A48: Предбзовый период (факт)
A49: 1 | B49: =B37+1 -> 2016 | C49: =C37 -> факт по данным организации | D49: м3 | E49: =H49-F49 -> 0 | F49: =SUM(F50:F59) -> 0 | G49: =SUM(G50:G59) -> 0 | H49: =I49+Q49+K49 -> 0 | I49: =SUM(I50:I59) -> 0 | J49: =IF((H49-K49)=0,0,(I49/(H49-K49)*100)) -> 0 | K49: =L49+M49+O49+N49 -> 0 | L49: =SUM(L50:L59) -> 0 | M49: =SUM(M50:M59) -> 0 | N49: =SUM(N50:N59) -> 0 | O49: =SUM(O50:O59) -> 0 | P49: =IF(E49=0,0,K49/E49*100) -> 0 | Q49: =R49+U49+X49 -> 0 | R49: =SUM(R50:R59) -> 0 | S49: 0 | T49: 0 | U49: 0 | V49: 0 | W49: 0 | X49: =Y49+AD49+AI49 -> 0 | Y49: =SUM(Y50:Y59) -> 0 | Z49: 0 | AA49: 0 | AB49: 0 | AC49: 0 | AD49: 0 | AE49: 0 | AF49: 0 | AG49: 0 | AH49: 0 | AI49: 0 | AJ49: 0 | AK49: 0 | AL49: 0 | AM49: 0 | AN49: 0 | AO49: =IF(Q49=0,,AN49/Q49*100) -> 0
A50: 1.1 | B50: =B38 -> 0 | C50: =C38 -> 0 | D50: м3 | E50: 0 | H50: 0 | J50: 0 | K50: =L50+M50+O50+N50 -> 0 | Q50: =R50+U50+X50 -> 0 | R50: =S50+T50 -> 0 | U50: =V50+W50 -> 0 | X50: =Y50+AD50+AI50 -> 0 | Y50: =Z50+AB50 -> 0 | AD50: =AE50+AG50 -> 0 | AI50: =AJ50+AL50 -> 0 | AN50: =S50+V50+AA50+AC50+AF50+AH50+AK50+AM50 -> 0 | AO50: 0
A51: 1.2 | B51: =B39 -> 0 | C51: 0 | D51: м3 | E51: 0 | H51: 0 | J51: 0 | K51: =L51+M51+O51+N51 -> 0 | Q51: =R51+U51+X51 -> 0 | R51: =S51+T51 -> 0 | U51: =V51+W51 -> 0 | X51: =Y51+AD51+AI51 -> 0 | Y51: =Z51+AB51 -> 0 | AD51: =AE51+AG51 -> 0 | AI51: =AJ51+AL51 -> 0 | AN51: =S51+V51+AA51+AC51+AF51+AH51+AK51+AM51 -> 0 | AO51: 0
A52: 1.3 | B52: =B40 -> 0 | C52: 0 | D52: м3 | E52: 0 | H52: 0 | J52: 0 | K52: =L52+M52+O52+N52 -> 0 | Q52: =R52+U52+X52 -> 0 | R52: =S52+T52 -> 0 | U52: =V52+W52 -> 0 | X52: =Y52+AD52+AI52 -> 0 | Y52: =Z52+AB52 -> 0 | AD52: =AE52+AG52 -> 0 | AI52: =AJ52+AL52 -> 0 | AN52: 0 | AO52: 0
A53: 1.4 | B53: =B41 -> 0 | C53: 0 | D53: м3 | E53: 0 | H53: 0 | J53: 0 | K53: 0 | Q53: 0 | R53: 0 | U53: 0 | X53: 0 | Y53: 0 | AD53: 0 | AI53: 0 | AN53: 0 | AO53: 0
A54: 1.5 | B54: =B42 -> 0 | C54: 0 | D54: м3 | E54: 0 | H54: 0 | J54: 0 | K54: 0 | Q54: 0 | R54: 0 | U54: 0 | X54: 0 | Y54: 0 | AD54: 0 | AI54: 0 | AN54: 0 | AO54: 0
A55: 1.6 | B55: =B43 -> 0 | C55: 0 | D55: м3 | E55: 0 | H55: 0 | J55: 0 | K55: 0 | Q55: 0 | R55: 0 | U55: 0 | X55: 0 | Y55: 0 | AD55: 0 | AI55: 0 | AN55: 0 | AO55: 0
A56: 1.7 | B56: =B44 -> 0 | C56: 0 | D56: м3 | E56: 0 | H56: 0 | J56: 0 | K56: 0 | Q56: 0 | R56: 0 | U56: 0 | X56: 0 | Y56: 0 | AD56: 0 | AI56: 0 | AN56: 0 | AO56: 0
A57: 1.8 | B57: =B45 -> 0 | C57: 0 | D57: м3 | E57: 0 | H57: 0 | J57: 0 | K57: 0 | Q57: 0 | R57: 0 | U57: 0 | X57: 0 | Y57: 0 | AD57: 0 | AI57: 0 | AN57: 0 | AO57: 0
A58: 1.9 | B58: =B46 -> 0 | C58: 0 | D58: м3 | E58: 0 | H58: 0 | J58: 0 | K58: 0 | Q58: 0 | R58: 0 | U58: 0 | X58: 0 | Y58: 0 | AD58: 0 | AI58: 0 | AN58: 0 | AO58: 0
A59: 1.10 | B59: =B47 -> 0 | C59: 0 | D59: м3 | E59: 0 | H59: 0 | J59: 0 | K59: 0 | Q59: 0 | R59: 0 | U59: 0 | X59: 0 | Y59: 0 | AD59: 0 | AI59: 0 | AN59: 0 | AO59: 0
A60: Базовый период
A61: 2 | B61: =B49+1 -> 2017 | C61: ='баланс ВСН'!F8 -> утвержденный план | D61: м3 | E61: =H61-F61 -> 0 | F61: =SUM(F62:F71) -> 0 | G61: =SUM(G62:G71) -> 0 | H61: =I61+Q61+K61 -> 0 | I61: =SUM(I62:I71) -> 0 | J61: =IF((H61-K61)=0,0,(I61/(H61-K61)*100)) -> 0 | K61: =L61+M61+O61+N61 -> 0 | L61: =SUM(L62:L71) -> 0 | M61: =SUM(M62:M71) -> 0 | N61: =SUM(N62:N71) -> 0 | O61: =SUM(O62:O71) -> 0 | P61: =IF(E61=0,0,K61/E61*100) -> 0 | Q61: =R61+U61+X61 -> 0 | R61: =SUM(R62:R71) -> 0 | S61: 0 | T61: 0 | U61: 0 | V61: 0 | W61: 0 | X61: =Y61+AD61+AI61 -> 0 | Y61: =SUM(Y62:Y71) -> 0 | Z61: 0 | AA61: 0 | AB61: 0 | AC61: 0 | AD61: 0 | AE61: 0 | AF61: 0 | AG61: 0 | AH61: 0 | AI61: 0 | AJ61: 0 | AK61: 0 | AL61: 0 | AM61: 0 | AN61: 0 | AO61: =IF(Q61=0,,AN61/Q61*100) -> 0
A62: 2.1 | B62: =B50 -> 0 | C62: =C50 -> 0 | D62: м3 | E62: 0 | H62: 0 | J62: 0 | K62: =L62+M62+O62+N62 -> 0 | Q62: =R62+U62+X62 -> 0 | R62: =S62+T62 -> 0 | U62: =V62+W62 -> 0 | X62: =Y62+AD62+AI62 -> 0 | Y62: =Z62+AB62 -> 0 | AD62: =AE62+AG62 -> 0 | AI62: =AJ62+AL62 -> 0 | AN62: =S62+V62+AA62+AC62+AF62+AH62+AK62+AM62 -> 0 | AO62: 0
A63: 2.2 | B63: =B51 -> 0 | C63: 0 | D63: м3 | E63: 0 | H63: 0 | J63: 0 | K63: =L63+M63+O63+N63 -> 0 | Q63: =R63+U63+X63 -> 0 | R63: =S63+T63 -> 0 | U63: =V63+W63 -> 0 | X63: =Y63+AD63+AI63 -> 0 | Y63: =Z63+AB63 -> 0 | AD63: =AE63+AG63 -> 0 | AI63: =AJ63+AL63 -> 0 | AN63: =S63+V63+AA63+AC63+AF63+AH63+AK63+AM63 -> 0 | AO63: 0
A64: 2.3 | B64: =B52 -> 0 | C64: 0 | D64: м3 | E64: 0 | H64: 0 | J64: 0 | K64: =L64+M64+O64+N64 -> 0 | Q64: =R64+U64+X64 -> 0 | R64: =S64+T64 -> 0 | U64: =V64+W64 -> 0 | X64: =Y64+AD64+AI64 -> 0 | Y64: =Z64+AB64 -> 0 | AD64: =AE64+AG64 -> 0 | AI64: =AJ64+AL64 -> 0 | AN64: 0 | AO64: 0
A65: 2.4 | B65: =B53 -> 0 | C65: 0 | D65: м3 | E65: 0 | H65: 0 | J65: 0 | K65: 0 | Q65: 0 | R65: 0 | U65: 0 | X65: 0 | Y65: 0 | AD65: 0 | AI65: 0 | AN65: 0 | AO65: 0
A66: 2.5 | B66: =B54 -> 0 | C66: 0 | D66: м3 | E66: 0 | H66: 0 | J66: 0 | K66: 0 | Q66: 0 | R66: 0 | U66: 0 | X66: 0 | Y66: 0 | AD66: 0 | AI66: 0 | AN66: 0 | AO66: 0
A67: 2.6 | B67: =B55 -> 0 | C67: 0 | D67: м3 | E67: 0 | H67: 0 | J67: 0 | K67: 0 | Q67: 0 | R67: 0 | U67: 0 | X67: 0 | Y67: 0 | AD67: 0 | AI67: 0 | AN67: 0 | AO67: 0
A68: 2.7 | B68: =B56 -> 0 | C68: 0 | D68: м3 | E68: 0 | H68: 0 | J68: 0 | K68: 0 | Q68: 0 | R68: 0 | U68: 0 | X68: 0 | Y68: 0 | AD68: 0 | AI68: 0 | AN68: 0 | AO68: 0
A69: 2.8 | B69: =B57 -> 0 | C69: 0 | D69: м3 | E69: 0 | H69: 0 | J69: 0 | K69: 0 | Q69: 0 | R69: 0 | U69: 0 | X69: 0 | Y69: 0 | AD69: 0 | AI69: 0 | AN69: 0 | AO69: 0
A70: 2.9 | B70: =B58 -> 0 | C70: 0 | D70: м3 | E70: 0 | H70: 0 | J70: 0 | K70: 0 | Q70: 0 | R70: 0 | U70: 0 | X70: 0 | Y70: 0 | AD70: 0 | AI70: 0 | AN70: 0 | AO70: 0
A71: 2.10 | B71: =B59 -> 0 | C71: 0 | D71: м3 | E71: 0 | H71: 0 | J71: 0 | K71: 0 | Q71: 0 | R71: 0 | U71: 0 | X71: 0 | Y71: 0 | AD71: 0 | AI71: 0 | AN71: 0 | AO71: 0
A72: Период регулирования
A73: 1 | B73: =B61+1 -> 2018 | C73: предложение организации | D73: м3 | E73: =H73-F73 -> 0 | F73: =SUM(F74:F83) -> 0 | G73: =SUM(G74:G83) -> 0 | H73: =I73+Q73+K73 -> 0 | I73: =SUM(I74:I83) -> 0 | J73: =IF((H73-K73)=0,0,(I73/(H73-K73)*100)) -> 0 | K73: =L73+M73+O73+N73 -> 0 | L73: =SUM(L74:L83) -> 0 | M73: =SUM(M74:M83) -> 0 | N73: =SUM(N74:N83) -> 0 | O73: =SUM(O74:O83) -> 0 | P73: =IF(E73=0,0,K73/E73*100) -> 0 | Q73: =R73+U73+X73 -> 0 | R73: =SUM(R74:R83) -> 0 | S73: 0 | T73: 0 | U73: 0 | V73: 0 | W73: 0 | X73: =Y73+AD73+AI73 -> 0 | Y73: =SUM(Y74:Y83) -> 0 | Z73: 0 | AA73: 0 | AB73: 0 | AC73: 0 | AD73: 0 | AE73: 0 | AF73: 0 | AG73: 0 | AH73: 0 | AI73: 0 | AJ73: 0 | AK73: 0 | AL73: 0 | AM73: 0 | AN73: 0 | AO73: =IF(Q73=0,,AN73/Q73*100) -> 0
A74: 1.1 | B74: =B62 -> 0 | C74: =C62 -> 0 | D74: м3 | E74: 0 | H74: 0 | J74: 0 | K74: =L74+M74+O74+N74 -> 0 | Q74: =R74+U74+X74 -> 0 | R74: =S74+T74 -> 0 | U74: =V74+W74 -> 0 | X74: =Y74+AD74+AI74 -> 0 | Y74: =Z74+AB74 -> 0 | AD74: =AE74+AG74 -> 0 | AI74: =AJ74+AL74 -> 0 | AN74: =S74+V74+AA74+AC74+AF74+AH74+AK74+AM74 -> 0 | AO74: 0
A75: 1.2 | B75: =B63 -> 0 | C75: 0 | D75: м3 | E75: 0 | H75: 0 | J75: 0 | K75: =L75+M75+O75+N75 -> 0 | Q75: =R75+U75+X75 -> 0 | R75: =S75+T75 -> 0 | U75: =V75+W75 -> 0 | X75: =Y75+AD75+AI75 -> 0 | Y75: =Z75+AB75 -> 0 | AD75: =AE75+AG75 -> 0 | AI75: =AJ75+AL75 -> 0 | AN75: =S75+V75+AA75+AC75+AF75+AH75+AK75+AM75 -> 0 | AO75: 0
A76: 1.3 | B76: =B64 -> 0 | C76: 0 | D76: м3 | E76: 0 | H76: 0 | J76: 0 | K76: =L76+M76+O76+N76 -> 0 | Q76: =R76+U76+X76 -> 0 | R76: =S76+T76 -> 0 | U76: =V76+W76 -> 0 | X76: =Y76+AD76+AI76 -> 0 | Y76: =Z76+AB76 -> 0 | AD76: =AE76+AG76 -> 0 | AI76: =AJ76+AL76 -> 0 | AN76: 0 | AO76: 0
A77: 1.4 | B77: =B65 -> 0 | C77: 0 | D77: м3 | E77: 0 | H77: 0 | J77: 0 | K77: 0 | Q77: 0 | R77: 0 | U77: 0 | X77: 0 | Y77: 0 | AD77: 0 | AI77: 0 | AN77: 0 | AO77: 0
A78: 1.5 | B78: =B66 -> 0 | C78: 0 | D78: м3 | E78: 0 | H78: 0 | J78: 0 | K78: 0 | Q78: 0 | R78: 0 | U78: 0 | X78: 0 | Y78: 0 | AD78: 0 | AI78: 0 | AN78: 0 | AO78: 0
A79: 1.6 | B79: =B67 -> 0 | C79: 0 | D79: м3 | E79: 0 | H79: 0 | J79: 0 | K79: 0 | Q79: 0 | R79: 0 | U79: 0 | X79: 0 | Y79: 0 | AD79: 0 | AI79: 0 | AN79: 0 | AO79: 0
A80: 1.7 | B80: =B68 -> 0 | C80: 0 | D80: м3 | E80: 0 | H80: 0 | J80: 0 | K80: 0 | Q80: 0 | R80: 0 | U80: 0 | X80: 0 | Y80: 0 | AD80: 0 | AI80: 0 | AN80: 0 | AO80: 0
A81: 1.8 | B81: =B69 -> 0 | C81: 0 | D81: м3 | E81: 0 | H81: 0 | J81: 0 | K81: 0 | Q81: 0 | R81: 0 | U81: 0 | X81: 0 | Y81: 0 | AD81: 0 | AI81: 0 | AN81: 0 | AO81: 0
A82: 1.9 | B82: =B70 -> 0 | C82: 0 | D82: м3 | E82: 0 | H82: 0 | J82: 0 | K82: 0 | Q82: 0 | R82: 0 | U82: 0 | X82: 0 | Y82: 0 | AD82: 0 | AI82: 0 | AN82: 0 | AO82: 0
A83: 1.10 | B83: =B71 -> 0 | C83: 0 | D83: м3 | E83: 0 | H83: 0 | J83: 0 | K83: 0 | Q83: 0 | R83: 0 | U83: 0 | X83: 0 | Y83: 0 | AD83: 0 | AI83: 0 | AN83: 0 | AO83: 0
A84: Период регулирования
A85: 1 | B85: =B73+1 -> 2019 | C85: =C73 -> предложение организации | D85: м3 | E85: =H85-F85 -> 0 | F85: =SUM(F86:F95) -> 0 | G85: =SUM(G86:G95) -> 0 | H85: =I85+Q85+K85 -> 0 | I85: =SUM(I86:I95) -> 0 | J85: =IF((H85-K85)=0,0,(I85/(H85-K85)*100)) -> 0 | K85: =L85+M85+O85+N85 -> 0 | L85: =SUM(L86:L95) -> 0 | M85: =SUM(M86:M95) -> 0 | N85: =SUM(N86:N95) -> 0 | O85: =SUM(O86:O95) -> 0 | P85: =IF(E85=0,0,K85/E85*100) -> 0 | Q85: =R85+U85+X85 -> 0 | R85: =SUM(R86:R95) -> 0 | S85: 0 | T85: 0 | U85: 0 | V85: 0 | W85: 0 | X85: =Y85+AD85+AI85 -> 0 | Y85: =SUM(Y86:Y95) -> 0 | Z85: 0 | AA85: 0 | AB85: 0 | AC85: 0 | AD85: 0 | AE85: 0 | AF85: 0 | AG85: 0 | AH85: 0 | AI85: 0 | AJ85: 0 | AK85: 0 | AL85: 0 | AM85: 0 | AN85: 0 | AO85: =IF(Q85=0,,AN85/Q85*100) -> 0
A86: 1.1 | B86: =B74 -> 0 | C86: =C74 -> 0 | D86: м3 | E86: 0 | F86: =F74 -> 0 | G86: 0 | H86: 0 | I86: =I74 -> 0 | J86: 0 | K86: =L86+M86+O86+N86 -> 0 | L86: =L74 -> 0 | M86: =M74 -> 0 | N86: =N74 -> 0 | O86: =O74 -> 0 | P86: =P74 -> 0 | Q86: =R86+U86+X86 -> 0 | R86: =S86+T86 -> 0 | S86: =S74 -> 0 | T86: 0 | U86: =V86+W86 -> 0 | V86: =V74 -> 0 | W86: 0 | X86: =Y86+AD86+AI86 -> 0 | Y86: =Z86+AB86 -> 0 | Z86: =Z74 -> 0 | AA86: 0 | AB86: 0 | AC86: 0 | AD86: =AE86+AG86 -> 0 | AE86: =AE74 -> 0 | AF86: 0 | AG86: 0 | AH86: 0 | AI86: =AJ86+AL86 -> 0 | AJ86: =AJ74 -> 0 | AK86: 0 | AL86: 0 | AM86: 0 | AN86: =S86+V86+AA86+AC86+AF86+AH86+AK86+AM86 -> 0 | AO86: 0
A87: 1.2 | B87: =B75 -> 0 | C87: 0 | D87: м3 | E87: 0 | F87: 0 | G87: 0 | H87: 0 | I87: 0 | J87: 0 | K87: =L87+M87+O87+N87 -> 0 | L87: 0 | M87: 0 | N87: 0 | O87: 0 | P87: 0 | Q87: =R87+U87+X87 -> 0 | R87: =S87+T87 -> 0 | S87: 0 | T87: 0 | U87: =V87+W87 -> 0 | V87: 0 | W87: 0 | X87: =Y87+AD87+AI87 -> 0 | Y87: =Z87+AB87 -> 0 | Z87: 0 | AA87: 0 | AB87: 0 | AC87: 0 | AD87: =AE87+AG87 -> 0 | AE87: 0 | AF87: 0 | AG87: 0 | AH87: 0 | AI87: =AJ87+AL87 -> 0 | AJ87: 0 | AK87: 0 | AL87: 0 | AM87: 0 | AN87: =S87+V87+AA87+AC87+AF87+AH87+AK87+AM87 -> 0 | AO87: 0
A88: 1.3 | B88: =B76 -> 0 | C88: 0 | D88: м3 | E88: 0 | F88: 0 | G88: 0 | H88: 0 | I88: 0 | J88: 0 | K88: =L88+M88+O88+N88 -> 0 | L88: =L76 -> 0 | M88: 0 | N88: 0 | O88: 0 | P88: 0 | Q88: =R88+U88+X88 -> 0 | R88: =S88+T88 -> 0 | S88: 0 | T88: 0 | U88: =V88+W88 -> 0 | V88: 0 | W88: 0 | X88: =Y88+AD88+AI88 -> 0 | Y88: =Z88+AB88 -> 0 | Z88: 0 | AA88: 0 | AB88: 0 | AC88: 0 | AD88: =AE88+AG88 -> 0 | AE88: 0 | AF88: 0 | AG88: 0 | AH88: 0 | AI88: =AJ88+AL88 -> 0 | AJ88: 0 | AK88: 0 | AL88: 0 | AM88: 0 | AN88: 0 | AO88: 0
A89: 1.4 | B89: =B77 -> 0 | C89: 0 | D89: м3 | E89: 0 | F89: 0 | G89: 0 | H89: 0 | I89: 0 | J89: 0 | K89: 0 | L89: 0 | M89: 0 | N89: 0 | O89: 0 | P89: 0 | Q89: 0 | R89: 0 | S89: 0 | T89: 0 | U89: 0 | V89: 0 | W89: 0 | X89: 0 | Y89: 0 | Z89: 0 | AA89: 0 | AB89: 0 | AC89: 0 | AD89: 0 | AE89: 0 | AF89: 0 | AG89: 0 | AH89: 0 | AI89: 0 | AJ89: 0 | AK89: 0 | AL89: 0 | AM89: 0 | AN89: 0 | AO89: 0
A90: 1.5 | B90: =B78 -> 0 | C90: 0 | D90: м3 | E90: 0 | F90: 0 | G90: 0 | H90: 0 | I90: 0 | J90: 0 | K90: 0 | L90: 0 | M90: 0 | N90: 0 | O90: 0 | P90: 0 | Q90: 0 | R90: 0 | S90: 0 | T90: 0 | U90: 0 | V90: 0 | W90: 0 | X90: 0 | Y90: 0 | Z90: 0 | AA90: 0 | AB90: 0 | AC90: 0 | AD90: 0 | AE90: 0 | AF90: 0 | AG90: 0 | AH90: 0 | AI90: 0 | AJ90: 0 | AK90: 0 | AL90: 0 | AM90: 0 | AN90: 0 | AO90: 0
A91: 1.6 | B91: =B79 -> 0 | C91: 0 | D91: м3 | E91: 0 | F91: 0 | G91: 0 | H91: 0 | I91: 0 | J91: 0 | K91: 0 | L91: 0 | M91: 0 | N91: 0 | O91: 0 | P91: 0 | Q91: 0 | R91: 0 | S91: 0 | T91: 0 | U91: 0 | V91: 0 | W91: 0 | X91: 0 | Y91: 0 | Z91: 0 | AA91: 0 | AB91: 0 | AC91: 0 | AD91: 0 | AE91: 0 | AF91: 0 | AG91: 0 | AH91: 0 | AI91: 0 | AJ91: 0 | AK91: 0 | AL91: 0 | AM91: 0 | AN91: 0 | AO91: 0
A92: 1.7 | B92: =B80 -> 0 | C92: 0 | D92: м3 | E92: 0 | F92: 0 | G92: 0 | H92: 0 | I92: 0 | J92: 0 | K92: 0 | L92: 0 | M92: 0 | N92: 0 | O92: 0 | P92: 0 | Q92: 0 | R92: 0 | S92: 0 | T92: 0 | U92: 0 | V92: 0 | W92: 0 | X92: 0 | Y92: 0 | Z92: 0 | AA92: 0 | AB92: 0 | AC92: 0 | AD92: 0 | AE92: 0 | AF92: 0 | AG92: 0 | AH92: 0 | AI92: 0 | AJ92: 0 | AK92: 0 | AL92: 0 | AM92: 0 | AN92: 0 | AO92: 0
A93: 1.8 | B93: =B81 -> 0 | C93: 0 | D93: м3 | E93: 0 | F93: 0 | G93: 0 | H93: 0 | I93: 0 | J93: 0 | K93: 0 | L93: 0 | M93: 0 | N93: 0 | O93: 0 | P93: 0 | Q93: 0 | R93: 0 | S93: 0 | T93: 0 | U93: 0 | V93: 0 | W93: 0 | X93: 0 | Y93: 0 | Z93: 0 | AA93: 0 | AB93: 0 | AC93: 0 | AD93: 0 | AE93: 0 | AF93: 0 | AG93: 0 | AH93: 0 | AI93: 0 | AJ93: 0 | AK93: 0 | AL93: 0 | AM93: 0 | AN93: 0 | AO93: 0
A94: 1.9 | B94: =B82 -> 0 | C94: 0 | D94: м3 | E94: 0 | F94: 0 | G94: 0 | H94: 0 | I94: 0 | J94: 0 | K94: 0 | L94: 0 | M94: 0 | N94: 0 | O94: 0 | P94: 0 | Q94: 0 | R94: 0 | S94: 0 | T94: 0 | U94: 0 | V94: 0 | W94: 0 | X94: 0 | Y94: 0 | Z94: 0 | AA94: 0 | AB94: 0 | AC94: 0 | AD94: 0 | AE94: 0 | AF94: 0 | AG94: 0 | AH94: 0 | AI94: 0 | AJ94: 0 | AK94: 0 | AL94: 0 | AM94: 0 | AN94: 0 | AO94: 0
A95: 1.10 | B95: =B83 -> 0 | C95: 0 | D95: м3 | E95: 0 | F95: 0 | G95: 0 | H95: 0 | I95: 0 | J95: 0 | K95: 0 | L95: 0 | M95: 0 | N95: 0 | O95: 0 | P95: 0 | Q95: 0 | R95: 0 | S95: 0 | T95: 0 | U95: 0 | V95: 0 | W95: 0 | X95: 0 | Y95: 0 | Z95: 0 | AA95: 0 | AB95: 0 | AC95: 0 | AD95: 0 | AE95: 0 | AF95: 0 | AG95: 0 | AH95: 0 | AI95: 0 | AJ95: 0 | AK95: 0 | AL95: 0 | AM95: 0 | AN95: 0 | AO95: 0
A96: Период регулирования
A97: 1 | B97: =B85+1 -> 2020 | C97: =C85 -> предложение организации | D97: м3 | E97: =H97-F97 -> 0 | F97: =SUM(F98:F107) -> 0 | G97: =SUM(G98:G107) -> 0 | H97: =I97+Q97+K97 -> 0 | I97: =SUM(I98:I107) -> 0 | J97: =IF((H97-K97)=0,0,(I97/(H97-K97)*100)) -> 0 | K97: =L97+M97+O97+N97 -> 0 | L97: =SUM(L98:L107) -> 0 | M97: =SUM(M98:M107) -> 0 | N97: =SUM(N98:N107) -> 0 | O97: =SUM(O98:O107) -> 0 | P97: =IF(E97=0,0,K97/E97*100) -> 0 | Q97: =R97+U97+X97 -> 0 | R97: =SUM(R98:R107) -> 0 | S97: 0 | T97: 0 | U97: 0 | V97: 0 | W97: 0 | X97: =Y97+AD97+AI97 -> 0 | Y97: =SUM(Y98:Y107) -> 0 | Z97: 0 | AA97: 0 | AB97: 0 | AC97: 0 | AD97: 0 | AE97: 0 | AF97: 0 | AG97: 0 | AH97: 0 | AI97: 0 | AJ97: 0 | AK97: 0 | AL97: 0 | AM97: 0 | AN97: 0 | AO97: =IF(Q97=0,,AN97/Q97*100) -> 0
A98: 1.1 | B98: =B86 -> 0 | C98: =C86 -> 0 | D98: м3 | E98: 0 | F98: =F86 -> 0 | G98: 0 | H98: 0 | I98: =I86 -> 0 | J98: 0 | K98: =L98+M98+O98+N98 -> 0 | L98: =L86 -> 0 | M98: =M86 -> 0 | N98: =N86 -> 0 | O98: =O86 -> 0 | P98: =P86 -> 0 | Q98: =R98+U98+X98 -> 0 | R98: =S98+T98 -> 0 | S98: =S86 -> 0 | T98: 0 | U98: =V98+W98 -> 0 | V98: =V86 -> 0 | W98: 0 | X98: =Y98+AD98+AI98 -> 0 | Y98: =Z98+AB98 -> 0 | Z98: =Z86 -> 0 | AA98: 0 | AB98: 0 | AC98: 0 | AD98: =AE98+AG98 -> 0 | AE98: =AE86 -> 0 | AF98: 0 | AG98: 0 | AH98: 0 | AI98: =AJ98+AL98 -> 0 | AJ98: =AJ86 -> 0 | AK98: 0 | AL98: 0 | AM98: 0 | AN98: =S98+V98+AA98+AC98+AF98+AH98+AK98+AM98 -> 0 | AO98: 0
A99: 1.2 | B99: =B87 -> 0 | C99: 0 | D99: м3 | E99: 0 | F99: 0 | G99: 0 | H99: 0 | I99: 0 | J99: 0 | K99: =L99+M99+O99+N99 -> 0 | L99: 0 | M99: 0 | N99: 0 | O99: 0 | P99: 0 | Q99: =R99+U99+X99 -> 0 | R99: =S99+T99 -> 0 | S99: 0 | T99: 0 | U99: =V99+W99 -> 0 | V99: 0 | W99: 0 | X99: =Y99+AD99+AI99 -> 0 | Y99: =Z99+AB99 -> 0 | Z99: 0 | AA99: 0 | AB99: 0 | AC99: 0 | AD99: =AE99+AG99 -> 0 | AE99: 0 | AF99: 0 | AG99: 0 | AH99: 0 | AI99: =AJ99+AL99 -> 0 | AJ99: 0 | AK99: 0 | AL99: 0 | AM99: 0 | AN99: =S99+V99+AA99+AC99+AF99+AH99+AK99+AM99 -> 0 | AO99: 0
A100: 1.3 | B100: =B88 -> 0 | C100: 0 | D100: м3 | E100: 0 | F100: 0 | G100: 0 | H100: 0 | I100: 0 | J100: 0 | K100: =L100+M100+O100+N100 -> 0 | L100: =L88 -> 0 | M100: 0 | N100: 0 | O100: 0 | P100: 0 | Q100: =R100+U100+X100 -> 0 | R100: =S100+T100 -> 0 | S100: 0 | T100: 0 | U100: =V100+W100 -> 0 | V100: 0 | W100: 0 | X100: =Y100+AD100+AI100 -> 0 | Y100: =Z100+AB100 -> 0 | Z100: 0 | AA100: 0 | AB100: 0 | AC100: 0 | AD100: =AE100+AG100 -> 0 | AE100: 0 | AF100: 0 | AG100: 0 | AH100: 0 | AI100: =AJ100+AL100 -> 0 | AJ100: 0 | AK100: 0 | AL100: 0 | AM100: 0 | AN100: 0 | AO100: 0
A101: 1.4 | B101: =B89 -> 0 | C101: 0 | D101: м3 | E101: 0 | F101: 0 | G101: 0 | H101: 0 | I101: 0 | J101: 0 | K101: 0 | L101: 0 | M101: 0 | N101: 0 | O101: 0 | P101: 0 | Q101: 0 | R101: 0 | S101: 0 | T101: 0 | U101: 0 | V101: 0 | W101: 0 | X101: 0 | Y101: 0 | Z101: 0 | AA101: 0 | AB101: 0 | AC101: 0 | AD101: 0 | AE101: 0 | AF101: 0 | AG101: 0 | AH101: 0 | AI101: 0 | AJ101: 0 | AK101: 0 | AL101: 0 | AM101: 0 | AN101: 0 | AO101: 0
A102: 1.5 | B102: =B90 -> 0 | C102: 0 | D102: м3 | E102: 0 | F102: 0 | G102: 0 | H102: 0 | I102: 0 | J102: 0 | K102: 0 | L102: 0 | M102: 0 | N102: 0 | O102: 0 | P102: 0 | Q102: 0 | R102: 0 | S102: 0 | T102: 0 | U102: 0 | V102: 0 | W102: 0 | X102: 0 | Y102: 0 | Z102: 0 | AA102: 0 | AB102: 0 | AC102: 0 | AD102: 0 | AE102: 0 | AF102: 0 | AG102: 0 | AH102: 0 | AI102: 0 | AJ102: 0 | AK102: 0 | AL102: 0 | AM102: 0 | AN102: 0 | AO102: 0
A103: 1.6 | B103: =B91 -> 0 | C103: 0 | D103: м3 | E103: 0 | F103: 0 | G103: 0 | H103: 0 | I103: 0 | J103: 0 | K103: 0 | L103: 0 | M103: 0 | N103: 0 | O103: 0 | P103: 0 | Q103: 0 | R103: 0 | S103: 0 | T103: 0 | U103: 0 | V103: 0 | W103: 0 | X103: 0 | Y103: 0 | Z103: 0 | AA103: 0 | AB103: 0 | AC103: 0 | AD103: 0 | AE103: 0 | AF103: 0 | AG103: 0 | AH103: 0 | AI103: 0 | AJ103: 0 | AK103: 0 | AL103: 0 | AM103: 0 | AN103: 0 | AO103: 0
A104: 1.7 | B104: =B92 -> 0 | C104: 0 | D104: м3 | E104: 0 | F104: 0 | G104: 0 | H104: 0 | I104: 0 | J104: 0 | K104: 0 | L104: 0 | M104: 0 | N104: 0 | O104: 0 | P104: 0 | Q104: 0 | R104: 0 | S104: 0 | T104: 0 | U104: 0 | V104: 0 | W104: 0 | X104: 0 | Y104: 0 | Z104: 0 | AA104: 0 | AB104: 0 | AC104: 0 | AD104: 0 | AE104: 0 | AF104: 0 | AG104: 0 | AH104: 0 | AI104: 0 | AJ104: 0 | AK104: 0 | AL104: 0 | AM104: 0 | AN104: 0 | AO104: 0
A105: 1.8 | B105: =B93 -> 0 | C105: 0 | D105: м3 | E105: 0 | F105: 0 | G105: 0 | H105: 0 | I105: 0 | J105: 0 | K105: 0 | L105: 0 | M105: 0 | N105: 0 | O105: 0 | P105: 0 | Q105: 0 | R105: 0 | S105: 0 | T105: 0 | U105: 0 | V105: 0 | W105: 0 | X105: 0 | Y105: 0 | Z105: 0 | AA105: 0 | AB105: 0 | AC105: 0 | AD105: 0 | AE105: 0 | AF105: 0 | AG105: 0 | AH105: 0 | AI105: 0 | AJ105: 0 | AK105: 0 | AL105: 0 | AM105: 0 | AN105: 0 | AO105: 0
A106: 1.9 | B106: =B94 -> 0 | C106: 0 | D106: м3 | E106: 0 | F106: 0 | G106: 0 | H106: 0 | I106: 0 | J106: 0 | K106: 0 | L106: 0 | M106: 0 | N106: 0 | O106: 0 | P106: 0 | Q106: 0 | R106: 0 | S106: 0 | T106: 0 | U106: 0 | V106: 0 | W106: 0 | X106: 0 | Y106: 0 | Z106: 0 | AA106: 0 | AB106: 0 | AC106: 0 | AD106: 0 | AE106: 0 | AF106: 0 | AG106: 0 | AH106: 0 | AI106: 0 | AJ106: 0 | AK106: 0 | AL106: 0 | AM106: 0 | AN106: 0 | AO106: 0
A107: 1.10 | B107: =B95 -> 0 | C107: 0 | D107: м3 | E107: 0 | F107: 0 | G107: 0 | H107: 0 | I107: 0 | J107: 0 | K107: 0 | L107: 0 | M107: 0 | N107: 0 | O107: 0 | P107: 0 | Q107: 0 | R107: 0 | S107: 0 | T107: 0 | U107: 0 | V107: 0 | W107: 0 | X107: 0 | Y107: 0 | Z107: 0 | AA107: 0 | AB107: 0 | AC107: 0 | AD107: 0 | AE107: 0 | AF107: 0 | AG107: 0 | AH107: 0 | AI107: 0 | AJ107: 0 | AK107: 0 | AL107: 0 | AM107: 0 | AN107: 0 | AO107: 0
A108: Период регулирования
A109: 2 | B109: =B73 -> 2018 | C109: ='баланс ВСН'!L8 -> план эксперта | D109: м3 | E109: =H109-F109 -> 0 | F109: =SUM(F110:F119) -> 0 | G109: =SUM(G110:G119) -> 0 | H109: =I109+Q109+K109 -> 0 | I109: =SUM(I110:I119) -> 0 | J109: =IF((H109-K109)=0,0,(I109/(H109-K109)*100)) -> 0 | K109: =L109+M109+O109+N109 -> 0 | L109: =SUM(L110:L119) -> 0 | M109: =SUM(M110:M119) -> 0 | N109: =SUM(N110:N119) -> 0 | O109: =SUM(O110:O119) -> 0 | P109: =IF(E109=0,0,K109/E109*100) -> 0 | Q109: =R109+U109+X109 -> 0 | R109: =SUM(R110:R119) -> 0 | S109: 0 | T109: 0 | U109: 0 | V109: 0 | W109: 0 | X109: =Y109+AD109+AI109 -> 0 | Y109: =SUM(Y110:Y119) -> 0 | Z109: 0 | AA109: 0 | AB109: 0 | AC109: 0 | AD109: 0 | AE109: 0 | AF109: 0 | AG109: 0 | AH109: 0 | AI109: 0 | AJ109: 0 | AK109: 0 | AL109: 0 | AM109: 0 | AN109: 0 | AO109: =IF(Q109=0,,AN109/Q109*100) -> 0
A110: 2.1 | B110: =B98 -> 0 | C110: =C98 -> 0 | D110: м3 | E110: 0 | H110: 0 | J110: 0 | K110: =L110+M110+O110+N110 -> 0 | Q110: =R110+U110+X110 -> 0 | R110: =S110+T110 -> 0 | U110: =V110+W110 -> 0 | X110: =Y110+AD110+AI110 -> 0 | Y110: =Z110+AB110 -> 0 | AD110: =AE110+AG110 -> 0 | AI110: =AJ110+AL110 -> 0 | AN110: =S110+V110+AA110+AC110+AF110+AH110+AK110+AM110 -> 0 | AO110: 0
A111: 2.2 | B111: =B99 -> 0 | C111: 0 | D111: м3 | E111: 0 | H111: 0 | J111: 0 | K111: =L111+M111+O111+N111 -> 0 | Q111: =R111+U111+X111 -> 0 | R111: =S111+T111 -> 0 | U111: =V111+W111 -> 0 | X111: =Y111+AD111+AI111 -> 0 | Y111: =Z111+AB111 -> 0 | AD111: =AE111+AG111 -> 0 | AI111: =AJ111+AL111 -> 0 | AN111: =S111+V111+AA111+AC111+AF111+AH111+AK111+AM111 -> 0 | AO111: 0
A112: 2.3 | B112: =B100 -> 0 | C112: 0 | D112: м3 | E112: 0 | H112: 0 | J112: 0 | K112: =L112+M112+O112+N112 -> 0 | Q112: =R112+U112+X112 -> 0 | R112: =S112+T112 -> 0 | U112: =V112+W112 -> 0 | X112: =Y112+AD112+AI112 -> 0 | Y112: =Z112+AB112 -> 0 | AD112: =AE112+AG112 -> 0 | AI112: =AJ112+AL112 -> 0 | AN112: 0 | AO112: 0
A113: 2.4 | B113: =B101 -> 0 | C113: 0 | D113: м3 | E113: 0 | H113: 0 | J113: 0 | K113: 0 | Q113: 0 | R113: 0 | U113: 0 | X113: 0 | Y113: 0 | AD113: 0 | AI113: 0 | AN113: 0 | AO113: 0
A114: 2.5 | B114: =B102 -> 0 | C114: 0 | D114: м3 | E114: 0 | H114: 0 | J114: 0 | K114: 0 | Q114: 0 | R114: 0 | U114: 0 | X114: 0 | Y114: 0 | AD114: 0 | AI114: 0 | AN114: 0 | AO114: 0
A115: 2.6 | B115: =B103 -> 0 | C115: 0 | D115: м3 | E115: 0 | H115: 0 | J115: 0 | K115: 0 | Q115: 0 | R115: 0 | U115: 0 | X115: 0 | Y115: 0 | AD115: 0 | AI115: 0 | AN115: 0 | AO115: 0
A116: 2.7 | B116: =B104 -> 0 | C116: 0 | D116: м3 | E116: 0 | H116: 0 | J116: 0 | K116: 0 | Q116: 0 | R116: 0 | U116: 0 | X116: 0 | Y116: 0 | AD116: 0 | AI116: 0 | AN116: 0 | AO116: 0
A117: 2.8 | B117: =B105 -> 0 | C117: 0 | D117: м3 | E117: 0 | H117: 0 | J117: 0 | K117: 0 | Q117: 0 | R117: 0 | U117: 0 | X117: 0 | Y117: 0 | AD117: 0 | AI117: 0 | AN117: 0 | AO117: 0
A118: 2.9 | B118: =B106 -> 0 | C118: 0 | D118: м3 | E118: 0 | H118: 0 | J118: 0 | K118: 0 | Q118: 0 | R118: 0 | U118: 0 | X118: 0 | Y118: 0 | AD118: 0 | AI118: 0 | AN118: 0 | AO118: 0
A119: 2.10 | B119: =B107 -> 0 | C119: 0 | D119: м3 | E119: 0 | H119: 0 | J119: 0 | K119: =L119+M119+O119+N119 -> 0 | Q119: =R119+U119+X119 -> 0 | R119: =S119+T119 -> 0 | U119: =V119+W119 -> 0 | X119: =Y119+AD119+AI119 -> 0 | Y119: =Z119+AB119 -> 0 | AD119: =AE119+AG119 -> 0 | AI119: =AJ119+AL119 -> 0 | AN119: 0 | AO119: 0
A121: 2 | B121: =B85 -> 2019 | C121: =C109 -> план эксперта | D121: м3 | E121: =H121-F121 -> 0 | F121: =SUM(F122:F131) -> 0 | G121: =SUM(G122:G131) -> 0 | H121: =I121+Q121+K121 -> 0 | I121: =SUM(I122:I131) -> 0 | J121: =IF((H121-K121)=0,0,(I121/(H121-K121)*100)) -> 0 | K121: =L121+M121+O121+N121 -> 0 | L121: =SUM(L122:L131) -> 0 | M121: =SUM(M122:M131) -> 0 | N121: =SUM(N122:N131) -> 0 | O121: =SUM(O122:O131) -> 0 | P121: =IF(E121=0,0,K121/E121*100) -> 0 | Q121: =R121+U121+X121 -> 0 | R121: =SUM(R122:R131) -> 0 | S121: 0 | T121: 0 | U121: 0 | V121: 0 | W121: 0 | X121: =Y121+AD121+AI121 -> 0 | Y121: =SUM(Y122:Y131) -> 0 | Z121: 0 | AA121: 0 | AB121: 0 | AC121: 0 | AD121: 0 | AE121: 0 | AF121: 0 | AG121: 0 | AH121: 0 | AI121: 0 | AJ121: 0 | AK121: 0 | AL121: 0 | AM121: 0 | AN121: 0 | AO121: =IF(Q121=0,,AN121/Q121*100) -> 0
A122: 2.1 | B122: =B110 -> 0 | C122: =C110 -> 0 | D122: м3 | E122: 0 | F122: =F110 -> 0 | G122: 0 | H122: 0 | I122: =I110 -> 0 | J122: 0 | K122: =L122+M122+O122+N122 -> 0 | L122: =L110 -> 0 | M122: 0 | N122: 0 | O122: 0 | P122: 0 | Q122: =R122+U122+X122 -> 0 | R122: =S122+T122 -> 0 | S122: =S110 -> 0 | T122: 0 | U122: =V122+W122 -> 0 | V122: =V110 -> 0 | W122: 0 | X122: =Y122+AD122+AI122 -> 0 | Y122: =Z122+AB122 -> 0 | Z122: =Z110 -> 0 | AA122: 0 | AB122: 0 | AC122: 0 | AD122: =AE122+AG122 -> 0 | AE122: =AE110 -> 0 | AF122: 0 | AG122: 0 | AH122: 0 | AI122: =AJ122+AL122 -> 0 | AJ122: =AJ110 -> 0 | AK122: 0 | AL122: 0 | AM122: 0 | AN122: =S122+V122+AA122+AC122+AF122+AH122+AK122+AM122 -> 0 | AO122: 0
A123: 2.2 | B123: =B111 -> 0 | C123: 0 | D123: м3 | E123: 0 | F123: 0 | G123: 0 | H123: 0 | I123: 0 | J123: 0 | K123: =L123+M123+O123+N123 -> 0 | L123: 0 | M123: 0 | N123: 0 | O123: 0 | P123: 0 | Q123: =R123+U123+X123 -> 0 | R123: =S123+T123 -> 0 | S123: 0 | T123: 0 | U123: =V123+W123 -> 0 | V123: 0 | W123: 0 | X123: =Y123+AD123+AI123 -> 0 | Y123: =Z123+AB123 -> 0 | Z123: 0 | AA123: 0 | AB123: 0 | AC123: 0 | AD123: =AE123+AG123 -> 0 | AE123: 0 | AF123: 0 | AG123: 0 | AH123: 0 | AI123: =AJ123+AL123 -> 0 | AJ123: 0 | AK123: 0 | AL123: 0 | AM123: 0 | AN123: =S123+V123+AA123+AC123+AF123+AH123+AK123+AM123 -> 0 | AO123: 0
A124: 2.3 | B124: =B112 -> 0 | C124: 0 | D124: м3 | E124: 0 | F124: 0 | G124: 0 | H124: 0 | I124: 0 | J124: 0 | K124: =L124+M124+O124+N124 -> 0 | L124: 0 | M124: 0 | N124: 0 | O124: 0 | P124: 0 | Q124: =R124+U124+X124 -> 0 | R124: =S124+T124 -> 0 | S124: 0 | T124: 0 | U124: =V124+W124 -> 0 | V124: 0 | W124: 0 | X124: =Y124+AD124+AI124 -> 0 | Y124: =Z124+AB124 -> 0 | Z124: 0 | AA124: 0 | AB124: 0 | AC124: 0 | AD124: =AE124+AG124 -> 0 | AE124: 0 | AF124: 0 | AG124: 0 | AH124: 0 | AI124: =AJ124+AL124 -> 0 | AJ124: 0 | AK124: 0 | AL124: 0 | AM124: 0 | AN124: 0 | AO124: 0
A125: 2.4 | B125: =B113 -> 0 | C125: 0 | D125: м3 | E125: 0 | F125: 0 | G125: 0 | H125: 0 | I125: 0 | J125: 0 | K125: 0 | L125: 0 | M125: 0 | N125: 0 | O125: 0 | P125: 0 | Q125: 0 | R125: 0 | S125: 0 | T125: 0 | U125: 0 | V125: 0 | W125: 0 | X125: 0 | Y125: 0 | Z125: 0 | AA125: 0 | AB125: 0 | AC125: 0 | AD125: 0 | AE125: 0 | AF125: 0 | AG125: 0 | AH125: 0 | AI125: 0 | AJ125: 0 | AK125: 0 | AL125: 0 | AM125: 0 | AN125: 0 | AO125: 0
A126: 2.5 | B126: =B114 -> 0 | C126: 0 | D126: м3 | E126: 0 | F126: 0 | G126: 0 | H126: 0 | I126: 0 | J126: 0 | K126: 0 | L126: 0 | M126: 0 | N126: 0 | O126: 0 | P126: 0 | Q126: 0 | R126: 0 | S126: 0 | T126: 0 | U126: 0 | V126: 0 | W126: 0 | X126: 0 | Y126: 0 | Z126: 0 | AA126: 0 | AB126: 0 | AC126: 0 | AD126: 0 | AE126: 0 | AF126: 0 | AG126: 0 | AH126: 0 | AI126: 0 | AJ126: 0 | AK126: 0 | AL126: 0 | AM126: 0 | AN126: 0 | AO126: 0
A127: 2.6 | B127: =B115 -> 0 | C127: 0 | D127: м3 | E127: 0 | F127: 0 | G127: 0 | H127: 0 | I127: 0 | J127: 0 | K127: 0 | L127: 0 | M127: 0 | N127: 0 | O127: 0 | P127: 0 | Q127: 0 | R127: 0 | S127: 0 | T127: 0 | U127: 0 | V127: 0 | W127: 0 | X127: 0 | Y127: 0 | Z127: 0 | AA127: 0 | AB127: 0 | AC127: 0 | AD127: 0 | AE127: 0 | AF127: 0 | AG127: 0 | AH127: 0 | AI127: 0 | AJ127: 0 | AK127: 0 | AL127: 0 | AM127: 0 | AN127: 0 | AO127: 0
A128: 2.7 | B128: =B116 -> 0 | C128: 0 | D128: м3 | E128: 0 | F128: 0 | G128: 0 | H128: 0 | I128: 0 | J128: 0 | K128: 0 | L128: 0 | M128: 0 | N128: 0 | O128: 0 | P128: 0 | Q128: 0 | R128: 0 | S128: 0 | T128: 0 | U128: 0 | V128: 0 | W128: 0 | X128: 0 | Y128: 0 | Z128: 0 | AA128: 0 | AB128: 0 | AC128: 0 | AD128: 0 | AE128: 0 | AF128: 0 | AG128: 0 | AH128: 0 | AI128: 0 | AJ128: 0 | AK128: 0 | AL128: 0 | AM128: 0 | AN128: 0 | AO128: 0
A129: 2.8 | B129: =B117 -> 0 | C129: 0 | D129: м3 | E129: 0 | F129: 0 | G129: 0 | H129: 0 | I129: 0 | J129: 0 | K129: 0 | L129: 0 | M129: 0 | N129: 0 | O129: 0 | P129: 0 | Q129: 0 | R129: 0 | S129: 0 | T129: 0 | U129: 0 | V129: 0 | W129: 0 | X129: 0 | Y129: 0 | Z129: 0 | AA129: 0 | AB129: 0 | AC129: 0 | AD129: 0 | AE129: 0 | AF129: 0 | AG129: 0 | AH129: 0 | AI129: 0 | AJ129: 0 | AK129: 0 | AL129: 0 | AM129: 0 | AN129: 0 | AO129: 0
A130: 2.9 | B130: =B118 -> 0 | C130: 0 | D130: м3 | E130: 0 | F130: 0 | G130: 0 | H130: 0 | I130: 0 | J130: 0 | K130: 0 | L130: 0 | M130: 0 | N130: 0 | O130: 0 | P130: 0 | Q130: 0 | R130: 0 | S130: 0 | T130: 0 | U130: 0 | V130: 0 | W130: 0 | X130: 0 | Y130: 0 | Z130: 0 | AA130: 0 | AB130: 0 | AC130: 0 | AD130: 0 | AE130: 0 | AF130: 0 | AG130: 0 | AH130: 0 | AI130: 0 | AJ130: 0 | AK130: 0 | AL130: 0 | AM130: 0 | AN130: 0 | AO130: 0
A131: 2.10 | B131: =B119 -> 0 | C131: 0 | D131: м3 | E131: 0 | F131: 0 | G131: 0 | H131: 0 | I131: 0 | J131: 0 | K131: =L131+M131+O131+N131 -> 0 | L131: 0 | M131: 0 | N131: 0 | O131: 0 | P131: 0 | Q131: =R131+U131+X131 -> 0 | R131: =S131+T131 -> 0 | S131: 0 | T131: 0 | U131: =V131+W131 -> 0 | V131: 0 | W131: 0 | X131: =Y131+AD131+AI131 -> 0 | Y131: =Z131+AB131 -> 0 | Z131: 0 | AA131: 0 | AB131: 0 | AC131: 0 | AD131: =AE131+AG131 -> 0 | AE131: 0 | AF131: 0 | AG131: 0 | AH131: 0 | AI131: =AJ131+AL131 -> 0 | AJ131: 0 | AK131: 0 | AL131: 0 | AM131: 0 | AN131: 0 | AO131: 0
A133: 2 | B133: =B97 -> 2020 | C133: =C121 -> план эксперта | D133: м3 | E133: =H133-F133 -> 0 | F133: =SUM(F134:F143) -> 0 | G133: =SUM(G134:G143) -> 0 | H133: =I133+Q133+K133 -> 0 | I133: =SUM(I134:I143) -> 0 | J133: =IF((H133-K133)=0,0,(I133/(H133-K133)*100)) -> 0 | K133: =L133+M133+O133+N133 -> 0 | L133: =SUM(L134:L143) -> 0 | M133: =SUM(M134:M143) -> 0 | N133: =SUM(N134:N143) -> 0 | O133: =SUM(O134:O143) -> 0 | P133: =IF(E133=0,0,K133/E133*100) -> 0 | Q133: =R133+U133+X133 -> 0 | R133: =SUM(R134:R143) -> 0 | S133: 0 | T133: 0 | U133: 0 | V133: 0 | W133: 0 | X133: =Y133+AD133+AI133 -> 0 | Y133: =SUM(Y134:Y143) -> 0 | Z133: 0 | AA133: 0 | AB133: 0 | AC133: 0 | AD133: 0 | AE133: 0 | AF133: 0 | AG133: 0 | AH133: 0 | AI133: 0 | AJ133: 0 | AK133: 0 | AL133: 0 | AM133: 0 | AN133: 0 | AO133: =IF(Q133=0,,AN133/Q133*100) -> 0
A134: 2.1 | B134: =B122 -> 0 | C134: =C122 -> 0 | D134: м3 | E134: 0 | F134: =F122 -> 0 | G134: 0 | H134: 0 | I134: =I122 -> 0 | J134: 0 | K134: =L134+M134+O134+N134 -> 0 | L134: =L122 -> 0 | M134: 0 | N134: 0 | O134: 0 | P134: 0 | Q134: =R134+U134+X134 -> 0 | R134: =S134+T134 -> 0 | S134: =S122 -> 0 | T134: 0 | U134: =V134+W134 -> 0 | V134: =V122 -> 0 | W134: 0 | X134: =Y134+AD134+AI134 -> 0 | Y134: =Z134+AB134 -> 0 | Z134: =Z122 -> 0 | AA134: 0 | AB134: 0 | AC134: 0 | AD134: =AE134+AG134 -> 0 | AE134: =AE122 -> 0 | AF134: 0 | AG134: 0 | AH134: 0 | AI134: =AJ134+AL134 -> 0 | AJ134: =AJ122 -> 0 | AK134: 0 | AL134: 0 | AM134: 0 | AN134: =S134+V134+AA134+AC134+AF134+AH134+AK134+AM134 -> 0 | AO134: 0
A135: 2.2 | B135: =B123 -> 0 | C135: 0 | D135: м3 | E135: 0 | F135: 0 | G135: 0 | H135: 0 | I135: 0 | J135: 0 | K135: =L135+M135+O135+N135 -> 0 | L135: 0 | M135: 0 | N135: 0 | O135: 0 | P135: 0 | Q135: =R135+U135+X135 -> 0 | R135: =S135+T135 -> 0 | S135: 0 | T135: 0 | U135: =V135+W135 -> 0 | V135: 0 | W135: 0 | X135: =Y135+AD135+AI135 -> 0 | Y135: =Z135+AB135 -> 0 | Z135: 0 | AA135: 0 | AB135: 0 | AC135: 0 | AD135: =AE135+AG135 -> 0 | AE135: 0 | AF135: 0 | AG135: 0 | AH135: 0 | AI135: =AJ135+AL135 -> 0 | AJ135: 0 | AK135: 0 | AL135: 0 | AM135: 0 | AN135: =S135+V135+AA135+AC135+AF135+AH135+AK135+AM135 -> 0 | AO135: 0
A136: 2.3 | B136: =B124 -> 0 | C136: 0 | D136: м3 | E136: 0 | F136: 0 | G136: 0 | H136: 0 | I136: 0 | J136: 0 | K136: =L136+M136+O136+N136 -> 0 | L136: 0 | M136: 0 | N136: 0 | O136: 0 | P136: 0 | Q136: =R136+U136+X136 -> 0 | R136: =S136+T136 -> 0 | S136: 0 | T136: 0 | U136: =V136+W136 -> 0 | V136: 0 | W136: 0 | X136: =Y136+AD136+AI136 -> 0 | Y136: =Z136+AB136 -> 0 | Z136: 0 | AA136: 0 | AB136: 0 | AC136: 0 | AD136: =AE136+AG136 -> 0 | AE136: 0 | AF136: 0 | AG136: 0 | AH136: 0 | AI136: =AJ136+AL136 -> 0 | AJ136: 0 | AK136: 0 | AL136: 0 | AM136: 0 | AN136: 0 | AO136: 0
A137: 2.4 | B137: =B125 -> 0 | C137: 0 | D137: м3 | E137: 0 | F137: 0 | G137: 0 | H137: 0 | I137: 0 | J137: 0 | K137: 0 | L137: 0 | M137: 0 | N137: 0 | O137: 0 | P137: 0 | Q137: 0 | R137: 0 | S137: 0 | T137: 0 | U137: 0 | V137: 0 | W137: 0 | X137: 0 | Y137: 0 | Z137: 0 | AA137: 0 | AB137: 0 | AC137: 0 | AD137: 0 | AE137: 0 | AF137: 0 | AG137: 0 | AH137: 0 | AI137: 0 | AJ137: 0 | AK137: 0 | AL137: 0 | AM137: 0 | AN137: 0 | AO137: 0
A138: 2.5 | B138: =B126 -> 0 | C138: 0 | D138: м3 | E138: 0 | F138: 0 | G138: 0 | H138: 0 | I138: 0 | J138: 0 | K138: 0 | L138: 0 | M138: 0 | N138: 0 | O138: 0 | P138: 0 | Q138: 0 | R138: 0 | S138: 0 | T138: 0 | U138: 0 | V138: 0 | W138: 0 | X138: 0 | Y138: 0 | Z138: 0 | AA138: 0 | AB138: 0 | AC138: 0 | AD138: 0 | AE138: 0 | AF138: 0 | AG138: 0 | AH138: 0 | AI138: 0 | AJ138: 0 | AK138: 0 | AL138: 0 | AM138: 0 | AN138: 0 | AO138: 0
A139: 2.6 | B139: =B127 -> 0 | C139: 0 | D139: м3 | E139: 0 | F139: 0 | G139: 0 | H139: 0 | I139: 0 | J139: 0 | K139: 0 | L139: 0 | M139: 0 | N139: 0 | O139: 0 | P139: 0 | Q139: 0 | R139: 0 | S139: 0 | T139: 0 | U139: 0 | V139: 0 | W139: 0 | X139: 0 | Y139: 0 | Z139: 0 | AA139: 0 | AB139: 0 | AC139: 0 | AD139: 0 | AE139: 0 | AF139: 0 | AG139: 0 | AH139: 0 | AI139: 0 | AJ139: 0 | AK139: 0 | AL139: 0 | AM139: 0 | AN139: 0 | AO139: 0
A140: 2.7 | B140: =B128 -> 0 | C140: 0 | D140: м3 | E140: 0 | F140: 0 | G140: 0 | H140: 0 | I140: 0 | J140: 0 | K140: 0 | L140: 0 | M140: 0 | N140: 0 | O140: 0 | P140: 0 | Q140: 0 | R140: 0 | S140: 0 | T140: 0 | U140: 0 | V140: 0 | W140: 0 | X140: 0 | Y140: 0 | Z140: 0 | AA140: 0 | AB140: 0 | AC140: 0 | AD140: 0 | AE140: 0 | AF140: 0 | AG140: 0 | AH140: 0 | AI140: 0 | AJ140: 0 | AK140: 0 | AL140: 0 | AM140: 0 | AN140: 0 | AO140: 0
A141: 2.8 | B141: =B129 -> 0 | C141: 0 | D141: м3 | E141: 0 | F141: 0 | G141: 0 | H141: 0 | I141: 0 | J141: 0 | K141: 0 | L141: 0 | M141: 0 | N141: 0 | O141: 0 | P141: 0 | Q141: 0 | R141: 0 | S141: 0 | T141: 0 | U141: 0 | V141: 0 | W141: 0 | X141: 0 | Y141: 0 | Z141: 0 | AA141: 0 | AB141: 0 | AC141: 0 | AD141: 0 | AE141: 0 | AF141: 0 | AG141: 0 | AH141: 0 | AI141: 0 | AJ141: 0 | AK141: 0 | AL141: 0 | AM141: 0 | AN141: 0 | AO141: 0
A142: 2.9 | B142: =B130 -> 0 | C142: 0 | D142: м3 | E142: 0 | F142: 0 | G142: 0 | H142: 0 | I142: 0 | J142: 0 | K142: 0 | L142: 0 | M142: 0 | N142: 0 | O142: 0 | P142: 0 | Q142: 0 | R142: 0 | S142: 0 | T142: 0 | U142: 0 | V142: 0 | W142: 0 | X142: 0 | Y142: 0 | Z142: 0 | AA142: 0 | AB142: 0 | AC142: 0 | AD142: 0 | AE142: 0 | AF142: 0 | AG142: 0 | AH142: 0 | AI142: 0 | AJ142: 0 | AK142: 0 | AL142: 0 | AM142: 0 | AN142: 0 | AO142: 0
A143: 2.10 | B143: =B131 -> 0 | C143: 0 | D143: м3 | E143: 0 | F143: 0 | G143: 0 | H143: 0 | I143: 0 | J143: 0 | K143: =L143+M143+O143+N143 -> 0 | L143: 0 | M143: 0 | N143: 0 | O143: 0 | P143: 0 | Q143: =R143+U143+X143 -> 0 | R143: =S143+T143 -> 0 | S143: 0 | T143: 0 | U143: =V143+W143 -> 0 | V143: 0 | W143: 0 | X143: =Y143+AD143+AI143 -> 0 | Y143: =Z143+AB143 -> 0 | Z143: 0 | AA143: 0 | AB143: 0 | AC143: 0 | AD143: =AE143+AG143 -> 0 | AE143: 0 | AF143: 0 | AG143: 0 | AH143: 0 | AI143: =AJ143+AL143 -> 0 | AJ143: 0 | AK143: 0 | AL143: 0 | AM143: 0 | AN143: 0 | AO143: 0
B145: темп изменения к . | C145: 2016 | D145: году | E145: =IF(E49=0,0,E109/E49) -> 0 | F145: =IF(F49=0,0,F109/F49) -> 0 | G145: =IF(G49=0,0,G109/G49) -> 0 | H145: 0 | I145: 0 | J145: 0 | K145: 0 | L145: 0 | M145: 0 | N145: 0 | O145: 0 | P145: 0 | Q145: 0 | R145: 0 | S145: 0 | T145: 0 | U145: 0 | V145: 0 | W145: 0 | X145: 0 | Y145: 0 | Z145: 0 | AA145: 0 | AB145: 0 | AC145: 0 | AD145: 0 | AE145: 0 | AF145: 0 | AG145: 0 | AH145: 0 | AI145: 0 | AJ145: 0 | AK145: 0 | AL145: 0 | AM145: 0 | AN145: 0 | AO145: 0
B146: темп изменения к | C146: 2017 | D146: году | E146: =IF(E61=0,0,E109/E61) -> 0 | F146: =IF(F61=0,0,F109/F61) -> 0 | G146: 0 | H146: 0 | I146: 0 | J146: 0 | K146: 0 | L146: 0 | M146: 0 | N146: 0 | O146: 0 | P146: 0 | Q146: 0 | R146: 0 | S146: 0 | T146: 0 | U146: 0 | V146: 0 | W146: 0 | X146: 0 | Y146: 0 | Z146: 0 | AA146: 0 | AB146: 0 | AC146: 0 | AD146: 0 | AE146: 0 | AF146: 0 | AG146: 0 | AH146: 0 | AI146: 0 | AJ146: 0 | AK146: 0 | AL146: 0 | AM146: 0 | AN146: 0 | AO146: 0
P147: Определение объема отпуска воды (в соответствии с п.5. гл.2. Методических указаний № 1746-э)
K149: 2018 год, куб.м. | L149: Динамика фактического отпуска воды
L150: 2014 год | Q150: =IF(Q13=0,0,(Q25-Q13)/Q13) -> 0 | R150: =IF(R13=0,0,(R25-R13)/R13) -> 0 | S150: 0 | T150: 0 | U150: 0 | V150: 0 | W150: 0 | X150: 0 | Y150: 0 | Z150: 0 | AA150: 0 | AB150: 0 | AC150: 0 | AD150: 0 | AE150: 0 | AF150: 0 | AG150: 0 | AH150: 0 | AI150: 0 | AJ150: 0 | AK150: 0 | AL150: 0 | AM150: 0
L151: 2015 год | Q151: =IF(Q25=0,0,(Q37-Q25)/Q25) -> 0 | R151: =IF(R25=0,0,(R37-R25)/R25) -> 0 | S151: 0 | T151: 0 | U151: 0 | V151: 0 | W151: 0 | X151: 0 | Y151: 0 | Z151: 0 | AA151: 0 | AB151: 0 | AC151: 0 | AD151: 0 | AE151: 0 | AF151: 0 | AG151: 0 | AH151: 0 | AI151: 0 | AJ151: 0 | AK151: 0 | AL151: 0 | AM151: 0
L152: 2016 год | Q152: =IF(Q37=0,0,(Q49-Q37)/Q37) -> 0 | R152: =IF(R37=0,0,(R49-R37)/R37) -> 0 | S152: 0 | T152: 0 | U152: 0 | V152: 0 | W152: 0 | X152: 0 | Y152: 0 | Z152: 0 | AA152: 0 | AB152: 0 | AC152: 0 | AD152: 0 | AE152: 0 | AF152: 0 | AG152: 0 | AH152: 0 | AI152: 0 | AJ152: 0 | AK152: 0 | AL152: 0 | AM152: 0
L153: Принимаемая в расчет динамика полезного отпуска
L154: =L150 -> 2014 год | Q154: =IF(Q150<-0.05,-0.05,Q150) -> 0 | R154: =IF(R150<-0.05,-0.05,R150) -> 0 | S154: 0 | T154: 0 | U154: 0 | V154: 0 | W154: 0 | X154: 0 | Y154: 0 | Z154: 0 | AA154: 0 | AB154: 0 | AC154: 0 | AD154: 0 | AE154: 0 | AF154: 0 | AG154: 0 | AH154: 0 | AI154: 0 | AJ154: 0 | AK154: 0 | AL154: 0 | AM154: 0
L155: =L151 -> 2015 год | Q155: =IF(Q151<-0.05,-0.05,Q151) -> 0 | R155: 0 | S155: 0 | T155: 0 | U155: 0 | V155: 0 | W155: 0 | X155: 0 | Y155: 0 | Z155: 0 | AA155: 0 | AB155: 0 | AC155: 0 | AD155: 0 | AE155: 0 | AF155: 0 | AG155: 0 | AH155: 0 | AI155: 0 | AJ155: 0 | AK155: 0 | AL155: 0 | AM155: 0
L156: =L152 -> 2016 год | Q156: 0 | R156: 0 | S156: 0 | T156: =IF(T152<-0.05,-0.05,T152) -> 0 | U156: 0 | V156: 0 | W156: 0 | X156: 0 | Y156: 0 | Z156: 0 | AA156: 0 | AB156: 0 | AC156: 0 | AD156: 0 | AE156: 0 | AF156: 0 | AG156: 0 | AH156: 0 | AI156: 0 | AJ156: 0 | AK156: 0 | AL156: 0 | AM156: 0
L157: в среднем за три года | Q157: =SUM(Q154:Q156)/3 -> 0 | R157: =SUM(R154:R156)/3 -> 0 | S157: 0 | T157: 0 | U157: 0 | V157: 0 | W157: 0 | X157: 0 | Y157: 0 | Z157: 0 | AA157: 0 | AB157: 0 | AC157: 0 | AD157: 0 | AE157: 0 | AF157: 0 | AG157: 0 | AH157: 0 | AI157: 0 | AJ157: 0 | AK157: 0 | AL157: 0 | AM157: 0
L158: Расчетный объем воды, отпускаемой новым абонентам, за вычетом потребления воды абонентами, водоснабжение которых прекращено, м3 | Q158: =Q159-Q160 -> 0 | R158: =R159-R160 -> 0 | S158: 0 | T158: 0 | U158: 0 | V158: 0 | W158: =W159-W160 -> 0 | X158: =Y158+AD158+AI158 -> 0 | Y158: =Z158+AB158 -> 0 | Z158: =Z159-Z160 -> 0 | AA158: 0 | AB158: 0 | AC158: =AC159-AC160 -> 0 | AD158: =AE158+AG158 -> 0 | AE158: 0 | AF158: 0 | AG158: 0 | AH158: =AH159-AH160 -> 0 | AI158: =AJ158+AL158 -> 0 | AJ158: 0 | AK158: 0 | AL158: 0 | AM158: =AM159-AM160 -> 0
L159: - объем воды, отпускаемый новым абонентам, подключившимся к централизованной системе водоснабжения | Q159: =R159+S159 -> 0 | R159: =S159+T159 -> 0 | U159: =V159+W159 -> 0 | X159: 0 | Y159: 0 | AD159: 0 | AI159: 0
L160: - потребление воды абонентами, водоснабжение которых прекращено | Q160: =R160+S160 -> 0 | R160: =S160+T160 -> 0 | U160: 0 | X160: 0 | Y160: 0 | AD160: 0 | AI160: 0
L161: Планируемое изменение объемов воды в связи с изменением нормативов в 2017 году, м3 | Q161: =Q163-Q162 -> 0 | R161: =S161+T161 -> 0 | S161: 0 | T161: 0 | U161: 0 | V161: 0 | W161: =W163-W162 -> 0 | X161: 0 | Y161: 0 | Z161: 0 | AA161: 0 | AB161: 0 | AC161: =AC163-AC162 -> 0 | AD161: 0 | AE161: 0 | AF161: 0 | AG161: 0 | AH161: =AH163-AH162 -> 0 | AI161: 0 | AJ161: 0 | AK161: 0 | AL161: 0 | AM161: =AM163-AM162 -> 0
L162: - расчетный объем воды, отпускаемый по старым нормативам | Q162: =R162+S162 -> 0 | R162: =S162+T162 -> 0 | U162: 0 | X162: 0 | Y162: 0 | AD162: 0 | AI162: 0
L163: - расчетный объем воды, отпускаемый по новым нормативам | Q163: =R163+S163 -> 0 | R163: =S163+T163 -> 0 | U163: 0 | X163: 0 | Y163: 0 | AD163: 0 | AI163: 0
L164: Итого объем воды, отпускаемый абонентам | Q164: =Q49*(1+Q157)^2+Q158+Q161 -> 0 | R164: =S164+T164 -> 0 | S164: =S49*(1+S157)^2+S158+S161 -> 0 | T164: 0 | U164: 0 | V164: 0 | W164: 0 | X164: 0 | Y164: 0 | Z164: 0 | AA164: 0 | AB164: 0 | AC164: 0 | AD164: 0 | AE164: 0 | AF164: 0 | AG164: 0 | AH164: =AH49*(1+AH157)^2+AH158+AH161 -> 0 | AI164: 0 | AJ164: 0 | AK164: 0 | AL164: 0 | AM164: =AM49*(1+AM157)^2+AM158+AM161 -> 0

Sheet баланс ВСН
A1: Баланс водоснабжения
A3: =Титульный!B10 -> 
A4: =Титульный!B24 -> 0
A5: Район | B5: =Титульный!B6 -> 0 | G5: МО | I5: =Титульный!B7 -> 0
A6: № п/п | B6: Наименование показателей | C6: Единицы измерения | D6: =E6-1 -> 2014 | E6: =F7-1 -> 2015 | F6: Предбазовый период | H6: Базовый период | I6: Период регулирования | L6: Период регулирования | N6: Период регулирования | P6: Период регулирования
F7: =Титульный!B16 -> 2016 | H7: =Титульный!B18 -> 2017 | I7: =Титульный!B20 -> 2018 | J7: =IF(Титульный!B22=Титульный!B20,"",I7+1) -> 2019 | K7: =IF(Титульный!B22=Титульный!B20,"",J7+1) -> 2020 | L7: =I7 -> 2018 | N7: =J7 -> 2019 | P7: =K7 -> 2020
D8: факт по данным организации | E8: факт по данным организации | F8: утвержденный план | G8: факт по данным организации | H8: ДТР ТО | I8: план организации | J8: =IF(J7="","",I8) -> план организации | K8: =IF(K7="","",I8) -> план организации | L8: план эксперта | N8: план эксперта | P8: план эксперта
L9: всего | M9: темп роста к пред.году | N9: всего | O9: темп роста к пред.году | P9: всего | Q9: темп роста к пред.году
B10: 1 | C10: =B10+1 -> 2 | D10: =C10+1 -> 3 | E10: =D10+1 -> 4 | F10: =E10+1 -> 5 | G10: 6 | H10: 7 | I10: =#REF!+1 ->  | J10: =#REF!+1 ->  | K10: =#REF!+1 ->  | L10: =I10+1 ->  | M10: =#REF!+1 ->  | N10: =J10+1 ->  | O10: =#REF!+1 ->  | P10: =K10+1 ->  | Q10: =#REF!+1 -> 
A11: 1. | B11: Поднято воды насосными станциями 1 подъема, в том числе: | C11: тыс.куб.м | D11: ='баланс по МО'!$E25/1000 -> 5 | E11: ='баланс по МО'!E37/1000 -> 0 | F11: =НП!D11 -> 0 | G11: ='баланс по МО'!$E49/1000 -> 0 | H11: =НП!E11 -> 0 | I11: ='баланс по МО'!$E73/1000 -> 0 | J11: ='баланс по МО'!$E85/1000 -> 0 | K11: ='баланс по МО'!$E97/1000 -> 0 | L11: ='баланс по МО'!$E109/1000 -> 0 | M11: =IF(H11=0,0,L11/H11*100) -> 0 | N11: ='баланс по МО'!$E121/1000 -> 0 | O11: =IF(L11=0,0,N11/L11*100) -> 0 | P11: ='баланс по МО'!$E133/1000 -> 0 | Q11: =IF(N11=0,0,P11/N11*100) -> 0
A13: 1.1. | B13: Из поверхностных водоисточников | C13: тыс.куб.м | D13: =IF('водный налог'!$C$6="поверхностные источники",D11,0) -> 0 | E13: =IF('водный налог'!$C$6="поверхностные источники",E11,0) -> 0 | F13: =НП!D13 -> 0 | G13: =IF('водный налог'!$C$6="поверхностные источники",G11,0) -> 0 | H13: =НП!E13 -> 0 | I13: =IF('водный налог'!$C$6="поверхностные источники",I11,0) -> 0 | J13: =IF('водный налог'!$C$6="поверхностные источники",J11,0) -> 0 | K13: =IF('водный налог'!$C$6="поверхностные источники",K11,0) -> 0 | L13: =IF('водный налог'!$C$6="поверхностные источники",L11,0) -> 0 | M13: =IF(H13=0,0,L13/H13*100) -> 0 | N13: =IF('водный налог'!$C$6="поверхностные источники",N11,0) -> 0 | O13: =IF(L13=0,0,N13/L13*100) -> 0 | P13: =IF('водный налог'!$C$6="поверхностные источники",P11,0) -> 0 | Q13: =IF(N13=0,0,P13/N13*100) -> 0
A14: 1.2. | B14: Из подземных водоисточников | C14: тыс.куб.м | D14: =D11-D13 -> 5 | E14: 0 | F14: =НП!D14 -> 0 | G14: 0 | H14: =НП!E14 -> 0 | I14: 0 | J14: =J11-J13 -> 0 | K14: =K11-K13 -> 0 | L14: 0 | M14: =IF(H14=0,0,L14/H14*100) -> 0 | N14: =N11-N13 -> 0 | O14: =IF(L14=0,0,N14/L14*100) -> 0 | P14: =P11-P13 -> 0 | Q14: =IF(N14=0,0,P14/N14*100) -> 0
A16: 2. | B16: Пропущено воды через водопроводные очистные сооружения | C16: тыс.куб.м | D16: ='баланс по МО'!$G25/1000 -> 0 | E16: ='баланс по МО'!$G37/1000 -> 0 | F16: =НП!D16 -> 0 | G16: ='баланс по МО'!$G49/1000 -> 0 | H16: =НП!E16 -> 0 | I16: ='баланс по МО'!$G73/1000 -> 0 | J16: ='баланс по МО'!$G85/1000 -> 0 | K16: ='баланс по МО'!$G97/1000 -> 0 | L16: ='баланс по МО'!$G109/1000 -> 0 | M16: =IF(H16=0,0,L16/H16*100) -> 0 | N16: ='баланс по МО'!$G121/1000 -> 0 | O16: =IF(L16=0,0,N16/L16*100) -> 0 | P16: ='баланс по МО'!$G133/1000 -> 0 | Q16: =IF(N16=0,0,P16/N16*100) -> 0
A17: 3. | B17: Расход воды на хозяйственные и технологические нужды, в т.ч. | C17: тыс.куб.м | D17: =D18+D19+D20+D21 -> 5 | E17: 0 | F17: =НП!D17 -> 0 | G17: 0 | H17: =НП!E17 -> 0 | I17: 0 | J17: =J18+J19+J20+J21 -> 0 | K17: =K18+K19+K20+K21 -> 0 | L17: 0 | M17: 0 | N17: =N18+N19+N20+N21 -> 0 | O17: 0 | P17: =P18+P19+P20+P21 -> 0 | Q17: 0
A18: 3.1. | B18: на очистные сооружения | C18: тыс.куб.м | D18: ='баланс по МО'!$L25/1000 -> 5 | E18: ='баланс по МО'!$L37/1000 -> 0 | F18: =НП!D18 -> 0 | G18: ='баланс по МО'!$L49/1000 -> 0 | H18: =НП!E18 -> 0 | I18: ='баланс по МО'!$L73/1000 -> 0 | J18: ='баланс по МО'!$L85/1000 -> 0 | K18: ='баланс по МО'!$L97/1000 -> 0 | L18: ='баланс по МО'!$L109/1000 -> 0 | M18: 0 | N18: ='баланс по МО'!$L121/1000 -> 0 | O18: 0 | P18: ='баланс по МО'!$L133/1000 -> 0 | Q18: 0
A19: 3.2. | B19: на промывку | C19: тыс.куб.м | D19: ='баланс по МО'!$M25/1000 -> 0 | E19: ='баланс по МО'!$M37/1000 -> 0 | F19: =НП!D19 -> 0 | G19: ='баланс по МО'!$M49/1000 -> 0 | H19: =НП!E19 -> 0 | I19: ='баланс по МО'!$M73/1000 -> 0 | J19: ='баланс по МО'!$M85/1000 -> 0 | K19: ='баланс по МО'!$M97/1000 -> 0 | L19: ='баланс по МО'!$M109/1000 -> 0 | M19: 0 | N19: ='баланс по МО'!$M121/1000 -> 0 | O19: 0 | P19: ='баланс по МО'!$M133/1000 -> 0 | Q19: 0
A20: 3.3. | B20: на хозяйственно-бытовые нужды | C20: тыс.куб.м | D20: ='баланс по МО'!$N25/1000 -> 0 | E20: ='баланс по МО'!$N37/1000 -> 0 | F20: =НП!D20 -> 0 | G20: ='баланс по МО'!$N49/1000 -> 0 | H20: =НП!E20 -> 0 | I20: ='баланс по МО'!$N73/1000 -> 0 | J20: ='баланс по МО'!$N85/1000 -> 0 | K20: ='баланс по МО'!$N97/1000 -> 0 | L20: ='баланс по МО'!$N109/1000 -> 0 | M20: 0 | N20: ='баланс по МО'!$N121/1000 -> 0 | O20: 0 | P20: ='баланс по МО'!$N133/1000 -> 0 | Q20: 0
A21: 3.4. | B21: прочие | C21: тыс.куб.м | D21: ='баланс по МО'!$O25/1000 -> 0 | E21: ='баланс по МО'!$O37/1000 -> 0 | F21: =НП!D21 -> 0 | G21: ='баланс по МО'!$O49/1000 -> 0 | H21: =НП!E21 -> 0 | I21: ='баланс по МО'!$O73/1000 -> 0 | J21: ='баланс по МО'!$O85/1000 -> 0 | K21: ='баланс по МО'!$O97/1000 -> 0 | L21: ='баланс по МО'!$O109/1000 -> 0 | M21: 0 | N21: ='баланс по МО'!$O121/1000 -> 0 | O21: 0 | P21: ='баланс по МО'!$O133/1000 -> 0 | Q21: 0
A22: 3.5. | B22: вода на хозяйственные и технологические нужды в % к поднятой воде | C22: % | D22: ='баланс по МО'!$P25 -> 100 | E22: ='баланс по МО'!$P37 -> 0 | F22: =НП!D22 -> 0 | G22: ='баланс по МО'!$P49 -> 0 | H22: =НП!E22 -> 0 | I22: ='баланс по МО'!$P73 -> 0 | J22: ='баланс по МО'!$P85 -> 0 | K22: ='баланс по МО'!$P97 -> 0 | L22: ='баланс по МО'!$P109 -> 0 | M22: 0 | N22: ='баланс по МО'!$P121 -> 0 | O22: 0 | P22: ='баланс по МО'!$P133 -> 0 | Q22: 0
A23: 4. | B23: Получено воды со стороны | C23: тыс.куб.м | D23: ='баланс по МО'!$F25/1000 -> 0 | E23: ='баланс по МО'!$F37/1000 -> 0 | F23: =НП!D23 -> 0 | G23: ='баланс по МО'!$F49/1000 -> 0 | H23: =НП!E23 -> 0 | I23: ='баланс по МО'!$F73/1000 -> 0 | J23: ='баланс по МО'!$F85/1000 -> 0 | K23: ='баланс по МО'!$F97/1000 -> 0 | L23: ='баланс по МО'!$F109/1000 -> 0 | M23: 0 | N23: ='баланс по МО'!$F121/1000 -> 0 | O23: 0 | P23: ='баланс по МО'!$F133/1000 -> 0 | Q23: 0
A25: 5. | B25: Подано воды в водопроводную сеть | C25: тыс.куб.м | D25: =D27+D31 -> 0 | E25: 0 | F25: =НП!D25 -> 0 | G25: 0 | H25: =НП!E25 -> 0 | I25: 0 | J25: =J27+J31 -> 0 | K25: =K27+K31 -> 0 | L25: 0 | M25: =IF(H25=0,0,L25/H25*100) -> 0 | N25: =N27+N31 -> 0 | O25: =IF(L25=0,0,N25/L25*100) -> 0 | P25: =P27+P31 -> 0 | Q25: =IF(N25=0,0,P25/N25*100) -> 0
B26: своими насосами | C26: тыс.куб.м | F26: =НП!D26 -> 0 | H26: =НП!E26 -> 0 | M26: =IF(H26=0,0,L26/H26*100) -> 0 | O26: =IF(L26=0,0,N26/L26*100) -> 0 | Q26: =IF(N26=0,0,P26/N26*100) -> 0
A27: 6. | B27: Потери воды в водопроводных сетях | C27: тыс.куб.м | D27: ='баланс по МО'!$I25/1000 -> 0 | E27: ='баланс по МО'!$I37/1000 -> 0 | F27: =НП!D27 -> 0 | G27: ='баланс по МО'!$I49/1000 -> 0 | H27: =НП!E27 -> 0 | I27: ='баланс по МО'!$I73/1000 -> 0 | J27: ='баланс по МО'!$I85/1000 -> 0 | K27: ='баланс по МО'!$I97/1000 -> 0 | L27: ='баланс по МО'!$I109/1000 -> 0 | M27: =IF(H27=0,0,L27/H27*100) -> 0 | N27: ='баланс по МО'!$I121/1000 -> 0 | O27: =IF(L27=0,0,N27/L27*100) -> 0 | P27: ='баланс по МО'!$I133/1000 -> 0 | Q27: =IF(N27=0,0,P27/N27*100) -> 0
B29: то же в % к отпуску в сеть | C29: % | D29: ='баланс по МО'!$J25 -> 0 | E29: ='баланс по МО'!$J37 -> 0 | F29: =НП!D29 -> 0 | G29: ='баланс по МО'!$J49 -> 0 | H29: =НП!E29 -> 0 | I29: ='баланс по МО'!$J73 -> 0 | J29: ='баланс по МО'!$J85 -> 0 | K29: ='баланс по МО'!$J97 -> 0 | L29: ='баланс по МО'!$J109 -> 0 | M29: =IF(H29=0,0,L29/H29*100) -> 0 | N29: ='баланс по МО'!$J121 -> 0 | O29: =IF(L29=0,0,N29/L29*100) -> 0 | P29: ='баланс по МО'!$J133 -> 0 | Q29: =IF(N29=0,0,P29/N29*100) -> 0
A31: 7. | B31: Отпущено (реализовано) воды всего, в том числе: | C31: тыс.куб.м | D31: ='баланс по МО'!$Q25/1000 -> 0 | E31: ='баланс по МО'!$Q37/1000 -> 0 | F31: =НП!D31 -> 0 | G31: ='баланс по МО'!$Q49/1000 -> 0 | H31: =НП!E31 -> 0 | I31: ='баланс по МО'!$Q73/1000 -> 0 | J31: ='баланс по МО'!$Q85/1000 -> 0 | K31: ='баланс по МО'!$Q97/1000 -> 0 | L31: =L32+L33+L34 -> 0 | M31: =IF(H31=0,0,L31/H31*100) -> 0 | N31: =N32+N33+N34 -> 0 | O31: =IF(L31=0,0,N31/L31*100) -> 0 | P31: =P32+P33+P34 -> 0 | Q31: =IF(N31=0,0,P31/N31*100) -> 0
A32: 7.1. | B32: Расход воды на собственные нужды предприятия | C32: тыс.куб.м | D32: ='баланс по МО'!$R25/1000 -> 0 | E32: ='баланс по МО'!$R37/1000 -> 0 | F32: =НП!D32 -> 0 | G32: ='баланс по МО'!$R49/1000 -> 0 | H32: =НП!E32 -> 0 | I32: ='баланс по МО'!$R73/1000 -> 0 | J32: ='баланс по МО'!$R85/1000 -> 0 | K32: ='баланс по МО'!$R97/1000 -> 0 | L32: ='баланс по МО'!$R109/1000 -> 0 | M32: 0 | N32: ='баланс по МО'!$R121/1000 -> 0 | O32: 0 | P32: ='баланс по МО'!$R133/1000 -> 0 | Q32: 0
A33: 7.2. | B33: Отпущено воды другим водопроводам | C33: тыс.куб.м | D33: ='баланс по МО'!$U25/1000 -> 0 | E33: ='баланс по МО'!$U37/1000 -> 0 | F33: =НП!D33 -> 0 | G33: ='баланс по МО'!$U49/1000 -> 0 | H33: =НП!E33 -> 0 | I33: ='баланс по МО'!$U73/1000 -> 0 | J33: ='баланс по МО'!$U85/1000 -> 0 | K33: ='баланс по МО'!$U97/1000 -> 0 | L33: ='баланс по МО'!$U109/1000 -> 0 | M33: 0 | N33: ='баланс по МО'!$U121/1000 -> 0 | O33: 0 | P33: ='баланс по МО'!$U133/1000 -> 0 | Q33: 0
A34: 7.3. | B34: Отпущено товарной воды сторонним потребителям, в том числе: | C34: тыс.куб.м | D34: ='баланс по МО'!$X170/1000 -> 0 | E34: ='баланс по МО'!$X37/1000 -> 0 | F34: =НП!D34 -> 0 | G34: ='баланс по МО'!$X49/1000 -> 0 | H34: =НП!E34 -> 0 | I34: ='баланс по МО'!$X73/1000 -> 0 | J34: ='баланс по МО'!$X85/1000 -> 0 | K34: ='баланс по МО'!$X97/1000 -> 0 | L34: =L35+L38+L41 -> 0 | M34: 0 | N34: =N35+N38+N41 -> 0 | O34: 0 | P34: =P35+P38+P41 -> 0 | Q34: 0
A35: 7.3.1. | B35: бюджетные организации | C35: тыс.куб.м | D35: ='баланс по МО'!$Y25/1000 -> 0 | E35: ='баланс по МО'!$Y37/1000 -> 0 | F35: =НП!D35 -> 0 | G35: ='баланс по МО'!$Y49/1000 -> 0 | H35: =НП!E35 -> 0 | I35: ='баланс по МО'!$Y73/1000 -> 0 | J35: ='баланс по МО'!$Y85/1000 -> 0 | K35: ='баланс по МО'!$Y97/1000 -> 0 | L35: ='баланс по МО'!$Y109/1000 -> 0 | M35: 0 | N35: ='баланс по МО'!$Y121/1000 -> 0 | O35: 0 | P35: ='баланс по МО'!$Y133/1000 -> 0 | Q35: 0
B36: - по приборам учета | C36: тыс.куб.м | D36: =('баланс по МО'!$AA25+'баланс по МО'!$AC25)/1000 -> 0 | E36: =('баланс по МО'!$AA37+'баланс по МО'!$AC37)/1000 -> 0 | F36: =НП!D36 -> 0 | G36: =('баланс по МО'!$AA49+'баланс по МО'!$AC49)/1000 -> 0 | H36: =НП!E36 -> 0 | I36: =('баланс по МО'!$AA73+'баланс по МО'!$AC73)/1000 -> 0 | J36: =('баланс по МО'!$AA85+'баланс по МО'!$AC85)/1000 -> 0 | K36: =('баланс по МО'!$AA97+'баланс по МО'!$AC97)/1000 -> 0 | L36: =('баланс по МО'!$AA109+'баланс по МО'!$AC109)/1000 -> 0 | M36: 0 | N36: =('баланс по МО'!$AA121+'баланс по МО'!$AC121)/1000 -> 0 | O36: 0 | P36: =('баланс по МО'!$AA133+'баланс по МО'!$AC133)/1000 -> 0 | Q36: 0
B37: - по нормативам | C37: тыс.куб.м | D37: =D35-D36 -> 0 | E37: =E35-E36 -> 0 | F37: =НП!D37 -> 0 | G37: =G35-G36 -> 0 | H37: =НП!E37 -> 0 | I37: =I35-I36 -> 0 | J37: 0 | K37: 0 | L37: 0 | M37: 0 | N37: =N35-N36 -> 0 | O37: 0 | P37: =P35-P36 -> 0 | Q37: 0
A38: 7.3.2. | B38: население | C38: тыс.куб.м | D38: ='баланс по МО'!$AD25/1000 -> 0 | E38: ='баланс по МО'!$AD37/1000 -> 0 | F38: =НП!D38 -> 0 | G38: ='баланс по МО'!$AD49/1000 -> 0 | H38: =НП!E38 -> 0 | I38: ='баланс по МО'!$AD73/1000 -> 0 | J38: ='баланс по МО'!$AD85/1000 -> 0 | K38: ='баланс по МО'!$AD97/1000 -> 0 | L38: ='баланс по МО'!$AD109/1000 -> 0 | M38: 0 | N38: ='баланс по МО'!$AD121/1000 -> 0 | O38: 0 | P38: ='баланс по МО'!$AD133/1000 -> 0 | Q38: 0
B39: - по приборам учета | C39: тыс.куб.м | D39: =('баланс по МО'!$AF25+'баланс по МО'!$AH270)/1000 -> 0 | E39: =('баланс по МО'!$AF37+'баланс по МО'!$AH37)/1000 -> 0 | F39: =НП!D39 -> 0 | G39: =('баланс по МО'!$AF49+'баланс по МО'!$AH49)/1000 -> 0 | H39: =НП!E39 -> 0 | I39: =('баланс по МО'!$AF73+'баланс по МО'!$AH73)/1000 -> 0 | J39: =('баланс по МО'!$AF85+'баланс по МО'!$AH85)/1000 -> 0 | K39: =('баланс по МО'!$AF97+'баланс по МО'!$AH97)/1000 -> 0 | L39: =('баланс по МО'!$AF109+'баланс по МО'!$AH109)/1000 -> 0 | M39: 0 | N39: =('баланс по МО'!$AF121+'баланс по МО'!$AH121)/1000 -> 0 | O39: 0 | P39: =('баланс по МО'!$AF133+'баланс по МО'!$AH133)/1000 -> 0 | Q39: 0
B40: - по нормативам | C40: тыс.куб.м | D40: =D38-D39 -> 0 | E40: =E38-E39 -> 0 | F40: =НП!D40 -> 0 | G40: =G38-G39 -> 0 | H40: =НП!E40 -> 0 | I40: =I38-I39 -> 0 | J40: 0 | K40: 0 | L40: 0 | M40: 0 | N40: =N38-N39 -> 0 | O40: 0 | P40: =P38-P39 -> 0 | Q40: 0
A41: 7.3.3. | B41: прочие | C41: тыс.куб.м | D41: ='баланс по МО'!$AI25/1000 -> 0 | E41: ='баланс по МО'!$AI37/1000 -> 0 | F41: =НП!D41 -> 0 | G41: ='баланс по МО'!$AI49/1000 -> 0 | H41: =НП!E41 -> 0 | I41: ='баланс по МО'!$AI73/1000 -> 0 | J41: ='баланс по МО'!$AI85/1000 -> 0 | K41: ='баланс по МО'!$AI97/1000 -> 0 | L41: ='баланс по МО'!$AI109/1000 -> 0 | M41: 0 | N41: ='баланс по МО'!$AI121/1000 -> 0 | O41: 0 | P41: ='баланс по МО'!$AI133/1000 -> 0 | Q41: 0
B42: - по приборам учета | C42: тыс.куб.м | D42: =('баланс по МО'!$AK25+'баланс по МО'!$AM25)/1000 -> 0 | E42: =('баланс по МО'!$AK37+'баланс по МО'!$AM37)/1000 -> 0 | F42: =НП!D42 -> 0 | G42: =('баланс по МО'!$AK49+'баланс по МО'!$AM49)/1000 -> 0 | H42: =НП!E42 -> 0 | I42: =('баланс по МО'!$AK73+'баланс по МО'!$AM73)/1000 -> 0 | J42: =('баланс по МО'!$AK85+'баланс по МО'!$AM85)/1000 -> 0 | K42: =('баланс по МО'!$AK97+'баланс по МО'!$AM97)/1000 -> 0 | L42: =('баланс по МО'!$AK109+'баланс по МО'!$AM109)/1000 -> 0 | M42: 0 | N42: =('баланс по МО'!$AK121+'баланс по МО'!$AM121)/1000 -> 0 | O42: 0 | P42: =('баланс по МО'!$AK133+'баланс по МО'!$AM133)/1000 -> 0 | Q42: 0
B43: - по нормативам | C43: тыс.куб.м | D43: =D41-D42 -> 0 | E43: =E41-E42 -> 0 | F43: =НП!D43 -> 0 | G43: =G41-G42 -> 0 | H43: =НП!E43 -> 0 | I43: =I41-I42 -> 0 | J43: 0 | K43: 0 | L43: 0 | M43: 0 | N43: =N41-N42 -> 0 | O43: 0 | P43: =P41-P42 -> 0 | Q43: 0
A44: 8. | B44: Доля полезного отпуска воды, отпущенной по приборам учета | C44: % | D44: ='баланс по МО'!AO25 -> 0 | E44: ='баланс по МО'!AO37 -> 0 | G44: ='баланс по МО'!AO49 -> 0 | H44: ='баланс по МО'!AO61 -> 0 | I44: ='баланс по МО'!AO73 -> 0 | J44: ='баланс по МО'!AO85 -> 0 | K44: ='баланс по МО'!AO97 -> 0 | L44: ='баланс по МО'!AO109 -> 0 | M44: 0 | N44: ='баланс по МО'!AO121 -> 0 | O44: 0 | P44: ='баланс по МО'!AO133 -> 0 | Q44: 0
A58: 9. | B58: Объем потребленной электроэнергии | C58: кВт.ч. | D58: ='свод потребности объемов эл.эн'!D12+'свод потребности объемов эл.эн'!D32 -> 0 | E58: ='свод потребности объемов эл.эн'!E12+'свод потребности объемов эл.эн'!E32 -> 0 | F58: =НП!D58 -> 0 | G58: ='свод потребности объемов эл.эн'!G12+'свод потребности объемов эл.эн'!G32 -> 0 | H58: =НП!E58 -> 0 | I58: ='свод потребности объемов эл.эн'!I12+'свод потребности объемов эл.эн'!I32 -> 0 | J58: ='свод потребности объемов эл.эн'!J12+'свод потребности объемов эл.эн'!J32 -> 0 | K58: ='свод потребности объемов эл.эн'!K12+'свод потребности объемов эл.эн'!K32 -> 0 | L58: ='свод потребности объемов эл.эн'!L12+'свод потребности объемов эл.эн'!L32 -> 0 | M58: =IF(H58=0,0,L58/H58*100) -> 0 | N58: ='свод потребности объемов эл.эн'!Q12+'свод потребности объемов эл.эн'!Q32 -> 0 | O58: =IF(L58=0,0,N58/L58*100) -> 0 | P58: ='свод потребности объемов эл.эн'!V12+'свод потребности объемов эл.эн'!V32 -> 0 | Q58: =IF(N58=0,0,P58/N58*100) -> 0
A59: 10. | B59: Удельный расход электроэнергии на реализованную воду | C59: кВт*ч/куб.м | D59: =IF(D31=0,0,D58/D31/1000) -> 0 | E59: =IF(E31=0,0,E58/E31/1000) -> 0 | F59: =НП!D59 -> 0 | G59: =IF(G31=0,0,G58/G31/1000) -> 0 | H59: =НП!E59 -> 0 | I59: =IF(I31=0,0,I58/I31/1000) -> 0 | J59: 0 | K59: 0 | L59: 0 | M59: 0 | N59: =IF(N31=0,0,N58/N31/1000) -> 0 | O59: 0 | P59: =IF(P31=0,0,P58/P31/1000) -> 0 | Q59: 0
A60: 11. | B60: Удельное потребление воды населением | C60: куб.м/час | D60: =D38/(24*365) -> 0 | E60: =E38/(24*365) -> 0 | F60: =НП!D62 -> 0 | G60: =G38/(24*365) -> 0 | H60: =НП!E62 -> 0 | I60: =I38/(24*365) -> 0 | J60: =J38/(24*365) -> 0 | K60: =K38/(24*365) -> 0 | L60: =L38/(24*365) -> 0 | M60: 0 | N60: =N38/(24*365) -> 0 | O60: 0 | P60: =P38/(24*365) -> 0 | Q60: 0
A61: 12. | B61: Объем отпущенной воды на 1 человека | C61: куб.м/чел в мес. | D61: =IF((12*D63)=0,0,D38/(12*D63)) -> 0 | E61: =IF((12*E63)=0,0,E38/(12*E63)) -> 0 | F61: =НП!D63 -> 0 | G61: =IF((12*G63)=0,0,G38/(12*G63)) -> 0 | H61: =НП!E63 -> 0 | I61: =IF((12*I63)=0,0,I38/(12*I63)) -> 0 | J61: =IF((12*J63)=0,0,J38/(12*J63)) -> 0 | K61: =IF((12*K63)=0,0,K38/(12*K63)) -> 0 | L61: =IF((12*L63)=0,0,L38/(12*L63)) -> 0 | M61: 0 | N61: =IF((12*N63)=0,0,N38/(12*N63)) -> 0 | O61: 0 | P61: =IF((12*P63)=0,0,P38/(12*P63)) -> 0 | Q61: 0
A62: 13. | B62: Присоединенная мощность потребителей товаров (услуг) по холодному водоснабжению | C62: куб.м/час | D62: =D31/365/24 -> 0 | E62: =E31/365/24 -> 0 | F62: =НП!D64 -> 0 | G62: =G31/365/24 -> 0 | H62: =НП!E64 -> 0 | I62: =I31/365/24 -> 0 | J62: =J31/365/24 -> 0 | K62: =K31/365/24 -> 0 | L62: =L31/365/24 -> 0 | M62: 0 | N62: =N31/365/24 -> 0 | O62: 0 | P62: =P31/365/24 -> 0 | Q62: 0
A63: 14. | B63: Численность населения, получающего услуги организации | C63: чел | F63: =НП!D66 -> 0 | H63: =НП!E66 -> 0 | M63: 0 | O63: 0 | Q63: 0

Sheet Техн характер системы
A1: =Титульный!B10 -> 
A3: Имущество, переданное по договору аренды (концессионному соглашению) и (или) принадлежащее на праве собственности
A5: Район | B5: =Титульный!B6 -> 0
A7: МО | B7: =Титульный!B7 -> 0
A9: =Титульный!B24 -> 0
A11: Наименование и адрес объектов | B11: Количество оборудования, находящегося одновременно в работе | C11: Наличие прибора учета воды | D11: Наличие прибора учета электроэнергии | E11: Марка оборудования (насоса) | F11: Производительность оборудования (насоса), куб.м./час | G11: Продолжительность работы в году, час | H11: Мощность оборудования (насоса), кВт | I11: Отопление (обогрев) объектов
I12: ТЭН | K12: Наименование организации-поставщика тепловой энергии
I13: количество, шт | J13: Суммарная мощность, кВт
A14: Артезианские скважины
A30: Насосные станции 2-ого подъема
A37: Насосные станции 3-ого подъема
A44: Водонапорные башни
A78: Водоразборные колонки (шт.)
A81: Водоочистные сооружения
A94: СЕТИ | B94: период регулирования, год | L94: СЕТИ | M94: =B94 -> период регулирования, год
B95: ='баланс ВСН'!F7 -> 2016 | C95: =B95+1 -> 2017 | D95: =C95+1 -> 2018 | E95: ='баланс ВСН'!J7 -> 2019 | F95: ='баланс ВСН'!K7 -> 2020 | M95: =D95 -> 2018 | N95: =E95 -> 2019 | O95: =F95 -> 2020
B96: факт организации | C96: план организации | D96: план организации | E96: план организации | F96: план организации | M96: план эксперта | N96: план эксперта | O96: план эксперта
A97: Протяженность водопроводных сетей всего, м | B97: =SUM(B98:B112) -> 0 | C97: =SUM(C98:C112) -> 0 | D97: =SUM(D98:D112) -> 0 | E97: =SUM(E98:E112) -> 0 | F97: =SUM(F98:F112) -> 0 | L97: Протяженность водопроводных сетей всего, м | M97: =SUM(M98:M112) -> 0 | N97: =SUM(N98:N112) -> 0 | O97: =SUM(O98:O112) -> 0
A98: в том числе диаметром | L98: в том числе диаметром
A99: диаметр до 50 мм | L99: диаметр до 50 мм | M99: =D99 -> 0 | N99: =M99 -> 0 | O99: =N99 -> 0
A100: диаметр от 50 до 100 мм | L100: диаметр от 50 до 100 мм | M100: =D100 -> 0 | N100: =M100 -> 0 | O100: 0
A101: диаметр от 100 до 150 мм | L101: диаметр от 100 до 150 мм | M101: 0 | N101: =M101 -> 0 | O101: 0
A102: диаметр от 150 до 200 мм | L102: диаметр от 150 до 200 мм | M102: 0 | N102: =M102 -> 0 | O102: 0
A103: диаметр от 200 до 300 мм | L103: диаметр от 200 до 300 мм | M103: 0 | N103: =M103 -> 0 | O103: 0
A104: диаметр от 300 до 400 мм | L104: диаметр от 300 до 400 мм | M104: 0 | N104: =M104 -> 0 | O104: 0
A105: диаметр от 400 до 500 мм | L105: диаметр от 400 до 500 мм | M105: 0 | N105: =M105 -> 0 | O105: 0
A106: диаметр от 500 до 600 мм | L106: диаметр от 500 до 600 мм | M106: 0 | N106: =M106 -> 0 | O106: 0
A107: диаметр от 600 до 700 мм | L107: диаметр от 600 до 700 мм | M107: 0 | N107: =M107 -> 0 | O107: 0
A108: диаметр от 700 до 800 мм | L108: диаметр от 700 до 800 мм | M108: 0 | N108: =M108 -> 0 | O108: 0
A109: диаметр от 800 до 900 мм | L109: диаметр от 800 до 900 мм | M109: 0 | N109: =M109 -> 0 | O109: 0
A110: диаметр от 900 до 1000 мм | L110: диаметр от 900 до 1000 мм | M110: 0 | N110: =M110 -> 0 | O110: 0
A111: диаметр от 1000 до 1200 мм | L111: диаметр от 1000 до 1200 мм | M111: 0 | N111: =M111 -> 0 | O111: 0
A112: диаметр свыше 1200 мм | L112: диаметр свыше 1200 мм | M112: 0 | N112: =M112 -> 0 | O112: 0
A113: Протяженность водопроводных сетей, нуждающихся в замене всего, м | B113: =SUM(B114:B128) -> 0 | C113: =SUM(C114:C128) -> 0 | D113: =SUM(D114:D128) -> 0 | E113: =SUM(E114:E128) -> 0 | F113: =SUM(F114:F128) -> 0 | L113: Протяженность водопроводных сетей, нуждающихся в замене всего, м | M113: =SUM(M114:M128) -> 0 | N113: =SUM(N114:N128) -> 0 | O113: =SUM(O114:O128) -> 0
A114: в том числе диаметром | L114: в том числе диаметром
A115: диаметр до 50 мм | L115: диаметр до 50 мм | M115: =D115 -> 0 | N115: =M115 -> 0 | O115: =N115 -> 0
A116: диаметр от 50 до 100 мм | L116: диаметр от 50 до 100 мм | M116: =D116 -> 0 | N116: =M116 -> 0 | O116: 0
A117: диаметр от 100 до 150 мм | L117: диаметр от 100 до 150 мм | M117: 0 | N117: =M117 -> 0 | O117: 0
A118: диаметр от 150 до 200 мм | L118: диаметр от 150 до 200 мм | M118: 0 | N118: =M118 -> 0 | O118: 0
A119: диаметр от 200 до 300 мм | L119: диаметр от 200 до 300 мм | M119: 0 | N119: =M119 -> 0 | O119: 0
A120: диаметр от 300 до 400 мм | L120: диаметр от 300 до 400 мм | M120: 0 | N120: =M120 -> 0 | O120: 0
A121: диаметр от 400 до 500 мм | L121: диаметр от 400 до 500 мм | M121: 0 | N121: =M121 -> 0 | O121: 0
A122: диаметр от 500 до 600 мм | L122: диаметр от 500 до 600 мм | M122: 0 | N122: =M122 -> 0 | O122: 0
A123: диаметр от 600 до 700 мм | L123: диаметр от 600 до 700 мм | M123: 0 | N123: =M123 -> 0 | O123: 0
A124: диаметр от 700 до 800 мм | L124: диаметр от 700 до 800 мм | M124: 0 | N124: =M124 -> 0 | O124: 0
A125: диаметр от 800 до 900 мм | L125: диаметр от 800 до 900 мм | M125: 0 | N125: =M125 -> 0 | O125: 0
A126: диаметр от 900 до 1000 мм | L126: диаметр от 900 до 1000 мм | M126: 0 | N126: =M126 -> 0 | O126: 0
A127: диаметр от 1000 до 1200 мм | L127: диаметр от 1000 до 1200 мм | M127: 0 | N127: =M127 -> 0 | O127: 0
A128: диаметр свыше 1200 мм | L128: диаметр свыше 1200 мм | M128: 0 | N128: =M128 -> 0 | O128: 0
A129: Удельный вес сетей, нуждающихся в замене, % | B129: =IF(B97=0,0,B113/B97*100) -> 0 | C129: =IF(C97=0,0,C113/C97*100) -> 0 | D129: =IF(D97=0,0,D113/D97*100) -> 0 | E129: =IF(E97=0,0,E113/E97*100) -> 0 | F129: =IF(F97=0,0,F113/F97*100) -> 0 | L129: Удельный вес сетей, нуждающихся в замене, % | M129: =IF(M97=0,0,M113/M97*100) -> 0 | N129: =IF(N97=0,0,N113/N97*100) -> 0 | O129: =IF(O97=0,0,O113/O97*100) -> 0

Sheet свод потребности объемов эл.эн
A1: Расчет электрической энергии на производство и реализацию услуг водоснабжения
A2: =Титульный!B10 -> 
A4: =Титульный!B24 -> 0
A5: Район | B5: =Титульный!B6 -> 0 | I5: МО | J5: =Титульный!B7 -> 0
A6: № п/п | B6: Наименование направления расхода электрической энергии | C6: Ед.изм. | D6: Период регулирования, год | L6: Период регулирования | Q6: Период регулирования | V6: Период регулирования
D7: ='баланс ВСН'!D6 -> 2014 | E7: =D7+1 -> 2015 | F7: =E7+1 -> 2016 | H7: =F7+1 -> 2017 | I7: =H7+1 -> 2018 | J7: ='баланс ВСН'!J7 -> 2019 | K7: ='баланс ВСН'!K7 -> 2020 | L7: =I7 -> 2018 | Q7: =J7 -> 2019 | V7: =K7 -> 2020
D8: факт по данным организации | E8: факт по данным организации | F8: утв. ДТР | G8: факт по данным организации | H8: утв. ДТР | I8: план организации | J8: план организации | K8: план организации | L8: план эксперта | Q8: =L8 -> план эксперта | V8: =Q8 -> план эксперта
L9: Итого | M9: в том числе по уровням напряжения | Q9: Итого | R9: в том числе по уровням напряжения | V9: Итого | W9: в том числе по уровням напряжения
M10: ВН | N10: СН1 | O10: СН2 | P10: НН | R10: ВН | S10: СН1 | T10: СН2 | U10: НН | W10: ВН | X10: СН1 | Y10: СН2 | Z10: НН
B11: Объем покупной электроэнергии по одноставочному тарифу
A12: 1 | B12: Итого объем электроэнергии | C12: кВт.ч | D12: =D13+D17 -> 0 | E12: =E13+E17 -> 0 | F12: 0 | G12: 0 | H12: 0 | I12: 0 | J12: =J13+J17 -> 0 | K12: =K13+K17 -> 0 | L12: =SUM(M12:P12) -> 0 | M12: 0 | N12: 0 | O12: 0 | P12: 0 | Q12: =SUM(R12:U12) -> 0 | R12: =R13+R17 -> 0 | S12: 0 | T12: 0 | U12: 0 | V12: =SUM(W12:Z12) -> 0 | W12: 0 | X12: 0 | Y12: 0 | Z12: 0
A13: 1.1. | B13: На технологические нужды, в том числе: | C13: кВт.ч | D13: =D14+D15+D16 -> 0 | E13: =E14+E15+E16 -> 0 | F13: =F14+F15+F16 -> 0 | G13: =G14+G15+G16 -> 0 | H13: 0 | I13: =I14+I15+I16 -> 0 | J13: =J14+J15+J16 -> 0 | K13: =K14+K15+K16 -> 0 | L13: =SUM(M13:P13) -> 0 | M13: =M14+M15+M16 -> 0 | N13: 0 | O13: 0 | P13: 0 | Q13: 0 | R13: =R14+R15+R16 -> 0 | S13: =S14+S15+S16 -> 0 | T13: 0 | U13: 0 | V13: =SUM(W13:Z13) -> 0 | W13: =W14+W15+W16 -> 0 | X13: =X14+X15+X16 -> 0 | Y13: 0 | Z13: 0
A14: 1.1.1. | B14: Подъем воды | C14: кВт.ч | L14: 0 | Q14: 0 | R14: =M14 -> 0 | S14: 0 | T14: 0 | U14: 0 | V14: 0 | W14: =R14 -> 0 | X14: 0 | Y14: 0 | Z14: 0
A15: 1.1.2. | B15: Очистка воды | C15: кВт.ч | L15: 0 | Q15: 0 | R15: 0 | S15: 0 | T15: 0 | U15: 0 | V15: 0 | W15: 0 | X15: 0 | Y15: 0 | Z15: 0
A16: 1.1.3. | B16: Транспортировка воды | C16: кВт.ч | L16: 0 | Q16: 0 | R16: 0 | S16: 0 | T16: 0 | U16: 0 | V16: 0 | W16: 0 | X16: 0 | Y16: 0 | Z16: 0
A17: 1.2. | B17: На общепроизводственные нужды, в том числе: | C17: кВт.ч | D17: =SUM(D18:D20) -> 0 | E17: =SUM(E18:E20) -> 0 | F17: =SUM(F18:F20) -> 0 | G17: =SUM(G18:G20) -> 0 | H17: 0 | I17: =SUM(I18:I20) -> 0 | J17: =SUM(J18:J20) -> 0 | K17: =SUM(K18:K20) -> 0 | L17: 0 | M17: 0 | N17: 0 | O17: 0 | P17: 0 | Q17: 0 | R17: =SUM(R18:R20) -> 0 | S17: 0 | T17: 0 | U17: 0 | V17: 0 | W17: =SUM(W18:W20) -> 0 | X17: 0 | Y17: 0 | Z17: 0
A18: 1.2.1. | B18: Подъем воды | C18: кВт.ч | L18: 0 | Q18: 0 | R18: =M18 -> 0 | S18: 0 | T18: 0 | U18: 0 | V18: 0 | W18: =R18 -> 0 | X18: 0 | Y18: 0 | Z18: 0
A19: 1.2.2. | B19: Очистка воды | C19: кВт.ч | L19: 0 | Q19: 0 | R19: 0 | S19: 0 | T19: 0 | U19: 0 | V19: 0 | W19: 0 | X19: 0 | Y19: 0 | Z19: 0
A20: 1.2.3. | B20: Транспортировка воды | C20: кВт.ч | L20: 0 | Q20: 0 | R20: 0 | S20: 0 | T20: 0 | U20: 0 | V20: 0 | W20: 0 | X20: 0 | Y20: 0 | Z20: 0
A22: 2 | B22: Объем покупной электроэнергии по двухставочному тарифу
A23: 2.1. | B23: Мощность | C23: кВт | D23: =D24+D28 -> 0 | E23: =E24+E28 -> 0 | F23: 0 | G23: 0 | H23: 0 | I23: 0 | J23: =J24+J28 -> 0 | K23: =K24+K28 -> 0 | L23: =SUM(M23:P23) -> 0 | M23: 0 | N23: 0 | O23: 0 | P23: 0 | Q23: =SUM(R23:U23) -> 0 | R23: =R24+R28 -> 0 | S23: 0 | T23: 0 | U23: 0 | V23: =SUM(W23:Z23) -> 0 | W23: 0 | X23: 0 | Y23: 0 | Z23: 0
A24: 2.1.1. | B24: На технологические нужды, в том числе: | C24: кВт | D24: =D25+D26+D27 -> 0 | E24: 0 | F24: 0 | G24: 0 | H24: 0 | I24: 0 | J24: 0 | K24: 0 | L24: 0 | M24: 0 | N24: =N25+N26+N27 -> 0 | O24: 0 | P24: 0 | Q24: 0 | R24: =R25+R26+R27 -> 0 | S24: =S25+S26+S27 -> 0 | T24: 0 | U24: 0 | V24: 0 | W24: =W25+W26+W27 -> 0 | X24: =X25+X26+X27 -> 0 | Y24: 0 | Z24: 0
A25: 2.1.1.1. | B25: Подъем воды | C25: кВт | L25: 0 | Q25: 0 | R25: =M25 -> 0 | S25: 0 | T25: 0 | U25: 0 | V25: 0 | W25: =R25 -> 0 | X25: 0 | Y25: 0 | Z25: 0
A26: 2.1.1.2. | B26: Очистка воды | C26: кВт | L26: 0 | Q26: 0 | R26: 0 | S26: 0 | T26: 0 | U26: 0 | V26: 0 | W26: 0 | X26: 0 | Y26: 0 | Z26: 0
A27: 2.1.1.3. | B27: Транспортировка воды | C27: кВт | L27: 0 | Q27: 0 | R27: 0 | S27: 0 | T27: 0 | U27: 0 | V27: 0 | W27: 0 | X27: 0 | Y27: 0 | Z27: 0
A28: 2.1.2. | B28: На общепроизводственные нужды, в том числе: | C28: кВт | D28: =SUM(D29:D31) -> 0 | E28: 0 | F28: 0 | G28: 0 | H28: 0 | I28: 0 | J28: 0 | K28: 0 | L28: 0 | M28: =SUM(M29:M31) -> 0 | N28: 0 | O28: 0 | P28: 0 | Q28: 0 | R28: =SUM(R29:R31) -> 0 | S28: 0 | T28: 0 | U28: 0 | V28: 0 | W28: =SUM(W29:W31) -> 0 | X28: 0 | Y28: 0 | Z28: 0
A29: 1.2.1. | B29: Подъем воды | C29: кВт | L29: 0 | Q29: 0 | R29: =M29 -> 0 | S29: 0 | T29: 0 | U29: 0 | V29: 0 | W29: =R29 -> 0 | X29: 0 | Y29: 0 | Z29: 0
A30: 1.2.2. | B30: Очистка воды | C30: кВт | L30: 0 | Q30: 0 | R30: 0 | S30: 0 | T30: 0 | U30: 0 | V30: 0 | W30: 0 | X30: 0 | Y30: 0 | Z30: 0
A31: 1.2.3. | B31: Транспортировка воды | C31: кВт | L31: 0 | Q31: 0 | R31: 0 | S31: 0 | T31: 0 | U31: 0 | V31: 0 | W31: 0 | X31: 0 | Y31: 0 | Z31: 0
A32: 2.1. | B32: Активная электроэнергия | C32: кВт.ч | D32: =D33+D37 -> 0 | E32: =E33+E37 -> 0 | F32: 0 | G32: 0 | H32: 0 | I32: 0 | J32: =J33+J37 -> 0 | K32: =K33+K37 -> 0 | L32: 0 | M32: 0 | N32: 0 | O32: 0 | P32: 0 | Q32: =Q33+Q37 -> 0 | R32: 0 | S32: 0 | T32: 0 | U32: 0 | V32: 0 | W32: 0 | X32: 0 | Y32: 0 | Z32: 0
A33: 2.1.1. | B33: На технологические нужды, в том числе: | C33: кВт.ч | D33: =D34+D35+D36 -> 0 | E33: 0 | F33: 0 | G33: 0 | H33: 0 | I33: 0 | J33: 0 | K33: 0 | L33: 0 | M33: 0 | N33: =N34+N35+N36 -> 0 | O33: 0 | P33: 0 | Q33: 0 | R33: =R34+R35+R36 -> 0 | S33: =S34+S35+S36 -> 0 | T33: 0 | U33: 0 | V33: 0 | W33: =W34+W35+W36 -> 0 | X33: =X34+X35+X36 -> 0 | Y33: 0 | Z33: 0
A34: 2.1.1.1. | B34: Подъем воды | C34: кВт.ч | L34: 0 | Q34: =SUM(R34:U34) -> 0 | R34: =M34 -> 0 | S34: 0 | T34: 0 | U34: 0 | V34: 0 | W34: =R34 -> 0 | X34: 0 | Y34: 0 | Z34: 0
A35: 2.1.1.2. | B35: Очистка воды | C35: кВт.ч | L35: 0 | Q35: =SUM(R35:U35) -> 0 | R35: 0 | S35: 0 | T35: 0 | U35: 0 | V35: 0 | W35: 0 | X35: 0 | Y35: 0 | Z35: 0
A36: 2.1.1.3. | B36: Транспортировка воды | C36: кВт.ч | L36: 0 | Q36: 0 | R36: 0 | S36: 0 | T36: 0 | U36: 0 | V36: 0 | W36: 0 | X36: 0 | Y36: 0 | Z36: 0
A37: 2.1.2. | B37: На общепроизводственные нужды, в том числе: | C37: кВт.ч | D37: =SUM(D38:D40) -> 0 | E37: 0 | F37: 0 | G37: 0 | H37: 0 | I37: 0 | J37: 0 | K37: 0 | L37: 0 | M37: =SUM(M38:M40) -> 0 | N37: 0 | O37: 0 | P37: 0 | Q37: =SUM(Q38:Q40) -> 0 | R37: 0 | S37: 0 | T37: 0 | U37: 0 | V37: 0 | W37: =SUM(W38:W40) -> 0 | X37: 0 | Y37: 0 | Z37: 0
A38: 1.2.1. | B38: Подъем воды | C38: кВт.ч | L38: 0 | Q38: =SUM(R38:U38) -> 0 | R38: =M38 -> 0 | S38: 0 | T38: 0 | U38: 0 | V38: 0 | W38: =R38 -> 0 | X38: 0 | Y38: 0 | Z38: 0
A39: 1.2.2. | B39: Очистка воды | C39: кВт.ч | L39: 0 | Q39: =SUM(R39:U39) -> 0 | R39: 0 | S39: 0 | T39: 0 | U39: 0 | V39: 0 | W39: 0 | X39: 0 | Y39: 0 | Z39: 0
A40: 1.2.3. | B40: Транспортировка воды | C40: кВт.ч | L40: 0 | Q40: 0 | R40: 0 | S40: 0 | T40: 0 | U40: 0 | V40: 0 | W40: 0 | X40: 0 | Y40: 0 | Z40: 0
B41: Справочно
A42: Всего расход электроэнергии | C42: кВтч | D42: =D12+D32 -> 0 | E42: 0 | F42: 0 | G42: 0 | H42: 0 | I42: 0 | J42: 0 | K42: 0 | L42: 0 | M42: 0 | N42: 0 | O42: 0 | P42: 0 | Q42: 0 | R42: 0 | S42: 0 | T42: 0 | U42: 0 | V42: 0 | W42: 0 | X42: 0 | Y42: 0 | Z42: 0
A43: расход электроэнергии на подготовку воды | C43: кВт.ч | D43: =D14+D18+D34+D35+D38+D39+D15+D19 -> 0 | E43: =E14+E18+E34+E35+E38+E39+E15+E19 -> 0 | F43: 0 | G43: 0 | H43: 0 | I43: 0 | J43: 0 | K43: 0 | L43: 0 | M43: 0 | N43: 0 | O43: 0 | P43: 0 | Q43: 0 | R43: 0 | S43: 0 | T43: 0 | U43: 0 | V43: 0 | W43: 0 | X43: 0 | Y43: 0 | Z43: 0
A44: расход электроэнергии на транспортировку воды | C44: кВт.ч | D44: =D16+D20+D36+D40 -> 0 | E44: 0 | F44: 0 | G44: 0 | H44: 0 | I44: 0 | J44: 0 | K44: 0 | L44: =SUM(M44:P44) -> 0 | M44: =M16+M20+M36+M40 -> 0 | N44: =N16+N20+N36+N40 -> 0 | O44: =O16+O20+O36+O40 -> 0 | P44: =P16+P20+P36+P40 -> 0 | Q44: =SUM(R44:U44) -> 0 | R44: =R16+R20+R36+R40 -> 0 | S44: =S16+S20+S36+S40 -> 0 | T44: =T16+T20+T36+T40 -> 0 | U44: =U16+U20+U36+U40 -> 0 | V44: =SUM(W44:Z44) -> 0 | W44: =W16+W20+W36+W40 -> 0 | X44: =X16+X20+X36+X40 -> 0 | Y44: =Y16+Y20+Y36+Y40 -> 0 | Z44: =Z16+Z20+Z36+Z40 -> 0
L45: =L43+L44-L12-L32 -> 0 | Q45: =Q43+Q44-Q12-Q32 -> 0 | V45: =V43+V44-V12-V32 -> 0
A46: уд.расход электроэнергии на подготовку 1 куб.м. воды | C46: кВтч/куб.м. | D46: =IF('баланс ВСН'!D25=0,,D43/('баланс ВСН'!D25*1000)) -> 0 | E46: =IF('баланс ВСН'!E25=0,,E43/('баланс ВСН'!E25*1000)) -> 0 | F46: =IF('баланс ВСН'!F25=0,,F43/('баланс ВСН'!F25*1000)) -> 0 | G46: =IF('баланс ВСН'!G25=0,,G43/('баланс ВСН'!G25*1000)) -> 0 | H46: =IF('баланс ВСН'!H25=0,,H43/('баланс ВСН'!H25*1000)) -> 0 | I46: =IF('баланс ВСН'!I25=0,,I43/('баланс ВСН'!I25*1000)) -> 0 | J46: =IF('баланс ВСН'!J25=0,,J43/('баланс ВСН'!J25*1000)) -> 0 | K46: =IF('баланс ВСН'!K25=0,,K43/('баланс ВСН'!K25*1000)) -> 0 | L46: =IF('баланс ВСН'!L25=0,,L43/('баланс ВСН'!L25*1000)) -> 0 | Q46: =IF('баланс ВСН'!N25=0,,Q43/('баланс ВСН'!N25*1000)) -> 0 | V46: =IF('баланс ВСН'!P25=0,,V43/('баланс ВСН'!P25*1000)) -> 0
A47: уд.расход электроэнергии на 1 куб.м. транспортировки воды | C47: кВтч/куб.м. | D47: =IF('баланс ВСН'!D31=0,,D44/('баланс ВСН'!D31*1000)) -> 0 | E47: =IF('баланс ВСН'!E31=0,,E44/('баланс ВСН'!E31*1000)) -> 0 | F47: =IF('баланс ВСН'!F31=0,,F44/('баланс ВСН'!F31*1000)) -> 0 | G47: =IF('баланс ВСН'!G31=0,,G44/('баланс ВСН'!G31*1000)) -> 0 | H47: =IF('баланс ВСН'!H31=0,,H44/('баланс ВСН'!H31*1000)) -> 0 | I47: =IF('баланс ВСН'!I31=0,,I44/('баланс ВСН'!I31*1000)) -> 0 | J47: =IF('баланс ВСН'!J31=0,,J44/('баланс ВСН'!J31*1000)) -> 0 | K47: =IF('баланс ВСН'!K31=0,,K44/('баланс ВСН'!K31*1000)) -> 0 | L47: =IF('баланс ВСН'!L31=0,,L44/('баланс ВСН'!L31*1000)) -> 0 | Q47: =IF('баланс ВСН'!N31=0,,Q44/('баланс ВСН'!N31*1000)) -> 0 | V47: =IF('баланс ВСН'!P31=0,,V44/('баланс ВСН'!P31*1000)) -> 0
A48: уд.расход электроэнергии на 1 куб.м. реализованной воды | C48: кВтч/куб.м. | D48: ='баланс ВСН'!D59 -> 0 | E48: ='баланс ВСН'!E59 -> 0 | F48: ='баланс ВСН'!F59 -> 0 | G48: ='баланс ВСН'!G59 -> 0 | H48: ='баланс ВСН'!H59 -> 0 | I48: ='баланс ВСН'!I59 -> 0 | J48: ='баланс ВСН'!J59 -> 0 | K48: ='баланс ВСН'!K59 -> 0 | L48: ='баланс ВСН'!L59 -> 0 | Q48: ='баланс ВСН'!N59 -> 0 | V48: ='баланс ВСН'!P59 -> 0

Sheet Электроэнергия
A1: Затраты на электроэнергию
A3: =Титульный!B10 -> 
A5: =Титульный!B24 -> 0
A6: Район | B6: =Титульный!B6 -> 0 | I6: МО | J6: =Титульный!B7 -> 0
A8: № п/п | B8: Наименование статей | C8: Единица измерения | D8: ='свод потребности объемов эл.эн'!D6 -> Период регулирования, год
D9: ='свод потребности объемов эл.эн'!D7 -> 2014 | E9: =D9+1 -> 2015 | F9: =E9+1 -> 2016 | H9: ='свод потребности объемов эл.эн'!H7 -> 2017 | I9: ='свод потребности объемов эл.эн'!I7 -> 2018 | J9: ='свод потребности объемов эл.эн'!J7 -> 2019 | K9: ='свод потребности объемов эл.эн'!K7 -> 2020 | L9: =I9 -> 2018 | M9: =J9 -> 2019 | N9: 2020
D10: ='свод потребности объемов эл.эн'!D8 -> факт по данным организации | E10: ='свод потребности объемов эл.эн'!E8 -> факт по данным организации | F10: ='свод потребности объемов эл.эн'!F8 -> утв. ДТР | G10: ='свод потребности объемов эл.эн'!G8 -> факт по данным организации | H10: ='свод потребности объемов эл.эн'!H8 -> утв. ДТР | I10: ='свод потребности объемов эл.эн'!I8 -> план организации | J10: ='свод потребности объемов эл.эн'!J8 -> план организации | K10: ='свод потребности объемов эл.эн'!K8 -> план организации | L10: ='свод потребности объемов эл.эн'!L8 -> план эксперта | M10: =L10 -> план эксперта | N10: =M10 -> план эксперта
A12: 1 | B12: =A12+1 -> 2 | C12: 3 | D12: 4 | E12: 5 | F12: 6 | G12: 7 | H12: 8 | I12: =H12+1 -> 9 | J12: =I12+1 -> 10 | K12: 11 | L12: 12 | M12: =L12+1 -> 13 | N12: =M12+1 -> 14
B13: Затраты на покупную электрическую энергию и мощность | C13: руб. | D13: =D15+D32 -> 0 | E13: =E15+E32 -> 0 | F13: 0 | G13: 0 | H13: =H15+H32 -> 0 | I13: 0 | J13: 0 | K13: 0 | L13: 0 | M13: 0 | N13: 0
A15: 1 | B15: Затраты на покупную электрическую энергию по одноставочному тарифу | C15: руб | D15: =D19+D22+D25+D28 -> 0 | E15: =E19+E22+E25+E28 -> 0 | F15: 0 | G15: 0 | H15: =H19+H22+H25+H28 -> 0 | I15: 0 | J15: 0 | K15: 0 | L15: 0 | M15: 0 | N15: 0
B16: средневзвешенный тариф на электрическую энергию | C16: руб/кВт.ч | D16: =IF(D17=0,0,D15/D17) -> 0 | E16: =IF(E17=0,0,E15/E17) -> 0 | F16: 0 | G16: 0 | H16: =IF(H17=0,0,H15/H17) -> 0 | I16: 0 | J16: 0 | K16: 0 | L16: 0 | M16: 0 | N16: 0
B17: объем электроэнергии | C17: кВт.ч | D17: =D21+D24+D27+D30 -> 0 | E17: 0 | F17: 0 | G17: 0 | H17: 0 | I17: 0 | J17: 0 | K17: 0 | L17: =L21+L24+L27+L30 -> 0 | M17: 0 | N17: 0
B18: в том числе
A19: 1.1. | B19: низкое (0,4 и ниже) | C19: руб. | D19: =D20*D21 -> 0 | E19: =E20*E21 -> 0 | F19: =F20*F21 -> 0 | G19: =G20*G21 -> 0 | H19: =H20*H21 -> 0 | I19: =I20*I21 -> 0 | J19: =J20*J21 -> 0 | K19: =K20*K21 -> 0 | L19: =L20*L21 -> 0 | M19: 0 | N19: 0
B20: тариф на электрическую энергию | C20: руб/кВт.ч | L20: =G20*электроэнергия_среднегод_2017*электроэнергия_среднегод_2018 -> 0 | M20: =L20*электроэнергия_среднегод_2019 -> 0 | N20: =M20*электроэнергия_среднегод_2020 -> 0
B21: объем электроэнергии | C21: кВт.ч | L21: ='свод потребности объемов эл.эн'!P12 -> 0 | M21: ='свод потребности объемов эл.эн'!U12 -> 0 | N21: ='свод потребности объемов эл.эн'!Z12 -> 0
A22: 1.2. | B22: среднее напряжение СН2 | C22: руб. | D22: =D23*D24 -> 0 | E22: =E23*E24 -> 0 | F22: =F23*F24 -> 0 | G22: =G23*G24 -> 0 | H22: =H23*H24 -> 0 | I22: =I23*I24 -> 0 | J22: =J23*J24 -> 0 | K22: =K23*K24 -> 0 | L22: =L23*L24 -> 0 | M22: 0 | N22: 0
B23: тариф на электрическую энергию | C23: руб/кВт.ч | L23: =G23*электроэнергия_среднегод_2017*электроэнергия_среднегод_2018 -> 0 | M23: =L23*электроэнергия_среднегод_2019 -> 0 | N23: =M23*электроэнергия_среднегод_2020 -> 0
B24: объем электроэнергии | C24: кВт.ч | L24: ='свод потребности объемов эл.эн'!O12 -> 0 | M24: ='свод потребности объемов эл.эн'!T12 -> 0 | N24: ='свод потребности объемов эл.эн'!Y12 -> 0
A25: 1.3. | B25: среднее напряжение СН1 (35 кВ) | C25: руб. | D25: =D26*D27 -> 0 | E25: =E26*E27 -> 0 | F25: =F26*F27 -> 0 | G25: =G26*G27 -> 0 | H25: =H26*H27 -> 0 | I25: =I26*I27 -> 0 | J25: 0 | K25: 0 | L25: 0 | M25: 0 | N25: 0
B26: тариф на электрическую энергию | C26: руб/кВт.ч | L26: =G26*электроэнергия_среднегод_2017*электроэнергия_среднегод_2018 -> 0 | M26: =L26*электроэнергия_среднегод_2019 -> 0 | N26: =M26*электроэнергия_среднегод_2020 -> 0
B27: объем электроэнергии | C27: кВт.ч | L27: ='свод потребности объемов эл.эн'!N12 -> 0 | M27: ='свод потребности объемов эл.эн'!S12 -> 0 | N27: ='свод потребности объемов эл.эн'!X12 -> 0
A28: 1.4. | B28: высокое напряжение (110 кВ и выше) | C28: руб. | D28: =D29*D30 -> 0 | E28: =E29*E30 -> 0 | F28: =F29*F30 -> 0 | G28: =G29*G30 -> 0 | H28: =H29*H30 -> 0 | I28: =I29*I30 -> 0 | J28: 0 | K28: 0 | L28: 0 | M28: 0 | N28: 0
B29: тариф на электрическую энергию | C29: руб/кВт.ч | L29: =G29*электроэнергия_среднегод_2017*электроэнергия_среднегод_2018 -> 0 | M29: =L29*электроэнергия_среднегод_2019 -> 0 | N29: =M29*электроэнергия_среднегод_2020 -> 0
B30: объем электроэнергии | C30: кВт.ч | L30: ='свод потребности объемов эл.эн'!M12 -> 0 | M30: ='свод потребности объемов эл.эн'!R12 -> 0 | N30: ='свод потребности объемов эл.эн'!W12 -> 0
D31: =D21+D24+D27+D30-'свод потребности объемов эл.эн'!D12 -> 0 | E31: =E21+E24+E27+E30-'свод потребности объемов эл.эн'!E12 -> 0 | F31: =F21+F24+F27+F30-'свод потребности объемов эл.эн'!F12 -> 0 | G31: =G21+G24+G27+G30-'свод потребности объемов эл.эн'!G12 -> 0 | H31: =H21+H24+H27+H30-'свод потребности объемов эл.эн'!H12 -> 0 | I31: =I21+I24+I27+I30-'свод потребности объемов эл.эн'!I12 -> 0 | J31: =J21+J24+J27+J30-'свод потребности объемов эл.эн'!J12 -> 0 | K31: =K21+K24+K27+K30-'свод потребности объемов эл.эн'!K12 -> 0 | L31: =L21+L24+L27+L30-'свод потребности объемов эл.эн'!L12 -> 0 | M31: =M21+M24+M27+M30-'свод потребности объемов эл.эн'!Q12 -> 0 | N31: =N21+N24+N27+N30-'свод потребности объемов эл.эн'!V12 -> 0
A32: 2. | B32: Затраты на покупную электрическую энергию по двухставочному тарифу | C32: руб | D32: =D33+D47 -> 0 | E32: =E33+E47 -> 0 | F32: 0 | G32: 0 | H32: =H33+H47 -> 0 | I32: 0 | J32: 0 | K32: 0 | L32: 0 | M32: 0 | N32: 0
A33: 2.1. | B33: Затраты на покупку мощности | D33: =D34+D37+D40+D43 -> 0 | E33: =E34+E37+E40+E43 -> 0 | F33: =F34+F37+F40+F43 -> 0 | G33: =G34+G37+G40+G43 -> 0 | H33: =H34+H37+H40+H43 -> 0 | I33: =I34+I37+I40+I43 -> 0 | J33: 0 | K33: 0 | L33: 0 | M33: 0 | N33: 0
A34: 2.1.1. | B34: низкое (0,4 и ниже) | C34: руб. | D34: =D35*D36 -> 0 | E34: =E35*E36 -> 0 | F34: 0 | G34: 0 | H34: =H35*H36 -> 0 | I34: 0 | J34: 0 | K34: 0 | L34: 0 | M34: 0 | N34: 0
B35: ставка за мощность | C35: руб/кВт | L35: =G35*электроэнергия_среднегод_2017*электроэнергия_среднегод_2018 -> 0 | M35: =L35*электроэнергия_среднегод_2019 -> 0 | N35: =M35*электроэнергия_среднегод_2020 -> 0
B36: объем мощности | C36: ='свод потребности объемов эл.эн'!C30 -> кВт | L36: ='свод потребности объемов эл.эн'!P23 -> 0 | M36: ='свод потребности объемов эл.эн'!U23 -> 0 | N36: ='свод потребности объемов эл.эн'!Z23 -> 0
A37: 2.1.2. | B37: среднее напряжение СН2 | C37: руб. | D37: =D38*D39*12 -> 0 | E37: 0 | F37: 0 | G37: 0 | H37: 0 | I37: 0 | J37: 0 | K37: 0 | L37: =L38*L39*12 -> 0 | M37: 0 | N37: 0
B38: ставка за мощность | C38: руб/кВт | L38: =G38*электроэнергия_среднегод_2017*электроэнергия_среднегод_2018 -> 0 | M38: =L38*электроэнергия_среднегод_2019 -> 0 | N38: =M38*электроэнергия_среднегод_2020 -> 0
B39: объем мощности | C39: ='свод потребности объемов эл.эн'!C33 -> кВт.ч | L39: ='свод потребности объемов эл.эн'!O23 -> 0 | M39: ='свод потребности объемов эл.эн'!T23 -> 0 | N39: ='свод потребности объемов эл.эн'!Y23 -> 0
A40: 2.1.3. | B40: среднее напряжение СН1 (35 кВ) | C40: руб. | D40: =D41*D42*12 -> 0 | E40: 0 | F40: 0 | G40: 0 | H40: 0 | I40: 0 | J40: 0 | K40: 0 | L40: =L41*L42*12 -> 0 | M40: 0 | N40: 0
B41: ставка за мощность | C41: руб/кВт | L41: =G41*электроэнергия_среднегод_2017*электроэнергия_среднегод_2018 -> 0 | M41: =L41*электроэнергия_среднегод_2019 -> 0 | N41: =M41*электроэнергия_среднегод_2020 -> 0
B42: объем мощности | C42: ='свод потребности объемов эл.эн'!C36 -> кВт.ч | L42: ='свод потребности объемов эл.эн'!N23 -> 0 | M42: ='свод потребности объемов эл.эн'!S23 -> 0 | N42: ='свод потребности объемов эл.эн'!X23 -> 0
A43: 2.1.4. | B43: высокое напряжение (110 кВ и выше) | C43: руб. | D43: =D44*D45*12 -> 0 | E43: 0 | F43: 0 | G43: 0 | H43: 0 | I43: 0 | J43: 0 | K43: 0 | L43: =L44*L45*12 -> 0 | M43: 0 | N43: 0
B44: ставка за мощность | C44: руб/кВт | L44: =G44*электроэнергия_среднегод_2017*электроэнергия_среднегод_2018 -> 0 | M44: =L44*электроэнергия_среднегод_2019 -> 0 | N44: =M44*электроэнергия_среднегод_2020 -> 0
B45: объем мощности | C45: ='свод потребности объемов эл.эн'!C39 -> кВт.ч | L45: ='свод потребности объемов эл.эн'!M23 -> 0 | M45: ='свод потребности объемов эл.эн'!R23 -> 0 | N45: ='свод потребности объемов эл.эн'!W23 -> 0
D46: =D35+D38+D41+D44-'свод потребности объемов эл.эн'!D23 -> 0 | E46: =E35+E38+E41+E44-'свод потребности объемов эл.эн'!E23 -> 0 | F46: =F35+F38+F41+F44-'свод потребности объемов эл.эн'!F23 -> 0 | G46: =G35+G38+G41+G44-'свод потребности объемов эл.эн'!G23 -> 0 | H46: =H35+H38+H41+H44-'свод потребности объемов эл.эн'!H23 -> 0 | I46: =I35+I38+I41+I44-'свод потребности объемов эл.эн'!I23 -> 0 | J46: =J35+J38+J41+J44-'свод потребности объемов эл.эн'!J23 -> 0 | K46: =K35+K38+K41+K44-'свод потребности объемов эл.эн'!K23 -> 0 | L46: =L35+L38+L41+L44-'свод потребности объемов эл.эн'!L23 -> 0 | M46: =M35+M38+M41+M44-'свод потребности объемов эл.эн'!Q23 -> 0 | N46: =N35+N38+N41+N44-'свод потребности объемов эл.эн'!V23 -> 0
A47: 2.2. | B47: Затраты на покупку активной электроэнергии | D47: =D48+D51+D54+D57 -> 0 | E47: =E48+E51+E54+E57 -> 0 | F47: 0 | G47: =G48+G51+G54+G57 -> 0 | H47: =H48+H51+H54+H57 -> 0 | I47: 0 | J47: 0 | K47: 0 | L47: 0 | M47: 0 | N47: 0
A48: 2.2.1. | B48: низкое (0,4 и ниже) | C48: руб. | D48: =D49*D50 -> 0 | E48: =E49*E50 -> 0 | F48: =F49*F50 -> 0 | G48: =G49*G50 -> 0 | H48: =H49*H50 -> 0 | I48: =I49*I50 -> 0 | J48: 0 | K48: 0 | L48: 0 | M48: 0 | N48: 0
B49: тариф на электрическую энергию | C49: руб/кВт.ч | L49: =G49*электроэнергия_среднегод_2017*электроэнергия_среднегод_2018 -> 0 | M49: =L49*электроэнергия_среднегод_2019 -> 0 | N49: =M49*электроэнергия_среднегод_2020 -> 0
B50: объем электроэнергии | C50: кВт.ч | L50: ='свод потребности объемов эл.эн'!P32 -> 0 | M50: ='свод потребности объемов эл.эн'!U32 -> 0 | N50: ='свод потребности объемов эл.эн'!Z32 -> 0
A51: 2.2.2. | B51: среднее напряжение СН2 | C51: руб. | D51: =D52*D53 -> 0 | E51: =E52*E53 -> 0 | F51: =F52*F53 -> 0 | G51: =G52*G53 -> 0 | H51: =H52*H53 -> 0 | I51: =I52*I53 -> 0 | J51: 0 | K51: 0 | L51: 0 | M51: 0 | N51: 0
B52: тариф на электрическую энергию | C52: руб/кВт.ч | L52: =G52*электроэнергия_среднегод_2017*электроэнергия_среднегод_2018 -> 0 | M52: =L52*электроэнергия_среднегод_2019 -> 0 | N52: =M52*электроэнергия_среднегод_2020 -> 0
B53: объем электроэнергии | C53: кВт.ч | L53: ='свод потребности объемов эл.эн'!O32 -> 0 | M53: ='свод потребности объемов эл.эн'!T32 -> 0 | N53: ='свод потребности объемов эл.эн'!Y32 -> 0
A54: 2.2.3. | B54: среднее напряжение СН1 (35 кВ) | C54: руб. | D54: =D55*D56 -> 0 | E54: =E55*E56 -> 0 | F54: =F55*F56 -> 0 | G54: =G55*G56 -> 0 | H54: =H55*H56 -> 0 | I54: =I55*I56 -> 0 | J54: 0 | K54: 0 | L54: 0 | M54: 0 | N54: 0
B55: тариф на электрическую энергию | C55: руб/кВт.ч | L55: =G55*электроэнергия_среднегод_2017*электроэнергия_среднегод_2018 -> 0 | M55: =L55*электроэнергия_среднегод_2019 -> 0 | N55: =M55*электроэнергия_среднегод_2020 -> 0
B56: объем электроэнергии | C56: кВт.ч | L56: ='свод потребности объемов эл.эн'!N32 -> 0 | M56: ='свод потребности объемов эл.эн'!S32 -> 0 | N56: ='свод потребности объемов эл.эн'!X32 -> 0
A57: 2.2.4. | B57: высокое напряжение (110 кВ и выше) | C57: руб. | D57: =D58*D59 -> 0 | E57: =E58*E59 -> 0 | F57: =F58*F59 -> 0 | G57: =G58*G59 -> 0 | H57: =H58*H59 -> 0 | I57: =I58*I59 -> 0 | J57: 0 | K57: 0 | L57: 0 | M57: 0 | N57: 0
B58: тариф на электрическую энергию | C58: руб/кВт.ч | L58: =G58*электроэнергия_среднегод_2017*электроэнергия_среднегод_2018 -> 0 | M58: =L58*электроэнергия_среднегод_2019 -> 0 | N58: =M58*электроэнергия_среднегод_2020 -> 0
B59: объем электроэнергии | C59: кВт.ч | L59: ='свод потребности объемов эл.эн'!M32 -> 0 | M59: ='свод потребности объемов эл.эн'!R32 -> 0 | N59: ='свод потребности объемов эл.эн'!W32 -> 0
D60: =D50+D53+D56+D59-'свод потребности объемов эл.эн'!D32 -> 0 | E60: =E50+E53+E56+E59-'свод потребности объемов эл.эн'!E32 -> 0 | F60: =F50+F53+F56+F59-'свод потребности объемов эл.эн'!F32 -> 0 | G60: =G50+G53+G56+G59-'свод потребности объемов эл.эн'!G32 -> 0 | H60: =H50+H53+H56+H59-'свод потребности объемов эл.эн'!H32 -> 0 | I60: =I50+I53+I56+I59-'свод потребности объемов эл.эн'!I32 -> 0 | J60: =J50+J53+J56+J59-'свод потребности объемов эл.эн'!J32 -> 0 | K60: =K50+K53+K56+K59-'свод потребности объемов эл.эн'!K32 -> 0 | L60: =L50+L53+L56+L59-'свод потребности объемов эл.эн'!L32 -> 0 | M60: =M50+M53+M56+M59-'свод потребности объемов эл.эн'!Q32 -> 0 | N60: =N50+N53+N56+N59-'свод потребности объемов эл.эн'!V32 -> 0
B62: Справочно
A63: тариф за 1 кВтч электрической энергии с учетом платы за мощность | C63: руб/кВтч | D63: =IF('свод потребности объемов эл.эн'!D42=0,,D13/'свод потребности объемов эл.эн'!D42) -> 0 | E63: =IF('свод потребности объемов эл.эн'!E42=0,,E13/'свод потребности объемов эл.эн'!E42) -> 0 | F63: =IF('свод потребности объемов эл.эн'!F42=0,,F13/'свод потребности объемов эл.эн'!F42) -> 0 | G63: =IF('свод потребности объемов эл.эн'!G42=0,,G13/'свод потребности объемов эл.эн'!G42) -> 0 | H63: =IF('свод потребности объемов эл.эн'!H42=0,,H13/'свод потребности объемов эл.эн'!H42) -> 0 | I63: =IF('свод потребности объемов эл.эн'!I42=0,,I13/'свод потребности объемов эл.эн'!I42) -> 0 | J63: =IF('свод потребности объемов эл.эн'!J42=0,,J13/'свод потребности объемов эл.эн'!J42) -> 0 | K63: =IF('свод потребности объемов эл.эн'!K42=0,,K13/'свод потребности объемов эл.эн'!K42) -> 0 | L63: =IF('свод потребности объемов эл.эн'!L42=0,,L13/'свод потребности объемов эл.эн'!L42) -> 0 | M63: =IF('свод потребности объемов эл.эн'!Q42=0,,M13/'свод потребности объемов эл.эн'!Q42) -> 0 | N63: =IF('свод потребности объемов эл.эн'!V42=0,,N13/'свод потребности объемов эл.эн'!V42) -> 0

Sheet Аренда
A1: Данные об имуществе, полученном по договорам аренды и используемом при осуществлении регулируемой деятельности
A3: =Титульный!B10 -> 
A4: =Титульный!B24 -> 0
A5: Район | B5: =Титульный!B5 -> 0 | E5: МО | F5: =Титульный!B6 -> 0
I6: рублей
A7: Объекты основных средств по подразделениям | B7: № договора аренды оборудования | C7: Вид договора (договор лизинга, коцессионное соглашение, другой вид договра(расшифровать)) | D7: Наименование организации - арендодателя | E7: Первоначальная (восстановительная) стоимость | F7: Дата ввода в эксплуатацию | G7: Срок полезного использования, мес. | H7: Сумма амортизации в мес | I7: ='Электроэнергия '!I9 -> 2018 | J7: ='Электроэнергия '!J9 -> 2019 | K7: ='Электроэнергия '!K9 -> 2020 | L7: 2018 год план эксперта | T7: 2019 год план эксперта | AB7: 2020 год план эксперта
I8: Сумма арендной платы за год | J8: Сумма арендной платы за год | K8: Сумма арендной платы за год | L8: Остаточная стоимость на начало периода | M8: Сумма амортизации за год | N8: Остаточная стоимость на конец периода | O8: Среднегодовая стоимость | P8: Ставка налога на имущество, % | Q8: Налог на имущество | R8: НДС | S8: Итого экономически обоснованный размер арендной платы | T8: Остаточная стоимость на начало периода | U8: Сумма амортизации за год | V8: Остаточная стоимость на конец периода | W8: Среднегодовая стоимость | X8: Ставка налога на имущество, % | Y8: Налог на имущество | Z8: НДС | AA8: Итого экономически обоснованный размер арендной платы | AB8: Остаточная стоимость на начало периода | AC8: Сумма амортизации за год | AD8: Остаточная стоимость на конец периода | AE8: Среднегодовая стоимость | AF8: Ставка налога на имущество, % | AG8: Налог на имущество | AH8: НДС | AI8: Итого экономически обоснованный размер арендной платы
I9: план организации | J9: план организации | K9: план организации | L9: 2017-01-01 | N9: 2018-01-01 | T9: 2018-01-01 | V9: 2019-01-01 | AB9: 2019-01-01 | AD9: 2020-01-01
A10: Подъем воды
H11: =IF(G11=0,0,E11/G11) -> 0 | L11: =IF(DATEDIF(F11,$L$9,"m")*H11<E11,(E11-DATEDIF(F11,$L$9,"m")*H11),0) -> 0 | M11: =IF(H11*12<L11,H11*12,L11) -> 0 | N11: =IF(H11*12>L11,0,(L11-12*H11)) -> 0 | O11: =IF(H11=0,0,IF(12*H11<L11,(13*L11-78*H11)/13,(L11*L11/H11-H11*(L11/H11)*0.5*(L11/H11-1))/13)) -> 0 | P11: =IF(Титульный!$B$28="Общая",2.2,) -> 2.2 | Q11: =O11*P11/100 -> 0 | R11: =IF(Титульный!$B$28="Общая",0.18*(M11+Q11),) -> 0 | S11: =M11+Q11+R11 -> 0 | T11: =N11 -> 0 | U11: =IF(H11*12<T11,H11*12,T11) -> 0 | V11: =IF(H11*12>T11,0,(T11-12*H11)) -> 0 | W11: =IF(H11=0,0,IF(12*H11<T11,(13*T11-78*H11)/13,(T11*T11/H11-H11*(T11/H11)*0.5*(T11/H11-1))/13)) -> 0 | X11: =IF(Титульный!$B$28="Общая",2.2,) -> 2.2 | Y11: =W11*X11/100 -> 0 | Z11: =IF(Титульный!$B$28="Общая",0.18*(U11+Y11),) -> 0 | AA11: =U11+Y11+Z11 -> 0 | AB11: =V11 -> 0 | AC11: =IF(H11*12<AB11,H11*12,AB11) -> 0 | AD11: =IF(H11*12>AB11,0,(AB11-12*H11)) -> 0 | AE11: =IF(H11=0,0,IF(12*H11<AB11,(13*AB11-78*H11)/13,(AB11*AB11/H11-H11*(AB11/H11)*0.5*(AB11/H11-1))/13)) -> 0 | AF11: =IF(Титульный!$B$28="Общая",2.2,) -> 2.2 | AG11: =AE11*AF11/100 -> 0 | AH11: =IF(Титульный!$B$28="Общая",0.18*(AC11+AG11),) -> 0 | AI11: =AC11+AG11+AH11 -> 0
H12: 0 | L12: 0 | M12: 0 | N12: 0 | O12: 0 | P12: =IF(Титульный!$B$28="Общая",2.2,) -> 2.2 | Q12: =O12*P12/100 -> 0 | R12: =IF(Титульный!$B$28="Общая",0.18*(M12+Q12),) -> 0 | S12: =M12+Q12+R12 -> 0 | T12: =N12 -> 0 | U12: 0 | V12: 0 | W12: 0 | X12: =IF(Титульный!$B$28="Общая",2.2,) -> 2.2 | Y12: =W12*X12/100 -> 0 | Z12: =IF(Титульный!$B$28="Общая",0.18*(U12+Y12),) -> 0 | AA12: =U12+Y12+Z12 -> 0 | AB12: =V12 -> 0 | AC12: 0 | AD12: 0 | AE12: 0 | AF12: =IF(Титульный!$B$28="Общая",2.2,) -> 2.2 | AG12: =AE12*AF12/100 -> 0 | AH12: =IF(Титульный!$B$28="Общая",0.18*(AC12+AG12),) -> 0 | AI12: =AC12+AG12+AH12 -> 0
H13: 0 | L13: 0 | M13: 0 | N13: 0 | O13: 0 | P13: =IF(Титульный!$B$28="Общая",2.2,) -> 2.2 | Q13: 0 | R13: =IF(Титульный!$B$28="Общая",0.18*(M13+Q13),) -> 0 | S13: 0 | T13: =N13 -> 0 | U13: 0 | V13: 0 | W13: 0 | X13: =IF(Титульный!$B$28="Общая",2.2,) -> 2.2 | Y13: 0 | Z13: =IF(Титульный!$B$28="Общая",0.18*(U13+Y13),) -> 0 | AA13: 0 | AB13: =V13 -> 0 | AC13: 0 | AD13: 0 | AE13: 0 | AF13: =IF(Титульный!$B$28="Общая",2.2,) -> 2.2 | AG13: 0 | AH13: =IF(Титульный!$B$28="Общая",0.18*(AC13+AG13),) -> 0 | AI13: 0
H14: 0 | L14: 0 | M14: 0 | N14: 0 | O14: 0 | P14: =IF(Титульный!$B$28="Общая",2.2,) -> 2.2 | Q14: 0 | R14: =IF(Титульный!$B$28="Общая",0.18*(M14+Q14),) -> 0 | S14: 0 | T14: 0 | U14: 0 | V14: 0 | W14: 0 | X14: =IF(Титульный!$B$28="Общая",2.2,) -> 2.2 | Y14: 0 | Z14: =IF(Титульный!$B$28="Общая",0.18*(U14+Y14),) -> 0 | AA14: 0 | AB14: 0 | AC14: 0 | AD14: 0 | AE14: 0 | AF14: =IF(Титульный!$B$28="Общая",2.2,) -> 2.2 | AG14: 0 | AH14: =IF(Титульный!$B$28="Общая",0.18*(AC14+AG14),) -> 0 | AI14: 0
H15: 0 | L15: 0 | M15: 0 | N15: 0 | O15: 0 | P15: =IF(Титульный!$B$28="Общая",2.2,) -> 2.2 | Q15: 0 | R15: =IF(Титульный!$B$28="Общая",0.18*(M15+Q15),) -> 0 | S15: 0 | T15: 0 | U15: 0 | V15: 0 | W15: 0 | X15: =IF(Титульный!$B$28="Общая",2.2,) -> 2.2 | Y15: 0 | Z15: =IF(Титульный!$B$28="Общая",0.18*(U15+Y15),) -> 0 | AA15: 0 | AB15: 0 | AC15: 0 | AD15: 0 | AE15: 0 | AF15: =IF(Титульный!$B$28="Общая",2.2,) -> 2.2 | AG15: 0 | AH15: =IF(Титульный!$B$28="Общая",0.18*(AC15+AG15),) -> 0 | AI15: 0
H16: 0 | L16: 0 | M16: 0 | N16: 0 | O16: 0 | P16: =IF(Титульный!$B$28="Общая",2.2,) -> 2.2 | Q16: 0 | R16: =IF(Титульный!$B$28="Общая",0.18*(M16+Q16),) -> 0 | S16: 0 | T16: 0 | U16: 0 | V16: 0 | W16: 0 | X16: =IF(Титульный!$B$28="Общая",2.2,) -> 2.2 | Y16: 0 | Z16: =IF(Титульный!$B$28="Общая",0.18*(U16+Y16),) -> 0 | AA16: 0 | AB16: 0 | AC16: 0 | AD16: 0 | AE16: 0 | AF16: =IF(Титульный!$B$28="Общая",2.2,) -> 2.2 | AG16: 0 | AH16: =IF(Титульный!$B$28="Общая",0.18*(AC16+AG16),) -> 0 | AI16: 0
H17: 0 | L17: 0 | M17: 0 | N17: 0 | O17: 0 | P17: =IF(Титульный!$B$28="Общая",2.2,) -> 2.2 | Q17: 0 | R17: =IF(Титульный!$B$28="Общая",0.18*(M17+Q17),) -> 0 | S17: 0 | T17: 0 | U17: 0 | V17: 0 | W17: 0 | X17: =IF(Титульный!$B$28="Общая",2.2,) -> 2.2 | Y17: 0 | Z17: =IF(Титульный!$B$28="Общая",0.18*(U17+Y17),) -> 0 | AA17: 0 | AB17: 0 | AC17: 0 | AD17: 0 | AE17: 0 | AF17: =IF(Титульный!$B$28="Общая",2.2,) -> 2.2 | AG17: 0 | AH17: =IF(Титульный!$B$28="Общая",0.18*(AC17+AG17),) -> 0 | AI17: 0
H18: 0 | L18: 0 | M18: 0 | N18: 0 | O18: 0 | P18: =IF(Титульный!$B$28="Общая",2.2,) -> 2.2 | Q18: 0 | R18: =IF(Титульный!$B$28="Общая",0.18*(M18+Q18),) -> 0 | S18: 0 | T18: 0 | U18: 0 | V18: 0 | W18: 0 | X18: =IF(Титульный!$B$28="Общая",2.2,) -> 2.2 | Y18: 0 | Z18: =IF(Титульный!$B$28="Общая",0.18*(U18+Y18),) -> 0 | AA18: 0 | AB18: 0 | AC18: 0 | AD18: 0 | AE18: 0 | AF18: =IF(Титульный!$B$28="Общая",2.2,) -> 2.2 | AG18: 0 | AH18: =IF(Титульный!$B$28="Общая",0.18*(AC18+AG18),) -> 0 | AI18: 0
H19: 0 | L19: 0 | M19: 0 | N19: 0 | O19: 0 | P19: =IF(Титульный!$B$28="Общая",2.2,) -> 2.2 | Q19: 0 | R19: =IF(Титульный!$B$28="Общая",0.18*(M19+Q19),) -> 0 | S19: 0 | T19: 0 | U19: 0 | V19: 0 | W19: 0 | X19: =IF(Титульный!$B$28="Общая",2.2,) -> 2.2 | Y19: 0 | Z19: =IF(Титульный!$B$28="Общая",0.18*(U19+Y19),) -> 0 | AA19: 0 | AB19: 0 | AC19: 0 | AD19: 0 | AE19: 0 | AF19: =IF(Титульный!$B$28="Общая",2.2,) -> 2.2 | AG19: 0 | AH19: =IF(Титульный!$B$28="Общая",0.18*(AC19+AG19),) -> 0 | AI19: 0
H20: 0 | L20: 0 | M20: 0 | N20: 0 | O20: 0 | P20: =IF(Титульный!$B$28="Общая",2.2,) -> 2.2 | Q20: 0 | R20: =IF(Титульный!$B$28="Общая",0.18*(M20+Q20),) -> 0 | S20: 0 | T20: 0 | U20: 0 | V20: 0 | W20: 0 | X20: =IF(Титульный!$B$28="Общая",2.2,) -> 2.2 | Y20: 0 | Z20: =IF(Титульный!$B$28="Общая",0.18*(U20+Y20),) -> 0 | AA20: 0 | AB20: 0 | AC20: 0 | AD20: 0 | AE20: 0 | AF20: =IF(Титульный!$B$28="Общая",2.2,) -> 2.2 | AG20: 0 | AH20: =IF(Титульный!$B$28="Общая",0.18*(AC20+AG20),) -> 0 | AI20: 0
H21: 0 | L21: 0 | M21: 0 | N21: 0 | O21: 0 | P21: =IF(Титульный!$B$28="Общая",2.2,) -> 2.2 | Q21: 0 | R21: =IF(Титульный!$B$28="Общая",0.18*(M21+Q21),) -> 0 | S21: 0 | T21: 0 | U21: 0 | V21: 0 | W21: 0 | X21: =IF(Титульный!$B$28="Общая",2.2,) -> 2.2 | Y21: 0 | Z21: =IF(Титульный!$B$28="Общая",0.18*(U21+Y21),) -> 0 | AA21: 0 | AB21: 0 | AC21: 0 | AD21: 0 | AE21: 0 | AF21: =IF(Титульный!$B$28="Общая",2.2,) -> 2.2 | AG21: 0 | AH21: =IF(Титульный!$B$28="Общая",0.18*(AC21+AG21),) -> 0 | AI21: 0
H22: 0 | L22: 0 | M22: 0 | N22: 0 | O22: 0 | P22: =IF(Титульный!$B$28="Общая",2.2,) -> 2.2 | Q22: 0 | R22: =IF(Титульный!$B$28="Общая",0.18*(M22+Q22),) -> 0 | S22: 0 | T22: 0 | U22: 0 | V22: 0 | W22: 0 | X22: =IF(Титульный!$B$28="Общая",2.2,) -> 2.2 | Y22: 0 | Z22: =IF(Титульный!$B$28="Общая",0.18*(U22+Y22),) -> 0 | AA22: 0 | AB22: 0 | AC22: 0 | AD22: 0 | AE22: 0 | AF22: =IF(Титульный!$B$28="Общая",2.2,) -> 2.2 | AG22: 0 | AH22: =IF(Титульный!$B$28="Общая",0.18*(AC22+AG22),) -> 0 | AI22: 0
H23: 0 | L23: 0 | M23: 0 | N23: 0 | O23: 0 | P23: =IF(Титульный!$B$28="Общая",2.2,) -> 2.2 | Q23: 0 | R23: =IF(Титульный!$B$28="Общая",0.18*(M23+Q23),) -> 0 | S23: 0 | T23: 0 | U23: 0 | V23: 0 | W23: 0 | X23: =IF(Титульный!$B$28="Общая",2.2,) -> 2.2 | Y23: 0 | Z23: =IF(Титульный!$B$28="Общая",0.18*(U23+Y23),) -> 0 | AA23: 0 | AB23: 0 | AC23: 0 | AD23: 0 | AE23: 0 | AF23: =IF(Титульный!$B$28="Общая",2.2,) -> 2.2 | AG23: 0 | AH23: =IF(Титульный!$B$28="Общая",0.18*(AC23+AG23),) -> 0 | AI23: 0
H24: 0 | L24: 0 | M24: 0 | N24: 0 | O24: 0 | P24: =IF(Титульный!$B$28="Общая",2.2,) -> 2.2 | Q24: 0 | R24: =IF(Титульный!$B$28="Общая",0.18*(M24+Q24),) -> 0 | S24: 0 | T24: 0 | U24: 0 | V24: 0 | W24: 0 | X24: =IF(Титульный!$B$28="Общая",2.2,) -> 2.2 | Y24: 0 | Z24: =IF(Титульный!$B$28="Общая",0.18*(U24+Y24),) -> 0 | AA24: 0 | AB24: 0 | AC24: 0 | AD24: 0 | AE24: 0 | AF24: =IF(Титульный!$B$28="Общая",2.2,) -> 2.2 | AG24: 0 | AH24: =IF(Титульный!$B$28="Общая",0.18*(AC24+AG24),) -> 0 | AI24: 0
H25: 0 | L25: 0 | M25: 0 | N25: 0 | O25: 0 | P25: =IF(Титульный!$B$28="Общая",2.2,) -> 2.2 | Q25: 0 | R25: =IF(Титульный!$B$28="Общая",0.18*(M25+Q25),) -> 0 | S25: 0 | T25: 0 | U25: 0 | V25: 0 | W25: 0 | X25: =IF(Титульный!$B$28="Общая",2.2,) -> 2.2 | Y25: 0 | Z25: =IF(Титульный!$B$28="Общая",0.18*(U25+Y25),) -> 0 | AA25: 0 | AB25: 0 | AC25: 0 | AD25: 0 | AE25: 0 | AF25: =IF(Титульный!$B$28="Общая",2.2,) -> 2.2 | AG25: 0 | AH25: =IF(Титульный!$B$28="Общая",0.18*(AC25+AG25),) -> 0 | AI25: 0
H26: 0 | L26: 0 | M26: 0 | N26: 0 | O26: 0 | P26: =IF(Титульный!$B$28="Общая",2.2,) -> 2.2 | Q26: 0 | R26: =IF(Титульный!$B$28="Общая",0.18*(M26+Q26),) -> 0 | S26: 0 | T26: 0 | U26: 0 | V26: 0 | W26: 0 | X26: =IF(Титульный!$B$28="Общая",2.2,) -> 2.2 | Y26: 0 | Z26: =IF(Титульный!$B$28="Общая",0.18*(U26+Y26),) -> 0 | AA26: 0 | AB26: 0 | AC26: 0 | AD26: 0 | AE26: 0 | AF26: =IF(Титульный!$B$28="Общая",2.2,) -> 2.2 | AG26: 0 | AH26: =IF(Титульный!$B$28="Общая",0.18*(AC26+AG26),) -> 0 | AI26: 0
H27: 0 | L27: 0 | M27: 0 | N27: 0 | O27: 0 | P27: =IF(Титульный!$B$28="Общая",2.2,) -> 2.2 | Q27: 0 | R27: =IF(Титульный!$B$28="Общая",0.18*(M27+Q27),) -> 0 | S27: 0 | T27: 0 | U27: 0 | V27: 0 | W27: 0 | X27: =IF(Титульный!$B$28="Общая",2.2,) -> 2.2 | Y27: 0 | Z27: =IF(Титульный!$B$28="Общая",0.18*(U27+Y27),) -> 0 | AA27: 0 | AB27: 0 | AC27: 0 | AD27: 0 | AE27: 0 | AF27: =IF(Титульный!$B$28="Общая",2.2,) -> 2.2 | AG27: 0 | AH27: =IF(Титульный!$B$28="Общая",0.18*(AC27+AG27),) -> 0 | AI27: 0
H28: 0 | L28: 0 | M28: 0 | N28: 0 | O28: 0 | P28: =IF(Титульный!$B$28="Общая",2.2,) -> 2.2 | Q28: 0 | R28: =IF(Титульный!$B$28="Общая",0.18*(M28+Q28),) -> 0 | S28: 0 | T28: 0 | U28: 0 | V28: 0 | W28: 0 | X28: =IF(Титульный!$B$28="Общая",2.2,) -> 2.2 | Y28: 0 | Z28: =IF(Титульный!$B$28="Общая",0.18*(U28+Y28),) -> 0 | AA28: 0 | AB28: 0 | AC28: 0 | AD28: 0 | AE28: 0 | AF28: =IF(Титульный!$B$28="Общая",2.2,) -> 2.2 | AG28: 0 | AH28: =IF(Титульный!$B$28="Общая",0.18*(AC28+AG28),) -> 0 | AI28: 0
H29: 0 | L29: 0 | M29: 0 | N29: 0 | O29: 0 | P29: =IF(Титульный!$B$28="Общая",2.2,) -> 2.2 | Q29: 0 | R29: =IF(Титульный!$B$28="Общая",0.18*(M29+Q29),) -> 0 | S29: 0 | T29: 0 | U29: 0 | V29: 0 | W29: 0 | X29: =IF(Титульный!$B$28="Общая",2.2,) -> 2.2 | Y29: 0 | Z29: =IF(Титульный!$B$28="Общая",0.18*(U29+Y29),) -> 0 | AA29: 0 | AB29: 0 | AC29: 0 | AD29: 0 | AE29: 0 | AF29: =IF(Титульный!$B$28="Общая",2.2,) -> 2.2 | AG29: 0 | AH29: =IF(Титульный!$B$28="Общая",0.18*(AC29+AG29),) -> 0 | AI29: 0
H30: 0 | L30: 0 | M30: 0 | N30: 0 | O30: 0 | P30: =IF(Титульный!$B$28="Общая",2.2,) -> 2.2 | Q30: 0 | R30: =IF(Титульный!$B$28="Общая",0.18*(M30+Q30),) -> 0 | S30: 0 | T30: 0 | U30: 0 | V30: 0 | W30: 0 | X30: =IF(Титульный!$B$28="Общая",2.2,) -> 2.2 | Y30: 0 | Z30: =IF(Титульный!$B$28="Общая",0.18*(U30+Y30),) -> 0 | AA30: 0 | AB30: 0 | AC30: 0 | AD30: 0 | AE30: 0 | AF30: =IF(Титульный!$B$28="Общая",2.2,) -> 2.2 | AG30: 0 | AH30: =IF(Титульный!$B$28="Общая",0.18*(AC30+AG30),) -> 0 | AI30: 0
A31: ИТОГО подъем воды | B31: х | C31: х | D31: х | E31: =SUM(E11:E30) -> 0 | F31: х | G31: х | H31: =SUM(H11:H30) -> 0 | I31: =SUM(I11:I30) -> 0 | J31: 0 | K31: 0 | L31: 0 | M31: 0 | N31: 0 | O31: 0 | P31: х | Q31: =SUM(Q11:Q30) -> 0 | R31: 0 | S31: 0 | T31: 0 | U31: 0 | V31: 0 | W31: 0 | X31: х | Y31: =SUM(Y11:Y30) -> 0 | Z31: 0 | AA31: 0 | AB31: 0 | AC31: 0 | AD31: 0 | AE31: 0 | AF31: х | AG31: =SUM(AG11:AG30) -> 0 | AH31: =SUM(AH11:AH30) -> 0 | AI31: =SUM(AI11:AI30) -> 0
A32: Очистка воды
H33: =IF(G33=0,0,E33/G33) -> 0 | L33: =IF(DATEDIF(F33,$L$9,"m")*H33<E33,(E33-DATEDIF(F33,$L$9,"m")*H33),0) -> 0 | M33: =IF(H33*12<L33,H33*12,L33) -> 0 | N33: =IF(H33*12>L33,0,(L33-12*H33)) -> 0 | O33: =IF(H33=0,0,IF(12*H33<L33,(13*L33-78*H33)/13,(L33*L33/H33-H33*(L33/H33)*0.5*(L33/H33-1))/13)) -> 0 | P33: =IF(Титульный!$B$28="Общая",2.2,) -> 2.2 | Q33: =O33*P33/100 -> 0 | R33: =IF(Титульный!$B$28="Общая",0.18*(M33+Q33),) -> 0 | S33: =M33+Q33+R33 -> 0 | T33: =N33 -> 0 | U33: =IF(H33*12<T33,H33*12,T33) -> 0 | V33: =IF(H33*12>T33,0,(T33-12*H33)) -> 0 | W33: =IF(H33=0,0,IF(12*H33<T33,(13*T33-78*H33)/13,(T33*T33/H33-H33*(T33/H33)*0.5*(T33/H33-1))/13)) -> 0 | X33: =IF(Титульный!$B$28="Общая",2.2,) -> 2.2 | Y33: =W33*X33/100 -> 0 | Z33: =IF(Титульный!$B$28="Общая",0.18*(U33+Y33),) -> 0 | AA33: =U33+Y33+Z33 -> 0 | AB33: =V33 -> 0 | AC33: =IF(H33*12<AB33,H33*12,AB33) -> 0 | AD33: =IF(H33*12>AB33,0,(AB33-12*H33)) -> 0 | AE33: =IF(H33=0,0,IF(12*H33<AB33,(13*AB33-78*H33)/13,(AB33*AB33/H33-H33*(AB33/H33)*0.5*(AB33/H33-1))/13)) -> 0 | AF33: =IF(Титульный!$B$28="Общая",2.2,) -> 2.2 | AG33: =AE33*AF33/100 -> 0 | AH33: =IF(Титульный!$B$28="Общая",0.18*(AC33+AG33),) -> 0 | AI33: =AC33+AG33+AH33 -> 0
H34: 0 | L34: 0 | M34: 0 | N34: 0 | O34: 0 | P34: =IF(Титульный!$B$28="Общая",2.2,) -> 2.2 | Q34: =O34*P34/100 -> 0 | R34: =IF(Титульный!$B$28="Общая",0.18*(M34+Q34),) -> 0 | S34: =M34+Q34+R34 -> 0 | T34: 0 | U34: 0 | V34: 0 | W34: 0 | X34: =IF(Титульный!$B$28="Общая",2.2,) -> 2.2 | Y34: =W34*X34/100 -> 0 | Z34: =IF(Титульный!$B$28="Общая",0.18*(U34+Y34),) -> 0 | AA34: =U34+Y34+Z34 -> 0 | AB34: 0 | AC34: 0 | AD34: 0 | AE34: 0 | AF34: =IF(Титульный!$B$28="Общая",2.2,) -> 2.2 | AG34: =AE34*AF34/100 -> 0 | AH34: =IF(Титульный!$B$28="Общая",0.18*(AC34+AG34),) -> 0 | AI34: =AC34+AG34+AH34 -> 0
H35: 0 | L35: 0 | M35: 0 | N35: 0 | O35: 0 | P35: =IF(Титульный!$B$28="Общая",2.2,) -> 2.2 | Q35: 0 | R35: =IF(Титульный!$B$28="Общая",0.18*(M35+Q35),) -> 0 | S35: 0 | T35: 0 | U35: 0 | V35: 0 | W35: 0 | X35: =IF(Титульный!$B$28="Общая",2.2,) -> 2.2 | Y35: 0 | Z35: =IF(Титульный!$B$28="Общая",0.18*(U35+Y35),) -> 0 | AA35: 0 | AB35: 0 | AC35: 0 | AD35: 0 | AE35: 0 | AF35: =IF(Титульный!$B$28="Общая",2.2,) -> 2.2 | AG35: 0 | AH35: =IF(Титульный!$B$28="Общая",0.18*(AC35+AG35),) -> 0 | AI35: 0
H36: 0 | L36: 0 | M36: 0 | N36: 0 | O36: 0 | P36: =IF(Титульный!$B$28="Общая",2.2,) -> 2.2 | Q36: 0 | R36: =IF(Титульный!$B$28="Общая",0.18*(M36+Q36),) -> 0 | S36: 0 | T36: 0 | U36: 0 | V36: 0 | W36: 0 | X36: =IF(Титульный!$B$28="Общая",2.2,) -> 2.2 | Y36: 0 | Z36: =IF(Титульный!$B$28="Общая",0.18*(U36+Y36),) -> 0 | AA36: 0 | AB36: 0 | AC36: 0 | AD36: 0 | AE36: 0 | AF36: =IF(Титульный!$B$28="Общая",2.2,) -> 2.2 | AG36: 0 | AH36: =IF(Титульный!$B$28="Общая",0.18*(AC36+AG36),) -> 0 | AI36: 0
H37: 0 | L37: 0 | M37: 0 | N37: 0 | O37: 0 | P37: =IF(Титульный!$B$28="Общая",2.2,) -> 2.2 | Q37: 0 | R37: =IF(Титульный!$B$28="Общая",0.18*(M37+Q37),) -> 0 | S37: 0 | T37: 0 | U37: 0 | V37: 0 | W37: 0 | X37: =IF(Титульный!$B$28="Общая",2.2,) -> 2.2 | Y37: 0 | Z37: =IF(Титульный!$B$28="Общая",0.18*(U37+Y37),) -> 0 | AA37: 0 | AB37: 0 | AC37: 0 | AD37: 0 | AE37: 0 | AF37: =IF(Титульный!$B$28="Общая",2.2,) -> 2.2 | AG37: 0 | AH37: =IF(Титульный!$B$28="Общая",0.18*(AC37+AG37),) -> 0 | AI37: 0
H38: 0 | L38: 0 | M38: 0 | N38: 0 | O38: 0 | P38: =IF(Титульный!$B$28="Общая",2.2,) -> 2.2 | Q38: 0 | R38: =IF(Титульный!$B$28="Общая",0.18*(M38+Q38),) -> 0 | S38: 0 | T38: 0 | U38: 0 | V38: 0 | W38: 0 | X38: =IF(Титульный!$B$28="Общая",2.2,) -> 2.2 | Y38: 0 | Z38: =IF(Титульный!$B$28="Общая",0.18*(U38+Y38),) -> 0 | AA38: 0 | AB38: 0 | AC38: 0 | AD38: 0 | AE38: 0 | AF38: =IF(Титульный!$B$28="Общая",2.2,) -> 2.2 | AG38: 0 | AH38: =IF(Титульный!$B$28="Общая",0.18*(AC38+AG38),) -> 0 | AI38: 0
H39: 0 | L39: 0 | M39: 0 | N39: 0 | O39: 0 | P39: =IF(Титульный!$B$28="Общая",2.2,) -> 2.2 | Q39: 0 | R39: =IF(Титульный!$B$28="Общая",0.18*(M39+Q39),) -> 0 | S39: 0 | T39: 0 | U39: 0 | V39: 0 | W39: 0 | X39: =IF(Титульный!$B$28="Общая",2.2,) -> 2.2 | Y39: 0 | Z39: =IF(Титульный!$B$28="Общая",0.18*(U39+Y39),) -> 0 | AA39: 0 | AB39: 0 | AC39: 0 | AD39: 0 | AE39: 0 | AF39: =IF(Титульный!$B$28="Общая",2.2,) -> 2.2 | AG39: 0 | AH39: =IF(Титульный!$B$28="Общая",0.18*(AC39+AG39),) -> 0 | AI39: 0
H40: 0 | L40: 0 | M40: 0 | N40: 0 | O40: 0 | P40: =IF(Титульный!$B$28="Общая",2.2,) -> 2.2 | Q40: 0 | R40: =IF(Титульный!$B$28="Общая",0.18*(M40+Q40),) -> 0 | S40: 0 | T40: 0 | U40: 0 | V40: 0 | W40: 0 | X40: =IF(Титульный!$B$28="Общая",2.2,) -> 2.2 | Y40: 0 | Z40: =IF(Титульный!$B$28="Общая",0.18*(U40+Y40),) -> 0 | AA40: 0 | AB40: 0 | AC40: 0 | AD40: 0 | AE40: 0 | AF40: =IF(Титульный!$B$28="Общая",2.2,) -> 2.2 | AG40: 0 | AH40: =IF(Титульный!$B$28="Общая",0.18*(AC40+AG40),) -> 0 | AI40: 0
H41: 0 | L41: 0 | M41: 0 | N41: 0 | O41: 0 | P41: =IF(Титульный!$B$28="Общая",2.2,) -> 2.2 | Q41: 0 | R41: =IF(Титульный!$B$28="Общая",0.18*(M41+Q41),) -> 0 | S41: 0 | T41: 0 | U41: 0 | V41: 0 | W41: 0 | X41: =IF(Титульный!$B$28="Общая",2.2,) -> 2.2 | Y41: 0 | Z41: =IF(Титульный!$B$28="Общая",0.18*(U41+Y41),) -> 0 | AA41: 0 | AB41: 0 | AC41: 0 | AD41: 0 | AE41: 0 | AF41: =IF(Титульный!$B$28="Общая",2.2,) -> 2.2 | AG41: 0 | AH41: =IF(Титульный!$B$28="Общая",0.18*(AC41+AG41),) -> 0 | AI41: 0
H42: 0 | L42: 0 | M42: 0 | N42: 0 | O42: 0 | P42: =IF(Титульный!$B$28="Общая",2.2,) -> 2.2 | Q42: 0 | R42: =IF(Титульный!$B$28="Общая",0.18*(M42+Q42),) -> 0 | S42: 0 | T42: 0 | U42: 0 | V42: 0 | W42: 0 | X42: =IF(Титульный!$B$28="Общая",2.2,) -> 2.2 | Y42: 0 | Z42: =IF(Титульный!$B$28="Общая",0.18*(U42+Y42),) -> 0 | AA42: 0 | AB42: 0 | AC42: 0 | AD42: 0 | AE42: 0 | AF42: =IF(Титульный!$B$28="Общая",2.2,) -> 2.2 | AG42: 0 | AH42: =IF(Титульный!$B$28="Общая",0.18*(AC42+AG42),) -> 0 | AI42: 0
H43: 0 | L43: 0 | M43: 0 | N43: 0 | O43: 0 | P43: =IF(Титульный!$B$28="Общая",2.2,) -> 2.2 | Q43: 0 | R43: =IF(Титульный!$B$28="Общая",0.18*(M43+Q43),) -> 0 | S43: 0 | T43: 0 | U43: 0 | V43: 0 | W43: 0 | X43: =IF(Титульный!$B$28="Общая",2.2,) -> 2.2 | Y43: 0 | Z43: =IF(Титульный!$B$28="Общая",0.18*(U43+Y43),) -> 0 | AA43: 0 | AB43: 0 | AC43: 0 | AD43: 0 | AE43: 0 | AF43: =IF(Титульный!$B$28="Общая",2.2,) -> 2.2 | AG43: 0 | AH43: =IF(Титульный!$B$28="Общая",0.18*(AC43+AG43),) -> 0 | AI43: 0
H44: 0 | L44: 0 | M44: 0 | N44: 0 | O44: 0 | P44: =IF(Титульный!$B$28="Общая",2.2,) -> 2.2 | Q44: 0 | R44: =IF(Титульный!$B$28="Общая",0.18*(M44+Q44),) -> 0 | S44: 0 | T44: 0 | U44: 0 | V44: 0 | W44: 0 | X44: =IF(Титульный!$B$28="Общая",2.2,) -> 2.2 | Y44: 0 | Z44: =IF(Титульный!$B$28="Общая",0.18*(U44+Y44),) -> 0 | AA44: 0 | AB44: 0 | AC44: 0 | AD44: 0 | AE44: 0 | AF44: =IF(Титульный!$B$28="Общая",2.2,) -> 2.2 | AG44: 0 | AH44: =IF(Титульный!$B$28="Общая",0.18*(AC44+AG44),) -> 0 | AI44: 0
H45: 0 | L45: 0 | M45: 0 | N45: 0 | O45: 0 | P45: =IF(Титульный!$B$28="Общая",2.2,) -> 2.2 | Q45: 0 | R45: =IF(Титульный!$B$28="Общая",0.18*(M45+Q45),) -> 0 | S45: 0 | T45: 0 | U45: 0 | V45: 0 | W45: 0 | X45: =IF(Титульный!$B$28="Общая",2.2,) -> 2.2 | Y45: 0 | Z45: =IF(Титульный!$B$28="Общая",0.18*(U45+Y45),) -> 0 | AA45: 0 | AB45: 0 | AC45: 0 | AD45: 0 | AE45: 0 | AF45: =IF(Титульный!$B$28="Общая",2.2,) -> 2.2 | AG45: 0 | AH45: =IF(Титульный!$B$28="Общая",0.18*(AC45+AG45),) -> 0 | AI45: 0
H46: 0 | L46: 0 | M46: 0 | N46: 0 | O46: 0 | P46: =IF(Титульный!$B$28="Общая",2.2,) -> 2.2 | Q46: 0 | R46: =IF(Титульный!$B$28="Общая",0.18*(M46+Q46),) -> 0 | S46: 0 | T46: 0 | U46: 0 | V46: 0 | W46: 0 | X46: =IF(Титульный!$B$28="Общая",2.2,) -> 2.2 | Y46: 0 | Z46: =IF(Титульный!$B$28="Общая",0.18*(U46+Y46),) -> 0 | AA46: 0 | AB46: 0 | AC46: 0 | AD46: 0 | AE46: 0 | AF46: =IF(Титульный!$B$28="Общая",2.2,) -> 2.2 | AG46: 0 | AH46: =IF(Титульный!$B$28="Общая",0.18*(AC46+AG46),) -> 0 | AI46: 0
H47: 0 | L47: 0 | M47: 0 | N47: 0 | O47: 0 | P47: =IF(Титульный!$B$28="Общая",2.2,) -> 2.2 | Q47: 0 | R47: =IF(Титульный!$B$28="Общая",0.18*(M47+Q47),) -> 0 | S47: 0 | T47: 0 | U47: 0 | V47: 0 | W47: 0 | X47: =IF(Титульный!$B$28="Общая",2.2,) -> 2.2 | Y47: 0 | Z47: =IF(Титульный!$B$28="Общая",0.18*(U47+Y47),) -> 0 | AA47: 0 | AB47: 0 | AC47: 0 | AD47: 0 | AE47: 0 | AF47: =IF(Титульный!$B$28="Общая",2.2,) -> 2.2 | AG47: 0 | AH47: =IF(Титульный!$B$28="Общая",0.18*(AC47+AG47),) -> 0 | AI47: 0
H48: 0 | L48: 0 | M48: 0 | N48: 0 | O48: 0 | P48: =IF(Титульный!$B$28="Общая",2.2,) -> 2.2 | Q48: 0 | R48: =IF(Титульный!$B$28="Общая",0.18*(M48+Q48),) -> 0 | S48: 0 | T48: 0 | U48: 0 | V48: 0 | W48: 0 | X48: =IF(Титульный!$B$28="Общая",2.2,) -> 2.2 | Y48: 0 | Z48: =IF(Титульный!$B$28="Общая",0.18*(U48+Y48),) -> 0 | AA48: 0 | AB48: 0 | AC48: 0 | AD48: 0 | AE48: 0 | AF48: =IF(Титульный!$B$28="Общая",2.2,) -> 2.2 | AG48: 0 | AH48: =IF(Титульный!$B$28="Общая",0.18*(AC48+AG48),) -> 0 | AI48: 0
H49: 0 | L49: 0 | M49: 0 | N49: 0 | O49: 0 | P49: =IF(Титульный!$B$28="Общая",2.2,) -> 2.2 | Q49: 0 | R49: =IF(Титульный!$B$28="Общая",0.18*(M49+Q49),) -> 0 | S49: 0 | T49: 0 | U49: 0 | V49: 0 | W49: 0 | X49: =IF(Титульный!$B$28="Общая",2.2,) -> 2.2 | Y49: 0 | Z49: =IF(Титульный!$B$28="Общая",0.18*(U49+Y49),) -> 0 | AA49: 0 | AB49: 0 | AC49: 0 | AD49: 0 | AE49: 0 | AF49: =IF(Титульный!$B$28="Общая",2.2,) -> 2.2 | AG49: 0 | AH49: =IF(Титульный!$B$28="Общая",0.18*(AC49+AG49),) -> 0 | AI49: 0
H50: 0 | L50: 0 | M50: 0 | N50: 0 | O50: 0 | P50: =IF(Титульный!$B$28="Общая",2.2,) -> 2.2 | Q50: 0 | R50: =IF(Титульный!$B$28="Общая",0.18*(M50+Q50),) -> 0 | S50: 0 | T50: 0 | U50: 0 | V50: 0 | W50: 0 | X50: =IF(Титульный!$B$28="Общая",2.2,) -> 2.2 | Y50: 0 | Z50: =IF(Титульный!$B$28="Общая",0.18*(U50+Y50),) -> 0 | AA50: 0 | AB50: 0 | AC50: 0 | AD50: 0 | AE50: 0 | AF50: =IF(Титульный!$B$28="Общая",2.2,) -> 2.2 | AG50: 0 | AH50: =IF(Титульный!$B$28="Общая",0.18*(AC50+AG50),) -> 0 | AI50: 0
H51: 0 | L51: 0 | M51: 0 | N51: 0 | O51: 0 | P51: =IF(Титульный!$B$28="Общая",2.2,) -> 2.2 | Q51: 0 | R51: =IF(Титульный!$B$28="Общая",0.18*(M51+Q51),) -> 0 | S51: 0 | T51: 0 | U51: 0 | V51: 0 | W51: 0 | X51: =IF(Титульный!$B$28="Общая",2.2,) -> 2.2 | Y51: 0 | Z51: =IF(Титульный!$B$28="Общая",0.18*(U51+Y51),) -> 0 | AA51: 0 | AB51: 0 | AC51: 0 | AD51: 0 | AE51: 0 | AF51: =IF(Титульный!$B$28="Общая",2.2,) -> 2.2 | AG51: 0 | AH51: =IF(Титульный!$B$28="Общая",0.18*(AC51+AG51),) -> 0 | AI51: 0
H52: 0 | L52: 0 | M52: 0 | N52: 0 | O52: 0 | P52: =IF(Титульный!$B$28="Общая",2.2,) -> 2.2 | Q52: 0 | R52: =IF(Титульный!$B$28="Общая",0.18*(M52+Q52),) -> 0 | S52: 0 | T52: 0 | U52: 0 | V52: 0 | W52: 0 | X52: =IF(Титульный!$B$28="Общая",2.2,) -> 2.2 | Y52: 0 | Z52: =IF(Титульный!$B$28="Общая",0.18*(U52+Y52),) -> 0 | AA52: 0 | AB52: 0 | AC52: 0 | AD52: 0 | AE52: 0 | AF52: =IF(Титульный!$B$28="Общая",2.2,) -> 2.2 | AG52: 0 | AH52: =IF(Титульный!$B$28="Общая",0.18*(AC52+AG52),) -> 0 | AI52: 0
A53: ИТОГО очистка воды | B53: х | C53: х | D53: х | E53: =SUM(E33:E52) -> 0 | F53: х | G53: х | H53: =SUM(H33:H52) -> 0 | I53: =SUM(I33:I52) -> 0 | J53: 0 | K53: 0 | L53: 0 | M53: 0 | N53: 0 | O53: 0 | P53: х | Q53: =SUM(Q33:Q52) -> 0 | R53: 0 | S53: 0 | T53: 0 | U53: 0 | V53: 0 | W53: 0 | X53: х | Y53: =SUM(Y33:Y52) -> 0 | Z53: 0 | AA53: 0 | AB53: 0 | AC53: 0 | AD53: 0 | AE53: 0 | AF53: х | AG53: =SUM(AG33:AG52) -> 0 | AH53: =SUM(AH33:AH52) -> 0 | AI53: =SUM(AI33:AI52) -> 0
A54: Транспортировка воды
H55: =IF(G55=0,0,E55/G55) -> 0 | L55: =IF(DATEDIF(F55,$L$9,"m")*H55<E55,(E55-DATEDIF(F55,$L$9,"m")*H55),0) -> 0 | M55: =IF(H55*12<L55,H55*12,L55) -> 0 | N55: =IF(H55*12>L55,0,(L55-12*H55)) -> 0 | O55: =IF(H55=0,0,IF(12*H55<L55,(13*L55-78*H55)/13,(L55*L55/H55-H55*(L55/H55)*0.5*(L55/H55-1))/13)) -> 0 | P55: =IF(Титульный!$B$28="Общая",2.2,) -> 2.2 | Q55: =O55*P55/100 -> 0 | R55: =IF(Титульный!$B$28="Общая",0.18*(M55+Q55),) -> 0 | S55: =M55+Q55+R55 -> 0 | T55: =N55 -> 0 | U55: =IF(H55*12<T55,H55*12,T55) -> 0 | V55: =IF(H55*12>T55,0,(T55-12*H55)) -> 0 | W55: =IF(H55=0,0,IF(12*H55<T55,(13*T55-78*H55)/13,(T55*T55/H55-H55*(T55/H55)*0.5*(T55/H55-1))/13)) -> 0 | X55: =IF(Титульный!$B$28="Общая",2.2,) -> 2.2 | Y55: =W55*X55/100 -> 0 | Z55: =IF(Титульный!$B$28="Общая",0.18*(U55+Y55),) -> 0 | AA55: =U55+Y55+Z55 -> 0 | AB55: =V55 -> 0 | AC55: =IF(H55*12<AB55,H55*12,AB55) -> 0 | AD55: =IF(H55*12>AB55,0,(AB55-12*H55)) -> 0 | AE55: =IF(H55=0,0,IF(12*H55<AB55,(13*AB55-78*H55)/13,(AB55*AB55/H55-H55*(AB55/H55)*0.5*(AB55/H55-1))/13)) -> 0 | AF55: =IF(Титульный!$B$28="Общая",2.2,) -> 2.2 | AG55: =AE55*AF55/100 -> 0 | AH55: =IF(Титульный!$B$28="Общая",0.18*(AC55+AG55),) -> 0 | AI55: =AC55+AG55+AH55 -> 0
H56: 0 | L56: 0 | M56: 0 | N56: 0 | O56: 0 | P56: =IF(Титульный!$B$28="Общая",2.2,) -> 2.2 | Q56: =O56*P56/100 -> 0 | R56: =IF(Титульный!$B$28="Общая",0.18*(M56+Q56),) -> 0 | S56: =M56+Q56+R56 -> 0 | T56: 0 | U56: 0 | V56: 0 | W56: 0 | X56: =IF(Титульный!$B$28="Общая",2.2,) -> 2.2 | Y56: =W56*X56/100 -> 0 | Z56: =IF(Титульный!$B$28="Общая",0.18*(U56+Y56),) -> 0 | AA56: =U56+Y56+Z56 -> 0 | AB56: 0 | AC56: 0 | AD56: 0 | AE56: 0 | AF56: =IF(Титульный!$B$28="Общая",2.2,) -> 2.2 | AG56: =AE56*AF56/100 -> 0 | AH56: =IF(Титульный!$B$28="Общая",0.18*(AC56+AG56),) -> 0 | AI56: =AC56+AG56+AH56 -> 0
H57: 0 | L57: 0 | M57: 0 | N57: 0 | O57: 0 | P57: =IF(Титульный!$B$28="Общая",2.2,) -> 2.2 | Q57: 0 | R57: =IF(Титульный!$B$28="Общая",0.18*(M57+Q57),) -> 0 | S57: 0 | T57: 0 | U57: 0 | V57: 0 | W57: 0 | X57: =IF(Титульный!$B$28="Общая",2.2,) -> 2.2 | Y57: 0 | Z57: =IF(Титульный!$B$28="Общая",0.18*(U57+Y57),) -> 0 | AA57: 0 | AB57: 0 | AC57: 0 | AD57: 0 | AE57: 0 | AF57: =IF(Титульный!$B$28="Общая",2.2,) -> 2.2 | AG57: 0 | AH57: =IF(Титульный!$B$28="Общая",0.18*(AC57+AG57),) -> 0 | AI57: 0
H58: 0 | L58: 0 | M58: 0 | N58: 0 | O58: 0 | P58: =IF(Титульный!$B$28="Общая",2.2,) -> 2.2 | Q58: 0 | R58: =IF(Титульный!$B$28="Общая",0.18*(M58+Q58),) -> 0 | S58: 0 | T58: 0 | U58: 0 | V58: 0 | W58: 0 | X58: =IF(Титульный!$B$28="Общая",2.2,) -> 2.2 | Y58: 0 | Z58: =IF(Титульный!$B$28="Общая",0.18*(U58+Y58),) -> 0 | AA58: 0 | AB58: 0 | AC58: 0 | AD58: 0 | AE58: 0 | AF58: =IF(Титульный!$B$28="Общая",2.2,) -> 2.2 | AG58: 0 | AH58: =IF(Титульный!$B$28="Общая",0.18*(AC58+AG58),) -> 0 | AI58: 0
H59: 0 | L59: 0 | M59: 0 | N59: 0 | O59: 0 | P59: =IF(Титульный!$B$28="Общая",2.2,) -> 2.2 | Q59: 0 | R59: =IF(Титульный!$B$28="Общая",0.18*(M59+Q59),) -> 0 | S59: 0 | T59: 0 | U59: 0 | V59: 0 | W59: 0 | X59: =IF(Титульный!$B$28="Общая",2.2,) -> 2.2 | Y59: 0 | Z59: =IF(Титульный!$B$28="Общая",0.18*(U59+Y59),) -> 0 | AA59: 0 | AB59: 0 | AC59: 0 | AD59: 0 | AE59: 0 | AF59: =IF(Титульный!$B$28="Общая",2.2,) -> 2.2 | AG59: 0 | AH59: =IF(Титульный!$B$28="Общая",0.18*(AC59+AG59),) -> 0 | AI59: 0
H60: 0 | L60: 0 | M60: 0 | N60: 0 | O60: 0 | P60: =IF(Титульный!$B$28="Общая",2.2,) -> 2.2 | Q60: 0 | R60: =IF(Титульный!$B$28="Общая",0.18*(M60+Q60),) -> 0 | S60: 0 | T60: 0 | U60: 0 | V60: 0 | W60: 0 | X60: =IF(Титульный!$B$28="Общая",2.2,) -> 2.2 | Y60: 0 | Z60: =IF(Титульный!$B$28="Общая",0.18*(U60+Y60),) -> 0 | AA60: 0 | AB60: 0 | AC60: 0 | AD60: 0 | AE60: 0 | AF60: =IF(Титульный!$B$28="Общая",2.2,) -> 2.2 | AG60: 0 | AH60: =IF(Титульный!$B$28="Общая",0.18*(AC60+AG60),) -> 0 | AI60: 0
H61: 0 | L61: 0 | M61: 0 | N61: 0 | O61: 0 | P61: =IF(Титульный!$B$28="Общая",2.2,) -> 2.2 | Q61: 0 | R61: =IF(Титульный!$B$28="Общая",0.18*(M61+Q61),) -> 0 | S61: 0 | T61: 0 | U61: 0 | V61: 0 | W61: 0 | X61: =IF(Титульный!$B$28="Общая",2.2,) -> 2.2 | Y61: 0 | Z61: =IF(Титульный!$B$28="Общая",0.18*(U61+Y61),) -> 0 | AA61: 0 | AB61: 0 | AC61: 0 | AD61: 0 | AE61: 0 | AF61: =IF(Титульный!$B$28="Общая",2.2,) -> 2.2 | AG61: 0 | AH61: =IF(Титульный!$B$28="Общая",0.18*(AC61+AG61),) -> 0 | AI61: 0
H62: 0 | L62: 0 | M62: 0 | N62: 0 | O62: 0 | P62: =IF(Титульный!$B$28="Общая",2.2,) -> 2.2 | Q62: 0 | R62: =IF(Титульный!$B$28="Общая",0.18*(M62+Q62),) -> 0 | S62: 0 | T62: 0 | U62: 0 | V62: 0 | W62: 0 | X62: =IF(Титульный!$B$28="Общая",2.2,) -> 2.2 | Y62: 0 | Z62: =IF(Титульный!$B$28="Общая",0.18*(U62+Y62),) -> 0 | AA62: 0 | AB62: 0 | AC62: 0 | AD62: 0 | AE62: 0 | AF62: =IF(Титульный!$B$28="Общая",2.2,) -> 2.2 | AG62: 0 | AH62: =IF(Титульный!$B$28="Общая",0.18*(AC62+AG62),) -> 0 | AI62: 0
H63: 0 | L63: 0 | M63: 0 | N63: 0 | O63: 0 | P63: =IF(Титульный!$B$28="Общая",2.2,) -> 2.2 | Q63: 0 | R63: =IF(Титульный!$B$28="Общая",0.18*(M63+Q63),) -> 0 | S63: 0 | T63: 0 | U63: 0 | V63: 0 | W63: 0 | X63: =IF(Титульный!$B$28="Общая",2.2,) -> 2.2 | Y63: 0 | Z63: =IF(Титульный!$B$28="Общая",0.18*(U63+Y63),) -> 0 | AA63: 0 | AB63: 0 | AC63: 0 | AD63: 0 | AE63: 0 | AF63: =IF(Титульный!$B$28="Общая",2.2,) -> 2.2 | AG63: 0 | AH63: =IF(Титульный!$B$28="Общая",0.18*(AC63+AG63),) -> 0 | AI63: 0
H64: 0 | L64: 0 | M64: 0 | N64: 0 | O64: 0 | P64: =IF(Титульный!$B$28="Общая",2.2,) -> 2.2 | Q64: 0 | R64: =IF(Титульный!$B$28="Общая",0.18*(M64+Q64),) -> 0 | S64: 0 | T64: 0 | U64: 0 | V64: 0 | W64: 0 | X64: =IF(Титульный!$B$28="Общая",2.2,) -> 2.2 | Y64: 0 | Z64: =IF(Титульный!$B$28="Общая",0.18*(U64+Y64),) -> 0 | AA64: 0 | AB64: 0 | AC64: 0 | AD64: 0 | AE64: 0 | AF64: =IF(Титульный!$B$28="Общая",2.2,) -> 2.2 | AG64: 0 | AH64: =IF(Титульный!$B$28="Общая",0.18*(AC64+AG64),) -> 0 | AI64: 0
H65: 0 | L65: 0 | M65: 0 | N65: 0 | O65: 0 | P65: =IF(Титульный!$B$28="Общая",2.2,) -> 2.2 | Q65: 0 | R65: =IF(Титульный!$B$28="Общая",0.18*(M65+Q65),) -> 0 | S65: 0 | T65: 0 | U65: 0 | V65: 0 | W65: 0 | X65: =IF(Титульный!$B$28="Общая",2.2,) -> 2.2 | Y65: 0 | Z65: =IF(Титульный!$B$28="Общая",0.18*(U65+Y65),) -> 0 | AA65: 0 | AB65: 0 | AC65: 0 | AD65: 0 | AE65: 0 | AF65: =IF(Титульный!$B$28="Общая",2.2,) -> 2.2 | AG65: 0 | AH65: =IF(Титульный!$B$28="Общая",0.18*(AC65+AG65),) -> 0 | AI65: 0
H66: 0 | L66: 0 | M66: 0 | N66: 0 | O66: 0 | P66: =IF(Титульный!$B$28="Общая",2.2,) -> 2.2 | Q66: 0 | R66: =IF(Титульный!$B$28="Общая",0.18*(M66+Q66),) -> 0 | S66: 0 | T66: 0 | U66: 0 | V66: 0 | W66: 0 | X66: =IF(Титульный!$B$28="Общая",2.2,) -> 2.2 | Y66: 0 | Z66: =IF(Титульный!$B$28="Общая",0.18*(U66+Y66),) -> 0 | AA66: 0 | AB66: 0 | AC66: 0 | AD66: 0 | AE66: 0 | AF66: =IF(Титульный!$B$28="Общая",2.2,) -> 2.2 | AG66: 0 | AH66: =IF(Титульный!$B$28="Общая",0.18*(AC66+AG66),) -> 0 | AI66: 0
H67: 0 | L67: 0 | M67: 0 | N67: 0 | O67: 0 | P67: =IF(Титульный!$B$28="Общая",2.2,) -> 2.2 | Q67: 0 | R67: =IF(Титульный!$B$28="Общая",0.18*(M67+Q67),) -> 0 | S67: 0 | T67: 0 | U67: 0 | V67: 0 | W67: 0 | X67: =IF(Титульный!$B$28="Общая",2.2,) -> 2.2 | Y67: 0 | Z67: =IF(Титульный!$B$28="Общая",0.18*(U67+Y67),) -> 0 | AA67: 0 | AB67: 0 | AC67: 0 | AD67: 0 | AE67: 0 | AF67: =IF(Титульный!$B$28="Общая",2.2,) -> 2.2 | AG67: 0 | AH67: =IF(Титульный!$B$28="Общая",0.18*(AC67+AG67),) -> 0 | AI67: 0
H68: 0 | L68: 0 | M68: 0 | N68: 0 | O68: 0 | P68: =IF(Титульный!$B$28="Общая",2.2,) -> 2.2 | Q68: 0 | R68: =IF(Титульный!$B$28="Общая",0.18*(M68+Q68),) -> 0 | S68: 0 | T68: 0 | U68: 0 | V68: 0 | W68: 0 | X68: =IF(Титульный!$B$28="Общая",2.2,) -> 2.2 | Y68: 0 | Z68: =IF(Титульный!$B$28="Общая",0.18*(U68+Y68),) -> 0 | AA68: 0 | AB68: 0 | AC68: 0 | AD68: 0 | AE68: 0 | AF68: =IF(Титульный!$B$28="Общая",2.2,) -> 2.2 | AG68: 0 | AH68: =IF(Титульный!$B$28="Общая",0.18*(AC68+AG68),) -> 0 | AI68: 0
H69: 0 | L69: 0 | M69: 0 | N69: 0 | O69: 0 | P69: =IF(Титульный!$B$28="Общая",2.2,) -> 2.2 | Q69: 0 | R69: =IF(Титульный!$B$28="Общая",0.18*(M69+Q69),) -> 0 | S69: 0 | T69: 0 | U69: 0 | V69: 0 | W69: 0 | X69: =IF(Титульный!$B$28="Общая",2.2,) -> 2.2 | Y69: 0 | Z69: =IF(Титульный!$B$28="Общая",0.18*(U69+Y69),) -> 0 | AA69: 0 | AB69: 0 | AC69: 0 | AD69: 0 | AE69: 0 | AF69: =IF(Титульный!$B$28="Общая",2.2,) -> 2.2 | AG69: 0 | AH69: =IF(Титульный!$B$28="Общая",0.18*(AC69+AG69),) -> 0 | AI69: 0
H70: 0 | L70: 0 | M70: 0 | N70: 0 | O70: 0 | P70: =IF(Титульный!$B$28="Общая",2.2,) -> 2.2 | Q70: 0 | R70: =IF(Титульный!$B$28="Общая",0.18*(M70+Q70),) -> 0 | S70: 0 | T70: 0 | U70: 0 | V70: 0 | W70: 0 | X70: =IF(Титульный!$B$28="Общая",2.2,) -> 2.2 | Y70: 0 | Z70: =IF(Титульный!$B$28="Общая",0.18*(U70+Y70),) -> 0 | AA70: 0 | AB70: 0 | AC70: 0 | AD70: 0 | AE70: 0 | AF70: =IF(Титульный!$B$28="Общая",2.2,) -> 2.2 | AG70: 0 | AH70: =IF(Титульный!$B$28="Общая",0.18*(AC70+AG70),) -> 0 | AI70: 0
H71: 0 | L71: 0 | M71: 0 | N71: 0 | O71: 0 | P71: =IF(Титульный!$B$28="Общая",2.2,) -> 2.2 | Q71: 0 | R71: =IF(Титульный!$B$28="Общая",0.18*(M71+Q71),) -> 0 | S71: 0 | T71: 0 | U71: 0 | V71: 0 | W71: 0 | X71: =IF(Титульный!$B$28="Общая",2.2,) -> 2.2 | Y71: 0 | Z71: =IF(Титульный!$B$28="Общая",0.18*(U71+Y71),) -> 0 | AA71: 0 | AB71: 0 | AC71: 0 | AD71: 0 | AE71: 0 | AF71: =IF(Титульный!$B$28="Общая",2.2,) -> 2.2 | AG71: 0 | AH71: =IF(Титульный!$B$28="Общая",0.18*(AC71+AG71),) -> 0 | AI71: 0
H72: 0 | L72: 0 | M72: 0 | N72: 0 | O72: 0 | P72: =IF(Титульный!$B$28="Общая",2.2,) -> 2.2 | Q72: 0 | R72: =IF(Титульный!$B$28="Общая",0.18*(M72+Q72),) -> 0 | S72: 0 | T72: 0 | U72: 0 | V72: 0 | W72: 0 | X72: =IF(Титульный!$B$28="Общая",2.2,) -> 2.2 | Y72: 0 | Z72: =IF(Титульный!$B$28="Общая",0.18*(U72+Y72),) -> 0 | AA72: 0 | AB72: 0 | AC72: 0 | AD72: 0 | AE72: 0 | AF72: =IF(Титульный!$B$28="Общая",2.2,) -> 2.2 | AG72: 0 | AH72: =IF(Титульный!$B$28="Общая",0.18*(AC72+AG72),) -> 0 | AI72: 0
H73: 0 | L73: 0 | M73: 0 | N73: 0 | O73: 0 | P73: =IF(Титульный!$B$28="Общая",2.2,) -> 2.2 | Q73: 0 | R73: =IF(Титульный!$B$28="Общая",0.18*(M73+Q73),) -> 0 | S73: 0 | T73: 0 | U73: 0 | V73: 0 | W73: 0 | X73: =IF(Титульный!$B$28="Общая",2.2,) -> 2.2 | Y73: 0 | Z73: =IF(Титульный!$B$28="Общая",0.18*(U73+Y73),) -> 0 | AA73: 0 | AB73: 0 | AC73: 0 | AD73: 0 | AE73: 0 | AF73: =IF(Титульный!$B$28="Общая",2.2,) -> 2.2 | AG73: 0 | AH73: =IF(Титульный!$B$28="Общая",0.18*(AC73+AG73),) -> 0 | AI73: 0
H74: 0 | L74: 0 | M74: 0 | N74: 0 | O74: 0 | P74: =IF(Титульный!$B$28="Общая",2.2,) -> 2.2 | Q74: 0 | R74: =IF(Титульный!$B$28="Общая",0.18*(M74+Q74),) -> 0 | S74: 0 | T74: 0 | U74: 0 | V74: 0 | W74: 0 | X74: =IF(Титульный!$B$28="Общая",2.2,) -> 2.2 | Y74: 0 | Z74: =IF(Титульный!$B$28="Общая",0.18*(U74+Y74),) -> 0 | AA74: 0 | AB74: 0 | AC74: 0 | AD74: 0 | AE74: 0 | AF74: =IF(Титульный!$B$28="Общая",2.2,) -> 2.2 | AG74: 0 | AH74: =IF(Титульный!$B$28="Общая",0.18*(AC74+AG74),) -> 0 | AI74: 0
A75: ИТОГО транспортировка воды | B75: х | C75: х | D75: х | E75: =SUM(E55:E74) -> 0 | F75: х | G75: х | H75: =SUM(H55:H74) -> 0 | I75: =SUM(I55:I74) -> 0 | J75: 0 | K75: 0 | L75: 0 | M75: 0 | N75: 0 | O75: 0 | P75: х | Q75: =SUM(Q55:Q74) -> 0 | R75: 0 | S75: 0 | T75: 0 | U75: 0 | V75: 0 | W75: 0 | X75: х | Y75: =SUM(Y55:Y74) -> 0 | Z75: 0 | AA75: 0 | AB75: 0 | AC75: 0 | AD75: 0 | AE75: 0 | AF75: х | AG75: =SUM(AG55:AG74) -> 0 | AH75: =SUM(AH55:AH74) -> 0 | AI75: =SUM(AI55:AI74) -> 0
A76: ВСЕГО | B76: х | C76: х | D76: х | E76: =E75+E53+E31 -> 0 | F76: х | G76: х | H76: =H75+H53+H31 -> 0 | I76: =I75+I53+I31 -> 0 | J76: =J75+J53+J31 -> 0 | K76: =K75+K53+K31 -> 0 | L76: =-L75+L53+L31 -> 0 | M76: =-M75+M53+M31 -> 0 | N76: =-N75+N53+N31 -> 0 | O76: =-O75+O53+O31 -> 0 | P76: х | Q76: =-Q75+Q53+Q31 -> 0 | R76: 0 | S76: 0 | T76: 0 | U76: 0 | V76: 0 | W76: 0 | X76: х | Y76: =-Y75+Y53+Y31 -> 0 | Z76: 0 | AA76: 0 | AB76: 0 | AC76: 0 | AD76: 0 | AE76: 0 | AF76: х | AG76: =-AG75+AG53+AG31 -> 0 | AH76: =-AH75+AH53+AH31 -> 0 | AI76: =-AI75+AI53+AI31 -> 0

Sheet земля
A1: Расчет затрат на земельный налог и аренду земельных участков
A2: =Титульный!B10 -> 
A3: =Титульный!B24 -> 0
B5: Район | C5: =Титульный!B6 -> 0 | F5: МО | G5: =Титульный!B7 -> 0
B7: 1. Аренда земли
A8: № | B8: Реквизиты земельного участка | C8: № договора | D8: площадь, кв.м. | E8: ='Электроэнергия '!F9 -> 2016 | G8: ='Электроэнергия '!I9 -> 2018 | I8: ='Электроэнергия '!J9 -> 2019 | K8: ='Электроэнергия '!K9 -> 2020 | M8: =G8 -> 2018 | O8: =I8 -> 2019 | Q8: =K8 -> 2020
E9: факт по данным организации | G9: план организации | I9: план организации | K9: план организации | M9: план эксперта | O9: план эксперта | Q9: план эксперта
E10: ставка за 1 кв.м. | F10: Сумма, руб | G10: ставка за 1 кв.м. | H10: Сумма, руб | I10: ставка за 1 кв.м. | J10: Сумма, руб | K10: ставка за 1 кв.м. | L10: Сумма, руб | M10: ставка за 1 кв.м. | N10: Сумма, руб | O10: ставка за 1 кв.м. | P10: Сумма, руб | Q10: ставка за 1 кв.м. | R10: Сумма, руб
A11: 1 | H11: =D11*G11 -> 0 | J11: =D11*I11 -> 0 | L11: =D11*K11 -> 0 | M11: 0 | N11: =D11*M11 -> 0 | O11: 0 | P11: =D11*O11 -> 0 | Q11: =O11*аренда_среднегод_2019 -> 0 | R11: =D11*Q11 -> 0
A12: 2 | H12: =D12*G12 -> 0 | J12: =D12*I12 -> 0 | L12: =D12*K12 -> 0 | M12: 0 | N12: 0 | O12: 0 | P12: =D12*O12 -> 0 | Q12: 0 | R12: =D12*Q12 -> 0
A13: 3 | H13: 0 | J13: 0 | L13: 0 | M13: 0 | N13: 0 | O13: 0 | P13: 0 | Q13: 0 | R13: 0
A14: 4 | H14: 0 | J14: 0 | L14: 0 | M14: 0 | N14: 0 | O14: 0 | P14: 0 | Q14: 0 | R14: 0
A15: 5 | H15: 0 | J15: 0 | L15: 0 | M15: 0 | N15: 0 | O15: 0 | P15: 0 | Q15: 0 | R15: 0
A16: 6 | H16: 0 | J16: 0 | L16: 0 | M16: 0 | N16: 0 | O16: 0 | P16: 0 | Q16: 0 | R16: 0
A17: 7 | H17: 0 | J17: 0 | L17: 0 | M17: 0 | N17: 0 | O17: 0 | P17: 0 | Q17: 0 | R17: 0
A18: 8 | H18: 0 | J18: 0 | L18: 0 | M18: 0 | N18: 0 | O18: 0 | P18: 0 | Q18: 0 | R18: 0
A19: 9 | H19: 0 | J19: 0 | L19: 0 | M19: 0 | N19: 0 | O19: 0 | P19: 0 | Q19: 0 | R19: 0
A20: 10 | H20: 0 | J20: 0 | L20: 0 | M20: 0 | N20: 0 | O20: 0 | P20: 0 | Q20: 0 | R20: 0
A21: 11 | H21: 0 | J21: 0 | L21: 0 | M21: 0 | N21: 0 | O21: 0 | P21: 0 | Q21: 0 | R21: 0
A22: 12 | H22: 0 | J22: 0 | L22: 0 | M22: 0 | N22: 0 | O22: 0 | P22: 0 | Q22: 0 | R22: 0
A23: 13 | H23: 0 | J23: 0 | L23: 0 | M23: 0 | N23: 0 | O23: 0 | P23: 0 | Q23: 0 | R23: 0
A24: 14 | H24: 0 | J24: 0 | L24: 0 | M24: 0 | N24: 0 | O24: 0 | P24: 0 | Q24: 0 | R24: 0
A25: 15 | H25: 0 | J25: 0 | L25: 0 | M25: 0 | N25: 0 | O25: 0 | P25: 0 | Q25: 0 | R25: 0
A26: 16 | H26: 0 | J26: 0 | L26: 0 | M26: 0 | N26: 0 | O26: 0 | P26: 0 | Q26: 0 | R26: 0
A27: 17 | H27: 0 | J27: 0 | L27: 0 | M27: 0 | N27: 0 | O27: 0 | P27: 0 | Q27: 0 | R27: 0
A28: 18 | H28: 0 | J28: 0 | L28: 0 | M28: 0 | N28: 0 | O28: 0 | P28: 0 | Q28: 0 | R28: 0
A29: 19 | H29: 0 | J29: 0 | L29: 0 | M29: 0 | N29: 0 | O29: 0 | P29: 0 | Q29: 0 | R29: 0
A30: 20 | H30: 0 | J30: 0 | L30: 0 | M30: 0 | N30: 0 | O30: 0 | P30: 0 | Q30: 0 | R30: 0
B31: ИТОГО | F31: =SUM(F11:F30) -> 0 | H31: =SUM(H11:H30) -> 0 | J31: =SUM(J11:J30) -> 0 | L31: =SUM(L11:L30) -> 0 | N31: =SUM(N11:N30) -> 0 | P31: =SUM(P11:P30) -> 0 | R31: =SUM(R11:R30) -> 0
B33: 2. Налог на землю
A35: № | B35: Реквизиты земельного участка | G35: Кадастровая стоимость, руб | H35: налоговая ставка | I35: =E8 -> 2016 | J35: =G8 -> 2018 | K35: =I8 -> 2019 | L35: =K8 -> 2020 | M35: =M8 -> 2018 | N35: =O8 -> 2019 | O35: =Q8 -> 2020
I36: факт по данным организации | J36: =G9 -> план организации | K36: =I9 -> план организации | L36: =K9 -> план организации | M36: =M9 -> план эксперта | N36: =O9 -> план эксперта | O36: =Q9 -> план эксперта
I37: Сумма, руб | J37: Сумма, руб | K37: Сумма, руб | L37: Сумма, руб | M37: Сумма, руб | N37: Сумма, руб | O37: Сумма, руб
A38: 1 | M38: =I38 -> 0 | N38: =M38 -> 0 | O38: =N38 -> 0
A39: 2 | M39: 0 | N39: =M39 -> 0 | O39: 0
A40: 3 | M40: 0 | N40: 0 | O40: 0
A41: 4 | M41: 0 | N41: 0 | O41: 0
A42: 5 | M42: 0 | N42: 0 | O42: 0
A43: 6 | M43: 0 | N43: 0 | O43: 0
A44: 7 | M44: 0 | N44: 0 | O44: 0
A45: 8 | M45: 0 | N45: 0 | O45: 0
A46: 9 | M46: 0 | N46: 0 | O46: 0
A47: 10 | M47: 0 | N47: 0 | O47: 0
A48: 11 | M48: 0 | N48: 0 | O48: 0
A49: 12 | M49: 0 | N49: 0 | O49: 0
A50: 13 | M50: 0 | N50: 0 | O50: 0
A51: 14 | M51: 0 | N51: 0 | O51: 0
A52: 15 | M52: 0 | N52: 0 | O52: 0
A53: 16 | M53: 0 | N53: 0 | O53: 0
A54: 17 | M54: 0 | N54: 0 | O54: 0
A55: 18 | M55: 0 | N55: 0 | O55: 0
A56: 19 | M56: 0 | N56: 0 | O56: 0
A57: 20 | M57: 0 | N57: 0 | O57: 0
B58: ИТОГО | I58: =SUM(I38:I57) -> 0 | J58: 0 | K58: 0 | L58: 0 | M58: 0 | N58: 0 | O58: 0
A60: ВСЕГО платежей за землю | I60: =F31+I58 -> 0 | J60: =H31+J58 -> 0 | K60: =J31+K58 -> 0 | L60: =L31+L58 -> 0 | M60: =N31+M58 -> 0 | N60: =P31+N58 -> 0 | O60: =R31+O58 -> 0

Sheet амортизация и им.налог
A1: Расчет амортизации и налога на имущество
A2: =Титульный!B10 -> 
A3: =Титульный!B24 -> 0
A5: Район | B5: =Титульный!B6 -> 0 | F5: МО | G5: =Титульный!B7 -> 0 | K5: рублей
A6: Объекты основных средств по подразделениям | B6: Первоначальная (восстановитель ная) стоимость | C6: Дата ввода в эксплуатацию | D6: Срок полезного использования, мес. | E6: Сумма амортизации в месяц | F6: =земля!G8 -> 2018 | L6: =земля!I8 -> 2019 | R6: =земля!K8 -> 2020 | X6: Сумма амортизации в месяц | Y6: =F6 -> 2018 | AE6: =L6 -> 2019 | AK6: =R6 -> 2020
F7: =земля!G9 -> план организации | L7: =земля!I9 -> план организации | R7: =земля!K9 -> план организации | Y7: предложение ДТР | AE7: предложение ДТР | AK7: предложение ДТР
F8: Остаточная стоимость на начало периода | G8: Сумма амортизации за год | H8: Остаточная стоимость на конец периода | I8: Среднегодовая стоимость | J8: Ставка налога на имущество, % | K8: Налог на имущество | L8: Остаточная стоимость на начало периода | M8: Сумма амортизации за год | N8: Остаточная стоимость на конец периода | O8: Среднегодовая стоимость | P8: Ставка налога на имущество, % | Q8: Налог на имущество | R8: Остаточная стоимость на начало периода | S8: Сумма амортизации за год | T8: Остаточная стоимость на конец периода | U8: Среднегодовая стоимость | V8: Ставка налога на имущество, % | W8: Налог на имущество | Y8: Остаточная стоимость на начало периода | Z8: Сумма амортизации за год | AA8: Остаточная стоимость на конец периода | AB8: Среднегодовая стоимость | AC8: Ставка налога на имущество, % | AD8: Налог на имущество | AE8: Остаточная стоимость на начало периода | AF8: Сумма амортизации за год | AG8: Остаточная стоимость на конец периода | AH8: Среднегодовая стоимость | AI8: Ставка налога на имущество, % | AJ8: Налог на имущество | AK8: Остаточная стоимость на начало периода | AL8: Сумма амортизации за год | AM8: Остаточная стоимость на конец периода | AN8: Среднегодовая стоимость | AO8: Ставка налога на имущество, % | AP8: Налог на имущество
F9: 2018-01-01 | H9: 2019-01-01 | L9: 2019-01-01 | N9: 2020-01-01 | R9: 2020-01-01 | T9: 2021-01-01 | Y9: 2017-01-01 | AA9: 2017-01-01 | AE9: 2018-01-01 | AG9: 2018-01-01 | AK9: 2019-01-01 | AM9: 2019-01-01
A10: подъем воды
E11: =IF(D11=0,0,B11/D11) -> 0 | F11: =IF(DATEDIF(C11,$F$9,"m")*E11<B11,(B11-DATEDIF(C11,$F$9,"m")*E11),0) -> 0 | G11: =IF(E11*12<F11,E11*12,F11) -> 0 | H11: =IF(E11*12>F11,0,(F11-12*E11)) -> 0 | I11: =IF(E11=0,0,IF(12*E11<F11,(13*F11-78*E11)/13,(F11*F11/E11-E11*(F11/E11)*0.5*(F11/E11-1))/13)) -> 0 | J11: =IF(Титульный!$B$28="Общая",2.2,) -> 2.2 | K11: =I11*J11/100 -> 0 | L11: =H11 -> 0 | M11: =IF(E11*12<L11,E11*12,L11) -> 0 | N11: =IF(E11*12>L11,0,(L11-12*E11)) -> 0 | O11: =IF(E11=0,0,IF(12*E11<L11,(13*L11-78*E11)/13,(L11*L11/E11-E11*(L11/E11)*0.5*(L11/E11-1))/13)) -> 0 | P11: =IF(Титульный!$B$28="Общая",2.2,) -> 2.2 | Q11: =O11*P11/100 -> 0 | R11: =N11 -> 0 | S11: =IF(E11*12<R11,E11*12,R11) -> 0 | T11: =IF(E11*12>R11,0,(R11-12*E11)) -> 0 | U11: =IF(E11=0,0,IF(12*E11<R11,(13*R11-78*E11)/13,(R11*R11/E11-E11*(R11/E11)*0.5*(R11/E11-1))/13)) -> 0 | V11: =IF(Титульный!$B$28="Общая",2.2,) -> 2.2 | W11: =U11*V11/100 -> 0 | X11: =IF(D11=0,0,B11/D11) -> 0 | Y11: =IF(DATEDIF(C11,$Y$9,"m")*X11<B11,(B11-DATEDIF(C11,$Y$9,"m")*X11),0) -> 0 | Z11: =IF(X11*12<Y11,(X11*12),Y11) -> 0 | AA11: =IF(X11*12>Y11,0,(Y11-12*X11)) -> 0 | AB11: =IF(X11=0,0,IF(12*X11<Y11,(13*Y11-78*X11)/13,(Y11*Y11/X11-X11*(Y11/X11)*0.5*(Y11/X11-1))/13)) -> 0 | AC11: =IF(Титульный!$B$28="Общая",2.2,) -> 2.2 | AD11: =AB11*AC11/100 -> 0 | AE11: =AA11 -> 0 | AF11: =IF(X11*12<AE11,(X11*12),AE11) -> 0 | AG11: =IF(X11*12>AE11,0,(AE11-12*X11)) -> 0 | AH11: =IF(X11=0,0,IF(12*X11<AE11,(13*AE11-78*X11)/13,(AE11*AE11/X11-X11*(AE11/X11)*0.5*(AE11/X11-1))/13)) -> 0 | AI11: =IF(Титульный!$B$28="Общая",2.2,) -> 2.2 | AJ11: =AH11*AI11/100 -> 0 | AK11: =AG11 -> 0 | AL11: =IF(X11*12<AK11,(X11*12),AK11) -> 0 | AM11: =IF(X11*12>AK11,0,(AK11-12*X11)) -> 0 | AN11: =IF(X11=0,0,IF(12*X11<AK11,(13*AK11-78*X11)/13,(AK11*AK11/X11-X11*(AK11/X11)*0.5*(AK11/X11-1))/13)) -> 0 | AO11: =IF(Титульный!$B$28="Общая",2.2,) -> 2.2 | AP11: =AN11*AO11/100 -> 0
E12: 0 | F12: 0 | G12: =IF(E12*12<F12,E12*12,F12) -> 0 | H12: =IF(E12*12>F12,0,(F12-12*E12)) -> 0 | I12: =IF(E12=0,0,IF(12*E12<F12,(13*F12-78*E12)/13,(F12*F12/E12-E12*(F12/E12)*0.5*(F12/E12-1))/13)) -> 0 | J12: =IF(Титульный!$B$28="Общая",2.2,) -> 2.2 | K12: =I12*J12/100 -> 0 | L12: =H12 -> 0 | M12: =IF(E12*12<L12,E12*12,L12) -> 0 | N12: =IF(E12*12>L12,0,(L12-12*E12)) -> 0 | O12: =IF(E12=0,0,IF(12*E12<L12,(13*L12-78*E12)/13,(L12*L12/E12-E12*(L12/E12)*0.5*(L12/E12-1))/13)) -> 0 | P12: =IF(Титульный!$B$28="Общая",2.2,) -> 2.2 | Q12: =O12*P12/100 -> 0 | R12: =N12 -> 0 | S12: =IF(E12*12<R12,E12*12,R12) -> 0 | T12: =IF(E12*12>R12,0,(R12-12*E12)) -> 0 | U12: =IF(E12=0,0,IF(12*E12<R12,(13*R12-78*E12)/13,(R12*R12/E12-E12*(R12/E12)*0.5*(R12/E12-1))/13)) -> 0 | V12: =IF(Титульный!$B$28="Общая",2.2,) -> 2.2 | W12: =U12*V12/100 -> 0 | X12: =IF(D12=0,0,B12/D12) -> 0 | Y12: =IF(DATEDIF(C12,$Y$9,"m")*X12<B12,(B12-DATEDIF(C12,$Y$9,"m")*X12),0) -> 0 | Z12: =IF(X12*12<Y12,(X12*12),Y12) -> 0 | AA12: =IF(X12*12>Y12,0,(Y12-12*X12)) -> 0 | AB12: =IF(X12=0,0,IF(12*X12<Y12,(13*Y12-78*X12)/13,(Y12*Y12/X12-X12*(Y12/X12)*0.5*(Y12/X12-1))/13)) -> 0 | AC12: =IF(Титульный!$B$28="Общая",2.2,) -> 2.2 | AD12: =AB12*AC12/100 -> 0 | AE12: =AA12 -> 0 | AF12: =IF(X12*12<AE12,(X12*12),AE12) -> 0 | AG12: =IF(X12*12>AE12,0,(AE12-12*X12)) -> 0 | AH12: =IF(X12=0,0,IF(12*X12<AE12,(13*AE12-78*X12)/13,(AE12*AE12/X12-X12*(AE12/X12)*0.5*(AE12/X12-1))/13)) -> 0 | AI12: =IF(Титульный!$B$28="Общая",2.2,) -> 2.2 | AJ12: =AH12*AI12/100 -> 0 | AK12: =AG12 -> 0 | AL12: =IF(X12*12<AK12,(X12*12),AK12) -> 0 | AM12: =IF(X12*12>AK12,0,(AK12-12*X12)) -> 0 | AN12: =IF(X12=0,0,IF(12*X12<AK12,(13*AK12-78*X12)/13,(AK12*AK12/X12-X12*(AK12/X12)*0.5*(AK12/X12-1))/13)) -> 0 | AO12: =IF(Титульный!$B$28="Общая",2.2,) -> 2.2 | AP12: =AN12*AO12/100 -> 0
E13: 0 | F13: 0 | G13: 0 | H13: 0 | I13: 0 | J13: =IF(Титульный!$B$28="Общая",2.2,) -> 2.2 | K13: 0 | L13: 0 | M13: 0 | N13: 0 | O13: 0 | P13: =IF(Титульный!$B$28="Общая",2.2,) -> 2.2 | Q13: 0 | R13: 0 | S13: 0 | T13: 0 | U13: 0 | V13: =IF(Титульный!$B$28="Общая",2.2,) -> 2.2 | W13: 0 | X13: 0 | Y13: 0 | Z13: 0 | AA13: 0 | AB13: 0 | AC13: =IF(Титульный!$B$28="Общая",2.2,) -> 2.2 | AD13: 0 | AE13: 0 | AF13: 0 | AG13: 0 | AH13: 0 | AI13: =IF(Титульный!$B$28="Общая",2.2,) -> 2.2 | AJ13: 0 | AK13: 0 | AL13: 0 | AM13: 0 | AN13: 0 | AO13: =IF(Титульный!$B$28="Общая",2.2,) -> 2.2 | AP13: 0
E14: 0 | F14: 0 | G14: 0 | H14: 0 | I14: 0 | J14: =IF(Титульный!$B$28="Общая",2.2,) -> 2.2 | K14: 0 | L14: 0 | M14: 0 | N14: 0 | O14: 0 | P14: =IF(Титульный!$B$28="Общая",2.2,) -> 2.2 | Q14: 0 | R14: 0 | S14: 0 | T14: 0 | U14: 0 | V14: =IF(Титульный!$B$28="Общая",2.2,) -> 2.2 | W14: 0 | X14: 0 | Y14: 0 | Z14: 0 | AA14: 0 | AB14: 0 | AC14: =IF(Титульный!$B$28="Общая",2.2,) -> 2.2 | AD14: 0 | AE14: 0 | AF14: 0 | AG14: 0 | AH14: 0 | AI14: =IF(Титульный!$B$28="Общая",2.2,) -> 2.2 | AJ14: 0 | AK14: 0 | AL14: 0 | AM14: 0 | AN14: 0 | AO14: =IF(Титульный!$B$28="Общая",2.2,) -> 2.2 | AP14: 0
E15: 0 | F15: 0 | G15: 0 | H15: 0 | I15: 0 | J15: =IF(Титульный!$B$28="Общая",2.2,) -> 2.2 | K15: 0 | L15: 0 | M15: 0 | N15: 0 | O15: 0 | P15: =IF(Титульный!$B$28="Общая",2.2,) -> 2.2 | Q15: 0 | R15: 0 | S15: 0 | T15: 0 | U15: 0 | V15: =IF(Титульный!$B$28="Общая",2.2,) -> 2.2 | W15: 0 | X15: 0 | Y15: 0 | Z15: 0 | AA15: 0 | AB15: 0 | AC15: =IF(Титульный!$B$28="Общая",2.2,) -> 2.2 | AD15: 0 | AE15: 0 | AF15: 0 | AG15: 0 | AH15: 0 | AI15: =IF(Титульный!$B$28="Общая",2.2,) -> 2.2 | AJ15: 0 | AK15: 0 | AL15: 0 | AM15: 0 | AN15: 0 | AO15: =IF(Титульный!$B$28="Общая",2.2,) -> 2.2 | AP15: 0
E16: 0 | F16: 0 | G16: 0 | H16: 0 | I16: 0 | J16: =IF(Титульный!$B$28="Общая",2.2,) -> 2.2 | K16: 0 | L16: 0 | M16: 0 | N16: 0 | O16: 0 | P16: =IF(Титульный!$B$28="Общая",2.2,) -> 2.2 | Q16: 0 | R16: 0 | S16: 0 | T16: 0 | U16: 0 | V16: =IF(Титульный!$B$28="Общая",2.2,) -> 2.2 | W16: 0 | X16: 0 | Y16: 0 | Z16: 0 | AA16: 0 | AB16: 0 | AC16: =IF(Титульный!$B$28="Общая",2.2,) -> 2.2 | AD16: 0 | AE16: 0 | AF16: 0 | AG16: 0 | AH16: 0 | AI16: =IF(Титульный!$B$28="Общая",2.2,) -> 2.2 | AJ16: 0 | AK16: 0 | AL16: 0 | AM16: 0 | AN16: 0 | AO16: =IF(Титульный!$B$28="Общая",2.2,) -> 2.2 | AP16: 0
E17: 0 | F17: 0 | G17: 0 | H17: 0 | I17: 0 | J17: =IF(Титульный!$B$28="Общая",2.2,) -> 2.2 | K17: 0 | L17: 0 | M17: 0 | N17: 0 | O17: 0 | P17: =IF(Титульный!$B$28="Общая",2.2,) -> 2.2 | Q17: 0 | R17: 0 | S17: 0 | T17: 0 | U17: 0 | V17: =IF(Титульный!$B$28="Общая",2.2,) -> 2.2 | W17: 0 | X17: 0 | Y17: 0 | Z17: 0 | AA17: 0 | AB17: 0 | AC17: =IF(Титульный!$B$28="Общая",2.2,) -> 2.2 | AD17: 0 | AE17: 0 | AF17: 0 | AG17: 0 | AH17: 0 | AI17: =IF(Титульный!$B$28="Общая",2.2,) -> 2.2 | AJ17: 0 | AK17: 0 | AL17: 0 | AM17: 0 | AN17: 0 | AO17: =IF(Титульный!$B$28="Общая",2.2,) -> 2.2 | AP17: 0
E18: 0 | F18: 0 | G18: 0 | H18: 0 | I18: 0 | J18: =IF(Титульный!$B$28="Общая",2.2,) -> 2.2 | K18: 0 | L18: 0 | M18: 0 | N18: 0 | O18: 0 | P18: =IF(Титульный!$B$28="Общая",2.2,) -> 2.2 | Q18: 0 | R18: 0 | S18: 0 | T18: 0 | U18: 0 | V18: =IF(Титульный!$B$28="Общая",2.2,) -> 2.2 | W18: 0 | X18: 0 | Y18: 0 | Z18: 0 | AA18: 0 | AB18: 0 | AC18: =IF(Титульный!$B$28="Общая",2.2,) -> 2.2 | AD18: 0 | AE18: 0 | AF18: 0 | AG18: 0 | AH18: 0 | AI18: =IF(Титульный!$B$28="Общая",2.2,) -> 2.2 | AJ18: 0 | AK18: 0 | AL18: 0 | AM18: 0 | AN18: 0 | AO18: =IF(Титульный!$B$28="Общая",2.2,) -> 2.2 | AP18: 0
E19: 0 | F19: 0 | G19: 0 | H19: 0 | I19: 0 | J19: =IF(Титульный!$B$28="Общая",2.2,) -> 2.2 | K19: 0 | L19: 0 | M19: 0 | N19: 0 | O19: 0 | P19: =IF(Титульный!$B$28="Общая",2.2,) -> 2.2 | Q19: 0 | R19: 0 | S19: 0 | T19: 0 | U19: 0 | V19: =IF(Титульный!$B$28="Общая",2.2,) -> 2.2 | W19: 0 | X19: 0 | Y19: 0 | Z19: 0 | AA19: 0 | AB19: 0 | AC19: =IF(Титульный!$B$28="Общая",2.2,) -> 2.2 | AD19: 0 | AE19: 0 | AF19: 0 | AG19: 0 | AH19: 0 | AI19: =IF(Титульный!$B$28="Общая",2.2,) -> 2.2 | AJ19: 0 | AK19: 0 | AL19: 0 | AM19: 0 | AN19: 0 | AO19: =IF(Титульный!$B$28="Общая",2.2,) -> 2.2 | AP19: 0
E20: 0 | F20: 0 | G20: 0 | H20: 0 | I20: 0 | J20: =IF(Титульный!$B$28="Общая",2.2,) -> 2.2 | K20: 0 | L20: 0 | M20: 0 | N20: 0 | O20: 0 | P20: =IF(Титульный!$B$28="Общая",2.2,) -> 2.2 | Q20: 0 | R20: 0 | S20: 0 | T20: 0 | U20: 0 | V20: =IF(Титульный!$B$28="Общая",2.2,) -> 2.2 | W20: 0 | X20: 0 | Y20: 0 | Z20: 0 | AA20: 0 | AB20: 0 | AC20: =IF(Титульный!$B$28="Общая",2.2,) -> 2.2 | AD20: 0 | AE20: 0 | AF20: 0 | AG20: 0 | AH20: 0 | AI20: =IF(Титульный!$B$28="Общая",2.2,) -> 2.2 | AJ20: 0 | AK20: 0 | AL20: 0 | AM20: 0 | AN20: 0 | AO20: =IF(Титульный!$B$28="Общая",2.2,) -> 2.2 | AP20: 0
E21: 0 | F21: 0 | G21: 0 | H21: 0 | I21: 0 | J21: =IF(Титульный!$B$28="Общая",2.2,) -> 2.2 | K21: 0 | L21: 0 | M21: 0 | N21: 0 | O21: 0 | P21: =IF(Титульный!$B$28="Общая",2.2,) -> 2.2 | Q21: 0 | R21: 0 | S21: 0 | T21: 0 | U21: 0 | V21: =IF(Титульный!$B$28="Общая",2.2,) -> 2.2 | W21: 0 | X21: 0 | Y21: 0 | Z21: 0 | AA21: 0 | AB21: 0 | AC21: =IF(Титульный!$B$28="Общая",2.2,) -> 2.2 | AD21: 0 | AE21: 0 | AF21: 0 | AG21: 0 | AH21: 0 | AI21: =IF(Титульный!$B$28="Общая",2.2,) -> 2.2 | AJ21: 0 | AK21: 0 | AL21: 0 | AM21: 0 | AN21: 0 | AO21: =IF(Титульный!$B$28="Общая",2.2,) -> 2.2 | AP21: 0
E22: 0 | F22: 0 | G22: 0 | H22: 0 | I22: 0 | J22: =IF(Титульный!$B$28="Общая",2.2,) -> 2.2 | K22: 0 | L22: 0 | M22: 0 | N22: 0 | O22: 0 | P22: =IF(Титульный!$B$28="Общая",2.2,) -> 2.2 | Q22: 0 | R22: 0 | S22: 0 | T22: 0 | U22: 0 | V22: =IF(Титульный!$B$28="Общая",2.2,) -> 2.2 | W22: 0 | X22: 0 | Y22: 0 | Z22: 0 | AA22: 0 | AB22: 0 | AC22: =IF(Титульный!$B$28="Общая",2.2,) -> 2.2 | AD22: 0 | AE22: 0 | AF22: 0 | AG22: 0 | AH22: 0 | AI22: =IF(Титульный!$B$28="Общая",2.2,) -> 2.2 | AJ22: 0 | AK22: 0 | AL22: 0 | AM22: 0 | AN22: 0 | AO22: =IF(Титульный!$B$28="Общая",2.2,) -> 2.2 | AP22: 0
E23: 0 | F23: 0 | G23: 0 | H23: 0 | I23: 0 | J23: =IF(Титульный!$B$28="Общая",2.2,) -> 2.2 | K23: 0 | L23: 0 | M23: 0 | N23: 0 | O23: 0 | P23: =IF(Титульный!$B$28="Общая",2.2,) -> 2.2 | Q23: 0 | R23: 0 | S23: 0 | T23: 0 | U23: 0 | V23: =IF(Титульный!$B$28="Общая",2.2,) -> 2.2 | W23: 0 | X23: 0 | Y23: 0 | Z23: 0 | AA23: 0 | AB23: 0 | AC23: =IF(Титульный!$B$28="Общая",2.2,) -> 2.2 | AD23: 0 | AE23: 0 | AF23: 0 | AG23: 0 | AH23: 0 | AI23: =IF(Титульный!$B$28="Общая",2.2,) -> 2.2 | AJ23: 0 | AK23: 0 | AL23: 0 | AM23: 0 | AN23: 0 | AO23: =IF(Титульный!$B$28="Общая",2.2,) -> 2.2 | AP23: 0
E24: 0 | F24: 0 | G24: 0 | H24: 0 | I24: 0 | J24: =IF(Титульный!$B$28="Общая",2.2,) -> 2.2 | K24: 0 | L24: 0 | M24: 0 | N24: 0 | O24: 0 | P24: =IF(Титульный!$B$28="Общая",2.2,) -> 2.2 | Q24: 0 | R24: 0 | S24: 0 | T24: 0 | U24: 0 | V24: =IF(Титульный!$B$28="Общая",2.2,) -> 2.2 | W24: 0 | X24: 0 | Y24: 0 | Z24: 0 | AA24: 0 | AB24: 0 | AC24: =IF(Титульный!$B$28="Общая",2.2,) -> 2.2 | AD24: 0 | AE24: 0 | AF24: 0 | AG24: 0 | AH24: 0 | AI24: =IF(Титульный!$B$28="Общая",2.2,) -> 2.2 | AJ24: 0 | AK24: 0 | AL24: 0 | AM24: 0 | AN24: 0 | AO24: =IF(Титульный!$B$28="Общая",2.2,) -> 2.2 | AP24: 0
E25: 0 | F25: 0 | G25: 0 | H25: 0 | I25: 0 | J25: =IF(Титульный!$B$28="Общая",2.2,) -> 2.2 | K25: 0 | L25: 0 | M25: 0 | N25: 0 | O25: 0 | P25: =IF(Титульный!$B$28="Общая",2.2,) -> 2.2 | Q25: 0 | R25: 0 | S25: 0 | T25: 0 | U25: 0 | V25: =IF(Титульный!$B$28="Общая",2.2,) -> 2.2 | W25: 0 | X25: 0 | Y25: 0 | Z25: 0 | AA25: 0 | AB25: 0 | AC25: =IF(Титульный!$B$28="Общая",2.2,) -> 2.2 | AD25: 0 | AE25: 0 | AF25: 0 | AG25: 0 | AH25: 0 | AI25: =IF(Титульный!$B$28="Общая",2.2,) -> 2.2 | AJ25: 0 | AK25: 0 | AL25: 0 | AM25: 0 | AN25: 0 | AO25: =IF(Титульный!$B$28="Общая",2.2,) -> 2.2 | AP25: 0
E26: 0 | F26: 0 | G26: 0 | H26: 0 | I26: 0 | J26: =IF(Титульный!$B$28="Общая",2.2,) -> 2.2 | K26: 0 | L26: 0 | M26: 0 | N26: 0 | O26: 0 | P26: =IF(Титульный!$B$28="Общая",2.2,) -> 2.2 | Q26: 0 | R26: 0 | S26: 0 | T26: 0 | U26: 0 | V26: =IF(Титульный!$B$28="Общая",2.2,) -> 2.2 | W26: 0 | X26: 0 | Y26: 0 | Z26: 0 | AA26: 0 | AB26: 0 | AC26: =IF(Титульный!$B$28="Общая",2.2,) -> 2.2 | AD26: 0 | AE26: 0 | AF26: 0 | AG26: 0 | AH26: 0 | AI26: =IF(Титульный!$B$28="Общая",2.2,) -> 2.2 | AJ26: 0 | AK26: 0 | AL26: 0 | AM26: 0 | AN26: 0 | AO26: =IF(Титульный!$B$28="Общая",2.2,) -> 2.2 | AP26: 0
E27: 0 | F27: 0 | G27: 0 | H27: 0 | I27: 0 | J27: =IF(Титульный!$B$28="Общая",2.2,) -> 2.2 | K27: 0 | L27: 0 | M27: 0 | N27: 0 | O27: 0 | P27: =IF(Титульный!$B$28="Общая",2.2,) -> 2.2 | Q27: 0 | R27: 0 | S27: 0 | T27: 0 | U27: 0 | V27: =IF(Титульный!$B$28="Общая",2.2,) -> 2.2 | W27: 0 | X27: 0 | Y27: 0 | Z27: 0 | AA27: 0 | AB27: 0 | AC27: =IF(Титульный!$B$28="Общая",2.2,) -> 2.2 | AD27: 0 | AE27: 0 | AF27: 0 | AG27: 0 | AH27: 0 | AI27: =IF(Титульный!$B$28="Общая",2.2,) -> 2.2 | AJ27: 0 | AK27: 0 | AL27: 0 | AM27: 0 | AN27: 0 | AO27: =IF(Титульный!$B$28="Общая",2.2,) -> 2.2 | AP27: 0
E28: 0 | F28: 0 | G28: 0 | H28: 0 | I28: 0 | J28: =IF(Титульный!$B$28="Общая",2.2,) -> 2.2 | K28: 0 | L28: 0 | M28: 0 | N28: 0 | O28: 0 | P28: =IF(Титульный!$B$28="Общая",2.2,) -> 2.2 | Q28: 0 | R28: 0 | S28: 0 | T28: 0 | U28: 0 | V28: =IF(Титульный!$B$28="Общая",2.2,) -> 2.2 | W28: 0 | X28: 0 | Y28: 0 | Z28: 0 | AA28: 0 | AB28: 0 | AC28: =IF(Титульный!$B$28="Общая",2.2,) -> 2.2 | AD28: 0 | AE28: 0 | AF28: 0 | AG28: 0 | AH28: 0 | AI28: =IF(Титульный!$B$28="Общая",2.2,) -> 2.2 | AJ28: 0 | AK28: 0 | AL28: 0 | AM28: 0 | AN28: 0 | AO28: =IF(Титульный!$B$28="Общая",2.2,) -> 2.2 | AP28: 0
E29: 0 | F29: 0 | G29: 0 | H29: 0 | I29: 0 | J29: =IF(Титульный!$B$28="Общая",2.2,) -> 2.2 | K29: 0 | L29: 0 | M29: 0 | N29: 0 | O29: 0 | P29: =IF(Титульный!$B$28="Общая",2.2,) -> 2.2 | Q29: 0 | R29: 0 | S29: 0 | T29: 0 | U29: 0 | V29: =IF(Титульный!$B$28="Общая",2.2,) -> 2.2 | W29: 0 | X29: 0 | Y29: 0 | Z29: 0 | AA29: 0 | AB29: 0 | AC29: =IF(Титульный!$B$28="Общая",2.2,) -> 2.2 | AD29: 0 | AE29: 0 | AF29: 0 | AG29: 0 | AH29: 0 | AI29: =IF(Титульный!$B$28="Общая",2.2,) -> 2.2 | AJ29: 0 | AK29: 0 | AL29: 0 | AM29: 0 | AN29: 0 | AO29: =IF(Титульный!$B$28="Общая",2.2,) -> 2.2 | AP29: 0
E30: 0 | F30: 0 | G30: 0 | H30: 0 | I30: 0 | J30: =IF(Титульный!$B$28="Общая",2.2,) -> 2.2 | K30: 0 | L30: 0 | M30: 0 | N30: 0 | O30: 0 | P30: =IF(Титульный!$B$28="Общая",2.2,) -> 2.2 | Q30: 0 | R30: 0 | S30: 0 | T30: 0 | U30: 0 | V30: =IF(Титульный!$B$28="Общая",2.2,) -> 2.2 | W30: 0 | X30: 0 | Y30: 0 | Z30: 0 | AA30: 0 | AB30: 0 | AC30: =IF(Титульный!$B$28="Общая",2.2,) -> 2.2 | AD30: 0 | AE30: 0 | AF30: 0 | AG30: 0 | AH30: 0 | AI30: =IF(Титульный!$B$28="Общая",2.2,) -> 2.2 | AJ30: 0 | AK30: 0 | AL30: 0 | AM30: 0 | AN30: 0 | AO30: =IF(Титульный!$B$28="Общая",2.2,) -> 2.2 | AP30: 0
A31: ИТОГО подъем воды | B31: =SUM(B11:B30) -> 0 | C31: х | D31: х | E31: =SUM(E11:E30) -> 0 | F31: =SUM(F11:F30) -> 0 | G31: =SUM(G11:G30) -> 0 | H31: =SUM(H11:H30) -> 0 | I31: =SUM(I11:I30) -> 0 | K31: =SUM(K11:K30) -> 0 | L31: =SUM(L11:L30) -> 0 | M31: =SUM(M11:M30) -> 0 | N31: =SUM(N11:N30) -> 0 | O31: =SUM(O11:O30) -> 0 | Q31: =SUM(Q11:Q30) -> 0 | R31: =SUM(R11:R30) -> 0 | S31: =SUM(S11:S30) -> 0 | T31: =SUM(T11:T30) -> 0 | U31: =SUM(U11:U30) -> 0 | W31: =SUM(W11:W30) -> 0 | X31: 0 | Y31: 0 | Z31: 0 | AA31: 0 | AB31: 0 | AD31: =SUM(AD11:AD30) -> 0 | AE31: =SUM(AE11:AE30) -> 0 | AF31: =SUM(AF11:AF30) -> 0 | AG31: =SUM(AG11:AG30) -> 0 | AH31: =SUM(AH11:AH30) -> 0 | AJ31: =SUM(AJ11:AJ30) -> 0 | AK31: =SUM(AK11:AK30) -> 0 | AL31: =SUM(AL11:AL30) -> 0 | AM31: =SUM(AM11:AM30) -> 0 | AN31: =SUM(AN11:AN30) -> 0 | AP31: =SUM(AP11:AP30) -> 0
A32: очистка воды
E33: =IF(D33=0,0,B33/D33) -> 0 | F33: =IF(DATEDIF(C33,$F$9,"m")*E33<B33,(B33-DATEDIF(C33,$F$9,"m")*E33),0) -> 0 | G33: =IF(E33*12<F33,E33*12,F33) -> 0 | H33: =IF(E33*12>F33,0,(F33-12*E33)) -> 0 | I33: =IF(E33=0,0,IF(12*E33<F33,(13*F33-78*E33)/13,(F33*F33/E33-E33*(F33/E33)*0.5*(F33/E33-1))/13)) -> 0 | J33: =IF(Титульный!$B$28="Общая",2.2,) -> 2.2 | K33: =I33*J33/100 -> 0 | L33: =H33 -> 0 | M33: =IF(E33*12<L33,E33*12,L33) -> 0 | N33: =IF(E33*12>L33,0,(L33-12*E33)) -> 0 | O33: =IF(E33=0,0,IF(12*E33<L33,(13*L33-78*E33)/13,(L33*L33/E33-E33*(L33/E33)*0.5*(L33/E33-1))/13)) -> 0 | P33: =IF(Титульный!$B$28="Общая",2.2,) -> 2.2 | Q33: =O33*P33/100 -> 0 | R33: =N33 -> 0 | S33: =IF(E33*12<R33,E33*12,R33) -> 0 | T33: =IF(E33*12>R33,0,(R33-12*E33)) -> 0 | U33: =IF(E33=0,0,IF(12*E33<R33,(13*R33-78*E33)/13,(R33*R33/E33-E33*(R33/E33)*0.5*(R33/E33-1))/13)) -> 0 | V33: =IF(Титульный!$B$28="Общая",2.2,) -> 2.2 | W33: =U33*V33/100 -> 0 | X33: =IF(D33=0,0,B33/D33) -> 0 | Y33: =IF(DATEDIF(C33,$Y$9,"m")*X33<B33,(B33-DATEDIF(C33,$Y$9,"m")*X33),0) -> 0 | Z33: =IF(X33*12<Y33,(X33*12),Y33) -> 0 | AA33: =IF(X33*12>Y33,0,(Y33-12*X33)) -> 0 | AB33: =IF(X33=0,0,IF(12*X33<Y33,(13*Y33-78*X33)/13,(Y33*Y33/X33-X33*(Y33/X33)*0.5*(Y33/X33-1))/13)) -> 0 | AC33: =IF(Титульный!$B$28="Общая",2.2,) -> 2.2 | AD33: =AB33*AC33/100 -> 0 | AE33: =AA33 -> 0 | AF33: =IF(X33*12<AE33,(X33*12),AE33) -> 0 | AG33: =IF(X33*12>AE33,0,(AE33-12*X33)) -> 0 | AH33: =IF(X33=0,0,IF(12*X33<AE33,(13*AE33-78*X33)/13,(AE33*AE33/X33-X33*(AE33/X33)*0.5*(AE33/X33-1))/13)) -> 0 | AI33: =IF(Титульный!$B$28="Общая",2.2,) -> 2.2 | AJ33: =AH33*AI33/100 -> 0 | AK33: =AG33 -> 0 | AL33: =IF(X33*12<AK33,(X33*12),AK33) -> 0 | AM33: =IF(X33*12>AK33,0,(AK33-12*X33)) -> 0 | AN33: =IF(X33=0,0,IF(12*X33<AK33,(13*AK33-78*X33)/13,(AK33*AK33/X33-X33*(AK33/X33)*0.5*(AK33/X33-1))/13)) -> 0 | AO33: =IF(Титульный!$B$28="Общая",2.2,) -> 2.2 | AP33: =AN33*AO33/100 -> 0
E34: 0 | F34: 0 | G34: 0 | H34: 0 | I34: 0 | J34: =IF(Титульный!$B$28="Общая",2.2,) -> 2.2 | K34: =I34*J34/100 -> 0 | L34: 0 | M34: 0 | N34: 0 | O34: 0 | P34: =IF(Титульный!$B$28="Общая",2.2,) -> 2.2 | Q34: =O34*P34/100 -> 0 | R34: 0 | S34: 0 | T34: 0 | U34: 0 | V34: =IF(Титульный!$B$28="Общая",2.2,) -> 2.2 | W34: =U34*V34/100 -> 0 | X34: 0 | Y34: 0 | Z34: 0 | AA34: 0 | AB34: 0 | AC34: =IF(Титульный!$B$28="Общая",2.2,) -> 2.2 | AD34: =AB34*AC34/100 -> 0 | AE34: 0 | AF34: 0 | AG34: 0 | AH34: 0 | AI34: =IF(Титульный!$B$28="Общая",2.2,) -> 2.2 | AJ34: =AH34*AI34/100 -> 0 | AK34: 0 | AL34: 0 | AM34: 0 | AN34: 0 | AO34: =IF(Титульный!$B$28="Общая",2.2,) -> 2.2 | AP34: =AN34*AO34/100 -> 0
E35: 0 | F35: 0 | G35: 0 | H35: 0 | I35: 0 | J35: =IF(Титульный!$B$28="Общая",2.2,) -> 2.2 | K35: 0 | L35: 0 | M35: 0 | N35: 0 | O35: 0 | P35: =IF(Титульный!$B$28="Общая",2.2,) -> 2.2 | Q35: 0 | R35: 0 | S35: 0 | T35: 0 | U35: 0 | V35: =IF(Титульный!$B$28="Общая",2.2,) -> 2.2 | W35: 0 | X35: 0 | Y35: 0 | Z35: 0 | AA35: 0 | AB35: 0 | AC35: =IF(Титульный!$B$28="Общая",2.2,) -> 2.2 | AD35: 0 | AE35: 0 | AF35: 0 | AG35: 0 | AH35: 0 | AI35: =IF(Титульный!$B$28="Общая",2.2,) -> 2.2 | AJ35: 0 | AK35: 0 | AL35: 0 | AM35: 0 | AN35: 0 | AO35: =IF(Титульный!$B$28="Общая",2.2,) -> 2.2 | AP35: 0
E36: 0 | F36: 0 | G36: 0 | H36: 0 | I36: 0 | J36: =IF(Титульный!$B$28="Общая",2.2,) -> 2.2 | K36: 0 | L36: 0 | M36: 0 | N36: 0 | O36: 0 | P36: =IF(Титульный!$B$28="Общая",2.2,) -> 2.2 | Q36: 0 | R36: 0 | S36: 0 | T36: 0 | U36: 0 | V36: =IF(Титульный!$B$28="Общая",2.2,) -> 2.2 | W36: 0 | X36: 0 | Y36: 0 | Z36: 0 | AA36: 0 | AB36: 0 | AC36: =IF(Титульный!$B$28="Общая",2.2,) -> 2.2 | AD36: 0 | AE36: 0 | AF36: 0 | AG36: 0 | AH36: 0 | AI36: =IF(Титульный!$B$28="Общая",2.2,) -> 2.2 | AJ36: 0 | AK36: 0 | AL36: 0 | AM36: 0 | AN36: 0 | AO36: =IF(Титульный!$B$28="Общая",2.2,) -> 2.2 | AP36: 0
E37: 0 | F37: 0 | G37: 0 | H37: 0 | I37: 0 | J37: =IF(Титульный!$B$28="Общая",2.2,) -> 2.2 | K37: 0 | L37: 0 | M37: 0 | N37: 0 | O37: 0 | P37: =IF(Титульный!$B$28="Общая",2.2,) -> 2.2 | Q37: 0 | R37: 0 | S37: 0 | T37: 0 | U37: 0 | V37: =IF(Титульный!$B$28="Общая",2.2,) -> 2.2 | W37: 0 | X37: 0 | Y37: 0 | Z37: 0 | AA37: 0 | AB37: 0 | AC37: =IF(Титульный!$B$28="Общая",2.2,) -> 2.2 | AD37: 0 | AE37: 0 | AF37: 0 | AG37: 0 | AH37: 0 | AI37: =IF(Титульный!$B$28="Общая",2.2,) -> 2.2 | AJ37: 0 | AK37: 0 | AL37: 0 | AM37: 0 | AN37: 0 | AO37: =IF(Титульный!$B$28="Общая",2.2,) -> 2.2 | AP37: 0
E38: 0 | F38: 0 | G38: 0 | H38: 0 | I38: 0 | J38: =IF(Титульный!$B$28="Общая",2.2,) -> 2.2 | K38: 0 | L38: 0 | M38: 0 | N38: 0 | O38: 0 | P38: =IF(Титульный!$B$28="Общая",2.2,) -> 2.2 | Q38: 0 | R38: 0 | S38: 0 | T38: 0 | U38: 0 | V38: =IF(Титульный!$B$28="Общая",2.2,) -> 2.2 | W38: 0 | X38: 0 | Y38: 0 | Z38: 0 | AA38: 0 | AB38: 0 | AC38: =IF(Титульный!$B$28="Общая",2.2,) -> 2.2 | AD38: 0 | AE38: 0 | AF38: 0 | AG38: 0 | AH38: 0 | AI38: =IF(Титульный!$B$28="Общая",2.2,) -> 2.2 | AJ38: 0 | AK38: 0 | AL38: 0 | AM38: 0 | AN38: 0 | AO38: =IF(Титульный!$B$28="Общая",2.2,) -> 2.2 | AP38: 0
E39: 0 | F39: 0 | G39: 0 | H39: 0 | I39: 0 | J39: =IF(Титульный!$B$28="Общая",2.2,) -> 2.2 | K39: 0 | L39: 0 | M39: 0 | N39: 0 | O39: 0 | P39: =IF(Титульный!$B$28="Общая",2.2,) -> 2.2 | Q39: 0 | R39: 0 | S39: 0 | T39: 0 | U39: 0 | V39: =IF(Титульный!$B$28="Общая",2.2,) -> 2.2 | W39: 0 | X39: 0 | Y39: 0 | Z39: 0 | AA39: 0 | AB39: 0 | AC39: =IF(Титульный!$B$28="Общая",2.2,) -> 2.2 | AD39: 0 | AE39: 0 | AF39: 0 | AG39: 0 | AH39: 0 | AI39: =IF(Титульный!$B$28="Общая",2.2,) -> 2.2 | AJ39: 0 | AK39: 0 | AL39: 0 | AM39: 0 | AN39: 0 | AO39: =IF(Титульный!$B$28="Общая",2.2,) -> 2.2 | AP39: 0
E40: 0 | F40: 0 | G40: 0 | H40: 0 | I40: 0 | J40: =IF(Титульный!$B$28="Общая",2.2,) -> 2.2 | K40: 0 | L40: 0 | M40: 0 | N40: 0 | O40: 0 | P40: =IF(Титульный!$B$28="Общая",2.2,) -> 2.2 | Q40: 0 | R40: =IF(DATEDIF(O40,$F$9,"m")*Q40<N40,(N40-DATEDIF(O40,$F$9,"m")*Q40),0) -> 0 | S40: 0 | T40: 0 | U40: 0 | V40: =IF(Титульный!$B$28="Общая",2.2,) -> 2.2 | W40: 0 | X40: =IF(D40=0,0,B40/D40) -> 0 | Y40: =IF(DATEDIF(C40,$Y$9,"m")*X40<B40,(B40-DATEDIF(C40,$Y$9,"m")*X40),0) -> 0 | Z40: 0 | AA40: 0 | AB40: 0 | AC40: =IF(Титульный!$B$28="Общая",2.2,) -> 2.2 | AD40: 0 | AE40: =AA40 -> 0 | AF40: 0 | AG40: 0 | AH40: 0 | AI40: =IF(Титульный!$B$28="Общая",2.2,) -> 2.2 | AJ40: 0 | AK40: 0 | AL40: 0 | AM40: 0 | AN40: 0 | AO40: =IF(Титульный!$B$28="Общая",2.2,) -> 2.2 | AP40: 0
E41: 0 | F41: 0 | G41: 0 | H41: 0 | I41: 0 | J41: =IF(Титульный!$B$28="Общая",2.2,) -> 2.2 | K41: 0 | L41: 0 | M41: 0 | N41: 0 | O41: 0 | P41: =IF(Титульный!$B$28="Общая",2.2,) -> 2.2 | Q41: 0 | R41: 0 | S41: 0 | T41: 0 | U41: 0 | V41: =IF(Титульный!$B$28="Общая",2.2,) -> 2.2 | W41: 0 | X41: 0 | Y41: 0 | Z41: 0 | AA41: 0 | AB41: 0 | AC41: =IF(Титульный!$B$28="Общая",2.2,) -> 2.2 | AD41: 0 | AE41: 0 | AF41: 0 | AG41: 0 | AH41: 0 | AI41: =IF(Титульный!$B$28="Общая",2.2,) -> 2.2 | AJ41: 0 | AK41: 0 | AL41: 0 | AM41: 0 | AN41: 0 | AO41: =IF(Титульный!$B$28="Общая",2.2,) -> 2.2 | AP41: 0
E42: 0 | F42: 0 | G42: 0 | H42: 0 | I42: 0 | J42: =IF(Титульный!$B$28="Общая",2.2,) -> 2.2 | K42: 0 | L42: 0 | M42: 0 | N42: 0 | O42: 0 | P42: =IF(Титульный!$B$28="Общая",2.2,) -> 2.2 | Q42: 0 | R42: 0 | S42: 0 | T42: 0 | U42: 0 | V42: =IF(Титульный!$B$28="Общая",2.2,) -> 2.2 | W42: 0 | X42: 0 | Y42: 0 | Z42: 0 | AA42: 0 | AB42: 0 | AC42: =IF(Титульный!$B$28="Общая",2.2,) -> 2.2 | AD42: 0 | AE42: 0 | AF42: 0 | AG42: 0 | AH42: 0 | AI42: =IF(Титульный!$B$28="Общая",2.2,) -> 2.2 | AJ42: 0 | AK42: 0 | AL42: 0 | AM42: 0 | AN42: 0 | AO42: =IF(Титульный!$B$28="Общая",2.2,) -> 2.2 | AP42: 0
E43: 0 | F43: 0 | G43: 0 | H43: 0 | I43: 0 | J43: =IF(Титульный!$B$28="Общая",2.2,) -> 2.2 | K43: 0 | L43: 0 | M43: 0 | N43: 0 | O43: 0 | P43: =IF(Титульный!$B$28="Общая",2.2,) -> 2.2 | Q43: 0 | R43: 0 | S43: 0 | T43: 0 | U43: 0 | V43: =IF(Титульный!$B$28="Общая",2.2,) -> 2.2 | W43: 0 | X43: 0 | Y43: 0 | Z43: 0 | AA43: 0 | AB43: 0 | AC43: =IF(Титульный!$B$28="Общая",2.2,) -> 2.2 | AD43: 0 | AE43: 0 | AF43: 0 | AG43: 0 | AH43: 0 | AI43: =IF(Титульный!$B$28="Общая",2.2,) -> 2.2 | AJ43: 0 | AK43: 0 | AL43: 0 | AM43: 0 | AN43: 0 | AO43: =IF(Титульный!$B$28="Общая",2.2,) -> 2.2 | AP43: 0
E44: 0 | F44: 0 | G44: 0 | H44: 0 | I44: 0 | J44: =IF(Титульный!$B$28="Общая",2.2,) -> 2.2 | K44: 0 | L44: 0 | M44: 0 | N44: 0 | O44: 0 | P44: =IF(Титульный!$B$28="Общая",2.2,) -> 2.2 | Q44: 0 | R44: 0 | S44: 0 | T44: 0 | U44: 0 | V44: =IF(Титульный!$B$28="Общая",2.2,) -> 2.2 | W44: 0 | X44: 0 | Y44: 0 | Z44: 0 | AA44: 0 | AB44: 0 | AC44: =IF(Титульный!$B$28="Общая",2.2,) -> 2.2 | AD44: 0 | AE44: 0 | AF44: 0 | AG44: 0 | AH44: 0 | AI44: =IF(Титульный!$B$28="Общая",2.2,) -> 2.2 | AJ44: 0 | AK44: 0 | AL44: 0 | AM44: 0 | AN44: 0 | AO44: =IF(Титульный!$B$28="Общая",2.2,) -> 2.2 | AP44: 0
E45: 0 | F45: 0 | G45: 0 | H45: 0 | I45: 0 | J45: =IF(Титульный!$B$28="Общая",2.2,) -> 2.2 | K45: 0 | L45: 0 | M45: 0 | N45: 0 | O45: 0 | P45: =IF(Титульный!$B$28="Общая",2.2,) -> 2.2 | Q45: 0 | R45: 0 | S45: 0 | T45: 0 | U45: 0 | V45: =IF(Титульный!$B$28="Общая",2.2,) -> 2.2 | W45: 0 | X45: 0 | Y45: 0 | Z45: 0 | AA45: 0 | AB45: 0 | AC45: =IF(Титульный!$B$28="Общая",2.2,) -> 2.2 | AD45: 0 | AE45: 0 | AF45: 0 | AG45: 0 | AH45: 0 | AI45: =IF(Титульный!$B$28="Общая",2.2,) -> 2.2 | AJ45: 0 | AK45: 0 | AL45: 0 | AM45: 0 | AN45: 0 | AO45: =IF(Титульный!$B$28="Общая",2.2,) -> 2.2 | AP45: 0
E46: 0 | F46: 0 | G46: 0 | H46: 0 | I46: 0 | J46: =IF(Титульный!$B$28="Общая",2.2,) -> 2.2 | K46: 0 | L46: 0 | M46: 0 | N46: 0 | O46: 0 | P46: =IF(Титульный!$B$28="Общая",2.2,) -> 2.2 | Q46: 0 | R46: 0 | S46: 0 | T46: 0 | U46: 0 | V46: =IF(Титульный!$B$28="Общая",2.2,) -> 2.2 | W46: 0 | X46: 0 | Y46: 0 | Z46: 0 | AA46: 0 | AB46: 0 | AC46: =IF(Титульный!$B$28="Общая",2.2,) -> 2.2 | AD46: 0 | AE46: 0 | AF46: 0 | AG46: 0 | AH46: 0 | AI46: =IF(Титульный!$B$28="Общая",2.2,) -> 2.2 | AJ46: 0 | AK46: 0 | AL46: 0 | AM46: 0 | AN46: 0 | AO46: =IF(Титульный!$B$28="Общая",2.2,) -> 2.2 | AP46: 0
E47: 0 | F47: 0 | G47: 0 | H47: 0 | I47: 0 | J47: =IF(Титульный!$B$28="Общая",2.2,) -> 2.2 | K47: 0 | L47: 0 | M47: 0 | N47: 0 | O47: 0 | P47: =IF(Титульный!$B$28="Общая",2.2,) -> 2.2 | Q47: 0 | R47: 0 | S47: 0 | T47: 0 | U47: 0 | V47: =IF(Титульный!$B$28="Общая",2.2,) -> 2.2 | W47: 0 | X47: 0 | Y47: 0 | Z47: 0 | AA47: 0 | AB47: 0 | AC47: =IF(Титульный!$B$28="Общая",2.2,) -> 2.2 | AD47: 0 | AE47: 0 | AF47: 0 | AG47: 0 | AH47: 0 | AI47: =IF(Титульный!$B$28="Общая",2.2,) -> 2.2 | AJ47: 0 | AK47: 0 | AL47: 0 | AM47: 0 | AN47: 0 | AO47: =IF(Титульный!$B$28="Общая",2.2,) -> 2.2 | AP47: 0
E48: 0 | F48: 0 | G48: 0 | H48: 0 | I48: 0 | J48: =IF(Титульный!$B$28="Общая",2.2,) -> 2.2 | K48: 0 | L48: 0 | M48: 0 | N48: 0 | O48: 0 | P48: =IF(Титульный!$B$28="Общая",2.2,) -> 2.2 | Q48: 0 | R48: 0 | S48: 0 | T48: 0 | U48: 0 | V48: =IF(Титульный!$B$28="Общая",2.2,) -> 2.2 | W48: 0 | X48: 0 | Y48: 0 | Z48: 0 | AA48: 0 | AB48: 0 | AC48: =IF(Титульный!$B$28="Общая",2.2,) -> 2.2 | AD48: 0 | AE48: 0 | AF48: 0 | AG48: 0 | AH48: 0 | AI48: =IF(Титульный!$B$28="Общая",2.2,) -> 2.2 | AJ48: 0 | AK48: 0 | AL48: 0 | AM48: 0 | AN48: 0 | AO48: =IF(Титульный!$B$28="Общая",2.2,) -> 2.2 | AP48: 0
E49: 0 | F49: 0 | G49: 0 | H49: 0 | I49: 0 | J49: =IF(Титульный!$B$28="Общая",2.2,) -> 2.2 | K49: 0 | L49: 0 | M49: 0 | N49: 0 | O49: 0 | P49: =IF(Титульный!$B$28="Общая",2.2,) -> 2.2 | Q49: 0 | R49: 0 | S49: 0 | T49: 0 | U49: 0 | V49: =IF(Титульный!$B$28="Общая",2.2,) -> 2.2 | W49: 0 | X49: 0 | Y49: 0 | Z49: 0 | AA49: 0 | AB49: 0 | AC49: =IF(Титульный!$B$28="Общая",2.2,) -> 2.2 | AD49: 0 | AE49: 0 | AF49: 0 | AG49: 0 | AH49: 0 | AI49: =IF(Титульный!$B$28="Общая",2.2,) -> 2.2 | AJ49: 0 | AK49: 0 | AL49: 0 | AM49: 0 | AN49: 0 | AO49: =IF(Титульный!$B$28="Общая",2.2,) -> 2.2 | AP49: 0
E50: 0 | F50: 0 | G50: 0 | H50: 0 | I50: 0 | J50: =IF(Титульный!$B$28="Общая",2.2,) -> 2.2 | K50: 0 | L50: 0 | M50: 0 | N50: 0 | O50: 0 | P50: =IF(Титульный!$B$28="Общая",2.2,) -> 2.2 | Q50: 0 | R50: 0 | S50: 0 | T50: 0 | U50: 0 | V50: =IF(Титульный!$B$28="Общая",2.2,) -> 2.2 | W50: 0 | X50: 0 | Y50: 0 | Z50: 0 | AA50: 0 | AB50: 0 | AC50: =IF(Титульный!$B$28="Общая",2.2,) -> 2.2 | AD50: 0 | AE50: 0 | AF50: 0 | AG50: 0 | AH50: 0 | AI50: =IF(Титульный!$B$28="Общая",2.2,) -> 2.2 | AJ50: 0 | AK50: 0 | AL50: 0 | AM50: 0 | AN50: 0 | AO50: =IF(Титульный!$B$28="Общая",2.2,) -> 2.2 | AP50: 0
E51: 0 | F51: 0 | G51: 0 | H51: 0 | I51: 0 | J51: =IF(Титульный!$B$28="Общая",2.2,) -> 2.2 | K51: 0 | L51: 0 | M51: 0 | N51: 0 | O51: 0 | P51: =IF(Титульный!$B$28="Общая",2.2,) -> 2.2 | Q51: 0 | R51: 0 | S51: 0 | T51: 0 | U51: 0 | V51: =IF(Титульный!$B$28="Общая",2.2,) -> 2.2 | W51: 0 | X51: 0 | Y51: 0 | Z51: 0 | AA51: 0 | AB51: 0 | AC51: =IF(Титульный!$B$28="Общая",2.2,) -> 2.2 | AD51: 0 | AE51: 0 | AF51: 0 | AG51: 0 | AH51: 0 | AI51: =IF(Титульный!$B$28="Общая",2.2,) -> 2.2 | AJ51: 0 | AK51: 0 | AL51: 0 | AM51: 0 | AN51: 0 | AO51: =IF(Титульный!$B$28="Общая",2.2,) -> 2.2 | AP51: 0
E52: 0 | F52: 0 | G52: 0 | H52: 0 | I52: 0 | J52: =IF(Титульный!$B$28="Общая",2.2,) -> 2.2 | K52: 0 | L52: 0 | M52: 0 | N52: 0 | O52: 0 | P52: =IF(Титульный!$B$28="Общая",2.2,) -> 2.2 | Q52: 0 | R52: 0 | S52: 0 | T52: 0 | U52: 0 | V52: =IF(Титульный!$B$28="Общая",2.2,) -> 2.2 | W52: 0 | X52: 0 | Y52: 0 | Z52: 0 | AA52: 0 | AB52: 0 | AC52: =IF(Титульный!$B$28="Общая",2.2,) -> 2.2 | AD52: 0 | AE52: 0 | AF52: 0 | AG52: 0 | AH52: 0 | AI52: =IF(Титульный!$B$28="Общая",2.2,) -> 2.2 | AJ52: 0 | AK52: 0 | AL52: 0 | AM52: 0 | AN52: 0 | AO52: =IF(Титульный!$B$28="Общая",2.2,) -> 2.2 | AP52: 0
A53: ИТОГО очистка воды | B53: =SUM(B33:B52) -> 0 | C53: х | D53: х | E53: =SUM(E33:E52) -> 0 | F53: =SUM(F33:F52) -> 0 | G53: =SUM(G33:G52) -> 0 | H53: =SUM(H33:H52) -> 0 | I53: =SUM(I33:I52) -> 0 | K53: =SUM(K33:K52) -> 0 | L53: =SUM(L33:L52) -> 0 | M53: =SUM(M33:M52) -> 0 | N53: =SUM(N33:N52) -> 0 | O53: =SUM(O33:O52) -> 0 | Q53: =SUM(Q33:Q52) -> 0 | R53: =SUM(R33:R52) -> 0 | S53: =SUM(S33:S52) -> 0 | T53: =SUM(T33:T52) -> 0 | U53: =SUM(U33:U52) -> 0 | W53: =SUM(W33:W52) -> 0 | X53: 0 | Y53: 0 | Z53: 0 | AA53: 0 | AB53: 0 | AD53: =SUM(AD33:AD52) -> 0 | AE53: =SUM(AE33:AE52) -> 0 | AF53: =SUM(AF33:AF52) -> 0 | AG53: =SUM(AG33:AG52) -> 0 | AH53: =SUM(AH33:AH52) -> 0 | AJ53: =SUM(AJ33:AJ52) -> 0 | AK53: =SUM(AK33:AK52) -> 0 | AL53: =SUM(AL33:AL52) -> 0 | AM53: =SUM(AM33:AM52) -> 0 | AN53: =SUM(AN33:AN52) -> 0 | AP53: =SUM(AP33:AP52) -> 0
A54: транспортировка воды
E55: =IF(D55=0,0,B55/D55) -> 0 | F55: =IF(DATEDIF(C55,$F$9,"m")*E55<B55,(B55-DATEDIF(C55,$F$9,"m")*E55),0) -> 0 | G55: =IF(E55*12<F55,E55*12,F55) -> 0 | H55: =IF(E55*12>F55,0,(F55-12*E55)) -> 0 | I55: =IF(E55=0,0,IF(12*E55<F55,(13*F55-78*E55)/13,(F55*F55/E55-E55*(F55/E55)*0.5*(F55/E55-1))/13)) -> 0 | J55: =IF(Титульный!$B$28="Общая",2.2,) -> 2.2 | K55: =I55*J55/100 -> 0 | L55: =H55 -> 0 | M55: =IF(E55*12<L55,E55*12,L55) -> 0 | N55: =IF(E55*12>L55,0,(L55-12*E55)) -> 0 | O55: =IF(E55=0,0,IF(12*E55<L55,(13*L55-78*E55)/13,(L55*L55/E55-E55*(L55/E55)*0.5*(L55/E55-1))/13)) -> 0 | P55: =IF(Титульный!$B$28="Общая",2.2,) -> 2.2 | Q55: =O55*P55/100 -> 0 | R55: =N55 -> 0 | S55: =IF(E55*12<R55,E55*12,R55) -> 0 | T55: =IF(E55*12>R55,0,(R55-12*E55)) -> 0 | U55: =IF(E55=0,0,IF(12*E55<R55,(13*R55-78*E55)/13,(R55*R55/E55-E55*(R55/E55)*0.5*(R55/E55-1))/13)) -> 0 | V55: =IF(Титульный!$B$28="Общая",2.2,) -> 2.2 | W55: =U55*V55/100 -> 0 | X55: =IF(D55=0,0,B55/D55) -> 0 | Y55: =IF(DATEDIF(C55,$Y$9,"m")*X55<B55,(B55-DATEDIF(C55,$Y$9,"m")*X55),0) -> 0 | Z55: =IF(X55*12<Y55,(X55*12),Y55) -> 0 | AA55: =IF(X55*12>Y55,0,(Y55-12*X55)) -> 0 | AB55: =IF(X55=0,0,IF(12*X55<Y55,(13*Y55-78*X55)/13,(Y55*Y55/X55-X55*(Y55/X55)*0.5*(Y55/X55-1))/13)) -> 0 | AC55: =IF(Титульный!$B$28="Общая",2.2,) -> 2.2 | AD55: =AB55*AC55/100 -> 0 | AE55: =AA55 -> 0 | AF55: =IF(X55*12<AE55,(X55*12),AE55) -> 0 | AG55: =IF(X55*12>AE55,0,(AE55-12*X55)) -> 0 | AH55: =IF(X55=0,0,IF(12*X55<AE55,(13*AE55-78*X55)/13,(AE55*AE55/X55-X55*(AE55/X55)*0.5*(AE55/X55-1))/13)) -> 0 | AI55: =IF(Титульный!$B$28="Общая",2.2,) -> 2.2 | AJ55: =AH55*AI55/100 -> 0 | AK55: =AG55 -> 0 | AL55: =IF(X55*12<AK55,(X55*12),AK55) -> 0 | AM55: =IF(X55*12>AK55,0,(AK55-12*X55)) -> 0 | AN55: =IF(X55=0,0,IF(12*X55<AK55,(13*AK55-78*X55)/13,(AK55*AK55/X55-X55*(AK55/X55)*0.5*(AK55/X55-1))/13)) -> 0 | AO55: =IF(Титульный!$B$28="Общая",2.2,) -> 2.2 | AP55: =AN55*AO55/100 -> 0
E56: 0 | F56: 0 | G56: 0 | H56: 0 | I56: 0 | J56: =IF(Титульный!$B$28="Общая",2.2,) -> 2.2 | K56: =I56*J56/100 -> 0 | L56: 0 | M56: 0 | N56: 0 | O56: 0 | P56: =IF(Титульный!$B$28="Общая",2.2,) -> 2.2 | Q56: =O56*P56/100 -> 0 | R56: =N56 -> 0 | S56: 0 | T56: 0 | U56: 0 | V56: =IF(Титульный!$B$28="Общая",2.2,) -> 2.2 | W56: =U56*V56/100 -> 0 | X56: =IF(D56=0,0,B56/D56) -> 0 | Y56: =IF(DATEDIF(C56,$Y$9,"m")*X56<B56,(B56-DATEDIF(C56,$Y$9,"m")*X56),0) -> 0 | Z56: 0 | AA56: 0 | AB56: 0 | AC56: =IF(Титульный!$B$28="Общая",2.2,) -> 2.2 | AD56: =AB56*AC56/100 -> 0 | AE56: =AA56 -> 0 | AF56: 0 | AG56: 0 | AH56: 0 | AI56: =IF(Титульный!$B$28="Общая",2.2,) -> 2.2 | AJ56: =AH56*AI56/100 -> 0 | AK56: 0 | AL56: 0 | AM56: 0 | AN56: 0 | AO56: =IF(Титульный!$B$28="Общая",2.2,) -> 2.2 | AP56: =AN56*AO56/100 -> 0
E57: 0 | F57: 0 | G57: 0 | H57: 0 | I57: 0 | J57: =IF(Титульный!$B$28="Общая",2.2,) -> 2.2 | K57: 0 | L57: 0 | M57: 0 | N57: 0 | O57: 0 | P57: =IF(Титульный!$B$28="Общая",2.2,) -> 2.2 | Q57: 0 | R57: =N57 -> 0 | S57: 0 | T57: 0 | U57: 0 | V57: =IF(Титульный!$B$28="Общая",2.2,) -> 2.2 | W57: 0 | X57: =IF(D57=0,0,B57/D57) -> 0 | Y57: =IF(DATEDIF(C57,$Y$9,"m")*X57<B57,(B57-DATEDIF(C57,$Y$9,"m")*X57),0) -> 0 | Z57: 0 | AA57: 0 | AB57: 0 | AC57: =IF(Титульный!$B$28="Общая",2.2,) -> 2.2 | AD57: 0 | AE57: =AA57 -> 0 | AF57: 0 | AG57: 0 | AH57: 0 | AI57: =IF(Титульный!$B$28="Общая",2.2,) -> 2.2 | AJ57: 0 | AK57: 0 | AL57: 0 | AM57: 0 | AN57: 0 | AO57: =IF(Титульный!$B$28="Общая",2.2,) -> 2.2 | AP57: 0
E58: 0 | F58: 0 | G58: 0 | H58: 0 | I58: 0 | J58: =IF(Титульный!$B$28="Общая",2.2,) -> 2.2 | K58: 0 | L58: 0 | M58: 0 | N58: 0 | O58: 0 | P58: =IF(Титульный!$B$28="Общая",2.2,) -> 2.2 | Q58: 0 | R58: =N58 -> 0 | S58: 0 | T58: 0 | U58: 0 | V58: =IF(Титульный!$B$28="Общая",2.2,) -> 2.2 | W58: 0 | X58: =IF(D58=0,0,B58/D58) -> 0 | Y58: =IF(DATEDIF(C58,$Y$9,"m")*X58<B58,(B58-DATEDIF(C58,$Y$9,"m")*X58),0) -> 0 | Z58: 0 | AA58: 0 | AB58: 0 | AC58: =IF(Титульный!$B$28="Общая",2.2,) -> 2.2 | AD58: 0 | AE58: =AA58 -> 0 | AF58: 0 | AG58: 0 | AH58: 0 | AI58: =IF(Титульный!$B$28="Общая",2.2,) -> 2.2 | AJ58: 0 | AK58: 0 | AL58: 0 | AM58: 0 | AN58: 0 | AO58: =IF(Титульный!$B$28="Общая",2.2,) -> 2.2 | AP58: 0
E59: 0 | F59: 0 | G59: 0 | H59: 0 | I59: 0 | J59: =IF(Титульный!$B$28="Общая",2.2,) -> 2.2 | K59: 0 | L59: 0 | M59: 0 | N59: 0 | O59: 0 | P59: =IF(Титульный!$B$28="Общая",2.2,) -> 2.2 | Q59: 0 | R59: =N59 -> 0 | S59: 0 | T59: 0 | U59: 0 | V59: =IF(Титульный!$B$28="Общая",2.2,) -> 2.2 | W59: 0 | X59: =IF(D59=0,0,B59/D59) -> 0 | Y59: =IF(DATEDIF(C59,$Y$9,"m")*X59<B59,(B59-DATEDIF(C59,$Y$9,"m")*X59),0) -> 0 | Z59: 0 | AA59: 0 | AB59: 0 | AC59: =IF(Титульный!$B$28="Общая",2.2,) -> 2.2 | AD59: 0 | AE59: =AA59 -> 0 | AF59: 0 | AG59: 0 | AH59: 0 | AI59: =IF(Титульный!$B$28="Общая",2.2,) -> 2.2 | AJ59: 0 | AK59: 0 | AL59: 0 | AM59: 0 | AN59: 0 | AO59: =IF(Титульный!$B$28="Общая",2.2,) -> 2.2 | AP59: 0
E60: =IF(D60=0,0,B60/D60) -> 0 | F60: =IF(DATEDIF(C60,$F$9,"m")*E60<B60,(B60-DATEDIF(C60,$F$9,"m")*E60),0) -> 0 | G60: =IF(E60*12<F60,E60*12,F60) -> 0 | H60: =IF(E60*12>F60,0,(F60-12*E60)) -> 0 | I60: =IF(E60=0,0,IF(12*E60<F60,(13*F60-78*E60)/13,(F60*F60/E60-E60*(F60/E60)*0.5*(F60/E60-1))/13)) -> 0 | J60: =IF(Титульный!$B$28="Общая",2.2,) -> 2.2 | K60: =I60*J60/100 -> 0 | L60: =H60 -> 0 | M60: =IF(E60*12<L60,E60*12,L60) -> 0 | N60: =IF(E60*12>L60,0,(L60-12*E60)) -> 0 | O60: =IF(E60=0,0,IF(12*E60<L60,(13*L60-78*E60)/13,(L60*L60/E60-E60*(L60/E60)*0.5*(L60/E60-1))/13)) -> 0 | P60: =IF(Титульный!$B$28="Общая",2.2,) -> 2.2 | Q60: =O60*P60/100 -> 0 | R60: =N60 -> 0 | S60: =IF(E60*12<R60,E60*12,R60) -> 0 | T60: =IF(E60*12>R60,0,(R60-12*E60)) -> 0 | U60: =IF(E60=0,0,IF(12*E60<R60,(13*R60-78*E60)/13,(R60*R60/E60-E60*(R60/E60)*0.5*(R60/E60-1))/13)) -> 0 | V60: =IF(Титульный!$B$28="Общая",2.2,) -> 2.2 | W60: =U60*V60/100 -> 0 | X60: =IF(D60=0,0,B60/D60) -> 0 | Y60: =IF(DATEDIF(C60,$Y$9,"m")*X60<B60,(B60-DATEDIF(C60,$Y$9,"m")*X60),0) -> 0 | Z60: =IF(X60*12<Y60,(X60*12),Y60) -> 0 | AA60: =IF(X60*12>Y60,0,(Y60-12*X60)) -> 0 | AB60: =IF(X60=0,0,IF(12*X60<Y60,(13*Y60-78*X60)/13,(Y60*Y60/X60-X60*(Y60/X60)*0.5*(Y60/X60-1))/13)) -> 0 | AC60: =IF(Титульный!$B$28="Общая",2.2,) -> 2.2 | AD60: =AB60*AC60/100 -> 0 | AE60: =AA60 -> 0 | AF60: =IF(X60*12<AE60,(X60*12),AE60) -> 0 | AG60: =IF(X60*12>AE60,0,(AE60-12*X60)) -> 0 | AH60: =IF(X60=0,0,IF(12*X60<AE60,(13*AE60-78*X60)/13,(AE60*AE60/X60-X60*(AE60/X60)*0.5*(AE60/X60-1))/13)) -> 0 | AI60: =IF(Титульный!$B$28="Общая",2.2,) -> 2.2 | AJ60: =AH60*AI60/100 -> 0 | AK60: =AG60 -> 0 | AL60: =IF(X60*12<AK60,(X60*12),AK60) -> 0 | AM60: =IF(X60*12>AK60,0,(AK60-12*X60)) -> 0 | AN60: =IF(X60=0,0,IF(12*X60<AK60,(13*AK60-78*X60)/13,(AK60*AK60/X60-X60*(AK60/X60)*0.5*(AK60/X60-1))/13)) -> 0 | AO60: =IF(Титульный!$B$28="Общая",2.2,) -> 2.2 | AP60: =AN60*AO60/100 -> 0
E61: 0 | F61: 0 | G61: 0 | H61: 0 | I61: 0 | J61: =IF(Титульный!$B$28="Общая",2.2,) -> 2.2 | K61: 0 | L61: 0 | M61: 0 | N61: 0 | O61: 0 | P61: =IF(Титульный!$B$28="Общая",2.2,) -> 2.2 | Q61: 0 | R61: 0 | S61: 0 | T61: 0 | U61: 0 | V61: =IF(Титульный!$B$28="Общая",2.2,) -> 2.2 | W61: 0 | X61: 0 | Y61: 0 | Z61: 0 | AA61: 0 | AB61: 0 | AC61: =IF(Титульный!$B$28="Общая",2.2,) -> 2.2 | AD61: 0 | AE61: 0 | AF61: 0 | AG61: 0 | AH61: 0 | AI61: =IF(Титульный!$B$28="Общая",2.2,) -> 2.2 | AJ61: 0 | AK61: 0 | AL61: 0 | AM61: 0 | AN61: 0 | AO61: =IF(Титульный!$B$28="Общая",2.2,) -> 2.2 | AP61: 0
E62: 0 | F62: 0 | G62: 0 | H62: 0 | I62: 0 | J62: =IF(Титульный!$B$28="Общая",2.2,) -> 2.2 | K62: 0 | L62: 0 | M62: 0 | N62: 0 | O62: 0 | P62: =IF(Титульный!$B$28="Общая",2.2,) -> 2.2 | Q62: 0 | R62: 0 | S62: 0 | T62: 0 | U62: 0 | V62: =IF(Титульный!$B$28="Общая",2.2,) -> 2.2 | W62: 0 | X62: 0 | Y62: 0 | Z62: 0 | AA62: 0 | AB62: 0 | AC62: =IF(Титульный!$B$28="Общая",2.2,) -> 2.2 | AD62: 0 | AE62: 0 | AF62: 0 | AG62: 0 | AH62: 0 | AI62: =IF(Титульный!$B$28="Общая",2.2,) -> 2.2 | AJ62: 0 | AK62: 0 | AL62: 0 | AM62: 0 | AN62: 0 | AO62: =IF(Титульный!$B$28="Общая",2.2,) -> 2.2 | AP62: 0
E63: 0 | F63: 0 | G63: 0 | H63: 0 | I63: 0 | J63: =IF(Титульный!$B$28="Общая",2.2,) -> 2.2 | K63: 0 | L63: 0 | M63: 0 | N63: 0 | O63: 0 | P63: =IF(Титульный!$B$28="Общая",2.2,) -> 2.2 | Q63: 0 | R63: 0 | S63: 0 | T63: 0 | U63: 0 | V63: =IF(Титульный!$B$28="Общая",2.2,) -> 2.2 | W63: 0 | X63: 0 | Y63: 0 | Z63: 0 | AA63: 0 | AB63: 0 | AC63: =IF(Титульный!$B$28="Общая",2.2,) -> 2.2 | AD63: 0 | AE63: 0 | AF63: 0 | AG63: 0 | AH63: 0 | AI63: =IF(Титульный!$B$28="Общая",2.2,) -> 2.2 | AJ63: 0 | AK63: 0 | AL63: 0 | AM63: 0 | AN63: 0 | AO63: =IF(Титульный!$B$28="Общая",2.2,) -> 2.2 | AP63: 0
E64: 0 | F64: 0 | G64: 0 | H64: 0 | I64: 0 | J64: =IF(Титульный!$B$28="Общая",2.2,) -> 2.2 | K64: 0 | L64: 0 | M64: 0 | N64: 0 | O64: 0 | P64: =IF(Титульный!$B$28="Общая",2.2,) -> 2.2 | Q64: 0 | R64: 0 | S64: 0 | T64: 0 | U64: 0 | V64: =IF(Титульный!$B$28="Общая",2.2,) -> 2.2 | W64: 0 | X64: 0 | Y64: 0 | Z64: 0 | AA64: 0 | AB64: 0 | AC64: =IF(Титульный!$B$28="Общая",2.2,) -> 2.2 | AD64: 0 | AE64: 0 | AF64: 0 | AG64: 0 | AH64: 0 | AI64: =IF(Титульный!$B$28="Общая",2.2,) -> 2.2 | AJ64: 0 | AK64: 0 | AL64: 0 | AM64: 0 | AN64: 0 | AO64: =IF(Титульный!$B$28="Общая",2.2,) -> 2.2 | AP64: 0
E65: 0 | F65: 0 | G65: 0 | H65: 0 | I65: 0 | J65: =IF(Титульный!$B$28="Общая",2.2,) -> 2.2 | K65: 0 | L65: 0 | M65: 0 | N65: 0 | O65: 0 | P65: =IF(Титульный!$B$28="Общая",2.2,) -> 2.2 | Q65: 0 | R65: 0 | S65: 0 | T65: 0 | U65: 0 | V65: =IF(Титульный!$B$28="Общая",2.2,) -> 2.2 | W65: 0 | X65: 0 | Y65: 0 | Z65: 0 | AA65: 0 | AB65: 0 | AC65: =IF(Титульный!$B$28="Общая",2.2,) -> 2.2 | AD65: 0 | AE65: 0 | AF65: 0 | AG65: 0 | AH65: 0 | AI65: =IF(Титульный!$B$28="Общая",2.2,) -> 2.2 | AJ65: 0 | AK65: 0 | AL65: 0 | AM65: 0 | AN65: 0 | AO65: =IF(Титульный!$B$28="Общая",2.2,) -> 2.2 | AP65: 0
E66: 0 | F66: 0 | G66: 0 | H66: 0 | I66: 0 | J66: =IF(Титульный!$B$28="Общая",2.2,) -> 2.2 | K66: 0 | L66: 0 | M66: 0 | N66: 0 | O66: 0 | P66: =IF(Титульный!$B$28="Общая",2.2,) -> 2.2 | Q66: 0 | R66: 0 | S66: 0 | T66: 0 | U66: 0 | V66: =IF(Титульный!$B$28="Общая",2.2,) -> 2.2 | W66: 0 | X66: 0 | Y66: 0 | Z66: 0 | AA66: 0 | AB66: 0 | AC66: =IF(Титульный!$B$28="Общая",2.2,) -> 2.2 | AD66: 0 | AE66: 0 | AF66: 0 | AG66: 0 | AH66: 0 | AI66: =IF(Титульный!$B$28="Общая",2.2,) -> 2.2 | AJ66: 0 | AK66: 0 | AL66: 0 | AM66: 0 | AN66: 0 | AO66: =IF(Титульный!$B$28="Общая",2.2,) -> 2.2 | AP66: 0
E67: 0 | F67: 0 | G67: 0 | H67: 0 | I67: 0 | J67: =IF(Титульный!$B$28="Общая",2.2,) -> 2.2 | K67: 0 | L67: 0 | M67: 0 | N67: 0 | O67: 0 | P67: =IF(Титульный!$B$28="Общая",2.2,) -> 2.2 | Q67: 0 | R67: 0 | S67: 0 | T67: 0 | U67: 0 | V67: =IF(Титульный!$B$28="Общая",2.2,) -> 2.2 | W67: 0 | X67: 0 | Y67: 0 | Z67: 0 | AA67: 0 | AB67: 0 | AC67: =IF(Титульный!$B$28="Общая",2.2,) -> 2.2 | AD67: 0 | AE67: 0 | AF67: 0 | AG67: 0 | AH67: 0 | AI67: =IF(Титульный!$B$28="Общая",2.2,) -> 2.2 | AJ67: 0 | AK67: 0 | AL67: 0 | AM67: 0 | AN67: 0 | AO67: =IF(Титульный!$B$28="Общая",2.2,) -> 2.2 | AP67: 0
E68: 0 | F68: 0 | G68: 0 | H68: 0 | I68: 0 | J68: =IF(Титульный!$B$28="Общая",2.2,) -> 2.2 | K68: 0 | L68: 0 | M68: 0 | N68: 0 | O68: 0 | P68: =IF(Титульный!$B$28="Общая",2.2,) -> 2.2 | Q68: 0 | R68: 0 | S68: 0 | T68: 0 | U68: 0 | V68: =IF(Титульный!$B$28="Общая",2.2,) -> 2.2 | W68: 0 | X68: 0 | Y68: 0 | Z68: 0 | AA68: 0 | AB68: 0 | AC68: =IF(Титульный!$B$28="Общая",2.2,) -> 2.2 | AD68: 0 | AE68: 0 | AF68: 0 | AG68: 0 | AH68: 0 | AI68: =IF(Титульный!$B$28="Общая",2.2,) -> 2.2 | AJ68: 0 | AK68: 0 | AL68: 0 | AM68: 0 | AN68: 0 | AO68: =IF(Титульный!$B$28="Общая",2.2,) -> 2.2 | AP68: 0
E69: 0 | F69: 0 | G69: 0 | H69: 0 | I69: 0 | J69: =IF(Титульный!$B$28="Общая",2.2,) -> 2.2 | K69: 0 | L69: 0 | M69: 0 | N69: 0 | O69: 0 | P69: =IF(Титульный!$B$28="Общая",2.2,) -> 2.2 | Q69: 0 | R69: 0 | S69: 0 | T69: 0 | U69: 0 | V69: =IF(Титульный!$B$28="Общая",2.2,) -> 2.2 | W69: 0 | X69: 0 | Y69: 0 | Z69: 0 | AA69: 0 | AB69: 0 | AC69: =IF(Титульный!$B$28="Общая",2.2,) -> 2.2 | AD69: 0 | AE69: 0 | AF69: 0 | AG69: 0 | AH69: 0 | AI69: =IF(Титульный!$B$28="Общая",2.2,) -> 2.2 | AJ69: 0 | AK69: 0 | AL69: 0 | AM69: 0 | AN69: 0 | AO69: =IF(Титульный!$B$28="Общая",2.2,) -> 2.2 | AP69: 0
E70: 0 | F70: 0 | G70: 0 | H70: 0 | I70: 0 | J70: =IF(Титульный!$B$28="Общая",2.2,) -> 2.2 | K70: 0 | L70: 0 | M70: 0 | N70: 0 | O70: 0 | P70: =IF(Титульный!$B$28="Общая",2.2,) -> 2.2 | Q70: 0 | R70: 0 | S70: 0 | T70: 0 | U70: 0 | V70: =IF(Титульный!$B$28="Общая",2.2,) -> 2.2 | W70: 0 | X70: 0 | Y70: 0 | Z70: 0 | AA70: 0 | AB70: 0 | AC70: =IF(Титульный!$B$28="Общая",2.2,) -> 2.2 | AD70: 0 | AE70: 0 | AF70: 0 | AG70: 0 | AH70: 0 | AI70: =IF(Титульный!$B$28="Общая",2.2,) -> 2.2 | AJ70: 0 | AK70: 0 | AL70: 0 | AM70: 0 | AN70: 0 | AO70: =IF(Титульный!$B$28="Общая",2.2,) -> 2.2 | AP70: 0
E71: 0 | F71: 0 | G71: 0 | H71: 0 | I71: 0 | J71: =IF(Титульный!$B$28="Общая",2.2,) -> 2.2 | K71: 0 | L71: 0 | M71: 0 | N71: 0 | O71: 0 | P71: =IF(Титульный!$B$28="Общая",2.2,) -> 2.2 | Q71: 0 | R71: 0 | S71: 0 | T71: 0 | U71: 0 | V71: =IF(Титульный!$B$28="Общая",2.2,) -> 2.2 | W71: 0 | X71: 0 | Y71: 0 | Z71: 0 | AA71: 0 | AB71: 0 | AC71: =IF(Титульный!$B$28="Общая",2.2,) -> 2.2 | AD71: 0 | AE71: 0 | AF71: 0 | AG71: 0 | AH71: 0 | AI71: =IF(Титульный!$B$28="Общая",2.2,) -> 2.2 | AJ71: 0 | AK71: 0 | AL71: 0 | AM71: 0 | AN71: 0 | AO71: =IF(Титульный!$B$28="Общая",2.2,) -> 2.2 | AP71: 0
E72: 0 | F72: 0 | G72: 0 | H72: 0 | I72: 0 | J72: =IF(Титульный!$B$28="Общая",2.2,) -> 2.2 | K72: 0 | L72: 0 | M72: 0 | N72: 0 | O72: 0 | P72: =IF(Титульный!$B$28="Общая",2.2,) -> 2.2 | Q72: 0 | R72: 0 | S72: 0 | T72: 0 | U72: 0 | V72: =IF(Титульный!$B$28="Общая",2.2,) -> 2.2 | W72: 0 | X72: 0 | Y72: 0 | Z72: 0 | AA72: 0 | AB72: 0 | AC72: =IF(Титульный!$B$28="Общая",2.2,) -> 2.2 | AD72: 0 | AE72: 0 | AF72: 0 | AG72: 0 | AH72: 0 | AI72: =IF(Титульный!$B$28="Общая",2.2,) -> 2.2 | AJ72: 0 | AK72: 0 | AL72: 0 | AM72: 0 | AN72: 0 | AO72: =IF(Титульный!$B$28="Общая",2.2,) -> 2.2 | AP72: 0
E73: 0 | F73: 0 | G73: 0 | H73: 0 | I73: 0 | J73: =IF(Титульный!$B$28="Общая",2.2,) -> 2.2 | K73: 0 | L73: 0 | M73: 0 | N73: 0 | O73: 0 | P73: =IF(Титульный!$B$28="Общая",2.2,) -> 2.2 | Q73: 0 | R73: 0 | S73: 0 | T73: 0 | U73: 0 | V73: =IF(Титульный!$B$28="Общая",2.2,) -> 2.2 | W73: 0 | X73: 0 | Y73: 0 | Z73: 0 | AA73: 0 | AB73: 0 | AC73: =IF(Титульный!$B$28="Общая",2.2,) -> 2.2 | AD73: 0 | AE73: 0 | AF73: 0 | AG73: 0 | AH73: 0 | AI73: =IF(Титульный!$B$28="Общая",2.2,) -> 2.2 | AJ73: 0 | AK73: 0 | AL73: 0 | AM73: 0 | AN73: 0 | AO73: =IF(Титульный!$B$28="Общая",2.2,) -> 2.2 | AP73: 0
E74: 0 | F74: 0 | G74: 0 | H74: 0 | I74: 0 | J74: =IF(Титульный!$B$28="Общая",2.2,) -> 2.2 | K74: 0 | L74: 0 | M74: 0 | N74: 0 | O74: 0 | P74: =IF(Титульный!$B$28="Общая",2.2,) -> 2.2 | Q74: 0 | R74: 0 | S74: 0 | T74: 0 | U74: 0 | V74: =IF(Титульный!$B$28="Общая",2.2,) -> 2.2 | W74: 0 | X74: =IF(D74=0,0,B74/D74) -> 0 | Y74: =IF(DATEDIF(C74,$Y$9,"m")*X74<B74,(B74-DATEDIF(C74,$Y$9,"m")*X74),0) -> 0 | Z74: 0 | AA74: 0 | AB74: 0 | AC74: =IF(Титульный!$B$28="Общая",2.2,) -> 2.2 | AD74: 0 | AE74: =AA74 -> 0 | AF74: 0 | AG74: 0 | AH74: 0 | AI74: =IF(Титульный!$B$28="Общая",2.2,) -> 2.2 | AJ74: 0 | AK74: 0 | AL74: 0 | AM74: 0 | AN74: 0 | AO74: =IF(Титульный!$B$28="Общая",2.2,) -> 2.2 | AP74: 0
E75: 0 | F75: 0 | G75: 0 | H75: 0 | I75: 0 | J75: =IF(Титульный!$B$28="Общая",2.2,) -> 2.2 | K75: 0 | L75: 0 | M75: 0 | N75: 0 | O75: 0 | P75: =IF(Титульный!$B$28="Общая",2.2,) -> 2.2 | Q75: 0 | R75: 0 | S75: 0 | T75: 0 | U75: 0 | V75: =IF(Титульный!$B$28="Общая",2.2,) -> 2.2 | W75: 0 | X75: 0 | Y75: 0 | Z75: 0 | AA75: 0 | AB75: 0 | AC75: =IF(Титульный!$B$28="Общая",2.2,) -> 2.2 | AD75: 0 | AE75: 0 | AF75: 0 | AG75: 0 | AH75: 0 | AI75: =IF(Титульный!$B$28="Общая",2.2,) -> 2.2 | AJ75: 0 | AK75: 0 | AL75: 0 | AM75: 0 | AN75: 0 | AO75: =IF(Титульный!$B$28="Общая",2.2,) -> 2.2 | AP75: 0
E76: 0 | F76: 0 | G76: 0 | H76: 0 | I76: 0 | J76: =IF(Титульный!$B$28="Общая",2.2,) -> 2.2 | K76: 0 | L76: 0 | M76: 0 | N76: 0 | O76: 0 | P76: =IF(Титульный!$B$28="Общая",2.2,) -> 2.2 | Q76: 0 | R76: 0 | S76: 0 | T76: 0 | U76: 0 | V76: =IF(Титульный!$B$28="Общая",2.2,) -> 2.2 | W76: 0 | X76: 0 | Y76: 0 | Z76: 0 | AA76: 0 | AB76: 0 | AC76: =IF(Титульный!$B$28="Общая",2.2,) -> 2.2 | AD76: 0 | AE76: 0 | AF76: 0 | AG76: 0 | AH76: 0 | AI76: =IF(Титульный!$B$28="Общая",2.2,) -> 2.2 | AJ76: 0 | AK76: 0 | AL76: 0 | AM76: 0 | AN76: 0 | AO76: =IF(Титульный!$B$28="Общая",2.2,) -> 2.2 | AP76: 0
E77: 0 | F77: 0 | G77: 0 | H77: 0 | I77: 0 | J77: =IF(Титульный!$B$28="Общая",2.2,) -> 2.2 | K77: 0 | L77: 0 | M77: 0 | N77: 0 | O77: 0 | P77: =IF(Титульный!$B$28="Общая",2.2,) -> 2.2 | Q77: 0 | R77: 0 | S77: 0 | T77: 0 | U77: 0 | V77: =IF(Титульный!$B$28="Общая",2.2,) -> 2.2 | W77: 0 | X77: 0 | Y77: 0 | Z77: 0 | AA77: 0 | AB77: 0 | AC77: =IF(Титульный!$B$28="Общая",2.2,) -> 2.2 | AD77: 0 | AE77: 0 | AF77: 0 | AG77: 0 | AH77: 0 | AI77: =IF(Титульный!$B$28="Общая",2.2,) -> 2.2 | AJ77: 0 | AK77: 0 | AL77: 0 | AM77: 0 | AN77: 0 | AO77: =IF(Титульный!$B$28="Общая",2.2,) -> 2.2 | AP77: 0
E78: 0 | F78: 0 | G78: 0 | H78: 0 | I78: 0 | J78: =IF(Титульный!$B$28="Общая",2.2,) -> 2.2 | K78: 0 | L78: 0 | M78: 0 | N78: 0 | O78: 0 | P78: =IF(Титульный!$B$28="Общая",2.2,) -> 2.2 | Q78: 0 | R78: 0 | S78: 0 | T78: 0 | U78: 0 | V78: =IF(Титульный!$B$28="Общая",2.2,) -> 2.2 | W78: 0 | X78: 0 | Y78: 0 | Z78: 0 | AA78: 0 | AB78: 0 | AC78: =IF(Титульный!$B$28="Общая",2.2,) -> 2.2 | AD78: 0 | AE78: 0 | AF78: 0 | AG78: 0 | AH78: 0 | AI78: =IF(Титульный!$B$28="Общая",2.2,) -> 2.2 | AJ78: 0 | AK78: 0 | AL78: 0 | AM78: 0 | AN78: 0 | AO78: =IF(Титульный!$B$28="Общая",2.2,) -> 2.2 | AP78: 0
E79: 0 | F79: 0 | G79: 0 | H79: 0 | I79: 0 | J79: =IF(Титульный!$B$28="Общая",2.2,) -> 2.2 | K79: 0 | L79: 0 | M79: 0 | N79: 0 | O79: 0 | P79: =IF(Титульный!$B$28="Общая",2.2,) -> 2.2 | Q79: 0 | R79: 0 | S79: 0 | T79: 0 | U79: 0 | V79: =IF(Титульный!$B$28="Общая",2.2,) -> 2.2 | W79: 0 | X79: 0 | Y79: 0 | Z79: 0 | AA79: 0 | AB79: 0 | AC79: =IF(Титульный!$B$28="Общая",2.2,) -> 2.2 | AD79: 0 | AE79: 0 | AF79: 0 | AG79: 0 | AH79: 0 | AI79: =IF(Титульный!$B$28="Общая",2.2,) -> 2.2 | AJ79: 0 | AK79: 0 | AL79: 0 | AM79: 0 | AN79: 0 | AO79: =IF(Титульный!$B$28="Общая",2.2,) -> 2.2 | AP79: 0
E80: 0 | F80: 0 | G80: 0 | H80: 0 | I80: 0 | J80: =IF(Титульный!$B$28="Общая",2.2,) -> 2.2 | K80: 0 | L80: 0 | M80: 0 | N80: 0 | O80: 0 | P80: =IF(Титульный!$B$28="Общая",2.2,) -> 2.2 | Q80: 0 | R80: 0 | S80: 0 | T80: 0 | U80: 0 | V80: =IF(Титульный!$B$28="Общая",2.2,) -> 2.2 | W80: 0 | X80: 0 | Y80: 0 | Z80: 0 | AA80: 0 | AB80: 0 | AC80: =IF(Титульный!$B$28="Общая",2.2,) -> 2.2 | AD80: 0 | AE80: 0 | AF80: 0 | AG80: 0 | AH80: 0 | AI80: =IF(Титульный!$B$28="Общая",2.2,) -> 2.2 | AJ80: 0 | AK80: 0 | AL80: 0 | AM80: 0 | AN80: 0 | AO80: =IF(Титульный!$B$28="Общая",2.2,) -> 2.2 | AP80: 0
E81: 0 | F81: 0 | G81: 0 | H81: 0 | I81: 0 | J81: =IF(Титульный!$B$28="Общая",2.2,) -> 2.2 | K81: 0 | L81: 0 | M81: 0 | N81: 0 | O81: 0 | P81: =IF(Титульный!$B$28="Общая",2.2,) -> 2.2 | Q81: 0 | R81: 0 | S81: 0 | T81: 0 | U81: 0 | V81: =IF(Титульный!$B$28="Общая",2.2,) -> 2.2 | W81: 0 | X81: 0 | Y81: 0 | Z81: 0 | AA81: 0 | AB81: 0 | AC81: =IF(Титульный!$B$28="Общая",2.2,) -> 2.2 | AD81: 0 | AE81: 0 | AF81: 0 | AG81: 0 | AH81: 0 | AI81: =IF(Титульный!$B$28="Общая",2.2,) -> 2.2 | AJ81: 0 | AK81: 0 | AL81: 0 | AM81: 0 | AN81: 0 | AO81: =IF(Титульный!$B$28="Общая",2.2,) -> 2.2 | AP81: 0
E82: 0 | F82: 0 | G82: 0 | H82: 0 | I82: 0 | J82: =IF(Титульный!$B$28="Общая",2.2,) -> 2.2 | K82: 0 | L82: 0 | M82: 0 | N82: 0 | O82: 0 | P82: =IF(Титульный!$B$28="Общая",2.2,) -> 2.2 | Q82: 0 | R82: 0 | S82: 0 | T82: 0 | U82: 0 | V82: =IF(Титульный!$B$28="Общая",2.2,) -> 2.2 | W82: 0 | X82: 0 | Y82: 0 | Z82: 0 | AA82: 0 | AB82: 0 | AC82: =IF(Титульный!$B$28="Общая",2.2,) -> 2.2 | AD82: 0 | AE82: 0 | AF82: 0 | AG82: 0 | AH82: 0 | AI82: =IF(Титульный!$B$28="Общая",2.2,) -> 2.2 | AJ82: 0 | AK82: 0 | AL82: 0 | AM82: 0 | AN82: 0 | AO82: =IF(Титульный!$B$28="Общая",2.2,) -> 2.2 | AP82: 0
E83: 0 | F83: 0 | G83: 0 | H83: 0 | I83: 0 | J83: =IF(Титульный!$B$28="Общая",2.2,) -> 2.2 | K83: 0 | L83: 0 | M83: 0 | N83: 0 | O83: 0 | P83: =IF(Титульный!$B$28="Общая",2.2,) -> 2.2 | Q83: 0 | R83: 0 | S83: 0 | T83: 0 | U83: 0 | V83: =IF(Титульный!$B$28="Общая",2.2,) -> 2.2 | W83: 0 | X83: 0 | Y83: 0 | Z83: 0 | AA83: 0 | AB83: 0 | AC83: =IF(Титульный!$B$28="Общая",2.2,) -> 2.2 | AD83: 0 | AE83: 0 | AF83: 0 | AG83: 0 | AH83: 0 | AI83: =IF(Титульный!$B$28="Общая",2.2,) -> 2.2 | AJ83: 0 | AK83: 0 | AL83: 0 | AM83: 0 | AN83: 0 | AO83: =IF(Титульный!$B$28="Общая",2.2,) -> 2.2 | AP83: 0
E84: 0 | F84: 0 | G84: 0 | H84: 0 | I84: 0 | J84: =IF(Титульный!$B$28="Общая",2.2,) -> 2.2 | K84: 0 | L84: 0 | M84: 0 | N84: 0 | O84: 0 | P84: =IF(Титульный!$B$28="Общая",2.2,) -> 2.2 | Q84: 0 | R84: 0 | S84: 0 | T84: 0 | U84: 0 | V84: =IF(Титульный!$B$28="Общая",2.2,) -> 2.2 | W84: 0 | X84: 0 | Y84: 0 | Z84: 0 | AA84: 0 | AB84: 0 | AC84: =IF(Титульный!$B$28="Общая",2.2,) -> 2.2 | AD84: 0 | AE84: 0 | AF84: 0 | AG84: 0 | AH84: 0 | AI84: =IF(Титульный!$B$28="Общая",2.2,) -> 2.2 | AJ84: 0 | AK84: 0 | AL84: 0 | AM84: 0 | AN84: 0 | AO84: =IF(Титульный!$B$28="Общая",2.2,) -> 2.2 | AP84: 0
E85: 0 | F85: 0 | G85: 0 | H85: 0 | I85: 0 | J85: =IF(Титульный!$B$28="Общая",2.2,) -> 2.2 | K85: 0 | L85: 0 | M85: 0 | N85: 0 | O85: 0 | P85: =IF(Титульный!$B$28="Общая",2.2,) -> 2.2 | Q85: 0 | R85: 0 | S85: 0 | T85: 0 | U85: 0 | V85: =IF(Титульный!$B$28="Общая",2.2,) -> 2.2 | W85: 0 | X85: 0 | Y85: 0 | Z85: 0 | AA85: 0 | AB85: 0 | AC85: =IF(Титульный!$B$28="Общая",2.2,) -> 2.2 | AD85: 0 | AE85: 0 | AF85: 0 | AG85: 0 | AH85: 0 | AI85: =IF(Титульный!$B$28="Общая",2.2,) -> 2.2 | AJ85: 0 | AK85: 0 | AL85: 0 | AM85: 0 | AN85: 0 | AO85: =IF(Титульный!$B$28="Общая",2.2,) -> 2.2 | AP85: 0
E86: 0 | F86: 0 | G86: 0 | H86: 0 | I86: 0 | J86: =IF(Титульный!$B$28="Общая",2.2,) -> 2.2 | K86: 0 | L86: 0 | M86: 0 | N86: 0 | O86: 0 | P86: =IF(Титульный!$B$28="Общая",2.2,) -> 2.2 | Q86: 0 | R86: 0 | S86: 0 | T86: 0 | U86: 0 | V86: =IF(Титульный!$B$28="Общая",2.2,) -> 2.2 | W86: 0 | X86: 0 | Y86: 0 | Z86: 0 | AA86: 0 | AB86: 0 | AC86: =IF(Титульный!$B$28="Общая",2.2,) -> 2.2 | AD86: 0 | AE86: 0 | AF86: 0 | AG86: 0 | AH86: 0 | AI86: =IF(Титульный!$B$28="Общая",2.2,) -> 2.2 | AJ86: 0 | AK86: 0 | AL86: 0 | AM86: 0 | AN86: 0 | AO86: =IF(Титульный!$B$28="Общая",2.2,) -> 2.2 | AP86: 0
E87: 0 | F87: 0 | G87: 0 | H87: 0 | I87: 0 | J87: =IF(Титульный!$B$28="Общая",2.2,) -> 2.2 | K87: 0 | L87: 0 | M87: 0 | N87: 0 | O87: 0 | P87: =IF(Титульный!$B$28="Общая",2.2,) -> 2.2 | Q87: 0 | R87: 0 | S87: 0 | T87: 0 | U87: 0 | V87: =IF(Титульный!$B$28="Общая",2.2,) -> 2.2 | W87: 0 | X87: 0 | Y87: 0 | Z87: 0 | AA87: 0 | AB87: 0 | AC87: =IF(Титульный!$B$28="Общая",2.2,) -> 2.2 | AD87: 0 | AE87: 0 | AF87: 0 | AG87: 0 | AH87: 0 | AI87: =IF(Титульный!$B$28="Общая",2.2,) -> 2.2 | AJ87: 0 | AK87: 0 | AL87: 0 | AM87: 0 | AN87: 0 | AO87: =IF(Титульный!$B$28="Общая",2.2,) -> 2.2 | AP87: 0
E88: 0 | F88: 0 | G88: 0 | H88: 0 | I88: 0 | J88: =IF(Титульный!$B$28="Общая",2.2,) -> 2.2 | K88: 0 | L88: 0 | M88: 0 | N88: 0 | O88: 0 | P88: =IF(Титульный!$B$28="Общая",2.2,) -> 2.2 | Q88: 0 | R88: 0 | S88: 0 | T88: 0 | U88: 0 | V88: =IF(Титульный!$B$28="Общая",2.2,) -> 2.2 | W88: 0 | X88: 0 | Y88: 0 | Z88: 0 | AA88: 0 | AB88: 0 | AC88: =IF(Титульный!$B$28="Общая",2.2,) -> 2.2 | AD88: 0 | AE88: 0 | AF88: 0 | AG88: 0 | AH88: 0 | AI88: =IF(Титульный!$B$28="Общая",2.2,) -> 2.2 | AJ88: 0 | AK88: 0 | AL88: 0 | AM88: 0 | AN88: 0 | AO88: =IF(Титульный!$B$28="Общая",2.2,) -> 2.2 | AP88: 0
A89: ИТОГО | B89: =SUM(B55:B88) -> 0 | C89: х | D89: х | E89: =SUM(E55:E88) -> 0 | F89: =SUM(F55:F88) -> 0 | G89: =SUM(G55:G88) -> 0 | H89: =SUM(H55:H88) -> 0 | I89: =SUM(I55:I88) -> 0 | K89: =SUM(K55:K88) -> 0 | L89: =SUM(L55:L88) -> 0 | M89: =SUM(M55:M88) -> 0 | N89: =SUM(N55:N88) -> 0 | O89: =SUM(O55:O88) -> 0 | Q89: =SUM(Q55:Q88) -> 0 | R89: =SUM(R55:R88) -> 0 | S89: =SUM(S55:S88) -> 0 | T89: =SUM(T55:T88) -> 0 | U89: =SUM(U55:U88) -> 0 | W89: =SUM(W55:W88) -> 0 | X89: 0 | Y89: 0 | Z89: 0 | AA89: 0 | AB89: 0 | AD89: =SUM(AD55:AD88) -> 0 | AE89: =SUM(AE55:AE88) -> 0 | AF89: =SUM(AF55:AF88) -> 0 | AG89: =SUM(AG55:AG88) -> 0 | AH89: =SUM(AH55:AH88) -> 0 | AJ89: =SUM(AJ55:AJ88) -> 0 | AK89: =SUM(AK55:AK88) -> 0 | AL89: =SUM(AL55:AL88) -> 0 | AM89: =SUM(AM55:AM88) -> 0 | AN89: =SUM(AN55:AN88) -> 0 | AP89: =SUM(AP55:AP88) -> 0
A91: ВСЕГО | B91: =B31+B53+B89 -> 0 | C91: х | D91: х | E91: =E31+E53+E89 -> 0 | F91: =F31+F53+F89 -> 0 | G91: =G31+G53+G89 -> 0 | H91: =H31+H53+H89 -> 0 | I91: =I31+I53+I89 -> 0 | K91: =K31+K53+K89 -> 0 | L91: =L31+L53+L89 -> 0 | M91: =M31+M53+M89 -> 0 | N91: =N31+N53+N89 -> 0 | O91: =O31+O53+O89 -> 0 | Q91: =Q31+Q53+Q89 -> 0 | R91: =R31+R53+R89 -> 0 | S91: =S31+S53+S89 -> 0 | T91: =T31+T53+T89 -> 0 | U91: =U31+U53+U89 -> 0 | W91: =W31+W53+W89 -> 0 | X91: 0 | Y91: 0 | Z91: 0 | AA91: 0 | AB91: 0 | AD91: =AD31+AD53+AD89 -> 0 | AE91: =AE31+AE53+AE89 -> 0 | AF91: =AF31+AF53+AF89 -> 0 | AG91: =AG31+AG53+AG89 -> 0 | AH91: =AH31+AH53+AH89 -> 0 | AJ91: =AJ31+AJ53+AJ89 -> 0 | AK91: =AK31+AK53+AK89 -> 0 | AL91: =AL31+AL53+AL89 -> 0 | AM91: =AM31+AM53+AM89 -> 0 | AN91: =AN31+AN53+AN89 -> 0 | AP91: =AP31+AP53+AP89 -> 0
A130: Таблица 32. Расчет плановых сумм амортизационных отчислений на 2017-2019 год организации
K131: тыс.руб
A132: Объекты основных средств по подразделениям | B132: Первоначальная стоимость | C132: Дата ввода в эксплуатацию | D132: Срок полезного использования, мес. | E132: Сумма амортизации в месяц | F132: план организации
F133: 2017 год | H133: 2018 год | J133: 2019 год
F134: остаточная стоимость на начало периода | G134: сумма амортизации за год | H134: остаточная стоимость на начало периода | I134: сумма амортизации за год | J134: остаточная стоимость на начало периода | K134: сумма амортизации за год
F135: 2017-01-01 | H135: 2018-01-01 | J135: 2019-01-01
A136: 1 | B136: 2 | C136: 3 | D136: 4 | E136: 5 | F136: 6 | G136: 7 | H136: 8 | I136: 9 | J136: 10 | K136: 11
A137: =A11 -> 0 | B137: =B11/1000 -> 0 | C137: =C11 -> 0 | D137: 0 | E137: =E11/1000 -> 0 | F137: 0 | G137: 0 | H137: =L11/1000 -> 0 | I137: =M11/1000 -> 0 | J137: =R11/1000 -> 0 | K137: =S11/1000 -> 0
A138: 0 | B138: 0 | C138: 0 | D138: 0 | E138: 0 | F138: 0 | G138: 0 | H138: 0 | I138: 0 | J138: 0 | K138: 0
A139: 0 | B139: 0 | C139: 0 | D139: 0 | E139: 0 | F139: 0 | G139: 0 | H139: 0 | I139: 0 | J139: 0 | K139: 0
A140: 0 | B140: 0 | C140: 0 | D140: 0 | E140: 0 | F140: 0 | G140: 0 | H140: 0 | I140: 0 | J140: 0 | K140: 0
A141: 0 | B141: 0 | C141: 0 | D141: 0 | E141: 0 | F141: 0 | G141: 0 | H141: 0 | I141: 0 | J141: 0 | K141: 0
A142: 0 | B142: 0 | C142: 0 | D142: 0 | E142: 0 | F142: 0 | G142: 0 | H142: 0 | I142: 0 | J142: 0 | K142: 0
A143: 0 | B143: 0 | C143: 0 | D143: 0 | E143: 0 | F143: 0 | G143: 0 | H143: 0 | I143: 0 | J143: 0 | K143: 0
A144: 0 | B144: 0 | C144: 0 | D144: 0 | E144: 0 | F144: 0 | G144: 0 | H144: 0 | I144: 0 | J144: 0 | K144: 0
A145: 0 | B145: 0 | C145: 0 | D145: 0 | E145: 0 | F145: 0 | G145: 0 | H145: 0 | I145: 0 | J145: 0 | K145: 0
A146: 0 | B146: 0 | C146: 0 | D146: 0 | E146: 0 | F146: 0 | G146: 0 | H146: 0 | I146: 0 | J146: 0 | K146: 0
A147: 0 | B147: 0 | C147: 0 | D147: 0 | E147: 0 | F147: 0 | G147: 0 | H147: 0 | I147: 0 | J147: 0 | K147: 0
A148: 0 | B148: 0 | C148: 0 | D148: 0 | E148: 0 | F148: 0 | G148: 0 | H148: 0 | I148: 0 | J148: 0 | K148: 0
A149: 0 | B149: 0 | C149: 0 | D149: 0 | E149: 0 | F149: 0 | G149: 0 | H149: 0 | I149: 0 | J149: 0 | K149: 0
A150: 0 | B150: 0 | C150: 0 | D150: 0 | E150: 0 | F150: 0 | G150: 0 | H150: 0 | I150: 0 | J150: 0 | K150: 0
A151: 0 | B151: 0 | C151: 0 | D151: 0 | E151: 0 | F151: 0 | G151: 0 | H151: 0 | I151: 0 | J151: 0 | K151: 0
A152: 0 | B152: 0 | C152: 0 | D152: 0 | E152: 0 | F152: 0 | G152: 0 | H152: 0 | I152: 0 | J152: 0 | K152: 0
A153: 0 | B153: 0 | C153: 0 | D153: 0 | E153: 0 | F153: 0 | G153: 0 | H153: 0 | I153: 0 | J153: 0 | K153: 0
A154: 0 | B154: 0 | C154: 0 | D154: 0 | E154: 0 | F154: 0 | G154: 0 | H154: 0 | I154: 0 | J154: 0 | K154: 0
A155: 0 | B155: 0 | C155: 0 | D155: 0 | E155: 0 | F155: 0 | G155: 0 | H155: 0 | I155: 0 | J155: 0 | K155: 0
A156: 0 | B156: 0 | C156: 0 | D156: 0 | E156: 0 | F156: 0 | G156: 0 | H156: 0 | I156: 0 | J156: 0 | K156: 0
A157: =A33 -> 0 | B157: =B33/1000 -> 0 | C157: =C33 -> 0 | D157: 0 | E157: =E33/1000 -> 0 | F157: 0 | G157: 0 | H157: =L33/1000 -> 0 | I157: =M33/1000 -> 0 | J157: =R33/1000 -> 0 | K157: =S33/1000 -> 0
A158: 0 | B158: 0 | C158: 0 | D158: 0 | E158: 0 | F158: 0 | G158: 0 | H158: 0 | I158: 0 | J158: 0 | K158: 0
A159: 0 | B159: 0 | C159: 0 | D159: 0 | E159: 0 | F159: 0 | G159: 0 | H159: 0 | I159: 0 | J159: 0 | K159: 0
A160: 0 | B160: 0 | C160: 0 | D160: 0 | E160: 0 | F160: 0 | G160: 0 | H160: 0 | I160: 0 | J160: 0 | K160: 0
A161: 0 | B161: 0 | C161: 0 | D161: 0 | E161: 0 | F161: 0 | G161: 0 | H161: 0 | I161: 0 | J161: 0 | K161: 0
A162: 0 | B162: 0 | C162: 0 | D162: 0 | E162: 0 | F162: 0 | G162: 0 | H162: 0 | I162: 0 | J162: 0 | K162: 0
A163: 0 | B163: 0 | C163: 0 | D163: 0 | E163: 0 | F163: 0 | G163: 0 | H163: 0 | I163: 0 | J163: 0 | K163: 0
A164: 0 | B164: 0 | C164: 0 | D164: 0 | E164: 0 | F164: 0 | G164: 0 | H164: 0 | I164: 0 | J164: 0 | K164: 0
A165: 0 | B165: 0 | C165: 0 | D165: 0 | E165: 0 | F165: 0 | G165: 0 | H165: 0 | I165: 0 | J165: 0 | K165: 0
A166: 0 | B166: 0 | C166: 0 | D166: 0 | E166: 0 | F166: 0 | G166: 0 | H166: 0 | I166: 0 | J166: 0 | K166: 0
A167: 0 | B167: 0 | C167: 0 | D167: 0 | E167: 0 | F167: 0 | G167: 0 | H167: 0 | I167: 0 | J167: 0 | K167: 0
A168: 0 | B168: 0 | C168: 0 | D168: 0 | E168: 0 | F168: 0 | G168: 0 | H168: 0 | I168: 0 | J168: 0 | K168: 0
A169: 0 | B169: 0 | C169: 0 | D169: 0 | E169: 0 | F169: 0 | G169: 0 | H169: 0 | I169: 0 | J169: 0 | K169: 0
A170: 0 | B170: 0 | C170: 0 | D170: 0 | E170: 0 | F170: 0 | G170: 0 | H170: 0 | I170: 0 | J170: 0 | K170: 0
A171: 0 | B171: 0 | C171: 0 | D171: 0 | E171: 0 | F171: 0 | G171: 0 | H171: 0 | I171: 0 | J171: 0 | K171: 0
A172: 0 | B172: 0 | C172: 0 | D172: 0 | E172: 0 | F172: 0 | G172: 0 | H172: 0 | I172: 0 | J172: 0 | K172: 0
A173: 0 | B173: 0 | C173: 0 | D173: 0 | E173: 0 | F173: 0 | G173: 0 | H173: 0 | I173: 0 | J173: 0 | K173: 0
A174: 0 | B174: 0 | C174: 0 | D174: 0 | E174: 0 | F174: 0 | G174: 0 | H174: 0 | I174: 0 | J174: 0 | K174: 0
A175: 0 | B175: 0 | C175: 0 | D175: 0 | E175: 0 | F175: 0 | G175: 0 | H175: 0 | I175: 0 | J175: 0 | K175: 0
A176: 0 | B176: 0 | C176: 0 | D176: 0 | E176: 0 | F176: 0 | G176: 0 | H176: 0 | I176: 0 | J176: 0 | K176: 0
A177: =A55 -> 0 | B177: =B55/1000 -> 0 | C177: =C55 -> 0 | D177: 0 | E177: =E55/1000 -> 0 | F177: 0 | G177: 0 | H177: =L55/1000 -> 0 | I177: =M55/1000 -> 0 | J177: =R55/1000 -> 0 | K177: =S55/1000 -> 0
A178: 0 | B178: 0 | C178: 0 | D178: 0 | E178: 0 | F178: 0 | G178: 0 | H178: 0 | I178: 0 | J178: 0 | K178: 0
A179: 0 | B179: 0 | C179: 0 | D179: 0 | E179: 0 | F179: 0 | G179: 0 | H179: 0 | I179: 0 | J179: 0 | K179: 0
A180: 0 | B180: 0 | C180: 0 | D180: 0 | E180: 0 | F180: 0 | G180: 0 | H180: 0 | I180: 0 | J180: 0 | K180: 0
A181: 0 | B181: 0 | C181: 0 | D181: 0 | E181: 0 | F181: 0 | G181: 0 | H181: 0 | I181: 0 | J181: 0 | K181: 0
A182: 0 | B182: 0 | C182: 0 | D182: 0 | E182: 0 | F182: 0 | G182: 0 | H182: 0 | I182: 0 | J182: 0 | K182: 0
A183: 0 | B183: 0 | C183: 0 | D183: 0 | E183: 0 | F183: 0 | G183: 0 | H183: 0 | I183: 0 | J183: 0 | K183: 0
A184: 0 | B184: 0 | C184: 0 | D184: 0 | E184: 0 | F184: 0 | G184: 0 | H184: 0 | I184: 0 | J184: 0 | K184: 0
A185: 0 | B185: 0 | C185: 0 | D185: 0 | E185: 0 | F185: 0 | G185: 0 | H185: 0 | I185: 0 | J185: 0 | K185: 0
A186: 0 | B186: 0 | C186: 0 | D186: 0 | E186: 0 | F186: 0 | G186: 0 | H186: 0 | I186: 0 | J186: 0 | K186: 0
A187: 0 | B187: 0 | C187: 0 | D187: 0 | E187: 0 | F187: 0 | G187: 0 | H187: 0 | I187: 0 | J187: 0 | K187: 0
A188: 0 | B188: 0 | C188: 0 | D188: 0 | E188: 0 | F188: 0 | G188: 0 | H188: 0 | I188: 0 | J188: 0 | K188: 0
A189: 0 | B189: 0 | C189: 0 | D189: 0 | E189: 0 | F189: 0 | G189: 0 | H189: 0 | I189: 0 | J189: 0 | K189: 0
A190: 0 | B190: 0 | C190: 0 | D190: 0 | E190: 0 | F190: 0 | G190: 0 | H190: 0 | I190: 0 | J190: 0 | K190: 0
A191: 0 | B191: 0 | C191: 0 | D191: 0 | E191: 0 | F191: 0 | G191: 0 | H191: 0 | I191: 0 | J191: 0 | K191: 0
A192: 0 | B192: 0 | C192: 0 | D192: 0 | E192: 0 | F192: 0 | G192: 0 | H192: 0 | I192: 0 | J192: 0 | K192: 0
A193: 0 | B193: 0 | C193: 0 | D193: 0 | E193: 0 | F193: 0 | G193: 0 | H193: 0 | I193: 0 | J193: 0 | K193: 0
A194: 0 | B194: 0 | C194: 0 | D194: 0 | E194: 0 | F194: 0 | G194: 0 | H194: 0 | I194: 0 | J194: 0 | K194: 0
A195: 0 | B195: 0 | C195: 0 | D195: 0 | E195: 0 | F195: 0 | G195: 0 | H195: 0 | I195: 0 | J195: 0 | K195: 0
A196: 0 | B196: 0 | C196: 0 | D196: 0 | E196: 0 | F196: 0 | G196: 0 | H196: 0 | I196: 0 | J196: 0 | K196: 0
A197: 0 | B197: 0 | C197: =C75 -> 0 | D197: 0 | E197: =E75/1000 -> 0 | F197: 0 | G197: 0 | H197: 0 | I197: 0 | J197: 0 | K197: 0
A198: 0 | B198: 0 | C198: 0 | D198: 0 | E198: 0 | F198: 0 | G198: 0 | H198: 0 | I198: 0 | J198: 0 | K198: 0
A199: 0 | B199: 0 | C199: 0 | D199: 0 | E199: 0 | F199: 0 | G199: 0 | H199: 0 | I199: 0 | J199: 0 | K199: 0
A200: 0 | B200: 0 | C200: 0 | D200: 0 | E200: 0 | F200: 0 | G200: 0 | H200: 0 | I200: 0 | J200: 0 | K200: 0
A201: 0 | B201: 0 | C201: 0 | D201: 0 | E201: 0 | F201: 0 | G201: 0 | H201: 0 | I201: 0 | J201: 0 | K201: 0
A202: 0 | B202: 0 | C202: 0 | D202: 0 | E202: 0 | F202: 0 | G202: 0 | H202: 0 | I202: 0 | J202: 0 | K202: 0
A203: 0 | B203: 0 | C203: 0 | D203: 0 | E203: 0 | F203: 0 | G203: 0 | H203: 0 | I203: 0 | J203: 0 | K203: 0
A204: 0 | B204: 0 | C204: 0 | D204: 0 | E204: 0 | F204: 0 | G204: 0 | H204: 0 | I204: 0 | J204: 0 | K204: 0
A205: 0 | B205: 0 | C205: 0 | D205: 0 | E205: 0 | F205: 0 | G205: 0 | H205: 0 | I205: 0 | J205: 0 | K205: 0
A206: 0 | B206: 0 | C206: 0 | D206: 0 | E206: 0 | F206: 0 | G206: 0 | H206: 0 | I206: 0 | J206: 0 | K206: 0
A207: 0 | B207: 0 | C207: 0 | D207: 0 | E207: 0 | F207: 0 | G207: 0 | H207: 0 | I207: 0 | J207: 0 | K207: 0
A208: 0 | B208: 0 | C208: 0 | D208: 0 | E208: 0 | F208: 0 | G208: 0 | H208: 0 | I208: 0 | J208: 0 | K208: 0
A209: 0 | B209: 0 | C209: 0 | D209: 0 | E209: 0 | F209: 0 | G209: 0 | H209: 0 | I209: 0 | J209: 0 | K209: 0
A210: 0 | B210: 0 | C210: 0 | D210: 0 | E210: 0 | F210: 0 | G210: 0 | H210: 0 | I210: 0 | J210: 0 | K210: 0
A211: =A91 -> ВСЕГО | B211: =SUM(B137:B210) -> 0 | C211: x | D211: x | E211: =SUM(E137:E210) -> 0 | F211: 0 | G211: 0 | H211: 0 | I211: 0 | J211: 0 | K211: 0
A215: Продолжение таблицы 32. Расчет плановых сумм амортизационных отчислений на 2017-2019 год организации
K216: тыс.руб
A217: Объекты основных средств по подразделениям | B217: Первоначальная стоимость | C217: Дата ввода в эксплуатацию | D217: Срок полезного использования, мес. | E217: Сумма амортизации в месяц | F217: план, принятый экспертом
F218: 2017 год | H218: 2018 год | J218: 2019 год
F219: остаточная стоимость на начало периода | G219: сумма амортизации за год | H219: остаточная стоимость на начало периода | I219: сумма амортизации за год | J219: остаточная стоимость на начало периода | K219: сумма амортизации за год
F220: 2017-01-01 | H220: 2018-01-01 | J220: 2019-01-01
A221: 1 | B221: 2 | C221: 3 | D221: 4 | E221: 5 | F221: 12 | G221: 13 | H221: 14 | I221: 15 | J221: 16 | K221: 17
A222: =A137 -> 0 | B222: 0 | C222: 0 | D222: =IF(E222=0,0,B222/E222) -> 0 | E222: =X11/1000 -> 0 | F222: =Y11/1000 -> 0 | G222: =Z11/1000 -> 0 | H222: =AE11/1000 -> 0 | I222: =AF11/1000 -> 0 | J222: =AK11/1000 -> 0 | K222: =AL11/1000 -> 0
A223: 0 | B223: 0 | C223: 0 | D223: =IF(E223=0,0,B223/E223) -> 0 | E223: 0 | F223: 0 | G223: 0 | H223: 0 | I223: 0 | J223: 0 | K223: 0
A224: 0 | B224: 0 | C224: 0 | D224: 0 | E224: 0 | F224: 0 | G224: 0 | H224: 0 | I224: 0 | J224: 0 | K224: 0
A225: 0 | B225: 0 | C225: 0 | D225: 0 | E225: 0 | F225: 0 | G225: 0 | H225: 0 | I225: 0 | J225: 0 | K225: 0
A226: 0 | B226: 0 | C226: 0 | D226: 0 | E226: 0 | F226: 0 | G226: 0 | H226: 0 | I226: 0 | J226: 0 | K226: 0
A227: 0 | B227: 0 | C227: 0 | D227: 0 | E227: 0 | F227: 0 | G227: 0 | H227: 0 | I227: 0 | J227: 0 | K227: 0
A228: 0 | B228: 0 | C228: 0 | D228: 0 | E228: 0 | F228: 0 | G228: 0 | H228: 0 | I228: 0 | J228: 0 | K228: 0
A229: 0 | B229: 0 | C229: 0 | D229: 0 | E229: 0 | F229: 0 | G229: 0 | H229: 0 | I229: 0 | J229: 0 | K229: 0
A230: 0 | B230: 0 | C230: 0 | D230: 0 | E230: 0 | F230: 0 | G230: 0 | H230: 0 | I230: 0 | J230: 0 | K230: 0
A231: 0 | B231: 0 | C231: 0 | D231: 0 | E231: 0 | F231: 0 | G231: 0 | H231: 0 | I231: 0 | J231: 0 | K231: 0
A232: 0 | B232: 0 | C232: 0 | D232: 0 | E232: 0 | F232: 0 | G232: 0 | H232: 0 | I232: 0 | J232: 0 | K232: 0
A233: 0 | B233: 0 | C233: 0 | D233: 0 | E233: 0 | F233: 0 | G233: 0 | H233: 0 | I233: 0 | J233: 0 | K233: 0
A234: 0 | B234: 0 | C234: 0 | D234: 0 | E234: 0 | F234: 0 | G234: 0 | H234: 0 | I234: 0 | J234: 0 | K234: 0
A235: 0 | B235: 0 | C235: 0 | D235: 0 | E235: 0 | F235: 0 | G235: 0 | H235: 0 | I235: 0 | J235: 0 | K235: 0
A236: 0 | B236: 0 | C236: 0 | D236: 0 | E236: 0 | F236: 0 | G236: 0 | H236: 0 | I236: 0 | J236: 0 | K236: 0
A237: 0 | B237: 0 | C237: 0 | D237: 0 | E237: 0 | F237: 0 | G237: 0 | H237: 0 | I237: 0 | J237: 0 | K237: 0
A238: 0 | B238: 0 | C238: 0 | D238: 0 | E238: 0 | F238: 0 | G238: 0 | H238: 0 | I238: 0 | J238: 0 | K238: 0
A239: 0 | B239: 0 | C239: 0 | D239: 0 | E239: 0 | F239: 0 | G239: 0 | H239: 0 | I239: 0 | J239: 0 | K239: 0
A240: 0 | B240: 0 | C240: 0 | D240: 0 | E240: 0 | F240: 0 | G240: 0 | H240: 0 | I240: 0 | J240: 0 | K240: 0
A241: 0 | B241: 0 | C241: 0 | D241: 0 | E241: 0 | F241: 0 | G241: 0 | H241: 0 | I241: 0 | J241: 0 | K241: 0
A242: =A157 -> 0 | B242: 0 | C242: 0 | D242: =IF(E242=0,0,B242/E242) -> 0 | E242: =X33/1000 -> 0 | F242: =Y33/1000 -> 0 | G242: =Z33/1000 -> 0 | H242: =AE33/1000 -> 0 | I242: =AF33/1000 -> 0 | J242: =AK33/1000 -> 0 | K242: =AL33/1000 -> 0
A243: 0 | B243: 0 | C243: 0 | D243: 0 | E243: 0 | F243: 0 | G243: 0 | H243: 0 | I243: 0 | J243: 0 | K243: 0
... 132 more rows

Sheet Численность
A1: Расчет численности производственного персонала
A2: =Титульный!B10 -> 
A4: =Титульный!B24 -> 0 | T4: Тарифная сетка
A5: Район | B5: =Титульный!B6 -> 0 | D5: МО | E5: =Титульный!B7 -> 0
A7: Профессии | B7: По факту предбазового периода | D7: По плану на период регулирования | F7: По плану на период регулирования | Q7: ср.тар коэффициент | T7: Указать в соответствии с каким документом принята указанная тарифная сетка | DI7: НЕ ТРОГАТЬ !!!!!!!
B8: ='баланс ВСН'!F7 -> 2016 | D8: ='баланс ВСН'!I7 -> 2018 | F8: =D8 -> 2018
B9: по данным организации | D9: по данным организации | F9: принято в расчет тарифа ДТР ТО
B10: Численность | C10: Разряд | D10: Численность | E10: Разряд | F10: нормативная численность | G10: численность, принятая в тариф | H10: Разряд (ступень оплаты) | I10: Ст.7*Ст.8 | J10: Премия, % | K10: Выслуга, % | M10: Выплаты, связанные с режимом работы , %
M11: Вредность | N11: Ночные | P11: ВСЕГО | T11: тарифный разряд | U11: тарифный коэффициент | DJ11: подъем | DM11: очистка | DP11: транспортировка | DS11: общий по тарифу
A12: 1 | B12: 2 | C12: 3 | D12: 4 | E12: 5 | F12: 6 | G12: 7 | H12: 8 | I12: 9 | J12: 10 | K12: 11 | L12: 12 | M12: 13 | N12: 14 | O12: 15 | P12: 16 | DJ12: =IF((T12-INT($H$21))=0,1,0) -> 1 | DK12: =IF(DJ12=1,(($H$21-INT($H$21))*(U13-U12)+U12),0) -> 0 | DM12: =IF((T12-INT($H$31))=0,1,0) -> 1 | DN12: =IF(DM12=1,(($H$31-INT($H$31))*(U13-U12)+U12),0) -> 0 | DP12: =IF((T12-INT($H$44))=0,1,0) -> 1 | DQ12: =IF(DP12=1,(($H$44-INT($H$44))*(U13-U12)+U12),0) -> 0 | DS12: =IF((T12-INT($H$48))=0,1,0) -> 1 | DT12: =IF(DS12=1,(($H$48-INT($H$48))*(U13-U12)+U12),0) -> 0
A13: На текущее содержание | DJ13: 1 | DK13: 0 | DM13: 1 | DN13: 0 | DP13: 1 | DQ13: 0 | DS13: 1 | DT13: 0
A14: подъем: | DJ14: 1 | DK14: 0 | DM14: 1 | DN14: 0 | DP14: 1 | DQ14: 0 | DS14: 1 | DT14: 0
I15: =G15*H15 -> 0 | J15: =J14 -> 0 | P15: =M15+N15+O15 -> 0 | DJ15: 1 | DK15: 0 | DM15: 1 | DN15: 0 | DP15: 1 | DQ15: 0 | DS15: 1 | DT15: 0
I16: 0 | J16: 0 | P16: 0 | DJ16: 1 | DK16: 0 | DM16: 1 | DN16: 0 | DP16: 1 | DQ16: 0 | DS16: 1 | DT16: 0
I17: 0 | J17: 0 | P17: 0 | DJ17: 1 | DK17: 0 | DM17: 1 | DN17: 0 | DP17: 1 | DQ17: 0 | DS17: 1 | DT17: 0
I18: 0 | J18: 0 | P18: 0 | DJ18: 1 | DK18: 0 | DM18: 1 | DN18: 0 | DP18: 1 | DQ18: 0 | DS18: 1 | DT18: 0
I19: 0 | J19: 0 | P19: 0 | DJ19: 1 | DK19: 0 | DM19: 1 | DN19: 0 | DP19: 1 | DQ19: 0 | DS19: 1 | DT19: 0
I20: 0 | J20: 0 | P20: 0 | DJ20: 1 | DK20: 0 | DM20: 1 | DN20: 0 | DP20: 1 | DQ20: 0 | DS20: 1 | DT20: 0
A21: итого подъем | B21: =SUM(B15:B20) -> 0 | C21: =IF(B21=0,0,SUMPRODUCT(B15:B20,C15:C20)/B21) -> 0 | D21: =SUM(D15:D20) -> 0 | E21: =IF(D21=0,0,SUMPRODUCT(D15:D20,E15:E20)/D21) -> 0 | F21: =SUM(F15:F20) -> 0 | G21: =SUM(G15:G20) -> 0 | H21: =IF(I21=0,0,I21/G21) -> 0 | I21: =SUM(I15:I20) -> 0 | J21: =IF(G21=0,0,SUMPRODUCT(J15:J20,G15:G20)/G21) -> 0 | K21: =IF(G21=0,0,SUMPRODUCT(K15:K20,G15:G20)/G21) -> 0 | L21: =IF(G21=0,0,SUMPRODUCT(L15:L20,G15:G20)/G21) -> 0 | M21: =IF(G21=0,0,SUMPRODUCT(M15:M20,G15:G20)/G21) -> 0 | N21: =IF(G21=0,0,SUMPRODUCT(N15:N20,G15:G20)/G21) -> 0 | O21: =IF(G21=0,0,SUMPRODUCT(O15:O20,G15:G20)/G21) -> 0 | P21: =IF(G21=0,0,SUMPRODUCT(G15:G20,P15:P20)/G21) -> 0 | Q21: =SUMPRODUCT(DK12:DK27) -> 0 | DJ21: 1 | DK21: 0 | DM21: 1 | DN21: 0 | DP21: 1 | DQ21: 0 | DS21: 1 | DT21: 0
A22: очистка: | DJ22: 1 | DK22: 0 | DM22: 1 | DN22: 0 | DP22: 1 | DQ22: 0 | DS22: 1 | DT22: 0
I23: =G23*H23 -> 0 | J23: =J20 -> 0 | P23: =SUM(M23:O23) -> 0 | DJ23: 1 | DK23: 0 | DM23: 1 | DN23: 0 | DP23: 1 | DQ23: 0 | DS23: 1 | DT23: 0
I24: 0 | J24: =J21 -> 0 | P24: =SUM(M24:O24) -> 0 | DJ24: 1 | DK24: 0 | DM24: 1 | DN24: 0 | DP24: 1 | DQ24: 0 | DS24: 1 | DT24: 0
I25: 0 | J25: 0 | P25: 0 | DJ25: 1 | DK25: 0 | DM25: 1 | DN25: 0 | DP25: 1 | DQ25: 0 | DS25: 1 | DT25: 0
I26: 0 | J26: 0 | P26: 0 | DJ26: 1 | DK26: 0 | DM26: 1 | DN26: 0 | DP26: 1 | DQ26: 0 | DS26: 1 | DT26: 0
I27: 0 | J27: 0 | P27: 0 | DJ27: 1 | DK27: 0 | DM27: 1 | DN27: 0 | DP27: 1 | DQ27: 0 | DS27: 1 | DT27: 0
I28: 0 | J28: 0 | P28: 0
I29: 0 | J29: 0 | P29: 0
I30: 0 | J30: 0 | P30: 0
A31: итого очистка | B31: =SUM(B23:B30) -> 0 | C31: =IF(B31=0,0,SUMPRODUCT(B23:B30,C23:C30)/B31) -> 0 | D31: =SUM(D23:D30) -> 0 | E31: =IF(D31=0,0,SUMPRODUCT(D23:D30,E23:E30)/D31) -> 0 | F31: =SUM(F23:F30) -> 0 | G31: =SUM(G23:G30) -> 0 | H31: =IF(G31=0,0,I31/G31) -> 0 | I31: =SUM(I23:I30) -> 0 | J31: =IF($G$31=0,0,SUMPRODUCT(J23:J30,$G$23:$G$30)/$G$31) -> 0 | K31: =IF($G$31=0,0,SUMPRODUCT(K23:K30,$G$23:$G$30)/$G$31) -> 0 | L31: 0 | M31: 0 | N31: 0 | O31: 0 | P31: 0 | Q31: =SUMPRODUCT(DN12:DN27) -> 0
A32: транспортировка
I33: =G33*H33 -> 0 | J33: =J30 -> 0 | P33: =M33+N33+O33 -> 0
I34: =G34*H34 -> 0 | J34: =J31 -> 0 | P34: =M34+N34+O34 -> 0
I35: 0 | J35: 0 | P35: 0
I36: 0 | J36: 0 | P36: 0
I37: 0 | J37: 0 | P37: 0
I38: 0 | J38: 0 | P38: 0
I39: 0 | J39: 0 | P39: 0
I40: 0 | J40: 0 | P40: 0
I41: 0 | J41: 0 | P41: 0
I42: 0 | J42: 0 | P42: 0
I43: 0 | J43: 0 | P43: 0
A44: итого транспортировка | B44: =SUM(B33:B43) -> 0 | C44: =IF(B44=0,0,SUMPRODUCT(B33:B43,C33:C43)/B44) -> 0 | D44: =SUM(D33:D43) -> 0 | E44: =IF(D44=0,0,SUMPRODUCT(D33:D43,E33:E43)/D44) -> 0 | F44: =SUM(F33:F43) -> 0 | G44: =SUM(G33:G43) -> 0 | H44: =IF(G44=0,0,I44/G44) -> 0 | I44: =SUM(I33:I43) -> 0 | J44: =IF($G$44=0,0,SUMPRODUCT($G$33:$G$43,J33:J43)/$G$44) -> 0 | K44: =IF($G$44=0,0,SUMPRODUCT($G$33:$G$43,K33:K43)/$G$44) -> 0 | L44: 0 | M44: 0 | N44: 0 | O44: 0 | P44: 0 | Q44: =SUMPRODUCT(DQ12:DQ27) -> 0
P46: =SUM(M46:O46) -> 0
A47: Итого | B47: =SUM(B15:B20,B23:B30,B33:B43) -> 0 | C47: х | D47: =SUM(D15:D20,D23:D30,D33:D43) -> 0 | E47: х | F47: =SUM(F15:F20,F23:F30,F33:F43) -> 0 | G47: =SUM(G15:G20,G23:G30,G33:G43) -> 0 | H47: х | I47: =SUM(I15:I20,I23:I30,I33:I43) -> 0 | J47: х | K47: х | L47: х | M47: х | N47: х | O47: х | P47: х
A48: Среднее значение | B48: х | C48: =IF(B47=0,0,(SUMPRODUCT(B15:B20,C15:C20)+SUMPRODUCT(B23:B30,C23:C30)+SUMPRODUCT(B33:B43,C33:C43))/B47) -> 0 | D48: х | E48: =IF(D47=0,0,(SUMPRODUCT(D15:D20,E15:E20)+SUMPRODUCT(D23:D30,E23:E30)+SUMPRODUCT(D33:D43,E33:E43))/D47) -> 0 | F48: х | G48: х | H48: =IF($G$47=0,0,I47/G47) -> 0 | I48: х | J48: =IF($G$47=0,0,(J21*$G$21+J31*$G$31+J44*$G$44)/$G$47) -> 0 | K48: =IF($G$47=0,0,(K21*$G$21+K31*$G$31+K44*$G$44)/$G$47) -> 0 | L48: 0 | M48: 0 | N48: 0 | O48: 0 | P48: 0 | Q48: =SUMPRODUCT(DT12:DT27) -> 0
A49: В том числе на ремонт:
A50: Численность | I50: =G50*H50 -> 0 | P50: =M50+N50+O50 -> 0

Sheet ФОТ ПП
A1: Расчет расходов на оплату труда производственного персонала (по периодам)
A3: =Численность!A2:Q2 -> 
A5: =Титульный!B24 -> 0
A6: Район | B6: =Титульный!B6 -> 0 | D6: МО | E6: =Титульный!B7 -> 0
A7: № | B7: Показатели | C7: Ед.изм. | D7: период регулирования, год
D8: ='баланс ВСН'!D6 -> 2014 | E8: ='баланс ВСН'!E6 -> 2015 | F8: ='баланс ВСН'!F7:G7 -> 2016 | G8: =F8 -> 2016 | H8: ='баланс ВСН'!H7:H7 -> 2017 | I8: ='баланс ВСН'!I7 -> 2018 | J8: =I8 -> 2018
D9: ='баланс ВСН'!D8 -> факт по данным организации | E9: ='баланс ВСН'!E8 -> факт по данным организации | F9: ='баланс ВСН'!F8 -> утвержденный план | G9: Факт по данным организации | H9: =F9 -> утвержденный план | I9: ='баланс ВСН'!I8 -> план организации | J9: ='Электроэнергия '!L10 -> план эксперта
A11: 1 | B11: =+A11+1 -> 2 | C11: 3 | D11: 4 | E11: 5 | F11: 6 | G11: 7 | H11: 8 | I11: =H11+1 -> 9 | J11: 10
B12: Численность по нормативу всего, в том числе | C12: чел. | D12: =SUM(D13:D15) -> 0 | E12: 0 | G12: =SUM(G13:G15) -> 0 | H12: =SUM(H13:H15) -> 0 | J12: =SUM(J13:J15) -> 0
B13: численность производственного персонала (подъем воды) | C13: чел. | J13: =Численность!F21 -> 0
B14: численность производственного персонала (очистка воды) | J14: =Численность!F31 -> 0
B15: численность производственного персонала (транспортировка воды) | C15: чел. | J15: =Численность!F44 -> 0
A16: 1. | B16: Численность, учтенная в тарифах, всего, в том числе | C16: чел. | D16: =D17+D18+D19 -> 0 | E16: 0 | F16: 0 | G16: =G17+G18+G19 -> 0 | H16: 0 | I16: 0 | J16: =SUM(J17:J19) -> 0
A17: 1.1 | B17: численность производственного персонала (подъем воды) | C17: чел. | G17: =Численность!B21 -> 0 | I17: =Численность!D21 -> 0 | J17: =Численность!G21 -> 0
A18: 1.2 | B18: численность производственного персонала (очистка воды) | C18: чел. | G18: =Численность!B31 -> 0 | I18: =Численность!D31 -> 0 | J18: =Численность!G31 -> 0
B19: численность производственного персонала (транспортировка воды) | C19: чел. | G19: =Численность!B44 -> 0 | I19: =Численность!D44 -> 0 | J19: =Численность!G44 -> 0
A20: 2. | B20: Средняя оплата труда | D20: х | E20: х | F20: х | G20: х | H20: х | I20: х | J20: х
A21: 2.1. | B21: Тарифная ставка рабочего 1 разряда | C21: руб.
A22: 2.2. | B22: Отраслевой коэффициент | J22: 1
A23: 2.3. | B23: Дефлятор по заработной плате | J23: =IF(J21=0,0,IF(J22=0,0,(#REF!*6+#REF!*6)/12/J22/J21)) -> 0
A24: 2.4. | B24: Тарифная ставка рабочего 1 разряда с учетом отраслевого коэффициента и дефлятора | C24: руб. | D24: =D21*D22*D23 -> 0 | E24: =E21*E22*E23 -> 0 | F24: 0 | G24: 0 | H24: 0 | I24: 0 | J24: =J21*J22*J23 -> 0
A25: 2.5. | B25: Средняя ступень оплаты
A26: 2.6. | B26: Тарифный коэффициент, соответствующий средней ступени по оплате труда
A27: 2.7. | B27: Среднемесячная тарифная ставка ППП | C27: руб. | D27: =D24*D26 -> 0 | E27: =E24*E26 -> 0 | F27: 0 | G27: 0 | H27: 0 | I27: 0 | J27: =J24*J26 -> 0
A28: 2.8. | B28: Выплаты, связанные с режимом работы с условиями труда 1 работника | C28: х | D28: х | E28: х | F28: х | G28: х | H28: х | I28: х | J28: х
A29: 2.8.1. | B29: процент выплаты | C29: % | J29: =Численность!P48 -> 0
A30: 2.8.2. | B30: сумма выплат | C30: руб. | D30: =D29/100*D27 -> 0 | E30: =E29/100*E27 -> 0 | F30: 0 | G30: 0 | H30: 0 | I30: 0 | J30: 0
A31: 2.9. | B31: Текущее премирование | D31: х | E31: х | F31: х | G31: х | H31: х | I31: х | J31: х
A32: 2.9.1. | B32: процент выплаты | C32: % | J32: =Численность!J48 -> 0
A33: 2.9.2. | B33: сумма выплат | C33: руб. | J33: =(J27+J30)*J32/100 -> 0
A34: 2.10. | B34: Вознаграждение за выслугу лет | D34: х | E34: х | F34: х | G34: х | H34: х | I34: х | J34: х
A35: 2.10.1. | B35: процент выплаты | C35: % | J35: =Численность!K48 -> 0
A36: 2.10.2. | B36: сумма выплат | C36: руб. | J36: =J35*J27/100 -> 0
A37: 2.11. | B37: Выплаты по итогам года | D37: х | E37: х | F37: х | G37: х | H37: х | I37: х | J37: х
A38: 2.11.1. | B38: процент выплаты | C38: %
A39: 2.11.2. | B39: сумма выплат | C39: руб. | J39: =J38*J27/100 -> 0
A40: 2.12. | B40: Выплаты по районному коэффициенту и северные надбавки | D40: х | E40: х | F40: х | G40: х | H40: х | I40: х | J40: х
A41: 2.12.1. | B41: процент выплаты | C41: %
A42: 2.12.2. | B42: сумма выплат | C42: руб. | D42: =(D27+D30+D33+D36)*D41/100 -> 0 | E42: =(E27+E30+E33+E36)*E41/100 -> 0 | F42: 0 | G42: 0 | H42: 0 | I42: 0 | J42: 0
A43: 2.13. | B43: Итого среднемесячная оплата труда на 1 работника | C43: руб. | D43: =IF(D16=0,0,D44/12/D16) -> 0 | E43: =IF(E16=0,0,E44/12/E16) -> 0 | F43: 0 | G43: =IF(G16=0,0,G44/12/G16) -> 0 | H43: 0 | I43: 0 | J43: =IF(J16=0,0,J44/12/J16) -> 0
A44: 3. | B44: Итого средства на оплату труда (включаемые в себестоимость) | C44: руб. | D44: =(D42+D39+D36+D33+D30+D27)*12*D16 -> 0 | E44: =(E42+E39+E36+E33+E30+E27)*12*E16 -> 0 | F44: =(F42+F39+F36+F33+F30+F27)*12*F16 -> 0 | G44: =(G42+G39+G36+G33+G30+G27)*12*G16 -> 0 | H44: 0 | I44: =(I42+I39+I36+I33+I30+I27)*12*I16 -> 0 | J44: =(J42+J39+J36+J33+J30+J27)*12*J16 -> 0
A46: х | B46: Заполнению не подлежит
B47: темп роста ФОТ к утв. | C47: =H8 -> 2017 | D47: году | I47: =IF(H44=0,0,I44/H44) -> 0 | J47: =IF(H44=0,0,J44/H44) -> 0
B48: темп роста ср. з/п к факт. | C48: 2016 | D48: году | I48: =IF(G43=0,0,I43/G43) -> 0 | J48: =IF(G43=0,0,J43/G43) -> 0
B49: темп роста ср. з/п к утв. | C49: 2017 | D49: году | I49: =IF(H43=0,0,I43/H43) -> 0 | J49: =IF(H43=0,0,J43/H43) -> 0
B50: средняя з/пл индексацией факта | C50: 2016 | D50: года | J50: =G43*Зарплата_среднегод_2017*зарплата_среднегод_2018 -> 0

Sheet ремонт хозспособ
A1: Расходы на проведение текущего и капитального ремонтов хозспособом
A2: =Титульный!B10 -> 
A3: =Титульный!B24 -> 0
A4: Район | B4: =Титульный!B6 -> 0 | E4: МО | F4: =Титульный!B7 -> 0
A5: ТЕКУЩИЙ РЕМОНТ
A6: Наименование объекта | B6: Наименование основного оборудования | C6: Вид выполняемых работ | D6: Расходы на преведение текущего ремонта
D7: всего | E7: по данным организации | L7: всего | M7: план эксперта
E10: заработная плата ремонтного персонала | F10: отчисления от ФОТ | G10: материалы | H10: транспортные расходы | I10: услуги вспомогательных производств | J10: цеховые расходы | K10: Общехозяйственные расходы | M10: заработная плата ремонтного персонала | N10: отчисления от ФОТ | O10: материалы | P10: транспортные расходы | Q10: услуги вспомогательных производств | R10: цеховые расходы | S10: Общехозяйственные расходы
A11: ='баланс ВСН'!F7 -> 2016 | B11: ФАКТ | D11: =SUM(D12:D18) -> 0 | E11: 0 | F11: 0 | G11: 0 | H11: 0 | I11: 0 | J11: 0 | K11: 0 | L11: 0 | M11: 0 | N11: 0 | O11: 0 | P11: 0 | Q11: 0 | R11: 0 | S11: 0
D12: =SUM(E12:K12) -> 0 | L12: =SUM(M12:S12) -> 0
D13: =SUM(E13:K13) -> 0 | L13: =SUM(M13:S13) -> 0
D14: 0 | L14: 0
D15: 0 | L15: 0 | T15: строки вставлять здесь
D16: 0 | L16: 0
D17: 0 | L17: 0
D18: 0 | L18: 0
A19: ='баланс ВСН'!H7 -> 2017 | B19: =B48 -> утвержденный план | L19: 0 | M19: =SUM(M20:M26) -> 0 | N19: 0 | O19: 0 | P19: 0 | Q19: 0 | R19: 0 | S19: 0
L20: 0
L21: 0
L22: 0 | T22: строки вставлять здесь
L23: 0
L24: 0
L25: 0
L26: 0
A27: ='баланс ВСН'!I7 -> 2018 | B27: ПЛАН | D27: =SUM(D28:D34) -> 0 | E27: =SUM(E28:E34) -> 0 | F27: 0 | G27: 0 | H27: 0 | I27: 0 | J27: 0 | K27: 0 | L27: =SUM(L28:L34) -> 0 | M27: 0 | N27: 0 | O27: 0 | P27: 0 | Q27: 0 | R27: 0 | S27: 0
D28: =SUM(E28:K28) -> 0 | L28: =SUM(M28:S28) -> 0
D29: 0 | L29: 0
D30: 0 | L30: 0 | T30: строки вставлять здесь
D31: 0 | L31: 0
D32: 0 | L32: 0
D33: 0 | L33: 0
D34: 0 | L34: 0
A36: Капитальный ремонт | L36: рублей
A37: Наименование объекта | B37: Наименование основного оборудования | C37: Вид выполняемых работ | D37: Расходы на преведение капитального ремонта
D38: всего | E38: в том числе | L38: итого принято ДТР ТО
E39: расходы на оплату труда ремонтного персонала | G39: материалы | H39: транспортные расходы | I39: услуги вспомогательных производств | J39: цеховые расходы | K39: Общехозяйственные расходы | L39: ВСЕГО | M39: в т.ч.
E40: заработная плата | F40: отчсления | M40: заработная плата | N40: отчисления от ФОТ | O40: материалы | P40: транспортные расходы | Q40: услуги вспомогательных производств | R40: цеховые расходы | S40: Общехозяйственные расходы
A41: =Титульный!B16 -> 2016 | B41: ФАКТ | D41: =SUM(D42:D47) -> 0 | E41: =SUM(E42:E47) -> 0 | F41: 0 | G41: 0 | H41: 0 | I41: 0 | J41: 0 | K41: 0 | L41: =SUM(L42:L47) -> 0 | M41: 0 | N41: 0 | O41: 0 | P41: 0 | Q41: 0 | R41: 0
L42: =SUM(M42:S42) -> 0
L43: 0
L44: 0 | T44: строки вставлять здесь
L45: 0
L46: 0
L47: 0
A48: 2016 | B48: ='баланс ВСН'!F8 -> утвержденный план | L48: 0 | M48: =SUM(M49:M54) -> 0 | N48: 0 | O48: 0 | P48: 0 | Q48: 0 | R48: 0 | S48: 0
L49: 0
L50: 0
L51: 0 | T51: строки вставлять здесь
L52: 0
L53: 0
L54: 0
A55: =Титульный!B20 -> 2018 | B55: ПЛАН | D55: =SUM(D56:D61) -> 0 | E55: =SUM(E56:E61) -> 0 | F55: 0 | G55: 0 | H55: 0 | I55: 0 | J55: 0 | K55: 0 | L55: =SUM(L56:L61) -> 0 | M55: 0 | N55: 0 | O55: 0 | P55: 0 | Q55: 0 | R55: 0 | S55: 0
L56: =SUM(M56:S56) -> 0
L57: 0
L58: 0 | T58: строки вставлять здесь
L59: 0
L60: 0
L61: 0

Sheet ремонт подряд
A1: Расходы на проведение текущего и капитального ремонтов силами сторонних организаций
A2: =Титульный!B10 -> 
A3: =Титульный!B24 -> 0
A5: Район | B5: =Титульный!B6 -> 0 | E5: МО | F5: =Титульный!B7 -> 0
A6: ТЕКУЩИЙ РЕМОНТ | F6: рублей
A7: по данным организации | G7: план эксперта
A8: Наименование объекта | B8: Наименование основного оборудования | C8: Вид выполняемых работ | D8: Наименование организации- подрядчика | E8: № договора | F8: Сумма
G9: Сумма
A11: ='ремонт хозспособ'!A11 -> 2016 | B11: ='ремонт хозспособ'!B11:C11 -> ФАКТ
H14: строки вставлять здесь
A18: Итого | B18: х | C18: х | D18: х | E18: х | F18: =SUM(F12:F17) -> 0 | G18: =SUM(G12:G17) -> 0
A19: ='ремонт хозспособ'!A19 -> 2017 | B19: ='ремонт хозспособ'!B19:C19 -> утвержденный план
H22: строки вставлять здесь
A25: Итого | B25: х | C25: х | D25: х | E25: х | F25: х | G25: =SUM(G20:G24) -> 0
A26: ='ремонт хозспособ'!A27 -> 2018 | B26: ='ремонт хозспособ'!B27:C27 -> ПЛАН
H28: строки вставлять здесь
A31: Итого | B31: х | C31: х | D31: х | E31: х | F31: =SUM(F27:F30) -> 0 | G31: =SUM(G27:G30) -> 0
A34: КАПИТАЛЬНЫЙ РЕМОНТ | F34: рублей
A35: по данным организации | G35: план эксперта
A36: Наименование объекта | B36: Наименование основного оборудования | C36: Вид выполняемых работ | D36: Наименование организации- подрядчика | E36: № договора | F36: Сумма
G37: Сумма
A39: =A11 -> 2016 | B39: =B11 -> ФАКТ
H42: строки вставлять здесь
A46: Итого | B46: х | C46: х | D46: х | E46: х | F46: =SUM(F40:F45) -> 0 | G46: =SUM(G40:G45) -> 0
A47: =A19 -> 2017 | B47: =B19 -> утвержденный план
H50: строки вставлять здесь
A53: Итого | B53: х | C53: х | D53: х | E53: х | F53: х | G53: =SUM(G48:G52) -> 0
A54: =A26 -> 2018 | B54: =B26 -> ПЛАН
H57: строки вставлять здесь
A61: Итого | B61: х | C61: х | D61: х | E61: х | F61: =SUM(F55:F60) -> 0 | G61: =SUM(G55:G60) -> 0

Sheet расходы по покупке воды
A1: Расчет затрат по покупной воде
A2: =Титульный!B10 -> 
A3: =Титульный!B14 -> водоснабжение
A4: =Титульный!B24 -> 0
B5: Район | C5: =Титульный!B6 -> 0 | F5: МО | G5: =Титульный!B7 -> 0
A7: № п/п | B7: Наименование | C7: Единица измерения | D7: ='ФОТ ПП'!G8 -> 2016 | E7: ='ФОТ ПП'!H8 -> 2017 | F7: =D7+2 -> 2018 | G7: =F7+1 -> 2019 | H7: =G7+1 -> 2020 | I7: =F7 -> 2018 | J7: =I7+1 -> 2019 | K7: =J7+1 -> 2020
D8: ='баланс ВСН'!D8 -> факт по данным организации | E8: ='баланс ВСН'!F8 -> утвержденный план | F8: ='баланс ВСН'!I8 -> план организации | G8: =F8 -> план организации | H8: =G8 -> план организации | I8: план эксперта | J8: =I8 -> план эксперта | K8: =J8 -> план эксперта
D9: питьевая вода | F9: питьевая вода | G9: питьевая вода | H9: питьевая вода | I9: питьевая вода | J9: =I9 -> питьевая вода | K9: =J9 -> питьевая вода
A10: 1 | B10: Стоимость покупной воды, в том числе | C10: руб. | D10: =D12*D14 -> 0 | E10: 0 | F10: 0 | G10: 0 | H10: 0 | I10: 0 | J10: =J12*J14 -> 0 | K10: 0
A11: 1.1. | B11: покупка потерь | C11: руб. | D11: =D14*D13 -> 0 | E11: =E14*E13 -> 0 | F11: =F13*F14 -> 0 | G11: =G13*G14 -> 0 | H11: =H13*H14 -> 0 | I11: =I13*I14 -> 0 | J11: =J13*J14 -> 0 | K11: 0
A12: 2 | B12: Объем покупной воды, в том числе: | C12: м3 | J12: =I12 -> 0 | K12: =J12 -> 0
A13: 2.1. | B13: покупка потерь | C13: м3 | J13: =I13 -> 0 | K13: =J13 -> 0
A14: 3 | B14: Цена воды, в том числе: | C14: руб./м3 | J14: =I14*вода_среднегод_2019 -> 0 | K14: =J14*вода_среднегод_2020 -> 0

Sheet сторонние услуги в тарифе
A1: Расчет затрат по услугам, оказываемым сторонними организациями, стоимость которых регулируется
A2: =Титульный!B10 -> 
A3: =Титульный!B14 -> водоснабжение
A4: =Титульный!B24 -> 0
A5: Район | B5: =Титульный!B6 -> 0 | D5: МО | F5: =Титульный!B7 -> 0
A6: № п/п | B6: Наименование | C6: Единица измерения | D6: ='расходы по покупке воды'!D7 -> 2016 | E6: ='расходы по покупке воды'!E7 -> 2017 | F6: ='расходы по покупке воды'!F7 -> 2018 | G6: ='расходы по покупке воды'!G7 -> 2019 | H6: ='расходы по покупке воды'!H7 -> 2020 | I6: =F6 -> 2018 | J6: =I6+1 -> 2019 | K6: =J6+1 -> 2020
D8: ='расходы по покупке воды'!D8 -> факт по данным организации | E8: ='расходы по покупке воды'!E8 -> утвержденный план | F8: ='расходы по покупке воды'!F8 -> план организации | G8: ='расходы по покупке воды'!G8 -> план организации | H8: ='расходы по покупке воды'!H8 -> план организации | I8: ='расходы по покупке воды'!I8 -> план эксперта | J8: ='расходы по покупке воды'!J8 -> план эксперта | K8: ='расходы по покупке воды'!K8 -> план эксперта
A10: 1 | B10: Услуги по подъему воды, оказываемые сторонними организациями | C10: руб | D10: =D11+D14 -> 0 | E10: =E11+E14 -> 0 | F10: 0 | G10: 0 | H10: 0 | I10: 0 | J10: 0 | K10: 0
A11: 1.1 | B11: наименование организации | C11: руб | D11: =D12*D13 -> 0 | E11: =E12*E13 -> 0 | F11: 0 | G11: 0 | H11: 0 | I11: =I12*I13 -> 0 | J11: =J12*J13 -> 0 | K11: 0
B12: объем воды | C12: куб.м. | J12: =I12 -> 0 | K12: =I12 -> 0
B13: стоимость услуги | C13: руб./м3 | J13: =I13*вода_среднегод_2019 -> 0 | K13: =J13*вода_среднегод_2020 -> 0
A14: 1.2 | B14: наименование организации | C14: руб | D14: =D15*D16 -> 0 | E14: 0 | F14: 0 | G14: 0 | H14: 0 | I14: 0 | J14: =J15*J16 -> 0 | K14: =K15*K16 -> 0
B15: объем воды | C15: куб.м. | J15: =I15 -> 0 | K15: =I15 -> 0
B16: стоимость услуги | C16: руб./м3 | J16: =I16*вода_среднегод_2019 -> 0 | K16: =J16*вода_среднегод_2020 -> 0
A18: 2 | B18: Услуги по очистке воды, оказываемые сторонними организациями | C18: руб | D18: =D19+D22 -> 0 | E18: =E19+E22 -> 0 | F18: 0 | G18: 0 | H18: 0 | I18: 0 | J18: 0 | K18: 0
A19: 1.2 | B19: наименование организации | C19: руб | D19: =D20*D21 -> 0 | E19: 0 | F19: 0 | G19: 0 | H19: 0 | I19: 0 | J19: =J20*J21 -> 0 | K19: =K20*K21 -> 0
B20: объем воды | C20: куб.м. | J20: =I20 -> 0 | K20: =I20 -> 0
B21: стоимость услуги | C21: руб./м3 | J21: =I21*вода_среднегод_2019 -> 0 | K21: =J21*вода_среднегод_2020 -> 0
A22: 1.2 | B22: наименование организации | C22: руб | D22: =D23*D24 -> 0 | E22: 0 | F22: 0 | G22: 0 | H22: 0 | I22: 0 | J22: =J23*J24 -> 0 | K22: =K23*K24 -> 0
B23: объем воды | C23: куб.м. | J23: =I23 -> 0 | K23: =I23 -> 0
B24: стоимость услуги | C24: руб./м3 | J24: =I24*вода_среднегод_2019 -> 0 | K24: =J24*вода_среднегод_2020 -> 0
A26: 3 | B26: Услуги по транспортированию воды, оказываемые сторонними организациями , в том числе: | C26: руб | D26: =D27+D44 -> 0 | E26: 0 | F26: 0 | G26: 0 | H26: 0 | I26: 0 | J26: 0 | K26: 0
A27: 3.1. | B27: Услуги по транспортированию неочищенной воды, оказываемые сторонними организациями | C27: руб | D27: =D28+D31+D34+D37+D40 -> 0 | E27: =E28+E31+E34+E37+E40 -> 0 | F27: 0 | G27: 0 | H27: 0 | I27: 0 | J27: 0 | K27: 0
A28: 1.1 | B28: наименование организации | C28: руб | D28: =D29*D30 -> 0 | E28: 0 | F28: 0 | G28: 0 | H28: 0 | I28: 0 | J28: =J29*J30 -> 0 | K28: =K29*K30 -> 0
B29: объем воды | C29: куб.м. | J29: =I29 -> 0 | K29: =I29 -> 0
B30: стоимость услуги | C30: руб./м3 | J30: =I30*вода_среднегод_2019 -> 0 | K30: =J30*вода_среднегод_2020 -> 0
A31: 1.2 | B31: наименование организации | C31: руб | D31: =D32*D33 -> 0 | E31: 0 | F31: 0 | G31: 0 | H31: 0 | I31: 0 | J31: =J32*J33 -> 0 | K31: =K32*K33 -> 0
B32: объем воды | C32: куб.м. | J32: =I32 -> 0 | K32: =I32 -> 0
B33: стоимость услуги | C33: руб./м3 | J33: =I33*вода_среднегод_2019 -> 0 | K33: =J33*вода_среднегод_2020 -> 0
A34: 1.1 | B34: наименование организации | C34: руб | D34: =D35*D36 -> 0 | E34: 0 | F34: 0 | G34: 0 | H34: 0 | I34: 0 | J34: =J35*J36 -> 0 | K34: =K35*K36 -> 0
B35: объем воды | C35: куб.м. | J35: =I35 -> 0 | K35: =I35 -> 0
B36: стоимость услуги | C36: руб./м3 | J36: =I36*вода_среднегод_2019 -> 0 | K36: =J36*вода_среднегод_2020 -> 0
A37: 1.2 | B37: наименование организации | C37: руб | D37: =D38*D39 -> 0 | E37: 0 | F37: 0 | G37: 0 | H37: 0 | I37: 0 | J37: =J38*J39 -> 0 | K37: =K38*K39 -> 0
B38: объем воды | C38: куб.м. | J38: =I38 -> 0 | K38: =I38 -> 0
B39: стоимость услуги | C39: руб./м3 | J39: =I39*вода_среднегод_2019 -> 0 | K39: =J39*вода_среднегод_2020 -> 0
A40: 1.2 | B40: наименование организации | C40: руб | D40: =D41*D42 -> 0 | E40: 0 | F40: 0 | G40: 0 | H40: 0 | I40: 0 | J40: =J41*J42 -> 0 | K40: =K41*K42 -> 0
B41: объем воды | C41: куб.м. | J41: =I41 -> 0 | K41: =I41 -> 0
B42: стоимость услуги | C42: руб./м3 | J42: =I42*вода_среднегод_2019 -> 0 | K42: =J42*вода_среднегод_2020 -> 0
A44: 3.2. | B44: Услуги по транспортированию очищенной воды, оказываемые сторонними организациями | C44: руб | D44: =D45+D48+D51+D54+D57 -> 0 | E44: =E45+E48+E51+E54+E57 -> 0 | F44: 0 | G44: 0 | H44: 0 | I44: 0 | J44: 0 | K44: 0
A45: 1.1 | B45: наименование организации | C45: руб | D45: =D46*D47 -> 0 | E45: 0 | F45: 0 | G45: 0 | H45: 0 | I45: 0 | J45: =J46*J47 -> 0 | K45: =K46*K47 -> 0
B46: объем воды | C46: куб.м. | J46: =I46 -> 0 | K46: =I46 -> 0
B47: стоимость услуги | C47: руб./м3 | J47: =I47*вода_среднегод_2019 -> 0 | K47: =J47*вода_среднегод_2020 -> 0
A48: 1.2 | B48: наименование организации | C48: руб | D48: =D49*D50 -> 0 | E48: 0 | F48: 0 | G48: 0 | H48: 0 | I48: 0 | J48: =J49*J50 -> 0 | K48: =K49*K50 -> 0
B49: объем воды | C49: куб.м. | J49: =I49 -> 0 | K49: =I49 -> 0
B50: стоимость услуги | C50: руб./м3 | J50: =I50*вода_среднегод_2019 -> 0 | K50: =J50*вода_среднегод_2020 -> 0
A51: 1.1 | B51: наименование организации | C51: руб | D51: =D52*D53 -> 0 | E51: 0 | F51: 0 | G51: 0 | H51: 0 | I51: 0 | J51: =J52*J53 -> 0 | K51: =K52*K53 -> 0
B52: объем воды | C52: куб.м. | J52: =I52 -> 0 | K52: =I52 -> 0
B53: стоимость услуги | C53: руб./м3 | J53: =I53*вода_среднегод_2019 -> 0 | K53: =J53*вода_среднегод_2020 -> 0
A54: 1.2 | B54: наименование организации | C54: руб | D54: =D55*D56 -> 0 | E54: 0 | F54: 0 | G54: 0 | H54: 0 | I54: 0 | J54: =J55*J56 -> 0 | K54: =K55*K56 -> 0
B55: объем воды | C55: куб.м. | J55: =I55 -> 0 | K55: =I55 -> 0
B56: стоимость услуги | C56: руб./м3 | J56: =I56*вода_среднегод_2019 -> 0 | K56: =J56*вода_среднегод_2020 -> 0
A57: 1.2 | B57: наименование организации | C57: руб | D57: =D58*D59 -> 0 | E57: 0 | F57: 0 | G57: 0 | H57: 0 | I57: 0 | J57: =J58*J59 -> 0 | K57: =K58*K59 -> 0
B58: объем воды | C58: куб.м. | J58: =I58 -> 0 | K58: =I58 -> 0
B59: стоимость услуги | C59: руб./м3 | J59: =I59*вода_среднегод_2019 -> 0 | K59: =J59*вода_среднегод_2020 -> 0
A61: 4 | B61: Услуги, оказываемые сторонними организациями, стоимость которых регулируется - всего | C61: руб | D61: =D26+D10+D18 -> 0 | E61: 0 | F61: 0 | G61: 0 | H61: 0 | I61: 0 | J61: =J26+J10+J18 -> 0 | K61: =K26+K10+K18 -> 0
A100: Таблица 24. Расчет расходов на оплату регулируемых услуг, оказываемых сторонними организациями организации | I100: Таблица 25. Расчет расходов на оплату регулируемых услуг, оказываемых сторонними организациями организации
A101: при необходимости сделать ссылки на листы "тепловая энергия на обогрев" и "расходы по покупке воды", "Прочие энергоресурсы"!
A102: № п/п | B102: Наименование статьи | C102: Ед.изм | D102: 2015 год | E102: 2017 год | I102: 2017 год
D103: факт по данным организации | E103: план организации | F103: план, принятый экспертом | G103: отклонение | I103: план организации | J103: план, принятый экспертом | K103: план, принятый экспертом
A104: 1 | B104: 2 | C104: 3 | D104: 4 | E104: 5 | F104: 6 | G104: 7=гр.6-гр.5 | J104: 6 | K104: 6
A105: 1 | B105: Расходы на оплату товаров (услуг, работ), приобретаемых у других организаций | C105: тыс.руб | D105: =D106+D109+D112+D115+D118 -> 0 | E105: =E106+E109+E112+E115+E118 -> 0 | F105: =F106+F109+F112+F115+F118 -> 0 | G105: =F105-E105 -> 0 | I105: =I106+I109+I112+I115+I118 -> 0 | J105: =J106+J109+J112+J115+J118 -> 0 | K105: =K106+K109+K112+K115+K118 -> 0
A106: 1.1. | B106: Расходы на тепловую энергию | C106: тыс.руб | G106: 0 | I106: =E106 -> 0
B107: объем тепловой энергии | C107: Гкал | G107: 0 | I107: =E107 -> 0
B108: тариф на тепловую энергию | C108: руб/Гкал | G108: 0 | I108: 0
A109: 1.2. | B109: Расходы на покупку воды | C109: тыс.руб | G109: 0 | I109: 0
B110: объем воды | C110: тыс.куб.м. | G110: 0 | I110: 0
B111: тариф на воду | C111: руб/куб.м. | G111: 0 | I111: 0
A112: 1.3. | B112: Услуги по холодному водоснабжению (подъему, очистке) | C112: тыс.руб | D112: =(D10+D18)/1000 -> 0 | E112: =(F10+F18)/1000 -> 0 | F112: =(I10+I18)/1000 -> 0 | G112: =F112-E112 -> 0 | I112: 0 | J112: =(J10+J18)/1000 -> 0 | K112: =(K10+K18)/1000 -> 0
B113: объем воды | C113: тыс.куб.м. | D113: =(D12+D15+D20+D23)/1000 -> 0 | E113: =(F12+F15+F20+F23)/1000 -> 0 | F113: =(I12+I15+I20+I23)/1000 -> 0 | G113: =F113-E113 -> 0 | I113: 0 | J113: =(J12+J15+J20+J23)/1000 -> 0 | K113: =(K12+K15+K20+K23)/1000 -> 0
B114: тариф на услуги | C114: руб/куб.м. | D114: =IF(D113=0,0,D112/D113*1000) -> 0 | E114: =IF(E113=0,0,E112/E113*1000) -> 0 | F114: =IF(F113=0,0,F112/F113*1000) -> 0 | G114: =F114-E114 -> 0 | I114: 0 | J114: =IF(J113=0,0,J112/J113*1000) -> 0 | K114: =IF(K113=0,0,K112/K113*1000) -> 0
A115: 1.4. | B115: Услуги по транспортировке холодной воды | C115: тыс.руб | D115: =D26/1000 -> 0 | E115: =F26/1000 -> 0 | F115: =I26/1000 -> 0 | G115: =F115-E115 -> 0 | I115: 0 | J115: =J26/1000 -> 0 | K115: =K26/1000 -> 0
B116: объем воды | C116: тыс.куб.м. | D116: =(D29+D32+D35+D38+D41+D46+D49+D52+D55+D58)/1000 -> 0 | E116: =(F29+F32+F35+F38+F41+F46+F49+F52+F55+F58)/1000 -> 0 | F116: =(I29+I32+I35+I38+I41+I46+I49+I52+I55+I58)/1000 -> 0 | G116: 0 | I116: 0 | J116: =(J29+J32+J35+J38+J41+J46+J49+J52+J55+J58)/1000 -> 0 | K116: =(K29+K32+K35+K38+K41+K46+K49+K52+K55+K58)/1000 -> 0
B117: тариф на услуги | C117: руб/куб.м. | D117: =IF(D116=0,0,D115/D116*1000) -> 0 | E117: =IF(E116=0,0,E115/E116*1000) -> 0 | F117: =IF(F116=0,0,F115/F116*1000) -> 0 | G117: 0 | I117: 0 | J117: =IF(J116=0,0,J115/J116*1000) -> 0 | K117: =IF(K116=0,0,K115/K116*1000) -> 0
A118: 1.5. | B118: Расходы на прочие энергоресурсы | C118: тыс.руб | G118: 0 | I118: 0
B119: объем | G119: 0 | I119: 0
B120: цена, тариф | G120: 0 | I120: 0

Sheet реагенты
A1: Расходы на материалы (химические реагенты), связанные с технологическим циклом, на период регулирования
A2: =Титульный!B10 -> 
A3: ='сторонние услуги в тарифе'!A3 -> водоснабжение
A4: =Титульный!B24 -> 0
A6: Район | B6: =Титульный!B6 -> 0 | D6: МО | E6: =Титульный!B7 -> 0
A7: № п/п | B7: Наименование химреагентов | C7: план организации | F7: план эксперта | I7: Примечание (порядок расчета, источник информации)
C8: Необходимое количество химреагентов (кг/год) | D8: Цена за 1 кг химреагента (руб.) | E8: Затраты, (руб.) | F8: Необходимое количество химреагентов (кг/год) | G8: Цена за 1 кг химреагента (руб.) | H8: Затраты, (руб.)
E10: ='сторонние услуги в тарифе'!D6 -> 2016 | F10: ='сторонние услуги в тарифе'!D8 -> факт по данным организации
E11: =C11*D11 -> 0 | H11: =F11*G11 -> 0
E12: =C12*D12 -> 0 | H12: =F12*G12 -> 0
E13: =C13*D13 -> 0 | H13: =F13*G13 -> 0 | J13: строки вставлять здесь
E14: =C14*D14 -> 0 | H14: =F14*G14 -> 0
E15: =C15*D15 -> 0 | H15: =F15*G15 -> 0
A16: Итого | C16: х | D16: х | E16: =SUM(E11:E15) -> 0 | F16: х | G16: х | H16: =SUM(H11:H15) -> 0
E17: ='сторонние услуги в тарифе'!E6 -> 2017 | F17: ='сторонние услуги в тарифе'!E8 -> утвержденный план
E18: =C18*D18 -> 0 | H18: =F18*G18 -> 0
E19: =C19*D19 -> 0 | H19: =F19*G19 -> 0
E20: =C20*D20 -> 0 | H20: =F20*G20 -> 0 | J20: строки вставлять здесь
E21: =C21*D21 -> 0 | H21: =F21*G21 -> 0
A22: Итого | C22: х | D22: х | E22: =SUM(E18:E21) -> 0 | F22: х | G22: х | H22: =SUM(H18:H21) -> 0
E23: ='сторонние услуги в тарифе'!F6 -> 2018 | F23: ='сторонние услуги в тарифе'!F8 -> план организации
E24: =C24*D24 -> 0 | H24: =F24*G24 -> 0
E25: =C25*D25 -> 0 | H25: =F25*G25 -> 0
E26: =C26*D26 -> 0 | H26: =F26*G26 -> 0 | J26: строки вставлять здесь
E27: =C27*D27 -> 0 | H27: =F27*G27 -> 0
E28: =C28*D28 -> 0 | H28: =F28*G28 -> 0
A29: Итого | C29: х | D29: х | E29: =SUM(E24:E28) -> 0 | F29: х | G29: х | H29: =SUM(H24:H28) -> 0

Sheet тепловая энергия на обогрев
A1: Расчет расходов на отопление
A2: =Титульный!B10 -> 
A3: =Титульный!B14 -> водоснабжение
A4: =Титульный!B24 -> 0
A5: Район | B5: =Титульный!B6 -> 0 | C5: МО | D5: =Титульный!B7 -> 0
A6: № | B6: Наименование отапливаемого объекта | C6: Поставщик тепла | D6: план организации | G6: план эксперта
D7: Кол-во, объем Гкал. | E7: Тариф, руб./Гкал | F7: Сумма, тыс. руб. | G7: Кол-во, объем Гкал. | H7: Тариф, руб./Гкал | I7: Сумма, руб.
B8: ='баланс ВСН'!E8 -> факт по данным организации | C8: ='баланс ВСН'!F7 -> 2016
F9: =D9*E9 -> 0
F10: 0
F11: 0 | J11: строки вставлять здесь
F12: 0
F13: 0
F14: 0
B15: Итого | C15: х | D15: =SUM(D9:D14) -> 0 | E15: х | F15: =SUM(F9:F14) -> 0 | G15: х | H15: х | I15: х | M15: ip
B16: ='баланс ВСН'!F8 -> утвержденный план | C16: ='баланс ВСН'!H7 -> 2017
G17: =#REF!+#REF! ->  | H17: =IF(G17=0,0,I17/G17) ->  | I17: =G17*H17 -> 
G18: =#REF!+#REF! ->  | H18: =IF(G18=0,0,I18/G18) -> 
G19: =#REF!+#REF! -> 
G20: =#REF!+#REF! ->  | J20: строки вставлять здесь
G21: =#REF!+#REF! -> 
G22: =#REF!+#REF! -> 
B23: Итого | C23: х | D23: =SUM(D17:D22) -> 0 | E23: х | F23: =SUM(F17:F22) -> 0 | G23: =SUM(G17:G22) ->  | I23: =SUM(I17:I22) ->  | M23: ip
B24: ='баланс ВСН'!I6 -> Период регулирования | C24: ='баланс ВСН'!I7 -> 2018
F25: =D25*E25 -> 0 | I25: =G25*H25 -> 0
F26: 0 | I26: =G26*H26 -> 0
F27: 0 | I27: 0
F28: 0 | I28: 0 | J28: строки вставлять здесь
F29: 0 | I29: 0
F30: 0 | I30: 0
B31: Итого | C31: х | D31: =SUM(D25:D30) -> 0 | E31: х | F31: =SUM(F25:F30) -> 0 | G31: =SUM(G25:G30) -> 0 | H31: =IF(G31=0,0,I31/G31) -> 0 | I31: =SUM(I25:I30) -> 0
B32: =B24 -> Период регулирования | C32: =C24+1 -> 2019
F33: =D33*E33 -> 0 | G33: =G25 -> 0 | H33: =H25*теплоэнергия_среднегод_2019 -> 0 | I33: =G33*H33 -> 0
F34: 0 | G34: =G26 -> 0 | H34: 0 | I34: =G34*H34 -> 0
F35: 0 | G35: 0 | H35: 0 | I35: 0 | J35: строки вставлять здесь
F36: 0 | G36: 0 | H36: 0 | I36: 0
F37: 0 | G37: 0 | H37: 0 | I37: 0
F38: 0 | G38: 0 | H38: 0 | I38: 0
B39: Итого | C39: х | D39: =SUM(D33:D38) -> 0 | E39: х | F39: =SUM(F33:F38) -> 0 | G39: =SUM(G33:G38) -> 0 | H39: =IF(G39=0,0,I39/G39) -> 0 | I39: =SUM(I33:I38) -> 0
B40: =B32 -> Период регулирования | C40: =C32+1 -> 2020
F41: =D41*E41 -> 0 | G41: =G33 -> 0 | H41: =H33*теплоэнергия_среднегод_2020 -> 0 | I41: =G41*H41 -> 0
F42: 0 | G42: =G34 -> 0 | H42: 0 | I42: =G42*H42 -> 0
F43: 0 | G43: 0 | H43: 0 | I43: 0 | J43: строки вставлять здесь
F44: 0 | G44: 0 | H44: 0 | I44: 0
F45: 0 | G45: 0 | H45: 0 | I45: 0
F46: 0 | G46: 0 | H46: 0 | I46: 0
B47: Итого | C47: х | D47: =SUM(D41:D46) -> 0 | E47: х | F47: =SUM(F41:F46) -> 0 | G47: =SUM(G41:G46) -> 0 | H47: =IF(G47=0,0,I47/G47) -> 0 | I47: =SUM(I41:I46) -> 0

Sheet Прочие энергоресурсы
A1: Расчет затрат на приобретение прочих энергоресурсов у организаций, деятельность которых регулируется для подъема, очистки и транспортировки воды
A2: =Титульный!B10 -> 
A3: =Титульный!B14 -> водоснабжение
A4: =Титульный!B24 -> 0
A6: Район | B6: =Титульный!B6 -> 0 | C6: МО | D6: =Титульный!B7 -> 0
A7: № п/п | B7: Наименование | C7: Единица измерения | D7: ='расходы по покупке воды'!D7 -> 2016 | E7: ='расходы по покупке воды'!E7 -> 2017 | F7: ='расходы по покупке воды'!F7 -> 2018 | G7: =F7+1 -> 2019 | H7: =G7+1 -> 2020 | I7: =F7 -> 2018 | J7: =I7+1 -> 2019 | K7: =J7+1 -> 2020
D9: ='расходы по покупке воды'!D8 -> факт по данным организации | E9: ='расходы по покупке воды'!E8 -> утвержденный план | F9: ='расходы по покупке воды'!F8 -> план организации | G9: ='расходы по покупке воды'!G8 -> план организации | H9: ='расходы по покупке воды'!H8 -> план организации | I9: ='расходы по покупке воды'!I8 -> план эксперта | J9: ='расходы по покупке воды'!J8 -> план эксперта | K9: ='расходы по покупке воды'!K8 -> план эксперта
A11: 1 | B11: Затраты на Наименование ресурса | C11: руб. | D11: =D12*D13 -> 0 | E11: 0 | F11: 0 | G11: 0 | H11: 0 | I11: 0 | J11: =J12*J13 -> 0 | K11: =K12*K13 -> 0
A12: 1.1 | B12: Объем | J12: =I12 -> 0 | K12: =I12 -> 0
A13: 1.2 | B13: тариф
A14: 2 | B14: Затраты на воду | C14: руб. | D14: =D15*D16 -> 0 | E14: 0 | F14: 0 | G14: 0 | H14: 0 | I14: 0 | J14: =J15*J16 -> 0 | K14: =K15*K16 -> 0
A15: 2.1 | B15: объем воды | C15: м3 | J15: =I15 -> 0 | K15: =I15 -> 0
A16: 2.2 | B16: тариф | C16: руб./м3 | J16: =I16*вода_среднегод_2019 -> 0 | K16: =J16*вода_среднегод_2020 -> 0
A17: 3 | B17: Затраты на водоотведение | C17: руб. | D17: =D18*D19 -> 0 | E17: 0 | F17: 0 | G17: 0 | H17: 0 | I17: 0 | J17: =J18*J19 -> 0 | K17: 0
A18: 3.1. | B18: объем стоков | C18: м3 | J18: =I18 -> 0 | K18: =I18 -> 0
A19: 3.1.2. | B19: тариф | C19: руб./м3 | J19: =I19*вода_среднегод_2019 -> 0 | K19: =J19*вода_среднегод_2020 -> 0
B22: Заполняется без учета затрат, входящих в транспортные расходы и ОХР!
B23: только по стадии подъема, очистки и транспортировки воды

Sheet Транспортные расходы
A1: Смета транспортные расходы организации | I1: Распределение транспортных расходов по видам деятельности
A2: =Титульный!B10 -> 
I3: База для распределения согласно учетной политике
F4: рублей
B5: Статьи расходов | C5: ='баланс ВСН'!F7 -> 2016 | E5: =Титульный!B18 -> 2017 | F5: =Титульный!B20 -> 2018 | Z5: рублей
I6: Подразделение | L6: Виды тарифов, виды деятельности (согласно Учетной политике организации) | Z6: всего
L7: Электрическая энергия | M7: Тепловая энергия | N7: Водоснабжение | O7: Водоотведение | P7: Тариф 5 | Q7: Тариф 6 | R7: Тариф 7 | S7: Тариф 8 | T7: Тариф 9 | U7: Тариф 10 | V7: Тариф 11 | W7: ОХР | X7: транспортные услуги на сторону | Y7: Прочие
C8: ='баланс ВСН'!F8 -> утвержденный план | D8: ='баланс ВСН'!G8 -> факт по данным организации | E8: =C8 -> утвержденный план | F8: ='Прочие энергоресурсы'!G9 -> план организации | G8: ='сторонние услуги в тарифе'!I8 -> план эксперта | I8: ='баланс ВСН'!F7 -> 2016 | J8: База | Z8: =SUM(L8:Y8) -> 0
J9: Сумма транспортных расходов | K9: всего | L9: =SUM(L10:L11,L13:L14,L16:L26,L28,L30:L40) -> 0 | M9: 0 | N9: 0 | O9: 0 | P9: 0 | Q9: 0 | R9: 0 | S9: 0 | T9: 0 | U9: 0 | V9: 0 | W9: 0 | X9: 0 | Y9: 0 | Z9: =SUM(Z10:Z11,Z13:Z15,Z21:Z26,Z28,Z30:Z40) -> 0 | AA9: =Z9-D63 -> 0
K10: расходы на оплату труда | L10: =IF($Z$8=0,0,$D$12/$Z$8*L8) -> 0 | M10: 0 | N10: 0 | O10: 0 | P10: 0 | Q10: 0 | R10: 0 | S10: 0 | T10: 0 | U10: 0 | V10: 0 | W10: 0 | X10: 0 | Y10: 0 | Z10: =SUM(L10:Y10) -> 0 | AA10: =Z10-D12 -> 0
K11: отчисления от ФОТ | L11: =IF($Z$8=0,0,$D$15/$Z$8*L8) -> 0 | M11: 0 | N11: 0 | O11: 0 | P11: 0 | Q11: 0 | R11: 0 | S11: 0 | T11: 0 | U11: 0 | V11: 0 | W11: 0 | X11: 0 | Y11: 0 | Z11: 0 | AA11: =Z11-D15 -> 0
A12: 1. | B12: Заработная плата всего | K12: численность | L12: =IF($Z$8=0,0,$D$13/$Z$8*L8) -> 0 | M12: 0 | N12: 0 | O12: 0 | P12: 0 | Q12: 0 | R12: 0 | S12: 0 | T12: 0 | U12: 0 | V12: 0 | W12: 0 | X12: 0 | Y12: 0 | Z12: 0 | AA12: =Z12-D13 -> 0
A13: 1.1. | B13: численность | K13: Амортизация | L13: =IF($Z$8=0,0,$D$17/$Z$8*L8) -> 0 | M13: 0 | N13: 0 | O13: 0 | P13: 0 | Q13: 0 | R13: 0 | S13: 0 | T13: 0 | U13: 0 | V13: 0 | W13: 0 | X13: 0 | Y13: 0 | Z13: 0 | AA13: =Z13-D17 -> 0
A14: 1.2. | B14: среднемесячная заработная плата на 1 работника | C14: =IF(C13=0,0,C12/C13/12) -> 0 | D14: =IF(D13=0,0,D12/D13/12) -> 0 | E14: =IF(E13=0,0,E12/E13/12) -> 0 | F14: =IF(F13=0,0,F12/F13/12) -> 0 | G14: =IF(G13=0,0,G12/G13/12) -> 0 | K14: Аренда | L14: =IF($Z$8=0,0,$D$18/$Z$8*L8) -> 0 | M14: 0 | N14: 0 | O14: 0 | P14: 0 | Q14: 0 | R14: 0 | S14: 0 | T14: 0 | U14: 0 | V14: 0 | W14: 0 | X14: 0 | Y14: 0 | Z14: 0 | AA14: 0
A15: 2. | B15: Отчисления на социальные нужды | E15: =E12*E16/100 -> 0 | F15: =F12*F16/100 -> 0 | G15: =G12*G16/100 -> 0 | K15: содержание зданий | L15: =IF($Z$8=0,0,$D$19/$Z$8*L8) -> 0 | M15: 0 | N15: 0 | O15: 0 | P15: 0 | Q15: 0 | R15: 0 | S15: 0 | T15: 0 | U15: 0 | V15: 0 | W15: 0 | X15: 0 | Y15: 0 | Z15: 0 | AA15: 0
A16: 2.1. | B16: % отчислений (включая отчисления в ФСС от несчастных случаев) | F16: ='данные об организации'!C40+'данные об организации'!D40 -> 30.2 | G16: ='данные об организации'!C40+'данные об организации'!D40 -> 30.2 | K16: электроэнергия | L16: =IF($Z$8=0,0,$D$20/$Z$8*L8) -> 0 | M16: 0 | N16: 0 | O16: 0 | P16: 0 | Q16: 0 | R16: 0 | S16: 0 | T16: 0 | U16: 0 | V16: 0 | W16: 0 | X16: 0 | Y16: 0 | Z16: =SUM(L16:Y16) -> 0 | AA16: 0
A17: 3. | B17: Амортизация | K17: тепловая энергия | L17: =IF($Z$8=0,0,$D$21/$Z$8*L8) -> 0 | M17: 0 | N17: 0 | O17: 0 | P17: 0 | Q17: 0 | R17: 0 | S17: 0 | T17: 0 | U17: 0 | V17: 0 | W17: 0 | X17: 0 | Y17: 0 | Z17: =SUM(L17:Y17) -> 0 | AA17: 0
A18: 4. | B18: Аренда | K18: водоснабжение | L18: =IF($Z$8=0,0,$D$22/$Z$8*L8) -> 0 | M18: 0 | N18: 0 | O18: 0 | P18: 0 | Q18: 0 | R18: 0 | S18: 0 | T18: 0 | U18: 0 | V18: 0 | W18: 0 | X18: 0 | Y18: 0 | Z18: =SUM(L18:Y18) -> 0 | AA18: 0
A19: 5. | B19: Содержание зданий всего, в том числе: | C19: =SUM(C20:C24) -> 0 | D19: =SUM(D20:D24) -> 0 | E19: =SUM(E20:E24) -> 0 | F19: =SUM(F20:F24) -> 0 | G19: =SUM(G20:G24) -> 0 | K19: водоотведение | L19: =IF($Z$8=0,0,$D$23/$Z$8*L8) -> 0 | M19: 0 | N19: 0 | O19: 0 | P19: 0 | Q19: 0 | R19: 0 | S19: 0 | T19: 0 | U19: 0 | V19: 0 | W19: 0 | X19: 0 | Y19: 0 | Z19: =SUM(L19:Y19) -> 0 | AA19: 0
A20: 5.1. | B20: электроэнергия | K20: прочие услуги | L20: =IF($Z$8=0,0,$D$24/$Z$8*L8) -> 0 | M20: 0 | N20: 0 | O20: 0 | P20: 0 | Q20: 0 | R20: 0 | S20: 0 | T20: 0 | U20: 0 | V20: 0 | W20: 0 | X20: 0 | Y20: 0 | Z20: =SUM(L20:Y20) -> 0 | AA20: 0
A21: 5.2. | B21: тепловая энергия | K21: транспортный налог | L21: =IF($Z$8=0,0,$D$26/$Z$8*L8) -> 0 | M21: 0 | N21: 0 | O21: 0 | P21: 0 | Q21: 0 | R21: 0 | S21: 0 | T21: 0 | U21: 0 | V21: 0 | W21: 0 | X21: 0 | Y21: 0 | Z21: 0 | AA21: =Z21-D26 -> 0
A22: 5.3. | B22: водоснабжение | K22: налог на имущество | L22: =IF($Z$8=0,0,$D$27/$Z$8*L8) -> 0 | M22: 0 | N22: 0 | O22: 0 | P22: 0 | Q22: 0 | R22: 0 | S22: 0 | T22: 0 | U22: 0 | V22: 0 | W22: 0 | X22: 0 | Y22: 0 | Z22: 0 | AA22: 0
A23: 5.4. | B23: водоотведение | K23: аренда земли | L23: =IF($Z$8=0,0,$D$28/$Z$8*L8) -> 0 | M23: 0 | N23: 0 | O23: 0 | P23: 0 | Q23: 0 | R23: 0 | S23: 0 | T23: 0 | U23: 0 | V23: 0 | W23: 0 | X23: 0 | Y23: 0 | Z23: 0 | AA23: 0
A24: 5.9. | B24: прочие услуги | I24: ='баланс ВСН'!G8 -> факт по данным организации | K24: земельный налог | L24: =IF($Z$8=0,0,$D$29/$Z$8*L8) -> 0 | M24: 0 | N24: 0 | O24: 0 | P24: 0 | Q24: 0 | R24: 0 | S24: 0 | T24: 0 | U24: 0 | V24: 0 | W24: 0 | X24: 0 | Y24: 0 | Z24: 0 | AA24: 0
A25: 6. | B25: Налоги и сборы, в т.ч.: | C25: =SUM(C26:C30) -> 0 | D25: =SUM(D26:D30) -> 0 | E25: =SUM(E26:E30) -> 0 | F25: =SUM(F26:F30) -> 0 | G25: =SUM(G26:G30) -> 0 | K25: плата за загрязнение окружающей среды | L25: =IF($Z$8=0,0,$D$30/$Z$8*L8) -> 0 | M25: 0 | N25: 0 | O25: 0 | P25: 0 | Q25: 0 | R25: 0 | S25: 0 | T25: 0 | U25: 0 | V25: 0 | W25: 0 | X25: 0 | Y25: 0 | Z25: 0 | AA25: 0
A26: 6.1. | B26: транспортный налог | K26: ремонт всего | L26: =IF($Z$8=0,0,$D$31/$Z$8*L8) -> 0 | M26: 0 | N26: 0 | O26: 0 | P26: 0 | Q26: 0 | R26: 0 | S26: 0 | T26: 0 | U26: 0 | V26: 0 | W26: 0 | X26: 0 | Y26: 0 | Z26: 0 | AA26: 0
A27: 6.2. | B27: налог на имущество | K27: в т.ч. материалы на ремонт | L27: =IF($Z$8=0,0,$D$32/$Z$8*L8) -> 0 | M27: 0 | N27: 0 | O27: 0 | P27: 0 | Q27: 0 | R27: 0 | S27: 0 | T27: 0 | U27: 0 | V27: 0 | W27: 0 | X27: 0 | Y27: 0 | Z27: 0 | AA27: 0
A28: 6.3. | B28: аренда земли | K28: материалы на эксплуатацию и ТО | L28: =IF($Z$8=0,0,$D$33/$Z$8*L8) -> 0 | M28: 0 | N28: 0 | O28: 0 | P28: 0 | Q28: 0 | R28: 0 | S28: 0 | T28: 0 | U28: 0 | V28: 0 | W28: 0 | X28: 0 | Y28: 0 | Z28: 0 | AA28: 0
A29: 6.4. | B29: земельный налог | K29: в т.ч. ГСМ | L29: =IF($Z$8=0,0,$D$34/$Z$8*L8) -> 0 | M29: 0 | N29: 0 | O29: 0 | P29: 0 | Q29: 0 | R29: 0 | S29: 0 | T29: 0 | U29: 0 | V29: 0 | W29: 0 | X29: 0 | Y29: 0 | Z29: 0 | AA29: 0
A30: 6.5. | B30: плата за загрязнение окружающей среды | K30: обучение персонала | L30: =IF($Z$8=0,0,$D$37/$Z$8*L8) -> 0 | M30: 0 | N30: 0 | O30: 0 | P30: 0 | Q30: 0 | R30: 0 | S30: 0 | T30: 0 | U30: 0 | V30: 0 | W30: 0 | X30: 0 | Y30: 0 | Z30: 0 | AA30: =Z30-D37 -> 0
A31: 7. | B31: Расходы на ремонт всего, в том числе: | K31: командировочные расходы | L31: =IF($Z$8=0,0,$D$38/$Z$8*L8) -> 0 | M31: 0 | N31: 0 | O31: 0 | P31: 0 | Q31: 0 | R31: 0 | S31: 0 | T31: 0 | U31: 0 | V31: 0 | W31: 0 | X31: 0 | Y31: 0 | Z31: 0 | AA31: =Z31-D38 -> 0
A32: 7.1. | B32: материалы на ремонт | K32: Расходы на оплату работ и услуг, выполняемых сторонними организациями (услуги связи, вневедомственная охрана, юридические, аудиторкие, информационные услуги и т.д.) | L32: =IF($Z$8=0,0,SUM($D$36,$D$40:$D$43)/$Z$8*L8) -> 0 | M32: 0 | N32: 0 | O32: 0 | P32: 0 | Q32: 0 | R32: 0 | S32: 0 | T32: 0 | U32: 0 | V32: 0 | W32: 0 | X32: 0 | Y32: 0 | Z32: 0 | AA32: =Z32-D36-D40-D41-D42-D43 -> 0
A33: 8. | B33: Материалы на эксплуатацию и ТО | K33: страхование объектов | L33: =IF($Z$8=0,0,$D$44/$Z$8*L8) -> 0 | M33: 0 | N33: 0 | O33: 0 | P33: 0 | Q33: 0 | R33: 0 | S33: 0 | T33: 0 | U33: 0 | V33: 0 | W33: 0 | X33: 0 | Y33: 0 | Z33: 0 | AA33: =Z33-D44 -> 0
A34: 8.1. | B34: в т.ч. ГСМ | K34: =B56 -> моющие средства | L34: =IF($Z$8=0,0,$D$56/$Z$8*L8) -> 0 | M34: 0 | N34: 0 | O34: 0 | P34: 0 | Q34: 0 | R34: 0 | S34: 0 | T34: 0 | U34: 0 | V34: 0 | W34: 0 | X34: 0 | Y34: 0 | Z34: 0 | AA34: =Z34-D56 -> 0
A35: 9. | B35: Прочие расходы (услуги непроизводственного характера) | C35: =SUM(C36:C62) -> 0 | D35: =SUM(D36:D62) -> 0 | E35: =SUM(E36:E62) -> 0 | F35: =SUM(F36:F62) -> 0 | G35: =SUM(G36:G62) -> 0 | K35: специальное питание | L35: =IF($Z$8=0,0,$D$57/$Z$8*L8) -> 0 | M35: 0 | N35: 0 | O35: 0 | P35: 0 | Q35: 0 | R35: 0 | S35: 0 | T35: 0 | U35: 0 | V35: 0 | W35: 0 | X35: 0 | Y35: 0 | Z35: 0 | AA35: 0
A36: 9.1 | B36: услуги связи и интернета | K36: страхование персонала (кроме ДМС) | L36: =IF($Z$8=0,0,$D$58/$Z$8*L8) -> 0 | M36: 0 | N36: 0 | O36: 0 | P36: 0 | Q36: 0 | R36: 0 | S36: 0 | T36: 0 | U36: 0 | V36: 0 | W36: 0 | X36: 0 | Y36: 0 | Z36: 0 | AA36: 0
A37: 9.2 | B37: обучение персонала | K37: аттестация | L37: =IF($Z$8=0,0,$D$59/$Z$8*L8) -> 0 | M37: 0 | N37: 0 | O37: 0 | P37: 0 | Q37: 0 | R37: 0 | S37: 0 | T37: 0 | U37: 0 | V37: 0 | W37: 0 | X37: 0 | Y37: 0 | Z37: 0 | AA37: 0
A38: 9.3 | B38: командировочные расходы | K38: медицинский осмотр | L38: =IF($Z$8=0,0,$D$60/$Z$8*L8) -> 0 | M38: 0 | N38: 0 | O38: 0 | P38: 0 | Q38: 0 | R38: 0 | S38: 0 | T38: 0 | U38: 0 | V38: 0 | W38: 0 | X38: 0 | Y38: 0 | Z38: 0 | AA38: 0
A39: 9.4 | B39: почтово-канцелярские расходы | K39: расходы на льготный проезд | L39: =IF($Z$8=0,0,$D$61/$Z$8*L8) -> 0 | M39: 0 | N39: 0 | O39: 0 | P39: 0 | Q39: 0 | R39: 0 | S39: 0 | T39: 0 | U39: 0 | V39: 0 | W39: 0 | X39: 0 | Y39: 0 | Z39: 0 | AA39: 0
A40: 9.5 | B40: ведомственная/вневедомственная охрана | K40: прочие расходы | L40: =IF($Z$8=0,0,SUM($D$39,$D$45:$D$55,$D$62)/$Z$8*L8) -> 0 | M40: 0 | N40: 0 | O40: 0 | P40: 0 | Q40: 0 | R40: 0 | S40: 0 | T40: 0 | U40: 0 | V40: 0 | W40: 0 | X40: 0 | Y40: 0 | Z40: =SUM(L40:Y40) -> 0 | AA40: =Z40-D62-SUM(D45:D55)-D39 -> 0
A41: 9.6 | B41: пожарная охрана | Z41: рублей
A42: 9.7 | B42: услуги по обслуживанию программного обеспечения | I42: Подразделение | L42: Виды тарифов, виды деятельности (согласно Учетной политике организации) | Z42: всего
A43: 9.8 | B43: консультационные услуги | L43: Электрическая энергия | M43: Тепловая энергия | N43: Водоснабжение | O43: Водоотведение | P43: Тариф 5 | Q43: Тариф 6 | R43: Тариф 7 | S43: Тариф 8 | T43: Тариф 9 | U43: Тариф 10 | V43: Тариф 11 | W43: ОХР | X43: транспортные услуги на сторону | Y43: Прочие
A44: 9.9 | B44: расходы на страхование объектов | I44: =Титульный!B20 -> 2018 | J44: База | Z44: =SUM(L44:Y44) -> 0
J45: Сумма транспортных расходов | K45: всего | L45: =SUM(L46:L47,L49:L50,L52:L62,L64,L66:L76) -> 0 | M45: =SUM(M46:M47,M49:M50,M52:M62,M64,M66:M76) -> 0 | N45: 0 | O45: 0 | P45: 0 | Q45: 0 | R45: 0 | S45: 0 | T45: 0 | U45: 0 | V45: 0 | W45: 0 | X45: 0 | Y45: 0 | Z45: =SUM(L45:Y45) -> 0 | AA45: =Z45-F63 -> 0
K46: расходы на оплату труда | L46: =IF($Z$44=0,0,$F$12/$Z$44*L44) -> 0 | M46: 0 | N46: 0 | O46: 0 | P46: 0 | Q46: 0 | R46: 0 | S46: 0 | T46: 0 | U46: 0 | V46: 0 | W46: 0 | X46: 0 | Y46: 0 | Z46: 0 | AA46: =Z46-F12 -> 0
K47: отчисления от ФОТ | L47: =IF($Z$44=0,0,$F$15/$Z$44*L44) -> 0 | M47: 0 | N47: 0 | O47: 0 | P47: 0 | Q47: 0 | R47: 0 | S47: 0 | T47: 0 | U47: 0 | V47: 0 | W47: 0 | X47: 0 | Y47: 0 | Z47: 0 | AA47: =Z47-F15 -> 0
K48: численность | L48: =IF($Z$44=0,0,$F$13/$Z$44*L44) -> 0 | M48: 0 | N48: 0 | O48: 0 | P48: 0 | Q48: 0 | R48: 0 | S48: 0 | T48: 0 | U48: 0 | V48: 0 | W48: 0 | X48: 0 | Y48: 0 | Z48: 0 | AA48: =Z48-F13 -> 0
K49: Амортизация | L49: =IF($Z$44=0,0,$F$17/$Z$44*L44) -> 0 | M49: 0 | N49: 0 | O49: 0 | P49: 0 | Q49: 0 | R49: 0 | S49: 0 | T49: 0 | U49: 0 | V49: 0 | W49: 0 | X49: 0 | Y49: 0 | Z49: 0 | AA49: =Z49-F17 -> 0
K50: Аренда | L50: =IF($Z$44=0,0,$F$18/$Z$44*L44) -> 0 | M50: 0 | N50: 0 | O50: 0 | P50: 0 | Q50: 0 | R50: 0 | S50: 0 | T50: 0 | U50: 0 | V50: 0 | W50: 0 | X50: 0 | Y50: 0 | Z50: 0 | AA50: 0
K51: содержание зданий | L51: =IF($Z$44=0,0,$F$19/$Z$44*L44) -> 0 | M51: 0 | N51: 0 | O51: 0 | P51: 0 | Q51: 0 | R51: 0 | S51: 0 | T51: 0 | U51: 0 | V51: 0 | W51: 0 | X51: 0 | Y51: 0 | Z51: 0 | AA51: 0
K52: электроэнергия | L52: =IF($Z$44=0,0,$F$20/$Z$44*L44) -> 0 | M52: 0 | N52: 0 | O52: 0 | P52: 0 | Q52: 0 | R52: 0 | S52: 0 | T52: 0 | U52: 0 | V52: 0 | W52: 0 | X52: 0 | Y52: 0 | Z52: 0 | AA52: 0
K53: тепловая энергия | L53: =IF($Z$44=0,0,$F$21/$Z$44*L44) -> 0 | M53: 0 | N53: 0 | O53: 0 | P53: 0 | Q53: 0 | R53: 0 | S53: 0 | T53: 0 | U53: 0 | V53: 0 | W53: 0 | X53: 0 | Y53: 0 | Z53: 0 | AA53: 0
K54: водоснабжение | L54: =IF($Z$44=0,0,$F$22/$Z$44*L44) -> 0 | M54: 0 | N54: 0 | O54: 0 | P54: 0 | Q54: 0 | R54: 0 | S54: 0 | T54: 0 | U54: 0 | V54: 0 | W54: 0 | X54: 0 | Y54: 0 | Z54: 0 | AA54: 0
K55: водоотведение | L55: =IF($Z$44=0,0,$F$23/$Z$44*L44) -> 0 | M55: 0 | N55: 0 | O55: 0 | P55: 0 | Q55: 0 | R55: 0 | S55: 0 | T55: 0 | U55: 0 | V55: 0 | W55: 0 | X55: 0 | Y55: 0 | Z55: 0 | AA55: 0
B56: моющие средства | K56: прочие услуги | L56: =IF($Z$44=0,0,$F$24/$Z$44*L44) -> 0 | M56: 0 | N56: 0 | O56: 0 | P56: 0 | Q56: 0 | R56: 0 | S56: 0 | T56: 0 | U56: 0 | V56: 0 | W56: 0 | X56: 0 | Y56: 0 | Z56: 0 | AA56: 0
B57: специальное питание | K57: транспортный налог | L57: =IF($Z$44=0,0,$F$26/$Z$44*L44) -> 0 | M57: 0 | N57: 0 | O57: 0 | P57: 0 | Q57: 0 | R57: 0 | S57: 0 | T57: 0 | U57: 0 | V57: 0 | W57: 0 | X57: 0 | Y57: 0 | Z57: 0 | AA57: =Z57-F26 -> 0
B58: страхование персонала (кроме ДМС) | K58: налог на имущество | L58: =IF($Z$44=0,0,$F$27/$Z$44*L44) -> 0 | M58: 0 | N58: 0 | O58: 0 | P58: 0 | Q58: 0 | R58: 0 | S58: 0 | T58: 0 | U58: 0 | V58: 0 | W58: 0 | X58: 0 | Y58: 0 | Z58: 0 | AA58: 0
B59: аттестация | K59: аренда земли | L59: =IF($Z$44=0,0,$F$28/$Z$44*L44) -> 0 | M59: 0 | N59: 0 | O59: 0 | P59: 0 | Q59: 0 | R59: 0 | S59: 0 | T59: 0 | U59: 0 | V59: 0 | W59: 0 | X59: 0 | Y59: 0 | Z59: 0 | AA59: 0
B60: медицинский осмотр | I60: ='баланс ВСН'!I8 -> план организации | K60: земельный налог | L60: =IF($Z$44=0,0,$F$29/$Z$44*L44) -> 0 | M60: 0 | N60: 0 | O60: 0 | P60: 0 | Q60: 0 | R60: 0 | S60: 0 | T60: 0 | U60: 0 | V60: 0 | W60: 0 | X60: 0 | Y60: 0 | Z60: 0 | AA60: 0
B61: расходы на льготный проезд | K61: плата за загрязнение окружающей среды | L61: =IF($Z$44=0,0,$F$30/$Z$44*L44) -> 0 | M61: 0 | N61: 0 | O61: 0 | P61: 0 | Q61: 0 | R61: 0 | S61: 0 | T61: 0 | U61: 0 | V61: 0 | W61: 0 | X61: 0 | Y61: 0 | Z61: 0 | AA61: 0
B62: прочие расходы | K62: ремонт всего | L62: =IF($Z$44=0,0,$F$31/$Z$44*L44) -> 0 | M62: 0 | N62: 0 | O62: 0 | P62: 0 | Q62: 0 | R62: 0 | S62: 0 | T62: 0 | U62: 0 | V62: 0 | W62: 0 | X62: 0 | Y62: 0 | Z62: 0 | AA62: 0
B63: ВСЕГО | C63: =SUM(C12,C15,C17:C19,C25,C31,C33,C35) -> 0 | D63: =SUM(D12,D15,D17:D19,D25,D31,D33,D35) -> 0 | E63: =SUM(E12,E15,E17:E19,E25,E31,E33,E35) -> 0 | F63: =SUM(F12,F15,F17:F19,F25,F31,F33,F35) -> 0 | G63: =SUM(G12,G15,G17:G19,G25,G31,G33,G35) -> 0 | K63: в т.ч. материалы на ремонт | L63: =IF($Z$44=0,0,$F$32/$Z$44*L44) -> 0 | M63: 0 | N63: 0 | O63: 0 | P63: 0 | Q63: 0 | R63: 0 | S63: 0 | T63: 0 | U63: 0 | V63: 0 | W63: 0 | X63: 0 | Y63: 0 | Z63: 0 | AA63: 0
K64: материалы на эксплуатацию и ТО | L64: =IF($Z$44=0,0,$F$33/$Z$44*L44) -> 0 | M64: 0 | N64: 0 | O64: 0 | P64: 0 | Q64: 0 | R64: 0 | S64: 0 | T64: 0 | U64: 0 | V64: 0 | W64: 0 | X64: 0 | Y64: 0 | Z64: 0 | AA64: 0
K65: в т.ч. ГСМ | L65: =IF($Z$44=0,0,$F$34/$Z$44*L44) -> 0 | M65: 0 | N65: 0 | O65: 0 | P65: 0 | Q65: 0 | R65: 0 | S65: 0 | T65: 0 | U65: 0 | V65: 0 | W65: 0 | X65: 0 | Y65: 0 | Z65: 0 | AA65: 0
K66: обучение персонала | L66: =IF($Z$44=0,0,$F$37/$Z$44*L44) -> 0 | M66: 0 | N66: 0 | O66: 0 | P66: 0 | Q66: 0 | R66: 0 | S66: 0 | T66: 0 | U66: 0 | V66: 0 | W66: 0 | X66: 0 | Y66: 0 | Z66: 0 | AA66: =Z66-F37 -> 0
K67: командировочные расходы | L67: =IF($Z$44=0,0,$F$38/$Z$44*L44) -> 0 | M67: 0 | N67: 0 | O67: 0 | P67: 0 | Q67: 0 | R67: 0 | S67: 0 | T67: 0 | U67: 0 | V67: 0 | W67: 0 | X67: 0 | Y67: 0 | Z67: 0 | AA67: =Z67-F38 -> 0
K68: Расходы на оплату работ и услуг, выполняемых сторонними организациями (услуги связи, вневедомственная охрана, юридические, аудиторкие, информационные услуги и т.д.) | L68: =IF($Z$44=0,0,SUM($F$36,$F$40:$F$43)/$Z$44*L44) -> 0 | M68: 0 | N68: 0 | O68: 0 | P68: 0 | Q68: 0 | R68: 0 | S68: 0 | T68: 0 | U68: 0 | V68: 0 | W68: 0 | X68: 0 | Y68: 0 | Z68: 0 | AA68: =Z68-SUM(F36,F40:F43) -> 0
K69: страхование объектов | L69: =IF($Z$44=0,0,$F$44/$Z$44*L44) -> 0 | M69: 0 | N69: 0 | O69: 0 | P69: 0 | Q69: 0 | R69: 0 | S69: 0 | T69: 0 | U69: 0 | V69: 0 | W69: 0 | X69: 0 | Y69: 0 | Z69: 0 | AA69: =Z69-F44 -> 0
K70: =K34 -> моющие средства | L70: =IF($Z$44=0,0,$F$56/$Z$44*L44) -> 0 | M70: 0 | N70: 0 | O70: 0 | P70: 0 | Q70: 0 | R70: 0 | S70: 0 | T70: 0 | U70: 0 | V70: 0 | W70: 0 | X70: 0 | Y70: 0 | Z70: 0 | AA70: =Z70-F56 -> 0
K71: специальное питание | L71: =IF($Z$44=0,0,$F$57/$Z$44*L44) -> 0 | M71: 0 | N71: 0 | O71: 0 | P71: 0 | Q71: 0 | R71: 0 | S71: 0 | T71: 0 | U71: 0 | V71: 0 | W71: 0 | X71: 0 | Y71: 0 | Z71: 0 | AA71: 0
K72: страхование персонала (кроме ДМС) | L72: =IF($Z$44=0,0,$F$58/$Z$44*L44) -> 0 | M72: 0 | N72: 0 | O72: 0 | P72: 0 | Q72: 0 | R72: 0 | S72: 0 | T72: 0 | U72: 0 | V72: 0 | W72: 0 | X72: 0 | Y72: 0 | Z72: 0 | AA72: 0
K73: аттестация | L73: =IF($Z$44=0,0,$F$59/$Z$44*L44) -> 0 | M73: 0 | N73: 0 | O73: 0 | P73: 0 | Q73: 0 | R73: 0 | S73: 0 | T73: 0 | U73: 0 | V73: 0 | W73: 0 | X73: 0 | Y73: 0 | Z73: 0 | AA73: 0
K74: медицинский осмотр | L74: =IF($Z$44=0,0,$F$60/$Z$44*L44) -> 0 | M74: 0 | N74: 0 | O74: 0 | P74: 0 | Q74: 0 | R74: 0 | S74: 0 | T74: 0 | U74: 0 | V74: 0 | W74: 0 | X74: 0 | Y74: 0 | Z74: 0 | AA74: 0
K75: расходы на льготный проезд | L75: =IF($Z$44=0,0,$F$61/$Z$44*L44) -> 0 | M75: 0 | N75: 0 | O75: 0 | P75: 0 | Q75: 0 | R75: 0 | S75: 0 | T75: 0 | U75: 0 | V75: 0 | W75: 0 | X75: 0 | Y75: 0 | Z75: 0 | AA75: 0
K76: прочие расходы | L76: =IF($Z$44=0,0,SUM($F$45:$F$55,$F$62,$F$39)/$Z$44*L44) -> 0 | M76: 0 | N76: 0 | O76: 0 | P76: 0 | Q76: 0 | R76: 0 | S76: 0 | T76: 0 | U76: 0 | V76: 0 | W76: 0 | X76: 0 | Y76: 0 | Z76: 0 | AA76: =Z76-SUM(F39,F45:F55,F62) -> 0
Z77: рублей
I78: Подразделение | L78: Виды тарифов, виды деятельности (согласно Учетной политике организации) | Z78: всего
N79: Водоснабжение | W79: ОХР
I80: =I44 -> 2018 | J80: База | Z80: =SUM(L80:Y80) -> 0
J81: Сумма транспортных расходов | K81: всего | L81: =SUM(L82:L83,L85:L86,L88:L98,L100,L102:L112) -> 0 | M81: =SUM(M82:M83,M85:M86,M88:M98,M100,M102:M112) -> 0 | N81: 0 | O81: 0 | P81: 0 | Q81: 0 | R81: 0 | S81: 0 | T81: 0 | U81: 0 | V81: 0 | W81: 0 | X81: 0 | Y81: 0 | Z81: =SUM(L81:Y81) -> 0 | AA81: =Z81-G63 -> 0
K82: расходы на оплату труда | L82: =IF($Z$80=0,0,$G$12/$Z$80*L80) -> 0 | M82: 0 | N82: 0 | O82: 0 | P82: 0 | Q82: 0 | R82: 0 | S82: 0 | T82: 0 | U82: 0 | V82: 0 | W82: 0 | X82: 0 | Y82: 0 | Z82: =SUM(L82:Y82) -> 0 | AA82: =Z82-G12 -> 0
K83: отчисления от ФОТ | L83: =IF($Z$80=0,0,$G$15/$Z$80*L80) -> 0 | M83: 0 | N83: 0 | O83: 0 | P83: 0 | Q83: 0 | R83: 0 | S83: 0 | T83: 0 | U83: 0 | V83: 0 | W83: 0 | X83: 0 | Y83: 0 | Z83: 0 | AA83: =Z83-G15 -> 0
K84: численность | L84: =IF($Z$80=0,0,$G$13/$Z$80*L80) -> 0 | M84: 0 | N84: 0 | O84: 0 | P84: 0 | Q84: 0 | R84: 0 | S84: 0 | T84: 0 | U84: 0 | V84: 0 | W84: 0 | X84: 0 | Y84: 0 | Z84: 0 | AA84: =Z84-G13 -> 0
K85: Амортизация | L85: =IF($Z$80=0,0,$G$17/$Z$80*L80) -> 0 | M85: 0 | N85: 0 | O85: 0 | P85: 0 | Q85: 0 | R85: 0 | S85: 0 | T85: 0 | U85: 0 | V85: 0 | W85: 0 | X85: 0 | Y85: 0 | Z85: 0 | AA85: =Z85-G17 -> 0
K86: Аренда | L86: =IF($Z$80=0,0,$G$18/$Z$80*L80) -> 0 | M86: 0 | N86: 0 | O86: 0 | P86: 0 | Q86: 0 | R86: 0 | S86: 0 | T86: 0 | U86: 0 | V86: 0 | W86: 0 | X86: 0 | Y86: 0 | Z86: 0 | AA86: 0
K87: содержание зданий | L87: =IF($Z$80=0,0,$G$19/$Z$80*L80) -> 0 | M87: 0 | N87: 0 | O87: 0 | P87: 0 | Q87: 0 | R87: 0 | S87: 0 | T87: 0 | U87: 0 | V87: 0 | W87: 0 | X87: 0 | Y87: 0 | Z87: 0 | AA87: 0
K88: электроэнергия | L88: =IF($Z$80=0,0,$G$20/$Z$80*L80) -> 0 | M88: 0 | N88: 0 | O88: 0 | P88: 0 | Q88: 0 | R88: 0 | S88: 0 | T88: 0 | U88: 0 | V88: 0 | W88: 0 | X88: 0 | Y88: 0 | Z88: =SUM(L88:Y88) -> 0 | AA88: 0
K89: тепловая энергия | L89: =IF($Z$80=0,0,$G$21/$Z$80*L80) -> 0 | M89: 0 | N89: 0 | O89: 0 | P89: 0 | Q89: 0 | R89: 0 | S89: 0 | T89: 0 | U89: 0 | V89: 0 | W89: 0 | X89: 0 | Y89: 0 | Z89: =SUM(L89:Y89) -> 0 | AA89: 0
